Workbook

Sheet HOME
B7: GLOBAL OBESITY RESPONSE INDEX
B9: Contents
B11: About | C11: Introduction to this index.
B12: Pillars | C12: Comparison of pillar performance across countries.
B13: Indicators | C13: Comparison across countries for a single selected indicator/pillar.
B14: Countries | C14: Country-level scorecard.
B15: Data table | C15: Entire dataset, in table format.
B16: Scores | C16: Entire scorecard, in table format.

Sheet ABOUT
C1: =HOME!B7 -> GLOBAL OBESITY RESPONSE INDEX
B6: About
B8: The Global Obesity Response Index assesses obesity prevention and management policy across countries. It seeks to address a gap in understanding the full range of factors that contribute to obesity, the associated risks and the policy interventions that comprise a holistic response. By examining country-level approaches, the index highlights areas where policy is strongest and weakest, signposting where countries can learn from each other.
B11: The framework is organised as follows:
B12: • Four pillars: Policy and governance, Obesity management, Food quality and access, Physical activity • Nine sub-pillars, distributed across the pillars • 30 indicators, distributed across the sub-pillars
B15: In addition to these core pillars and indicators, the framework also includes ten background indicators. These indicators are not scored, but are used to provide more context and to better understand the factors that may influence country-level scores.

Sheet PILLARS
B1: =HOME!B7 -> GLOBAL OBESITY RESPONSE INDEX
B6: SELECT SORT ORDER
B7: Best response to worst
B10: Scores 80-100 - Areas of strength | F10: 80
B11: Scores 60-79 | F11: 60
B12: Scores 40-59 | F12: 40
B13: Scores 20-39 | F13: 20
B14: Scores 0-19 - Areas of development | F14: 0
B16: Score: 0-100, where 100 = strongest obesity response
B17: '=' denotes tied rank
B18: Average = mean score for all countries shown in table
B20: OVERALL | G20: 1) Policy and governance | L20: 2) Obesity management | Q20: 3) Food quality and access | V20: 4) Physical activity
C21: Rank | D21: Country | E21: Score | H21: Rank | I21: Country | J21: Score | M21: Rank | N21: Country | O21: Score | R21: Rank | S21: Country | T21: Score | W21: Rank | X21: Country | Y21: Score
A22: =IF($B$7=Lists!$K$4, 21,1) -> 1 | C22: =INDEX('Selected values'!$U$4:$U$24,MATCH(D22,'Selected values'!$S$4:$S$24,0)) -> 1 | D22: =IF($B$7=Lists!$K$2, INDEX('Selected values'!$M$4:$M$24, MATCH($A22,'Selected values'!$O$4:$O$24,0)), INDEX('Selected values'!$M$4:$M$24,MATCH($A22,'Selected values'!$P$4:$P$24,0))) -> Serbia | E22: =ROUND(INDEX('Selected values'!$N$4:$N$24, MATCH(D22,'Selected values'!$M$4:$M$24,0)),1) -> 74.8 | H22: =INDEX('Selected values'!$AF$4:$AF$24,MATCH(I22,'Selected values'!$AD$4:$AD$24,0)) -> 1 | I22: =IF($B$7=Lists!$K$2, INDEX('Selected values'!$X$4:$X$24, MATCH($A22,'Selected values'!$Z$4:$Z$24,0)), INDEX('Selected values'!$X$4:$X$24,MATCH($A22,'Selected values'!$AA$4:$AA$24,0))) -> Serbia | J22: =ROUND(INDEX('Selected values'!$Y$4:$Y$24, MATCH(I22,'Selected values'!$X$4:$X$24,0)),1) -> 95 | M22: =INDEX('Selected values'!$AQ$4:$AQ$24,MATCH(N22,'Selected values'!$AO$4:$AO$24,0)) -> 1 | N22: =IF($B$7=Lists!$K$2, INDEX('Selected values'!$AI$4:$AI$24, MATCH($A22,'Selected values'!$AK$4:$AK$24,0)), INDEX('Selected values'!$AI$4:$AI$24,MATCH($A22,'Selected values'!$AL$4:$AL$24,0))) -> United Kingdom | O22: =ROUND(INDEX('Selected values'!$AJ$4:$AJ$24, MATCH(N22,'Selected values'!$AI$4:$AI$24,0)),1) -> 100 | R22: =INDEX('Selected values'!$BB$4:$BB$24,MATCH(S22,'Selected values'!$AZ$4:$AZ$24,0)) -> 1 | S22: =IF($B$7=Lists!$K$2, INDEX('Selected values'!$AT$4:$AT$24, MATCH($A22,'Selected values'!$AV$4:$AV$24,0)), INDEX('Selected values'!$AT$4:$AT$24,MATCH($A22,'Selected values'!$AW$4:$AW$24,0))) -> United Kingdom | T22: =ROUND(INDEX('Selected values'!$AU$4:$AU$24, MATCH(S22,'Selected values'!$AT$4:$AT$24,0)),1) -> 90.2 | W22: =INDEX('Selected values'!$BM$4:$BM$24,MATCH(X22,'Selected values'!$BK$4:$BK$24,0)) -> =1 | X22: =IF($B$7=Lists!$K$2, INDEX('Selected values'!$BE$4:$BE$24, MATCH($A22,'Selected values'!$BG$4:$BG$24,0)), INDEX('Selected values'!$BE$4:$BE$24,MATCH($A22,'Selected values'!$BH$4:$BH$24,0))) -> China | Y22: =ROUND(INDEX('Selected values'!$BF$4:$BF$54, MATCH(X22,'Selected values'!$BE$4:$BE$54,0)),1) -> 75
A23: =IF($B$7=Lists!$K$4, A22-1,A22+1) -> 2 | C23: =INDEX('Selected values'!$U$4:$U$24,MATCH(D23,'Selected values'!$S$4:$S$24,0)) -> 2 | D23: =IF($B$7=Lists!$K$2, INDEX('Selected values'!$M$4:$M$24, MATCH($A23,'Selected values'!$O$4:$O$24,0)), INDEX('Selected values'!$M$4:$M$24,MATCH($A23,'Selected values'!$P$4:$P$24,0))) -> France | E23: =ROUND(INDEX('Selected values'!$N$4:$N$24, MATCH(D23,'Selected values'!$M$4:$M$24,0)),1) -> 74.3 | H23: =INDEX('Selected values'!$AF$4:$AF$24,MATCH(I23,'Selected values'!$AD$4:$AD$24,0)) -> =2 | I23: =IF($B$7=Lists!$K$2, INDEX('Selected values'!$X$4:$X$24, MATCH($A23,'Selected values'!$Z$4:$Z$24,0)), INDEX('Selected values'!$X$4:$X$24,MATCH($A23,'Selected values'!$AA$4:$AA$24,0))) -> France | J23: =ROUND(INDEX('Selected values'!$Y$4:$Y$24, MATCH(I23,'Selected values'!$X$4:$X$24,0)),1) -> 62.5 | M23: =INDEX('Selected values'!$AQ$4:$AQ$24,MATCH(N23,'Selected values'!$AO$4:$AO$24,0)) -> =2 | N23: =IF($B$7=Lists!$K$2, INDEX('Selected values'!$AI$4:$AI$24, MATCH($A23,'Selected values'!$AK$4:$AK$24,0)), INDEX('Selected values'!$AI$4:$AI$24,MATCH($A23,'Selected values'!$AL$4:$AL$24,0))) -> Brazil | O23: =ROUND(INDEX('Selected values'!$AJ$4:$AJ$24, MATCH(N23,'Selected values'!$AI$4:$AI$24,0)),1) -> 91.7 | R23: =INDEX('Selected values'!$BB$4:$BB$24,MATCH(S23,'Selected values'!$AZ$4:$AZ$24,0)) -> 2 | S23: =IF($B$7=Lists!$K$2, INDEX('Selected values'!$AT$4:$AT$24, MATCH($A23,'Selected values'!$AV$4:$AV$24,0)), INDEX('Selected values'!$AT$4:$AT$24,MATCH($A23,'Selected values'!$AW$4:$AW$24,0))) -> Mexico | T23: =ROUND(INDEX('Selected values'!$AU$4:$AU$24, MATCH(S23,'Selected values'!$AT$4:$AT$24,0)),1) -> 84.1 | W23: =INDEX('Selected values'!$BM$4:$BM$24,MATCH(X23,'Selected values'!$BK$4:$BK$24,0)) -> =1 | X23: =IF($B$7=Lists!$K$2, INDEX('Selected values'!$BE$4:$BE$24, MATCH($A23,'Selected values'!$BG$4:$BG$24,0)), INDEX('Selected values'!$BE$4:$BE$24,MATCH($A23,'Selected values'!$BH$4:$BH$24,0))) -> South Korea | Y23: =ROUND(INDEX('Selected values'!$BF$4:$BF$54, MATCH(X23,'Selected values'!$BE$4:$BE$54,0)),1) -> 75
A24: =IF($B$7=Lists!$K$4, A23-1,A23+1) -> 3 | C24: =INDEX('Selected values'!$U$4:$U$24,MATCH(D24,'Selected values'!$S$4:$S$24,0)) -> 3 | D24: =IF($B$7=Lists!$K$2, INDEX('Selected values'!$M$4:$M$24, MATCH($A24,'Selected values'!$O$4:$O$24,0)), INDEX('Selected values'!$M$4:$M$24,MATCH($A24,'Selected values'!$P$4:$P$24,0))) -> Brazil | E24: =ROUND(INDEX('Selected values'!$N$4:$N$24, MATCH(D24,'Selected values'!$M$4:$M$24,0)),1) -> 72.4 | H24: =INDEX('Selected values'!$AF$4:$AF$24,MATCH(I24,'Selected values'!$AD$4:$AD$24,0)) -> =2 | I24: =IF($B$7=Lists!$K$2, INDEX('Selected values'!$X$4:$X$24, MATCH($A24,'Selected values'!$Z$4:$Z$24,0)), INDEX('Selected values'!$X$4:$X$24,MATCH($A24,'Selected values'!$AA$4:$AA$24,0))) -> Spain | J24: =ROUND(INDEX('Selected values'!$Y$4:$Y$24, MATCH(I24,'Selected values'!$X$4:$X$24,0)),1) -> 62.5 | M24: =INDEX('Selected values'!$AQ$4:$AQ$24,MATCH(N24,'Selected values'!$AO$4:$AO$24,0)) -> =2 | N24: =IF($B$7=Lists!$K$2, INDEX('Selected values'!$AI$4:$AI$24, MATCH($A24,'Selected values'!$AK$4:$AK$24,0)), INDEX('Selected values'!$AI$4:$AI$24,MATCH($A24,'Selected values'!$AL$4:$AL$24,0))) -> Finland | O24: =ROUND(INDEX('Selected values'!$AJ$4:$AJ$24, MATCH(N24,'Selected values'!$AI$4:$AI$24,0)),1) -> 91.7 | R24: =INDEX('Selected values'!$BB$4:$BB$24,MATCH(S24,'Selected values'!$AZ$4:$AZ$24,0)) -> 3 | S24: =IF($B$7=Lists!$K$2, INDEX('Selected values'!$AT$4:$AT$24, MATCH($A24,'Selected values'!$AV$4:$AV$24,0)), INDEX('Selected values'!$AT$4:$AT$24,MATCH($A24,'Selected values'!$AW$4:$AW$24,0))) -> Spain | T24: =ROUND(INDEX('Selected values'!$AU$4:$AU$24, MATCH(S24,'Selected values'!$AT$4:$AT$24,0)),1) -> 82.7 | W24: =INDEX('Selected values'!$BM$4:$BM$24,MATCH(X24,'Selected values'!$BK$4:$BK$24,0)) -> =3 | X24: =IF($B$7=Lists!$K$2, INDEX('Selected values'!$BE$4:$BE$24, MATCH($A24,'Selected values'!$BG$4:$BG$24,0)), INDEX('Selected values'!$BE$4:$BE$24,MATCH($A24,'Selected values'!$BH$4:$BH$24,0))) -> Brazil | Y24: =ROUND(INDEX('Selected values'!$BF$4:$BF$54, MATCH(X24,'Selected values'!$BE$4:$BE$54,0)),1) -> 66.7
A25: =IF($B$7=Lists!$K$4, A24-1,A24+1) -> 4 | C25: =INDEX('Selected values'!$U$4:$U$24,MATCH(D25,'Selected values'!$S$4:$S$24,0)) -> 4 | D25: =IF($B$7=Lists!$K$2, INDEX('Selected values'!$M$4:$M$24, MATCH($A25,'Selected values'!$O$4:$O$24,0)), INDEX('Selected values'!$M$4:$M$24,MATCH($A25,'Selected values'!$P$4:$P$24,0))) -> South Korea | E25: =ROUND(INDEX('Selected values'!$N$4:$N$24, MATCH(D25,'Selected values'!$M$4:$M$24,0)),1) -> 71.2 | H25: =INDEX('Selected values'!$AF$4:$AF$24,MATCH(I25,'Selected values'!$AD$4:$AD$24,0)) -> 4 | I25: =IF($B$7=Lists!$K$2, INDEX('Selected values'!$X$4:$X$24, MATCH($A25,'Selected values'!$Z$4:$Z$24,0)), INDEX('Selected values'!$X$4:$X$24,MATCH($A25,'Selected values'!$AA$4:$AA$24,0))) -> Germany | J25: =ROUND(INDEX('Selected values'!$Y$4:$Y$24, MATCH(I25,'Selected values'!$X$4:$X$24,0)),1) -> 60.8 | M25: =INDEX('Selected values'!$AQ$4:$AQ$24,MATCH(N25,'Selected values'!$AO$4:$AO$24,0)) -> =2 | N25: =IF($B$7=Lists!$K$2, INDEX('Selected values'!$AI$4:$AI$24, MATCH($A25,'Selected values'!$AK$4:$AK$24,0)), INDEX('Selected values'!$AI$4:$AI$24,MATCH($A25,'Selected values'!$AL$4:$AL$24,0))) -> United Arab Emirates | O25: =ROUND(INDEX('Selected values'!$AJ$4:$AJ$24, MATCH(N25,'Selected values'!$AI$4:$AI$24,0)),1) -> 91.7 | R25: =INDEX('Selected values'!$BB$4:$BB$24,MATCH(S25,'Selected values'!$AZ$4:$AZ$24,0)) -> 4 | S25: =IF($B$7=Lists!$K$2, INDEX('Selected values'!$AT$4:$AT$24, MATCH($A25,'Selected values'!$AV$4:$AV$24,0)), INDEX('Selected values'!$AT$4:$AT$24,MATCH($A25,'Selected values'!$AW$4:$AW$24,0))) -> France | T25: =ROUND(INDEX('Selected values'!$AU$4:$AU$24, MATCH(S25,'Selected values'!$AT$4:$AT$24,0)),1) -> 82.1 | W25: =INDEX('Selected values'!$BM$4:$BM$24,MATCH(X25,'Selected values'!$BK$4:$BK$24,0)) -> =3 | X25: =IF($B$7=Lists!$K$2, INDEX('Selected values'!$BE$4:$BE$24, MATCH($A25,'Selected values'!$BG$4:$BG$24,0)), INDEX('Selected values'!$BE$4:$BE$24,MATCH($A25,'Selected values'!$BH$4:$BH$24,0))) -> France | Y25: =ROUND(INDEX('Selected values'!$BF$4:$BF$54, MATCH(X25,'Selected values'!$BE$4:$BE$54,0)),1) -> 66.7
A26: =IF($B$7=Lists!$K$4, A25-1,A25+1) -> 5 | C26: =INDEX('Selected values'!$U$4:$U$24,MATCH(D26,'Selected values'!$S$4:$S$24,0)) -> 5 | D26: =IF($B$7=Lists!$K$2, INDEX('Selected values'!$M$4:$M$24, MATCH($A26,'Selected values'!$O$4:$O$24,0)), INDEX('Selected values'!$M$4:$M$24,MATCH($A26,'Selected values'!$P$4:$P$24,0))) -> Finland | E26: =ROUND(INDEX('Selected values'!$N$4:$N$24, MATCH(D26,'Selected values'!$M$4:$M$24,0)),1) -> 66.8 | H26: =INDEX('Selected values'!$AF$4:$AF$24,MATCH(I26,'Selected values'!$AD$4:$AD$24,0)) -> 5 | I26: =IF($B$7=Lists!$K$2, INDEX('Selected values'!$X$4:$X$24, MATCH($A26,'Selected values'!$Z$4:$Z$24,0)), INDEX('Selected values'!$X$4:$X$24,MATCH($A26,'Selected values'!$AA$4:$AA$24,0))) -> Australia | J26: =ROUND(INDEX('Selected values'!$Y$4:$Y$24, MATCH(I26,'Selected values'!$X$4:$X$24,0)),1) -> 57.9 | M26: =INDEX('Selected values'!$AQ$4:$AQ$24,MATCH(N26,'Selected values'!$AO$4:$AO$24,0)) -> =5 | N26: =IF($B$7=Lists!$K$2, INDEX('Selected values'!$AI$4:$AI$24, MATCH($A26,'Selected values'!$AK$4:$AK$24,0)), INDEX('Selected values'!$AI$4:$AI$24,MATCH($A26,'Selected values'!$AL$4:$AL$24,0))) -> France | O26: =ROUND(INDEX('Selected values'!$AJ$4:$AJ$24, MATCH(N26,'Selected values'!$AI$4:$AI$24,0)),1) -> 86.1 | R26: =INDEX('Selected values'!$BB$4:$BB$24,MATCH(S26,'Selected values'!$AZ$4:$AZ$24,0)) -> 5 | S26: =IF($B$7=Lists!$K$2, INDEX('Selected values'!$AT$4:$AT$24, MATCH($A26,'Selected values'!$AV$4:$AV$24,0)), INDEX('Selected values'!$AT$4:$AT$24,MATCH($A26,'Selected values'!$AW$4:$AW$24,0))) -> Brazil | T26: =ROUND(INDEX('Selected values'!$AU$4:$AU$24, MATCH(S26,'Selected values'!$AT$4:$AT$24,0)),1) -> 78.5 | W26: =INDEX('Selected values'!$BM$4:$BM$24,MATCH(X26,'Selected values'!$BK$4:$BK$24,0)) -> =5 | X26: =IF($B$7=Lists!$K$2, INDEX('Selected values'!$BE$4:$BE$24, MATCH($A26,'Selected values'!$BG$4:$BG$24,0)), INDEX('Selected values'!$BE$4:$BE$24,MATCH($A26,'Selected values'!$BH$4:$BH$24,0))) -> Canada | Y26: =ROUND(INDEX('Selected values'!$BF$4:$BF$54, MATCH(X26,'Selected values'!$BE$4:$BE$54,0)),1) -> 58.3
A27: =IF($B$7=Lists!$K$4, A26-1,A26+1) -> 6 | C27: =INDEX('Selected values'!$U$4:$U$24,MATCH(D27,'Selected values'!$S$4:$S$24,0)) -> 6 | D27: =IF($B$7=Lists!$K$2, INDEX('Selected values'!$M$4:$M$24, MATCH($A27,'Selected values'!$O$4:$O$24,0)), INDEX('Selected values'!$M$4:$M$24,MATCH($A27,'Selected values'!$P$4:$P$24,0))) -> Germany | E27: =ROUND(INDEX('Selected values'!$N$4:$N$24, MATCH(D27,'Selected values'!$M$4:$M$24,0)),1) -> 64.9 | H27: =INDEX('Selected values'!$AF$4:$AF$24,MATCH(I27,'Selected values'!$AD$4:$AD$24,0)) -> 6 | I27: =IF($B$7=Lists!$K$2, INDEX('Selected values'!$X$4:$X$24, MATCH($A27,'Selected values'!$Z$4:$Z$24,0)), INDEX('Selected values'!$X$4:$X$24,MATCH($A27,'Selected values'!$AA$4:$AA$24,0))) -> South Korea | J27: =ROUND(INDEX('Selected values'!$Y$4:$Y$24, MATCH(I27,'Selected values'!$X$4:$X$24,0)),1) -> 53.8 | M27: =INDEX('Selected values'!$AQ$4:$AQ$24,MATCH(N27,'Selected values'!$AO$4:$AO$24,0)) -> =5 | N27: =IF($B$7=Lists!$K$2, INDEX('Selected values'!$AI$4:$AI$24, MATCH($A27,'Selected values'!$AK$4:$AK$24,0)), INDEX('Selected values'!$AI$4:$AI$24,MATCH($A27,'Selected values'!$AL$4:$AL$24,0))) -> Serbia | O27: =ROUND(INDEX('Selected values'!$AJ$4:$AJ$24, MATCH(N27,'Selected values'!$AI$4:$AI$24,0)),1) -> 86.1 | R27: =INDEX('Selected values'!$BB$4:$BB$24,MATCH(S27,'Selected values'!$AZ$4:$AZ$24,0)) -> 6 | S27: =IF($B$7=Lists!$K$2, INDEX('Selected values'!$AT$4:$AT$24, MATCH($A27,'Selected values'!$AV$4:$AV$24,0)), INDEX('Selected values'!$AT$4:$AT$24,MATCH($A27,'Selected values'!$AW$4:$AW$24,0))) -> South Korea | T27: =ROUND(INDEX('Selected values'!$AU$4:$AU$24, MATCH(S27,'Selected values'!$AT$4:$AT$24,0)),1) -> 78.4 | W27: =INDEX('Selected values'!$BM$4:$BM$24,MATCH(X27,'Selected values'!$BK$4:$BK$24,0)) -> =5 | X27: =IF($B$7=Lists!$K$2, INDEX('Selected values'!$BE$4:$BE$24, MATCH($A27,'Selected values'!$BG$4:$BG$24,0)), INDEX('Selected values'!$BE$4:$BE$24,MATCH($A27,'Selected values'!$BH$4:$BH$24,0))) -> Germany | Y27: =ROUND(INDEX('Selected values'!$BF$4:$BF$54, MATCH(X27,'Selected values'!$BE$4:$BE$54,0)),1) -> 58.3
A28: =IF($B$7=Lists!$K$4, A27-1,A27+1) -> 7 | C28: =INDEX('Selected values'!$U$4:$U$24,MATCH(D28,'Selected values'!$S$4:$S$24,0)) -> 7 | D28: =IF($B$7=Lists!$K$2, INDEX('Selected values'!$M$4:$M$24, MATCH($A28,'Selected values'!$O$4:$O$24,0)), INDEX('Selected values'!$M$4:$M$24,MATCH($A28,'Selected values'!$P$4:$P$24,0))) -> United Kingdom | E28: =ROUND(INDEX('Selected values'!$N$4:$N$24, MATCH(D28,'Selected values'!$M$4:$M$24,0)),1) -> 64.4 | H28: =INDEX('Selected values'!$AF$4:$AF$24,MATCH(I28,'Selected values'!$AD$4:$AD$24,0)) -> 7 | I28: =IF($B$7=Lists!$K$2, INDEX('Selected values'!$X$4:$X$24, MATCH($A28,'Selected values'!$Z$4:$Z$24,0)), INDEX('Selected values'!$X$4:$X$24,MATCH($A28,'Selected values'!$AA$4:$AA$24,0))) -> Brazil | J28: =ROUND(INDEX('Selected values'!$Y$4:$Y$24, MATCH(I28,'Selected values'!$X$4:$X$24,0)),1) -> 52.9 | M28: =INDEX('Selected values'!$AQ$4:$AQ$24,MATCH(N28,'Selected values'!$AO$4:$AO$24,0)) -> =7 | N28: =IF($B$7=Lists!$K$2, INDEX('Selected values'!$AI$4:$AI$24, MATCH($A28,'Selected values'!$AK$4:$AK$24,0)), INDEX('Selected values'!$AI$4:$AI$24,MATCH($A28,'Selected values'!$AL$4:$AL$24,0))) -> Germany | O28: =ROUND(INDEX('Selected values'!$AJ$4:$AJ$24, MATCH(N28,'Selected values'!$AI$4:$AI$24,0)),1) -> 77.8 | R28: =INDEX('Selected values'!$BB$4:$BB$24,MATCH(S28,'Selected values'!$AZ$4:$AZ$24,0)) -> 7 | S28: =IF($B$7=Lists!$K$2, INDEX('Selected values'!$AT$4:$AT$24, MATCH($A28,'Selected values'!$AV$4:$AV$24,0)), INDEX('Selected values'!$AT$4:$AT$24,MATCH($A28,'Selected values'!$AW$4:$AW$24,0))) -> South Africa | T28: =ROUND(INDEX('Selected values'!$AU$4:$AU$24, MATCH(S28,'Selected values'!$AT$4:$AT$24,0)),1) -> 75.5 | W28: =INDEX('Selected values'!$BM$4:$BM$24,MATCH(X28,'Selected values'!$BK$4:$BK$24,0)) -> =5 | X28: =IF($B$7=Lists!$K$2, INDEX('Selected values'!$BE$4:$BE$24, MATCH($A28,'Selected values'!$BG$4:$BG$24,0)), INDEX('Selected values'!$BE$4:$BE$24,MATCH($A28,'Selected values'!$BH$4:$BH$24,0))) -> Italy | Y28: =ROUND(INDEX('Selected values'!$BF$4:$BF$54, MATCH(X28,'Selected values'!$BE$4:$BE$54,0)),1) -> 58.3
A29: =IF($B$7=Lists!$K$4, A28-1,A28+1) -> 8 | C29: =INDEX('Selected values'!$U$4:$U$24,MATCH(D29,'Selected values'!$S$4:$S$24,0)) -> =8 | D29: =IF($B$7=Lists!$K$2, INDEX('Selected values'!$M$4:$M$24, MATCH($A29,'Selected values'!$O$4:$O$24,0)), INDEX('Selected values'!$M$4:$M$24,MATCH($A29,'Selected values'!$P$4:$P$24,0))) -> China | E29: =ROUND(INDEX('Selected values'!$N$4:$N$24, MATCH(D29,'Selected values'!$M$4:$M$24,0)),1) -> 63.1 | H29: =INDEX('Selected values'!$AF$4:$AF$24,MATCH(I29,'Selected values'!$AD$4:$AD$24,0)) -> =8 | I29: =IF($B$7=Lists!$K$2, INDEX('Selected values'!$X$4:$X$24, MATCH($A29,'Selected values'!$Z$4:$Z$24,0)), INDEX('Selected values'!$X$4:$X$24,MATCH($A29,'Selected values'!$AA$4:$AA$24,0))) -> China | J29: =ROUND(INDEX('Selected values'!$Y$4:$Y$24, MATCH(I29,'Selected values'!$X$4:$X$24,0)),1) -> 52.5 | M29: =INDEX('Selected values'!$AQ$4:$AQ$24,MATCH(N29,'Selected values'!$AO$4:$AO$24,0)) -> =7 | N29: =IF($B$7=Lists!$K$2, INDEX('Selected values'!$AI$4:$AI$24, MATCH($A29,'Selected values'!$AK$4:$AK$24,0)), INDEX('Selected values'!$AI$4:$AI$24,MATCH($A29,'Selected values'!$AL$4:$AL$24,0))) -> Japan | O29: =ROUND(INDEX('Selected values'!$AJ$4:$AJ$24, MATCH(N29,'Selected values'!$AI$4:$AI$24,0)),1) -> 77.8 | R29: =INDEX('Selected values'!$BB$4:$BB$24,MATCH(S29,'Selected values'!$AZ$4:$AZ$24,0)) -> 8 | S29: =IF($B$7=Lists!$K$2, INDEX('Selected values'!$AT$4:$AT$24, MATCH($A29,'Selected values'!$AV$4:$AV$24,0)), INDEX('Selected values'!$AT$4:$AT$24,MATCH($A29,'Selected values'!$AW$4:$AW$24,0))) -> Finland | T29: =ROUND(INDEX('Selected values'!$AU$4:$AU$24, MATCH(S29,'Selected values'!$AT$4:$AT$24,0)),1) -> 73 | W29: =INDEX('Selected values'!$BM$4:$BM$24,MATCH(X29,'Selected values'!$BK$4:$BK$24,0)) -> =5 | X29: =IF($B$7=Lists!$K$2, INDEX('Selected values'!$BE$4:$BE$24, MATCH($A29,'Selected values'!$BG$4:$BG$24,0)), INDEX('Selected values'!$BE$4:$BE$24,MATCH($A29,'Selected values'!$BH$4:$BH$24,0))) -> Serbia | Y29: =ROUND(INDEX('Selected values'!$BF$4:$BF$54, MATCH(X29,'Selected values'!$BE$4:$BE$54,0)),1) -> 58.3
A30: =IF($B$7=Lists!$K$4, A29-1,A29+1) -> 9 | C30: =INDEX('Selected values'!$U$4:$U$24,MATCH(D30,'Selected values'!$S$4:$S$24,0)) -> =8 | D30: =IF($B$7=Lists!$K$2, INDEX('Selected values'!$M$4:$M$24, MATCH($A30,'Selected values'!$O$4:$O$24,0)), INDEX('Selected values'!$M$4:$M$24,MATCH($A30,'Selected values'!$P$4:$P$24,0))) -> Italy | E30: =ROUND(INDEX('Selected values'!$N$4:$N$24, MATCH(D30,'Selected values'!$M$4:$M$24,0)),1) -> 63.1 | H30: =INDEX('Selected values'!$AF$4:$AF$24,MATCH(I30,'Selected values'!$AD$4:$AD$24,0)) -> =8 | I30: =IF($B$7=Lists!$K$2, INDEX('Selected values'!$X$4:$X$24, MATCH($A30,'Selected values'!$Z$4:$Z$24,0)), INDEX('Selected values'!$X$4:$X$24,MATCH($A30,'Selected values'!$AA$4:$AA$24,0))) -> Finland | J30: =ROUND(INDEX('Selected values'!$Y$4:$Y$24, MATCH(I30,'Selected values'!$X$4:$X$24,0)),1) -> 52.5 | M30: =INDEX('Selected values'!$AQ$4:$AQ$24,MATCH(N30,'Selected values'!$AO$4:$AO$24,0)) -> =7 | N30: =IF($B$7=Lists!$K$2, INDEX('Selected values'!$AI$4:$AI$24, MATCH($A30,'Selected values'!$AK$4:$AK$24,0)), INDEX('Selected values'!$AI$4:$AI$24,MATCH($A30,'Selected values'!$AL$4:$AL$24,0))) -> South Korea | O30: =ROUND(INDEX('Selected values'!$AJ$4:$AJ$24, MATCH(N30,'Selected values'!$AI$4:$AI$24,0)),1) -> 77.8 | R30: =INDEX('Selected values'!$BB$4:$BB$24,MATCH(S30,'Selected values'!$AZ$4:$AZ$24,0)) -> 9 | S30: =IF($B$7=Lists!$K$2, INDEX('Selected values'!$AT$4:$AT$24, MATCH($A30,'Selected values'!$AV$4:$AV$24,0)), INDEX('Selected values'!$AT$4:$AT$24,MATCH($A30,'Selected values'!$AW$4:$AW$24,0))) -> Italy | T30: =ROUND(INDEX('Selected values'!$AU$4:$AU$24, MATCH(S30,'Selected values'!$AT$4:$AT$24,0)),1) -> 72.3 | W30: =INDEX('Selected values'!$BM$4:$BM$24,MATCH(X30,'Selected values'!$BK$4:$BK$24,0)) -> =9 | X30: =IF($B$7=Lists!$K$2, INDEX('Selected values'!$BE$4:$BE$24, MATCH($A30,'Selected values'!$BG$4:$BG$24,0)), INDEX('Selected values'!$BE$4:$BE$24,MATCH($A30,'Selected values'!$BH$4:$BH$24,0))) -> Finland | Y30: =ROUND(INDEX('Selected values'!$BF$4:$BF$54, MATCH(X30,'Selected values'!$BE$4:$BE$54,0)),1) -> 50
A31: =IF($B$7=Lists!$K$4, A30-1,A30+1) -> 10 | C31: =INDEX('Selected values'!$U$4:$U$24,MATCH(D31,'Selected values'!$S$4:$S$24,0)) -> 10 | D31: =IF($B$7=Lists!$K$2, INDEX('Selected values'!$M$4:$M$24, MATCH($A31,'Selected values'!$O$4:$O$24,0)), INDEX('Selected values'!$M$4:$M$24,MATCH($A31,'Selected values'!$P$4:$P$24,0))) -> Australia | E31: =ROUND(INDEX('Selected values'!$N$4:$N$24, MATCH(D31,'Selected values'!$M$4:$M$24,0)),1) -> 58.8 | H31: =INDEX('Selected values'!$AF$4:$AF$24,MATCH(I31,'Selected values'!$AD$4:$AD$24,0)) -> 10 | I31: =IF($B$7=Lists!$K$2, INDEX('Selected values'!$X$4:$X$24, MATCH($A31,'Selected values'!$Z$4:$Z$24,0)), INDEX('Selected values'!$X$4:$X$24,MATCH($A31,'Selected values'!$AA$4:$AA$24,0))) -> Italy | J31: =ROUND(INDEX('Selected values'!$Y$4:$Y$24, MATCH(I31,'Selected values'!$X$4:$X$24,0)),1) -> 52.1 | M31: =INDEX('Selected values'!$AQ$4:$AQ$24,MATCH(N31,'Selected values'!$AO$4:$AO$24,0)) -> 10 | N31: =IF($B$7=Lists!$K$2, INDEX('Selected values'!$AI$4:$AI$24, MATCH($A31,'Selected values'!$AK$4:$AK$24,0)), INDEX('Selected values'!$AI$4:$AI$24,MATCH($A31,'Selected values'!$AL$4:$AL$24,0))) -> Australia | O31: =ROUND(INDEX('Selected values'!$AJ$4:$AJ$24, MATCH(N31,'Selected values'!$AI$4:$AI$24,0)),1) -> 75 | R31: =INDEX('Selected values'!$BB$4:$BB$24,MATCH(S31,'Selected values'!$AZ$4:$AZ$24,0)) ->  | S31: =IF($B$7=Lists!$K$2, INDEX('Selected values'!$AT$4:$AT$24, MATCH($A31,'Selected values'!$AV$4:$AV$24,0)), INDEX('Selected values'!$AT$4:$AT$24,MATCH($A31,'Selected values'!$AW$4:$AW$24,0))) -> AVERAGE | T31: =ROUND(INDEX('Selected values'!$AU$4:$AU$24, MATCH(S31,'Selected values'!$AT$4:$AT$24,0)),1) -> 66.1 | W31: =INDEX('Selected values'!$BM$4:$BM$24,MATCH(X31,'Selected values'!$BK$4:$BK$24,0)) -> =9 | X31: =IF($B$7=Lists!$K$2, INDEX('Selected values'!$BE$4:$BE$24, MATCH($A31,'Selected values'!$BG$4:$BG$24,0)), INDEX('Selected values'!$BE$4:$BE$24,MATCH($A31,'Selected values'!$BH$4:$BH$24,0))) -> Japan | Y31: =ROUND(INDEX('Selected values'!$BF$4:$BF$54, MATCH(X31,'Selected values'!$BE$4:$BE$54,0)),1) -> 50
A32: =IF($B$7=Lists!$K$4, A31-1,A31+1) -> 11 | C32: =INDEX('Selected values'!$U$4:$U$24,MATCH(D32,'Selected values'!$S$4:$S$24,0)) ->  | D32: =IF($B$7=Lists!$K$2, INDEX('Selected values'!$M$4:$M$24, MATCH($A32,'Selected values'!$O$4:$O$24,0)), INDEX('Selected values'!$M$4:$M$24,MATCH($A32,'Selected values'!$P$4:$P$24,0))) -> AVERAGE | E32: =ROUND(INDEX('Selected values'!$N$4:$N$24, MATCH(D32,'Selected values'!$M$4:$M$24,0)),1) -> 55.9 | H32: =INDEX('Selected values'!$AF$4:$AF$24,MATCH(I32,'Selected values'!$AD$4:$AD$24,0)) ->  | I32: =IF($B$7=Lists!$K$2, INDEX('Selected values'!$X$4:$X$24, MATCH($A32,'Selected values'!$Z$4:$Z$24,0)), INDEX('Selected values'!$X$4:$X$24,MATCH($A32,'Selected values'!$AA$4:$AA$24,0))) -> AVERAGE | J32: =ROUND(INDEX('Selected values'!$Y$4:$Y$24, MATCH(I32,'Selected values'!$X$4:$X$24,0)),1) -> 45.1 | M32: =INDEX('Selected values'!$AQ$4:$AQ$24,MATCH(N32,'Selected values'!$AO$4:$AO$24,0)) -> =11 | N32: =IF($B$7=Lists!$K$2, INDEX('Selected values'!$AI$4:$AI$24, MATCH($A32,'Selected values'!$AK$4:$AK$24,0)), INDEX('Selected values'!$AI$4:$AI$24,MATCH($A32,'Selected values'!$AL$4:$AL$24,0))) -> Italy | O32: =ROUND(INDEX('Selected values'!$AJ$4:$AJ$24, MATCH(N32,'Selected values'!$AI$4:$AI$24,0)),1) -> 69.4 | R32: =INDEX('Selected values'!$BB$4:$BB$24,MATCH(S32,'Selected values'!$AZ$4:$AZ$24,0)) -> 10 | S32: =IF($B$7=Lists!$K$2, INDEX('Selected values'!$AT$4:$AT$24, MATCH($A32,'Selected values'!$AV$4:$AV$24,0)), INDEX('Selected values'!$AT$4:$AT$24,MATCH($A32,'Selected values'!$AW$4:$AW$24,0))) -> United Arab Emirates | T32: =ROUND(INDEX('Selected values'!$AU$4:$AU$24, MATCH(S32,'Selected values'!$AT$4:$AT$24,0)),1) -> 65.3 | W32: =INDEX('Selected values'!$BM$4:$BM$24,MATCH(X32,'Selected values'!$BK$4:$BK$24,0)) -> =9 | X32: =IF($B$7=Lists!$K$2, INDEX('Selected values'!$BE$4:$BE$24, MATCH($A32,'Selected values'!$BG$4:$BG$24,0)), INDEX('Selected values'!$BE$4:$BE$24,MATCH($A32,'Selected values'!$BH$4:$BH$24,0))) -> South Africa | Y32: =ROUND(INDEX('Selected values'!$BF$4:$BF$54, MATCH(X32,'Selected values'!$BE$4:$BE$54,0)),1) -> 50
A33: =IF($B$7=Lists!$K$4, A32-1,A32+1) -> 12 | C33: =INDEX('Selected values'!$U$4:$U$24,MATCH(D33,'Selected values'!$S$4:$S$24,0)) -> 11 | D33: =IF($B$7=Lists!$K$2, INDEX('Selected values'!$M$4:$M$24, MATCH($A33,'Selected values'!$O$4:$O$24,0)), INDEX('Selected values'!$M$4:$M$24,MATCH($A33,'Selected values'!$P$4:$P$24,0))) -> Mexico | E33: =ROUND(INDEX('Selected values'!$N$4:$N$24, MATCH(D33,'Selected values'!$M$4:$M$24,0)),1) -> 55.3 | H33: =INDEX('Selected values'!$AF$4:$AF$24,MATCH(I33,'Selected values'!$AD$4:$AD$24,0)) -> 11 | I33: =IF($B$7=Lists!$K$2, INDEX('Selected values'!$X$4:$X$24, MATCH($A33,'Selected values'!$Z$4:$Z$24,0)), INDEX('Selected values'!$X$4:$X$24,MATCH($A33,'Selected values'!$AA$4:$AA$24,0))) -> South Africa | J33: =ROUND(INDEX('Selected values'!$Y$4:$Y$24, MATCH(I33,'Selected values'!$X$4:$X$24,0)),1) -> 42.9 | M33: =INDEX('Selected values'!$AQ$4:$AQ$24,MATCH(N33,'Selected values'!$AO$4:$AO$24,0)) -> =11 | N33: =IF($B$7=Lists!$K$2, INDEX('Selected values'!$AI$4:$AI$24, MATCH($A33,'Selected values'!$AK$4:$AK$24,0)), INDEX('Selected values'!$AI$4:$AI$24,MATCH($A33,'Selected values'!$AL$4:$AL$24,0))) -> Saudi Arabia | O33: =ROUND(INDEX('Selected values'!$AJ$4:$AJ$24, MATCH(N33,'Selected values'!$AI$4:$AI$24,0)),1) -> 69.4 | R33: =INDEX('Selected values'!$BB$4:$BB$24,MATCH(S33,'Selected values'!$AZ$4:$AZ$24,0)) -> 11 | S33: =IF($B$7=Lists!$K$2, INDEX('Selected values'!$AT$4:$AT$24, MATCH($A33,'Selected values'!$AV$4:$AV$24,0)), INDEX('Selected values'!$AT$4:$AT$24,MATCH($A33,'Selected values'!$AW$4:$AW$24,0))) -> China | T33: =ROUND(INDEX('Selected values'!$AU$4:$AU$24, MATCH(S33,'Selected values'!$AT$4:$AT$24,0)),1) -> 63.6 | W33: =INDEX('Selected values'!$BM$4:$BM$24,MATCH(X33,'Selected values'!$BK$4:$BK$24,0)) ->  | X33: =IF($B$7=Lists!$K$2, INDEX('Selected values'!$BE$4:$BE$24, MATCH($A33,'Selected values'!$BG$4:$BG$24,0)), INDEX('Selected values'!$BE$4:$BE$24,MATCH($A33,'Selected values'!$BH$4:$BH$24,0))) -> AVERAGE | Y33: =ROUND(INDEX('Selected values'!$BF$4:$BF$54, MATCH(X33,'Selected values'!$BE$4:$BE$54,0)),1) -> 48.3
A34: =IF($B$7=Lists!$K$4, A33-1,A33+1) -> 13 | C34: =INDEX('Selected values'!$U$4:$U$24,MATCH(D34,'Selected values'!$S$4:$S$24,0)) -> 12 | D34: =IF($B$7=Lists!$K$2, INDEX('Selected values'!$M$4:$M$24, MATCH($A34,'Selected values'!$O$4:$O$24,0)), INDEX('Selected values'!$M$4:$M$24,MATCH($A34,'Selected values'!$P$4:$P$24,0))) -> United Arab Emirates | E34: =ROUND(INDEX('Selected values'!$N$4:$N$24, MATCH(D34,'Selected values'!$M$4:$M$24,0)),1) -> 54.7 | H34: =INDEX('Selected values'!$AF$4:$AF$24,MATCH(I34,'Selected values'!$AD$4:$AD$24,0)) -> =12 | I34: =IF($B$7=Lists!$K$2, INDEX('Selected values'!$X$4:$X$24, MATCH($A34,'Selected values'!$Z$4:$Z$24,0)), INDEX('Selected values'!$X$4:$X$24,MATCH($A34,'Selected values'!$AA$4:$AA$24,0))) -> Mexico | J34: =ROUND(INDEX('Selected values'!$Y$4:$Y$24, MATCH(I34,'Selected values'!$X$4:$X$24,0)),1) -> 42.5 | M34: =INDEX('Selected values'!$AQ$4:$AQ$24,MATCH(N34,'Selected values'!$AO$4:$AO$24,0)) ->  | N34: =IF($B$7=Lists!$K$2, INDEX('Selected values'!$AI$4:$AI$24, MATCH($A34,'Selected values'!$AK$4:$AK$24,0)), INDEX('Selected values'!$AI$4:$AI$24,MATCH($A34,'Selected values'!$AL$4:$AL$24,0))) -> AVERAGE | O34: =ROUND(INDEX('Selected values'!$AJ$4:$AJ$24, MATCH(N34,'Selected values'!$AI$4:$AI$24,0)),1) -> 63.9 | R34: =INDEX('Selected values'!$BB$4:$BB$24,MATCH(S34,'Selected values'!$AZ$4:$AZ$24,0)) -> 12 | S34: =IF($B$7=Lists!$K$2, INDEX('Selected values'!$AT$4:$AT$24, MATCH($A34,'Selected values'!$AV$4:$AV$24,0)), INDEX('Selected values'!$AT$4:$AT$24,MATCH($A34,'Selected values'!$AW$4:$AW$24,0))) -> Canada | T34: =ROUND(INDEX('Selected values'!$AU$4:$AU$24, MATCH(S34,'Selected values'!$AT$4:$AT$24,0)),1) -> 63.2 | W34: =INDEX('Selected values'!$BM$4:$BM$24,MATCH(X34,'Selected values'!$BK$4:$BK$24,0)) -> =12 | X34: =IF($B$7=Lists!$K$2, INDEX('Selected values'!$BE$4:$BE$24, MATCH($A34,'Selected values'!$BG$4:$BG$24,0)), INDEX('Selected values'!$BE$4:$BE$24,MATCH($A34,'Selected values'!$BH$4:$BH$24,0))) -> Australia | Y34: =ROUND(INDEX('Selected values'!$BF$4:$BF$54, MATCH(X34,'Selected values'!$BE$4:$BE$54,0)),1) -> 41.7
A35: =IF($B$7=Lists!$K$4, A34-1,A34+1) -> 14 | C35: =INDEX('Selected values'!$U$4:$U$24,MATCH(D35,'Selected values'!$S$4:$S$24,0)) -> =13 | D35: =IF($B$7=Lists!$K$2, INDEX('Selected values'!$M$4:$M$24, MATCH($A35,'Selected values'!$O$4:$O$24,0)), INDEX('Selected values'!$M$4:$M$24,MATCH($A35,'Selected values'!$P$4:$P$24,0))) -> Japan | E35: =ROUND(INDEX('Selected values'!$N$4:$N$24, MATCH(D35,'Selected values'!$M$4:$M$24,0)),1) -> 54.4 | H35: =INDEX('Selected values'!$AF$4:$AF$24,MATCH(I35,'Selected values'!$AD$4:$AD$24,0)) -> =12 | I35: =IF($B$7=Lists!$K$2, INDEX('Selected values'!$X$4:$X$24, MATCH($A35,'Selected values'!$Z$4:$Z$24,0)), INDEX('Selected values'!$X$4:$X$24,MATCH($A35,'Selected values'!$AA$4:$AA$24,0))) -> United Kingdom | J35: =ROUND(INDEX('Selected values'!$Y$4:$Y$24, MATCH(I35,'Selected values'!$X$4:$X$24,0)),1) -> 42.5 | M35: =INDEX('Selected values'!$AQ$4:$AQ$24,MATCH(N35,'Selected values'!$AO$4:$AO$24,0)) -> =13 | N35: =IF($B$7=Lists!$K$2, INDEX('Selected values'!$AI$4:$AI$24, MATCH($A35,'Selected values'!$AK$4:$AK$24,0)), INDEX('Selected values'!$AI$4:$AI$24,MATCH($A35,'Selected values'!$AL$4:$AL$24,0))) -> China | O35: =ROUND(INDEX('Selected values'!$AJ$4:$AJ$24, MATCH(N35,'Selected values'!$AI$4:$AI$24,0)),1) -> 61.1 | R35: =INDEX('Selected values'!$BB$4:$BB$24,MATCH(S35,'Selected values'!$AZ$4:$AZ$24,0)) -> 13 | S35: =IF($B$7=Lists!$K$2, INDEX('Selected values'!$AT$4:$AT$24, MATCH($A35,'Selected values'!$AV$4:$AV$24,0)), INDEX('Selected values'!$AT$4:$AT$24,MATCH($A35,'Selected values'!$AW$4:$AW$24,0))) -> Germany | T35: =ROUND(INDEX('Selected values'!$AU$4:$AU$24, MATCH(S35,'Selected values'!$AT$4:$AT$24,0)),1) -> 62.6 | W35: =INDEX('Selected values'!$BM$4:$BM$24,MATCH(X35,'Selected values'!$BK$4:$BK$24,0)) -> =12 | X35: =IF($B$7=Lists!$K$2, INDEX('Selected values'!$BE$4:$BE$24, MATCH($A35,'Selected values'!$BG$4:$BG$24,0)), INDEX('Selected values'!$BE$4:$BE$24,MATCH($A35,'Selected values'!$BH$4:$BH$24,0))) -> India | Y35: =ROUND(INDEX('Selected values'!$BF$4:$BF$54, MATCH(X35,'Selected values'!$BE$4:$BE$54,0)),1) -> 41.7
A36: =IF($B$7=Lists!$K$4, A35-1,A35+1) -> 15 | C36: =INDEX('Selected values'!$U$4:$U$24,MATCH(D36,'Selected values'!$S$4:$S$24,0)) -> =13 | D36: =IF($B$7=Lists!$K$2, INDEX('Selected values'!$M$4:$M$24, MATCH($A36,'Selected values'!$O$4:$O$24,0)), INDEX('Selected values'!$M$4:$M$24,MATCH($A36,'Selected values'!$P$4:$P$24,0))) -> Spain | E36: =ROUND(INDEX('Selected values'!$N$4:$N$24, MATCH(D36,'Selected values'!$M$4:$M$24,0)),1) -> 54.4 | H36: =INDEX('Selected values'!$AF$4:$AF$24,MATCH(I36,'Selected values'!$AD$4:$AD$24,0)) -> 14 | I36: =IF($B$7=Lists!$K$2, INDEX('Selected values'!$X$4:$X$24, MATCH($A36,'Selected values'!$Z$4:$Z$24,0)), INDEX('Selected values'!$X$4:$X$24,MATCH($A36,'Selected values'!$AA$4:$AA$24,0))) -> Saudi Arabia | J36: =ROUND(INDEX('Selected values'!$Y$4:$Y$24, MATCH(I36,'Selected values'!$X$4:$X$24,0)),1) -> 32.1 | M36: =INDEX('Selected values'!$AQ$4:$AQ$24,MATCH(N36,'Selected values'!$AO$4:$AO$24,0)) -> =13 | N36: =IF($B$7=Lists!$K$2, INDEX('Selected values'!$AI$4:$AI$24, MATCH($A36,'Selected values'!$AK$4:$AK$24,0)), INDEX('Selected values'!$AI$4:$AI$24,MATCH($A36,'Selected values'!$AL$4:$AL$24,0))) -> Mexico | O36: =ROUND(INDEX('Selected values'!$AJ$4:$AJ$24, MATCH(N36,'Selected values'!$AI$4:$AI$24,0)),1) -> 61.1 | R36: =INDEX('Selected values'!$BB$4:$BB$24,MATCH(S36,'Selected values'!$AZ$4:$AZ$24,0)) -> 14 | S36: =IF($B$7=Lists!$K$2, INDEX('Selected values'!$AT$4:$AT$24, MATCH($A36,'Selected values'!$AV$4:$AV$24,0)), INDEX('Selected values'!$AT$4:$AT$24,MATCH($A36,'Selected values'!$AW$4:$AW$24,0))) -> Australia | T36: =ROUND(INDEX('Selected values'!$AU$4:$AU$24, MATCH(S36,'Selected values'!$AT$4:$AT$24,0)),1) -> 60.4 | W36: =INDEX('Selected values'!$BM$4:$BM$24,MATCH(X36,'Selected values'!$BK$4:$BK$24,0)) -> =12 | X36: =IF($B$7=Lists!$K$2, INDEX('Selected values'!$BE$4:$BE$24, MATCH($A36,'Selected values'!$BG$4:$BG$24,0)), INDEX('Selected values'!$BE$4:$BE$24,MATCH($A36,'Selected values'!$BH$4:$BH$24,0))) -> Rwanda | Y36: =ROUND(INDEX('Selected values'!$BF$4:$BF$54, MATCH(X36,'Selected values'!$BE$4:$BE$54,0)),1) -> 41.7
A37: =IF($B$7=Lists!$K$4, A36-1,A36+1) -> 16 | C37: =INDEX('Selected values'!$U$4:$U$24,MATCH(D37,'Selected values'!$S$4:$S$24,0)) -> 15 | D37: =IF($B$7=Lists!$K$2, INDEX('Selected values'!$M$4:$M$24, MATCH($A37,'Selected values'!$O$4:$O$24,0)), INDEX('Selected values'!$M$4:$M$24,MATCH($A37,'Selected values'!$P$4:$P$24,0))) -> Canada | E37: =ROUND(INDEX('Selected values'!$N$4:$N$24, MATCH(D37,'Selected values'!$M$4:$M$24,0)),1) -> 47.9 | H37: =INDEX('Selected values'!$AF$4:$AF$24,MATCH(I37,'Selected values'!$AD$4:$AD$24,0)) -> 15 | I37: =IF($B$7=Lists!$K$2, INDEX('Selected values'!$X$4:$X$24, MATCH($A37,'Selected values'!$Z$4:$Z$24,0)), INDEX('Selected values'!$X$4:$X$24,MATCH($A37,'Selected values'!$AA$4:$AA$24,0))) -> Japan | J37: =ROUND(INDEX('Selected values'!$Y$4:$Y$24, MATCH(I37,'Selected values'!$X$4:$X$24,0)),1) -> 30 | M37: =INDEX('Selected values'!$AQ$4:$AQ$24,MATCH(N37,'Selected values'!$AO$4:$AO$24,0)) -> 15 | N37: =IF($B$7=Lists!$K$2, INDEX('Selected values'!$AI$4:$AI$24, MATCH($A37,'Selected values'!$AK$4:$AK$24,0)), INDEX('Selected values'!$AI$4:$AI$24,MATCH($A37,'Selected values'!$AL$4:$AL$24,0))) -> Canada | O37: =ROUND(INDEX('Selected values'!$AJ$4:$AJ$24, MATCH(N37,'Selected values'!$AI$4:$AI$24,0)),1) -> 50 | R37: =INDEX('Selected values'!$BB$4:$BB$24,MATCH(S37,'Selected values'!$AZ$4:$AZ$24,0)) -> 15 | S37: =IF($B$7=Lists!$K$2, INDEX('Selected values'!$AT$4:$AT$24, MATCH($A37,'Selected values'!$AV$4:$AV$24,0)), INDEX('Selected values'!$AT$4:$AT$24,MATCH($A37,'Selected values'!$AW$4:$AW$24,0))) -> Serbia | T37: =ROUND(INDEX('Selected values'!$AU$4:$AU$24, MATCH(S37,'Selected values'!$AT$4:$AT$24,0)),1) -> 59.9 | W37: =INDEX('Selected values'!$BM$4:$BM$24,MATCH(X37,'Selected values'!$BK$4:$BK$24,0)) -> =12 | X37: =IF($B$7=Lists!$K$2, INDEX('Selected values'!$BE$4:$BE$24, MATCH($A37,'Selected values'!$BG$4:$BG$24,0)), INDEX('Selected values'!$BE$4:$BE$24,MATCH($A37,'Selected values'!$BH$4:$BH$24,0))) -> Spain | Y37: =ROUND(INDEX('Selected values'!$BF$4:$BF$54, MATCH(X37,'Selected values'!$BE$4:$BE$54,0)),1) -> 41.7
A38: =IF($B$7=Lists!$K$4, A37-1,A37+1) -> 17 | C38: =INDEX('Selected values'!$U$4:$U$24,MATCH(D38,'Selected values'!$S$4:$S$24,0)) -> 16 | D38: =IF($B$7=Lists!$K$2, INDEX('Selected values'!$M$4:$M$24, MATCH($A38,'Selected values'!$O$4:$O$24,0)), INDEX('Selected values'!$M$4:$M$24,MATCH($A38,'Selected values'!$P$4:$P$24,0))) -> Saudi Arabia | E38: =ROUND(INDEX('Selected values'!$N$4:$N$24, MATCH(D38,'Selected values'!$M$4:$M$24,0)),1) -> 44.5 | H38: =INDEX('Selected values'!$AF$4:$AF$24,MATCH(I38,'Selected values'!$AD$4:$AD$24,0)) -> 16 | I38: =IF($B$7=Lists!$K$2, INDEX('Selected values'!$X$4:$X$24, MATCH($A38,'Selected values'!$Z$4:$Z$24,0)), INDEX('Selected values'!$X$4:$X$24,MATCH($A38,'Selected values'!$AA$4:$AA$24,0))) -> India | J38: =ROUND(INDEX('Selected values'!$Y$4:$Y$24, MATCH(I38,'Selected values'!$X$4:$X$24,0)),1) -> 26.3 | M38: =INDEX('Selected values'!$AQ$4:$AQ$24,MATCH(N38,'Selected values'!$AO$4:$AO$24,0)) -> 16 | N38: =IF($B$7=Lists!$K$2, INDEX('Selected values'!$AI$4:$AI$24, MATCH($A38,'Selected values'!$AK$4:$AK$24,0)), INDEX('Selected values'!$AI$4:$AI$24,MATCH($A38,'Selected values'!$AL$4:$AL$24,0))) -> Rwanda | O38: =ROUND(INDEX('Selected values'!$AJ$4:$AJ$24, MATCH(N38,'Selected values'!$AI$4:$AI$24,0)),1) -> 47.2 | R38: =INDEX('Selected values'!$BB$4:$BB$24,MATCH(S38,'Selected values'!$AZ$4:$AZ$24,0)) -> 16 | S38: =IF($B$7=Lists!$K$2, INDEX('Selected values'!$AT$4:$AT$24, MATCH($A38,'Selected values'!$AV$4:$AV$24,0)), INDEX('Selected values'!$AT$4:$AT$24,MATCH($A38,'Selected values'!$AW$4:$AW$24,0))) -> Japan | T38: =ROUND(INDEX('Selected values'!$AU$4:$AU$24, MATCH(S38,'Selected values'!$AT$4:$AT$24,0)),1) -> 59.7 | W38: =INDEX('Selected values'!$BM$4:$BM$24,MATCH(X38,'Selected values'!$BK$4:$BK$24,0)) -> =12 | X38: =IF($B$7=Lists!$K$2, INDEX('Selected values'!$BE$4:$BE$24, MATCH($A38,'Selected values'!$BG$4:$BG$24,0)), INDEX('Selected values'!$BE$4:$BE$24,MATCH($A38,'Selected values'!$BH$4:$BH$24,0))) -> United Arab Emirates | Y38: =ROUND(INDEX('Selected values'!$BF$4:$BF$54, MATCH(X38,'Selected values'!$BE$4:$BE$54,0)),1) -> 41.7
A39: =IF($B$7=Lists!$K$4, A38-1,A38+1) -> 18 | C39: =INDEX('Selected values'!$U$4:$U$24,MATCH(D39,'Selected values'!$S$4:$S$24,0)) -> 17 | D39: =IF($B$7=Lists!$K$2, INDEX('Selected values'!$M$4:$M$24, MATCH($A39,'Selected values'!$O$4:$O$24,0)), INDEX('Selected values'!$M$4:$M$24,MATCH($A39,'Selected values'!$P$4:$P$24,0))) -> South Africa | E39: =ROUND(INDEX('Selected values'!$N$4:$N$24, MATCH(D39,'Selected values'!$M$4:$M$24,0)),1) -> 44.2 | H39: =INDEX('Selected values'!$AF$4:$AF$24,MATCH(I39,'Selected values'!$AD$4:$AD$24,0)) -> 17 | I39: =IF($B$7=Lists!$K$2, INDEX('Selected values'!$X$4:$X$24, MATCH($A39,'Selected values'!$Z$4:$Z$24,0)), INDEX('Selected values'!$X$4:$X$24,MATCH($A39,'Selected values'!$AA$4:$AA$24,0))) -> Nigeria | J39: =ROUND(INDEX('Selected values'!$Y$4:$Y$24, MATCH(I39,'Selected values'!$X$4:$X$24,0)),1) -> 22.5 | M39: =INDEX('Selected values'!$AQ$4:$AQ$24,MATCH(N39,'Selected values'!$AO$4:$AO$24,0)) -> 17 | N39: =IF($B$7=Lists!$K$2, INDEX('Selected values'!$AI$4:$AI$24, MATCH($A39,'Selected values'!$AK$4:$AK$24,0)), INDEX('Selected values'!$AI$4:$AI$24,MATCH($A39,'Selected values'!$AL$4:$AL$24,0))) -> Spain | O39: =ROUND(INDEX('Selected values'!$AJ$4:$AJ$24, MATCH(N39,'Selected values'!$AI$4:$AI$24,0)),1) -> 30.6 | R39: =INDEX('Selected values'!$BB$4:$BB$24,MATCH(S39,'Selected values'!$AZ$4:$AZ$24,0)) -> 17 | S39: =IF($B$7=Lists!$K$2, INDEX('Selected values'!$AT$4:$AT$24, MATCH($A39,'Selected values'!$AV$4:$AV$24,0)), INDEX('Selected values'!$AT$4:$AT$24,MATCH($A39,'Selected values'!$AW$4:$AW$24,0))) -> India | T39: =ROUND(INDEX('Selected values'!$AU$4:$AU$24, MATCH(S39,'Selected values'!$AT$4:$AT$24,0)),1) -> 51.6 | W39: =INDEX('Selected values'!$BM$4:$BM$24,MATCH(X39,'Selected values'!$BK$4:$BK$24,0)) -> =17 | X39: =IF($B$7=Lists!$K$2, INDEX('Selected values'!$BE$4:$BE$24, MATCH($A39,'Selected values'!$BG$4:$BG$24,0)), INDEX('Selected values'!$BE$4:$BE$24,MATCH($A39,'Selected values'!$BH$4:$BH$24,0))) -> Mexico | Y39: =ROUND(INDEX('Selected values'!$BF$4:$BF$54, MATCH(X39,'Selected values'!$BE$4:$BE$54,0)),1) -> 33.3
A40: =IF($B$7=Lists!$K$4, A39-1,A39+1) -> 19 | C40: =INDEX('Selected values'!$U$4:$U$24,MATCH(D40,'Selected values'!$S$4:$S$24,0)) -> 18 | D40: =IF($B$7=Lists!$K$2, INDEX('Selected values'!$M$4:$M$24, MATCH($A40,'Selected values'!$O$4:$O$24,0)), INDEX('Selected values'!$M$4:$M$24,MATCH($A40,'Selected values'!$P$4:$P$24,0))) -> Rwanda | E40: =ROUND(INDEX('Selected values'!$N$4:$N$24, MATCH(D40,'Selected values'!$M$4:$M$24,0)),1) -> 39.1 | H40: =INDEX('Selected values'!$AF$4:$AF$24,MATCH(I40,'Selected values'!$AD$4:$AD$24,0)) -> 18 | I40: =IF($B$7=Lists!$K$2, INDEX('Selected values'!$X$4:$X$24, MATCH($A40,'Selected values'!$Z$4:$Z$24,0)), INDEX('Selected values'!$X$4:$X$24,MATCH($A40,'Selected values'!$AA$4:$AA$24,0))) -> Rwanda | J40: =ROUND(INDEX('Selected values'!$Y$4:$Y$24, MATCH(I40,'Selected values'!$X$4:$X$24,0)),1) -> 21.7 | M40: =INDEX('Selected values'!$AQ$4:$AQ$24,MATCH(N40,'Selected values'!$AO$4:$AO$24,0)) -> 18 | N40: =IF($B$7=Lists!$K$2, INDEX('Selected values'!$AI$4:$AI$24, MATCH($A40,'Selected values'!$AK$4:$AK$24,0)), INDEX('Selected values'!$AI$4:$AI$24,MATCH($A40,'Selected values'!$AL$4:$AL$24,0))) -> India | O40: =ROUND(INDEX('Selected values'!$AJ$4:$AJ$24, MATCH(N40,'Selected values'!$AI$4:$AI$24,0)),1) -> 25 | R40: =INDEX('Selected values'!$BB$4:$BB$24,MATCH(S40,'Selected values'!$AZ$4:$AZ$24,0)) -> 18 | S40: =IF($B$7=Lists!$K$2, INDEX('Selected values'!$AT$4:$AT$24, MATCH($A40,'Selected values'!$AV$4:$AV$24,0)), INDEX('Selected values'!$AT$4:$AT$24,MATCH($A40,'Selected values'!$AW$4:$AW$24,0))) -> Rwanda | T40: =ROUND(INDEX('Selected values'!$AU$4:$AU$24, MATCH(S40,'Selected values'!$AT$4:$AT$24,0)),1) -> 46 | W40: =INDEX('Selected values'!$BM$4:$BM$24,MATCH(X40,'Selected values'!$BK$4:$BK$24,0)) -> =17 | X40: =IF($B$7=Lists!$K$2, INDEX('Selected values'!$BE$4:$BE$24, MATCH($A40,'Selected values'!$BG$4:$BG$24,0)), INDEX('Selected values'!$BE$4:$BE$24,MATCH($A40,'Selected values'!$BH$4:$BH$24,0))) -> Saudi Arabia | Y40: =ROUND(INDEX('Selected values'!$BF$4:$BF$54, MATCH(X40,'Selected values'!$BE$4:$BE$54,0)),1) -> 33.3
A41: =IF($B$7=Lists!$K$4, A40-1,A40+1) -> 20 | C41: =INDEX('Selected values'!$U$4:$U$24,MATCH(D41,'Selected values'!$S$4:$S$24,0)) -> 19 | D41: =IF($B$7=Lists!$K$2, INDEX('Selected values'!$M$4:$M$24, MATCH($A41,'Selected values'!$O$4:$O$24,0)), INDEX('Selected values'!$M$4:$M$24,MATCH($A41,'Selected values'!$P$4:$P$24,0))) -> India | E41: =ROUND(INDEX('Selected values'!$N$4:$N$24, MATCH(D41,'Selected values'!$M$4:$M$24,0)),1) -> 36.1 | H41: =INDEX('Selected values'!$AF$4:$AF$24,MATCH(I41,'Selected values'!$AD$4:$AD$24,0)) -> =19 | I41: =IF($B$7=Lists!$K$2, INDEX('Selected values'!$X$4:$X$24, MATCH($A41,'Selected values'!$Z$4:$Z$24,0)), INDEX('Selected values'!$X$4:$X$24,MATCH($A41,'Selected values'!$AA$4:$AA$24,0))) -> Canada | J41: =ROUND(INDEX('Selected values'!$Y$4:$Y$24, MATCH(I41,'Selected values'!$X$4:$X$24,0)),1) -> 20 | M41: =INDEX('Selected values'!$AQ$4:$AQ$24,MATCH(N41,'Selected values'!$AO$4:$AO$24,0)) -> 19 | N41: =IF($B$7=Lists!$K$2, INDEX('Selected values'!$AI$4:$AI$24, MATCH($A41,'Selected values'!$AK$4:$AK$24,0)), INDEX('Selected values'!$AI$4:$AI$24,MATCH($A41,'Selected values'!$AL$4:$AL$24,0))) -> South Africa | O41: =ROUND(INDEX('Selected values'!$AJ$4:$AJ$24, MATCH(N41,'Selected values'!$AI$4:$AI$24,0)),1) -> 8.3 | R41: =INDEX('Selected values'!$BB$4:$BB$24,MATCH(S41,'Selected values'!$AZ$4:$AZ$24,0)) -> 19 | S41: =IF($B$7=Lists!$K$2, INDEX('Selected values'!$AT$4:$AT$24, MATCH($A41,'Selected values'!$AV$4:$AV$24,0)), INDEX('Selected values'!$AT$4:$AT$24,MATCH($A41,'Selected values'!$AW$4:$AW$24,0))) -> Saudi Arabia | T41: =ROUND(INDEX('Selected values'!$AU$4:$AU$24, MATCH(S41,'Selected values'!$AT$4:$AT$24,0)),1) -> 43.3 | W41: =INDEX('Selected values'!$BM$4:$BM$24,MATCH(X41,'Selected values'!$BK$4:$BK$24,0)) -> 19 | X41: =IF($B$7=Lists!$K$2, INDEX('Selected values'!$BE$4:$BE$24, MATCH($A41,'Selected values'!$BG$4:$BG$24,0)), INDEX('Selected values'!$BE$4:$BE$24,MATCH($A41,'Selected values'!$BH$4:$BH$24,0))) -> United Kingdom | Y41: =ROUND(INDEX('Selected values'!$BF$4:$BF$54, MATCH(X41,'Selected values'!$BE$4:$BE$54,0)),1) -> 25
A42: =IF($B$7=Lists!$K$4, A41-1,A41+1) -> 21 | C42: =INDEX('Selected values'!$U$4:$U$24,MATCH(D42,'Selected values'!$S$4:$S$24,0)) -> 20 | D42: =IF($B$7=Lists!$K$2, INDEX('Selected values'!$M$4:$M$24, MATCH($A42,'Selected values'!$O$4:$O$24,0)), INDEX('Selected values'!$M$4:$M$24,MATCH($A42,'Selected values'!$P$4:$P$24,0))) -> Nigeria | E42: =ROUND(INDEX('Selected values'!$N$4:$N$24, MATCH(D42,'Selected values'!$M$4:$M$24,0)),1) -> 13.1 | H42: =INDEX('Selected values'!$AF$4:$AF$24,MATCH(I42,'Selected values'!$AD$4:$AD$24,0)) -> =19 | I42: =IF($B$7=Lists!$K$2, INDEX('Selected values'!$X$4:$X$24, MATCH($A42,'Selected values'!$Z$4:$Z$24,0)), INDEX('Selected values'!$X$4:$X$24,MATCH($A42,'Selected values'!$AA$4:$AA$24,0))) -> United Arab Emirates | J42: =ROUND(INDEX('Selected values'!$Y$4:$Y$24, MATCH(I42,'Selected values'!$X$4:$X$24,0)),1) -> 20 | M42: =INDEX('Selected values'!$AQ$4:$AQ$24,MATCH(N42,'Selected values'!$AO$4:$AO$24,0)) -> 20 | N42: =IF($B$7=Lists!$K$2, INDEX('Selected values'!$AI$4:$AI$24, MATCH($A42,'Selected values'!$AK$4:$AK$24,0)), INDEX('Selected values'!$AI$4:$AI$24,MATCH($A42,'Selected values'!$AL$4:$AL$24,0))) -> Nigeria | O42: =ROUND(INDEX('Selected values'!$AJ$4:$AJ$24, MATCH(N42,'Selected values'!$AI$4:$AI$24,0)),1) -> 0 | R42: =INDEX('Selected values'!$BB$4:$BB$24,MATCH(S42,'Selected values'!$AZ$4:$AZ$24,0)) -> 20 | S42: =IF($B$7=Lists!$K$2, INDEX('Selected values'!$AT$4:$AT$24, MATCH($A42,'Selected values'!$AV$4:$AV$24,0)), INDEX('Selected values'!$AT$4:$AT$24,MATCH($A42,'Selected values'!$AW$4:$AW$24,0))) -> Nigeria | T42: =ROUND(INDEX('Selected values'!$AU$4:$AU$24, MATCH(S42,'Selected values'!$AT$4:$AT$24,0)),1) -> 29.7 | W42: =INDEX('Selected values'!$BM$4:$BM$24,MATCH(X42,'Selected values'!$BK$4:$BK$24,0)) -> 20 | X42: =IF($B$7=Lists!$K$2, INDEX('Selected values'!$BE$4:$BE$24, MATCH($A42,'Selected values'!$BG$4:$BG$24,0)), INDEX('Selected values'!$BE$4:$BE$24,MATCH($A42,'Selected values'!$BH$4:$BH$24,0))) -> Nigeria | Y42: =ROUND(INDEX('Selected values'!$BF$4:$BF$54, MATCH(X42,'Selected values'!$BE$4:$BE$54,0)),1) -> 0

Sheet INDICATORS
C1: =HOME!B7 -> GLOBAL OBESITY RESPONSE INDEX
C6: SELECT PILLAR
C7: OVERALL
C8: =INDEX(Lists!D2:D7, MATCH(C7,Lists!C2:C7,0)) -> OVERALL
C9: SELECT INDICATOR | E9: SELECT SORT ORDER
C10: OVERALL | E10: Best response to worst
H13: =INDEX(Lists!$F$2:$F$64, MATCH($C10,Lists!$H$2:$H$64,0)) -> 0
C14: =IF(INDEX('DATA TABLE'!$D$10:$D$66, MATCH($H$13,'DATA TABLE'!$B$10:$B$66,0))="","","Description:") -> Description: | H14: =INDEX(Lists!I2:I64, MATCH(H15,Lists!H2:H64,0)) -> Overall index
C15: =IF(C7="Background indicators", CONCATENATE((INDEX('DATA TABLE'!$D$10:$D$66, MATCH($H$13,'DATA TABLE'!$B$10:$B$66,0)))," (", (INDEX('DATA TABLE'!$H$10:$H$66, MATCH($H$13,'DATA TABLE'!$B$10:$B$66,0))),")",CHAR(10), CHAR(10), (INDEX('DATA TABLE'!$I$10:$I$66, MATCH($H$13,'DATA TABLE'!$B$10:$B$66,0)))),IF(INDEX('DATA TABLE'!$D$10:$D$66, MATCH($H$13,'DATA TABLE'!$B$10:$B$66,0))="","",INDEX('DATA TABLE'!$D$10:$D$66, MATCH($H$13,'DATA TABLE'!$B$10:$B$66,0)))) -> Composite measure, scored as the weighted average of the following pillar scores: 1. Policy and governance 2. Obesity management 3. Food quality and access 4. Physical activity | H15: =C10 -> OVERALL
I17: Rank | J17: Country | K17: Score | L17: Data
K18: 0-100, where 100 = strongest obesity response | L18: =IF(C25="","",C25) -> 
G19: =IF($C$7="Background indicators",1,IF($E$10=Lists!$K$4,21,1)) -> 1 | I19: =IF(K19="Not scored","",INDEX('Selected values'!$J$4:$J$53,MATCH($J19,'Selected values'!$H$4:$H$53,0))) -> 1 | J19: =IF($E$10=Lists!$K$2, INDEX('Selected values'!$B$4:$B$24, MATCH($G19,'Selected values'!$D$4:$D$24,0)), INDEX('Selected values'!$B$4:$B$24,MATCH($G19,'Selected values'!$E$4:$E$24,0))) -> Serbia | K19: =IFERROR(ROUND(INDEX('Selected values'!$C$4:$C$24, MATCH($J19,'Selected values'!$B$4:$B$24,0)),1), "Not scored") -> 74.8 | L19: =IFERROR(IF(INDEX('DATA TABLE'!$J$10:$AC$66, MATCH($H$13,'DATA TABLE'!$B$10:$B$66,0), MATCH($J19,'DATA TABLE'!$J$9:$AC$9,0))="","",INDEX('DATA TABLE'!$J$10:$AC$66, MATCH($H$13,'DATA TABLE'!$B$10:$B$66,0), MATCH($J19,'DATA TABLE'!$J$9:$AC$9,0))),"") -> 
C20: =IF(INDEX('DATA TABLE'!$E$10:$E$66, MATCH($H$13,'DATA TABLE'!$B$10:$B$66,0))="","","Source:") -> Source: | G20: =IF($C$7="Background indicators",G19+1,IF($E$10=Lists!$K$4, G19-1,G19+1)) -> 2 | I20: =IF(K20="Not scored","",INDEX('Selected values'!$J$4:$J$53,MATCH($J20,'Selected values'!$H$4:$H$53,0))) -> 2 | J20: =IF($E$10=Lists!$K$2, INDEX('Selected values'!$B$4:$B$24, MATCH($G20,'Selected values'!$D$4:$D$24,0)), INDEX('Selected values'!$B$4:$B$24,MATCH($G20,'Selected values'!$E$4:$E$24,0))) -> France | K20: =IFERROR(ROUND(INDEX('Selected values'!$C$4:$C$24, MATCH($J20,'Selected values'!$B$4:$B$24,0)),1), "Not scored") -> 74.3 | L20: =IFERROR(IF(INDEX('DATA TABLE'!$J$10:$AC$66, MATCH($H$13,'DATA TABLE'!$B$10:$B$66,0), MATCH($J20,'DATA TABLE'!$J$9:$AC$9,0))="","",INDEX('DATA TABLE'!$J$10:$AC$66, MATCH($H$13,'DATA TABLE'!$B$10:$B$66,0), MATCH($J20,'DATA TABLE'!$J$9:$AC$9,0))),"") -> 
C21: =IF(INDEX('DATA TABLE'!$E$10:$E$66, MATCH($H$13,'DATA TABLE'!$B$10:$B$66,0))="","",INDEX('DATA TABLE'!$E$10:$E$66, MATCH($H$13,'DATA TABLE'!$B$10:$B$66,0))) -> Economist Enterprise calculations | G21: =IF($C$7="Background indicators",G20+1,IF($E$10=Lists!$K$4, G20-1,G20+1)) -> 3 | I21: =IF(K21="Not scored","",INDEX('Selected values'!$J$4:$J$53,MATCH($J21,'Selected values'!$H$4:$H$53,0))) -> 3 | J21: =IF($E$10=Lists!$K$2, INDEX('Selected values'!$B$4:$B$24, MATCH($G21,'Selected values'!$D$4:$D$24,0)), INDEX('Selected values'!$B$4:$B$24,MATCH($G21,'Selected values'!$E$4:$E$24,0))) -> Brazil | K21: =IFERROR(ROUND(INDEX('Selected values'!$C$4:$C$24, MATCH($J21,'Selected values'!$B$4:$B$24,0)),1), "Not scored") -> 72.4 | L21: =IFERROR(IF(INDEX('DATA TABLE'!$J$10:$AC$66, MATCH($H$13,'DATA TABLE'!$B$10:$B$66,0), MATCH($J21,'DATA TABLE'!$J$9:$AC$9,0))="","",INDEX('DATA TABLE'!$J$10:$AC$66, MATCH($H$13,'DATA TABLE'!$B$10:$B$66,0), MATCH($J21,'DATA TABLE'!$J$9:$AC$9,0))),"") -> 
G22: =IF($C$7="Background indicators",G21+1,IF($E$10=Lists!$K$4, G21-1,G21+1)) -> 4 | I22: =IF(K22="Not scored","",INDEX('Selected values'!$J$4:$J$53,MATCH($J22,'Selected values'!$H$4:$H$53,0))) -> 4 | J22: =IF($E$10=Lists!$K$2, INDEX('Selected values'!$B$4:$B$24, MATCH($G22,'Selected values'!$D$4:$D$24,0)), INDEX('Selected values'!$B$4:$B$24,MATCH($G22,'Selected values'!$E$4:$E$24,0))) -> South Korea | K22: =IFERROR(ROUND(INDEX('Selected values'!$C$4:$C$24, MATCH($J22,'Selected values'!$B$4:$B$24,0)),1), "Not scored") -> 71.2 | L22: =IFERROR(IF(INDEX('DATA TABLE'!$J$10:$AC$66, MATCH($H$13,'DATA TABLE'!$B$10:$B$66,0), MATCH($J22,'DATA TABLE'!$J$9:$AC$9,0))="","",INDEX('DATA TABLE'!$J$10:$AC$66, MATCH($H$13,'DATA TABLE'!$B$10:$B$66,0), MATCH($J22,'DATA TABLE'!$J$9:$AC$9,0))),"") -> 
G23: =IF($C$7="Background indicators",G22+1,IF($E$10=Lists!$K$4, G22-1,G22+1)) -> 5 | I23: =IF(K23="Not scored","",INDEX('Selected values'!$J$4:$J$53,MATCH($J23,'Selected values'!$H$4:$H$53,0))) -> 5 | J23: =IF($E$10=Lists!$K$2, INDEX('Selected values'!$B$4:$B$24, MATCH($G23,'Selected values'!$D$4:$D$24,0)), INDEX('Selected values'!$B$4:$B$24,MATCH($G23,'Selected values'!$E$4:$E$24,0))) -> Finland | K23: =IFERROR(ROUND(INDEX('Selected values'!$C$4:$C$24, MATCH($J23,'Selected values'!$B$4:$B$24,0)),1), "Not scored") -> 66.8 | L23: =IFERROR(IF(INDEX('DATA TABLE'!$J$10:$AC$66, MATCH($H$13,'DATA TABLE'!$B$10:$B$66,0), MATCH($J23,'DATA TABLE'!$J$9:$AC$9,0))="","",INDEX('DATA TABLE'!$J$10:$AC$66, MATCH($H$13,'DATA TABLE'!$B$10:$B$66,0), MATCH($J23,'DATA TABLE'!$J$9:$AC$9,0))),"") -> 
C24: =IF((INDEX('DATA TABLE'!$G$10:$G$66,MATCH($H$13,'DATA TABLE'!$B$10:$B$66,0)))="","","Measurement:") ->  | G24: =IF($C$7="Background indicators",G23+1,IF($E$10=Lists!$K$4, G23-1,G23+1)) -> 6 | I24: =IF(K24="Not scored","",INDEX('Selected values'!$J$4:$J$53,MATCH($J24,'Selected values'!$H$4:$H$53,0))) -> 6 | J24: =IF($E$10=Lists!$K$2, INDEX('Selected values'!$B$4:$B$24, MATCH($G24,'Selected values'!$D$4:$D$24,0)), INDEX('Selected values'!$B$4:$B$24,MATCH($G24,'Selected values'!$E$4:$E$24,0))) -> Germany | K24: =IFERROR(ROUND(INDEX('Selected values'!$C$4:$C$24, MATCH($J24,'Selected values'!$B$4:$B$24,0)),1), "Not scored") -> 64.9 | L24: =IFERROR(IF(INDEX('DATA TABLE'!$J$10:$AC$66, MATCH($H$13,'DATA TABLE'!$B$10:$B$66,0), MATCH($J24,'DATA TABLE'!$J$9:$AC$9,0))="","",INDEX('DATA TABLE'!$J$10:$AC$66, MATCH($H$13,'DATA TABLE'!$B$10:$B$66,0), MATCH($J24,'DATA TABLE'!$J$9:$AC$9,0))),"") -> 
C25: =IF(INDEX('DATA TABLE'!$G$10:$G$66, MATCH($H$13,'DATA TABLE'!$B$10:$B$66,0))="","",INDEX('DATA TABLE'!$G$10:$G$66, MATCH($H$13,'DATA TABLE'!$B$10:$B$66,0))) ->  | G25: =IF($C$7="Background indicators",G24+1,IF($E$10=Lists!$K$4, G24-1,G24+1)) -> 7 | I25: =IF(K25="Not scored","",INDEX('Selected values'!$J$4:$J$53,MATCH($J25,'Selected values'!$H$4:$H$53,0))) -> 7 | J25: =IF($E$10=Lists!$K$2, INDEX('Selected values'!$B$4:$B$24, MATCH($G25,'Selected values'!$D$4:$D$24,0)), INDEX('Selected values'!$B$4:$B$24,MATCH($G25,'Selected values'!$E$4:$E$24,0))) -> United Kingdom | K25: =IFERROR(ROUND(INDEX('Selected values'!$C$4:$C$24, MATCH($J25,'Selected values'!$B$4:$B$24,0)),1), "Not scored") -> 64.4 | L25: =IFERROR(IF(INDEX('DATA TABLE'!$J$10:$AC$66, MATCH($H$13,'DATA TABLE'!$B$10:$B$66,0), MATCH($J25,'DATA TABLE'!$J$9:$AC$9,0))="","",INDEX('DATA TABLE'!$J$10:$AC$66, MATCH($H$13,'DATA TABLE'!$B$10:$B$66,0), MATCH($J25,'DATA TABLE'!$J$9:$AC$9,0))),"") -> 
G26: =IF($C$7="Background indicators",G25+1,IF($E$10=Lists!$K$4, G25-1,G25+1)) -> 8 | I26: =IF(K26="Not scored","",INDEX('Selected values'!$J$4:$J$53,MATCH($J26,'Selected values'!$H$4:$H$53,0))) -> =8 | J26: =IF($E$10=Lists!$K$2, INDEX('Selected values'!$B$4:$B$24, MATCH($G26,'Selected values'!$D$4:$D$24,0)), INDEX('Selected values'!$B$4:$B$24,MATCH($G26,'Selected values'!$E$4:$E$24,0))) -> China | K26: =IFERROR(ROUND(INDEX('Selected values'!$C$4:$C$24, MATCH($J26,'Selected values'!$B$4:$B$24,0)),1), "Not scored") -> 63.1 | L26: =IFERROR(IF(INDEX('DATA TABLE'!$J$10:$AC$66, MATCH($H$13,'DATA TABLE'!$B$10:$B$66,0), MATCH($J26,'DATA TABLE'!$J$9:$AC$9,0))="","",INDEX('DATA TABLE'!$J$10:$AC$66, MATCH($H$13,'DATA TABLE'!$B$10:$B$66,0), MATCH($J26,'DATA TABLE'!$J$9:$AC$9,0))),"") -> 
C27: =IF(INDEX('DATA TABLE'!$F$10:$F$66, MATCH($H$13,'DATA TABLE'!$B$10:$B$66,0))="","",INDEX('DATA TABLE'!$F$10:$F$66, MATCH($H$13,'DATA TABLE'!$B$10:$B$66,0))) ->  | G27: =IF($C$7="Background indicators",G26+1,IF($E$10=Lists!$K$4, G26-1,G26+1)) -> 9 | I27: =IF(K27="Not scored","",INDEX('Selected values'!$J$4:$J$53,MATCH($J27,'Selected values'!$H$4:$H$53,0))) -> =8 | J27: =IF($E$10=Lists!$K$2, INDEX('Selected values'!$B$4:$B$24, MATCH($G27,'Selected values'!$D$4:$D$24,0)), INDEX('Selected values'!$B$4:$B$24,MATCH($G27,'Selected values'!$E$4:$E$24,0))) -> Italy | K27: =IFERROR(ROUND(INDEX('Selected values'!$C$4:$C$24, MATCH($J27,'Selected values'!$B$4:$B$24,0)),1), "Not scored") -> 63.1 | L27: =IFERROR(IF(INDEX('DATA TABLE'!$J$10:$AC$66, MATCH($H$13,'DATA TABLE'!$B$10:$B$66,0), MATCH($J27,'DATA TABLE'!$J$9:$AC$9,0))="","",INDEX('DATA TABLE'!$J$10:$AC$66, MATCH($H$13,'DATA TABLE'!$B$10:$B$66,0), MATCH($J27,'DATA TABLE'!$J$9:$AC$9,0))),"") -> 
G28: =IF($C$7="Background indicators",G27+1,IF($E$10=Lists!$K$4, G27-1,G27+1)) -> 10 | I28: =IF(K28="Not scored","",INDEX('Selected values'!$J$4:$J$53,MATCH($J28,'Selected values'!$H$4:$H$53,0))) -> 10 | J28: =IF($E$10=Lists!$K$2, INDEX('Selected values'!$B$4:$B$24, MATCH($G28,'Selected values'!$D$4:$D$24,0)), INDEX('Selected values'!$B$4:$B$24,MATCH($G28,'Selected values'!$E$4:$E$24,0))) -> Australia | K28: =IFERROR(ROUND(INDEX('Selected values'!$C$4:$C$24, MATCH($J28,'Selected values'!$B$4:$B$24,0)),1), "Not scored") -> 58.8 | L28: =IFERROR(IF(INDEX('DATA TABLE'!$J$10:$AC$66, MATCH($H$13,'DATA TABLE'!$B$10:$B$66,0), MATCH($J28,'DATA TABLE'!$J$9:$AC$9,0))="","",INDEX('DATA TABLE'!$J$10:$AC$66, MATCH($H$13,'DATA TABLE'!$B$10:$B$66,0), MATCH($J28,'DATA TABLE'!$J$9:$AC$9,0))),"") -> 
G29: =IF($C$7="Background indicators",G28+1,IF($E$10=Lists!$K$4, G28-1,G28+1)) -> 11 | I29: =IF(K29="Not scored","",INDEX('Selected values'!$J$4:$J$53,MATCH($J29,'Selected values'!$H$4:$H$53,0))) ->  | J29: =IF($E$10=Lists!$K$2, INDEX('Selected values'!$B$4:$B$24, MATCH($G29,'Selected values'!$D$4:$D$24,0)), INDEX('Selected values'!$B$4:$B$24,MATCH($G29,'Selected values'!$E$4:$E$24,0))) -> AVERAGE | K29: =IFERROR(ROUND(INDEX('Selected values'!$C$4:$C$24, MATCH($J29,'Selected values'!$B$4:$B$24,0)),1), "Not scored") -> 55.9 | L29: =IFERROR(IF(INDEX('DATA TABLE'!$J$10:$AC$66, MATCH($H$13,'DATA TABLE'!$B$10:$B$66,0), MATCH($J29,'DATA TABLE'!$J$9:$AC$9,0))="","",INDEX('DATA TABLE'!$J$10:$AC$66, MATCH($H$13,'DATA TABLE'!$B$10:$B$66,0), MATCH($J29,'DATA TABLE'!$J$9:$AC$9,0))),"") -> 
G30: =IF($C$7="Background indicators",G29+1,IF($E$10=Lists!$K$4, G29-1,G29+1)) -> 12 | I30: =IF(K30="Not scored","",INDEX('Selected values'!$J$4:$J$53,MATCH($J30,'Selected values'!$H$4:$H$53,0))) -> 11 | J30: =IF($E$10=Lists!$K$2, INDEX('Selected values'!$B$4:$B$24, MATCH($G30,'Selected values'!$D$4:$D$24,0)), INDEX('Selected values'!$B$4:$B$24,MATCH($G30,'Selected values'!$E$4:$E$24,0))) -> Mexico | K30: =IFERROR(ROUND(INDEX('Selected values'!$C$4:$C$24, MATCH($J30,'Selected values'!$B$4:$B$24,0)),1), "Not scored") -> 55.3 | L30: =IFERROR(IF(INDEX('DATA TABLE'!$J$10:$AC$66, MATCH($H$13,'DATA TABLE'!$B$10:$B$66,0), MATCH($J30,'DATA TABLE'!$J$9:$AC$9,0))="","",INDEX('DATA TABLE'!$J$10:$AC$66, MATCH($H$13,'DATA TABLE'!$B$10:$B$66,0), MATCH($J30,'DATA TABLE'!$J$9:$AC$9,0))),"") -> 
G31: =IF($C$7="Background indicators",G30+1,IF($E$10=Lists!$K$4, G30-1,G30+1)) -> 13 | I31: =IF(K31="Not scored","",INDEX('Selected values'!$J$4:$J$53,MATCH($J31,'Selected values'!$H$4:$H$53,0))) -> 12 | J31: =IF($E$10=Lists!$K$2, INDEX('Selected values'!$B$4:$B$24, MATCH($G31,'Selected values'!$D$4:$D$24,0)), INDEX('Selected values'!$B$4:$B$24,MATCH($G31,'Selected values'!$E$4:$E$24,0))) -> United Arab Emirates | K31: =IFERROR(ROUND(INDEX('Selected values'!$C$4:$C$24, MATCH($J31,'Selected values'!$B$4:$B$24,0)),1), "Not scored") -> 54.7 | L31: =IFERROR(IF(INDEX('DATA TABLE'!$J$10:$AC$66, MATCH($H$13,'DATA TABLE'!$B$10:$B$66,0), MATCH($J31,'DATA TABLE'!$J$9:$AC$9,0))="","",INDEX('DATA TABLE'!$J$10:$AC$66, MATCH($H$13,'DATA TABLE'!$B$10:$B$66,0), MATCH($J31,'DATA TABLE'!$J$9:$AC$9,0))),"") -> 
G32: =IF($C$7="Background indicators",G31+1,IF($E$10=Lists!$K$4, G31-1,G31+1)) -> 14 | I32: =IF(K32="Not scored","",INDEX('Selected values'!$J$4:$J$53,MATCH($J32,'Selected values'!$H$4:$H$53,0))) -> =13 | J32: =IF($E$10=Lists!$K$2, INDEX('Selected values'!$B$4:$B$24, MATCH($G32,'Selected values'!$D$4:$D$24,0)), INDEX('Selected values'!$B$4:$B$24,MATCH($G32,'Selected values'!$E$4:$E$24,0))) -> Japan | K32: =IFERROR(ROUND(INDEX('Selected values'!$C$4:$C$24, MATCH($J32,'Selected values'!$B$4:$B$24,0)),1), "Not scored") -> 54.4 | L32: =IFERROR(IF(INDEX('DATA TABLE'!$J$10:$AC$66, MATCH($H$13,'DATA TABLE'!$B$10:$B$66,0), MATCH($J32,'DATA TABLE'!$J$9:$AC$9,0))="","",INDEX('DATA TABLE'!$J$10:$AC$66, MATCH($H$13,'DATA TABLE'!$B$10:$B$66,0), MATCH($J32,'DATA TABLE'!$J$9:$AC$9,0))),"") -> 
G33: =IF($C$7="Background indicators",G32+1,IF($E$10=Lists!$K$4, G32-1,G32+1)) -> 15 | I33: =IF(K33="Not scored","",INDEX('Selected values'!$J$4:$J$53,MATCH($J33,'Selected values'!$H$4:$H$53,0))) -> =13 | J33: =IF($E$10=Lists!$K$2, INDEX('Selected values'!$B$4:$B$24, MATCH($G33,'Selected values'!$D$4:$D$24,0)), INDEX('Selected values'!$B$4:$B$24,MATCH($G33,'Selected values'!$E$4:$E$24,0))) -> Spain | K33: =IFERROR(ROUND(INDEX('Selected values'!$C$4:$C$24, MATCH($J33,'Selected values'!$B$4:$B$24,0)),1), "Not scored") -> 54.4 | L33: =IFERROR(IF(INDEX('DATA TABLE'!$J$10:$AC$66, MATCH($H$13,'DATA TABLE'!$B$10:$B$66,0), MATCH($J33,'DATA TABLE'!$J$9:$AC$9,0))="","",INDEX('DATA TABLE'!$J$10:$AC$66, MATCH($H$13,'DATA TABLE'!$B$10:$B$66,0), MATCH($J33,'DATA TABLE'!$J$9:$AC$9,0))),"") -> 
G34: =IF($C$7="Background indicators",G33+1,IF($E$10=Lists!$K$4, G33-1,G33+1)) -> 16 | I34: =IF(K34="Not scored","",INDEX('Selected values'!$J$4:$J$53,MATCH($J34,'Selected values'!$H$4:$H$53,0))) -> 15 | J34: =IF($E$10=Lists!$K$2, INDEX('Selected values'!$B$4:$B$24, MATCH($G34,'Selected values'!$D$4:$D$24,0)), INDEX('Selected values'!$B$4:$B$24,MATCH($G34,'Selected values'!$E$4:$E$24,0))) -> Canada | K34: =IFERROR(ROUND(INDEX('Selected values'!$C$4:$C$24, MATCH($J34,'Selected values'!$B$4:$B$24,0)),1), "Not scored") -> 47.9 | L34: =IFERROR(IF(INDEX('DATA TABLE'!$J$10:$AC$66, MATCH($H$13,'DATA TABLE'!$B$10:$B$66,0), MATCH($J34,'DATA TABLE'!$J$9:$AC$9,0))="","",INDEX('DATA TABLE'!$J$10:$AC$66, MATCH($H$13,'DATA TABLE'!$B$10:$B$66,0), MATCH($J34,'DATA TABLE'!$J$9:$AC$9,0))),"") -> 
G35: =IF($C$7="Background indicators",G34+1,IF($E$10=Lists!$K$4, G34-1,G34+1)) -> 17 | I35: =IF(K35="Not scored","",INDEX('Selected values'!$J$4:$J$53,MATCH($J35,'Selected values'!$H$4:$H$53,0))) -> 16 | J35: =IF($E$10=Lists!$K$2, INDEX('Selected values'!$B$4:$B$24, MATCH($G35,'Selected values'!$D$4:$D$24,0)), INDEX('Selected values'!$B$4:$B$24,MATCH($G35,'Selected values'!$E$4:$E$24,0))) -> Saudi Arabia | K35: =IFERROR(ROUND(INDEX('Selected values'!$C$4:$C$24, MATCH($J35,'Selected values'!$B$4:$B$24,0)),1), "Not scored") -> 44.5 | L35: =IFERROR(IF(INDEX('DATA TABLE'!$J$10:$AC$66, MATCH($H$13,'DATA TABLE'!$B$10:$B$66,0), MATCH($J35,'DATA TABLE'!$J$9:$AC$9,0))="","",INDEX('DATA TABLE'!$J$10:$AC$66, MATCH($H$13,'DATA TABLE'!$B$10:$B$66,0), MATCH($J35,'DATA TABLE'!$J$9:$AC$9,0))),"") -> 
G36: =IF($C$7="Background indicators",G35+1,IF($E$10=Lists!$K$4, G35-1,G35+1)) -> 18 | I36: =IF(K36="Not scored","",INDEX('Selected values'!$J$4:$J$53,MATCH($J36,'Selected values'!$H$4:$H$53,0))) -> 17 | J36: =IF($E$10=Lists!$K$2, INDEX('Selected values'!$B$4:$B$24, MATCH($G36,'Selected values'!$D$4:$D$24,0)), INDEX('Selected values'!$B$4:$B$24,MATCH($G36,'Selected values'!$E$4:$E$24,0))) -> South Africa | K36: =IFERROR(ROUND(INDEX('Selected values'!$C$4:$C$24, MATCH($J36,'Selected values'!$B$4:$B$24,0)),1), "Not scored") -> 44.2 | L36: =IFERROR(IF(INDEX('DATA TABLE'!$J$10:$AC$66, MATCH($H$13,'DATA TABLE'!$B$10:$B$66,0), MATCH($J36,'DATA TABLE'!$J$9:$AC$9,0))="","",INDEX('DATA TABLE'!$J$10:$AC$66, MATCH($H$13,'DATA TABLE'!$B$10:$B$66,0), MATCH($J36,'DATA TABLE'!$J$9:$AC$9,0))),"") -> 
G37: =IF($C$7="Background indicators",G36+1,IF($E$10=Lists!$K$4, G36-1,G36+1)) -> 19 | I37: =IF(K37="Not scored","",INDEX('Selected values'!$J$4:$J$53,MATCH($J37,'Selected values'!$H$4:$H$53,0))) -> 18 | J37: =IF($E$10=Lists!$K$2, INDEX('Selected values'!$B$4:$B$24, MATCH($G37,'Selected values'!$D$4:$D$24,0)), INDEX('Selected values'!$B$4:$B$24,MATCH($G37,'Selected values'!$E$4:$E$24,0))) -> Rwanda | K37: =IFERROR(ROUND(INDEX('Selected values'!$C$4:$C$24, MATCH($J37,'Selected values'!$B$4:$B$24,0)),1), "Not scored") -> 39.1 | L37: =IFERROR(IF(INDEX('DATA TABLE'!$J$10:$AC$66, MATCH($H$13,'DATA TABLE'!$B$10:$B$66,0), MATCH($J37,'DATA TABLE'!$J$9:$AC$9,0))="","",INDEX('DATA TABLE'!$J$10:$AC$66, MATCH($H$13,'DATA TABLE'!$B$10:$B$66,0), MATCH($J37,'DATA TABLE'!$J$9:$AC$9,0))),"") -> 
G38: =IF($C$7="Background indicators",G37+1,IF($E$10=Lists!$K$4, G37-1,G37+1)) -> 20 | I38: =IF(K38="Not scored","",INDEX('Selected values'!$J$4:$J$53,MATCH($J38,'Selected values'!$H$4:$H$53,0))) -> 19 | J38: =IF($E$10=Lists!$K$2, INDEX('Selected values'!$B$4:$B$24, MATCH($G38,'Selected values'!$D$4:$D$24,0)), INDEX('Selected values'!$B$4:$B$24,MATCH($G38,'Selected values'!$E$4:$E$24,0))) -> India | K38: =IFERROR(ROUND(INDEX('Selected values'!$C$4:$C$24, MATCH($J38,'Selected values'!$B$4:$B$24,0)),1), "Not scored") -> 36.1 | L38: =IFERROR(IF(INDEX('DATA TABLE'!$J$10:$AC$66, MATCH($H$13,'DATA TABLE'!$B$10:$B$66,0), MATCH($J38,'DATA TABLE'!$J$9:$AC$9,0))="","",INDEX('DATA TABLE'!$J$10:$AC$66, MATCH($H$13,'DATA TABLE'!$B$10:$B$66,0), MATCH($J38,'DATA TABLE'!$J$9:$AC$9,0))),"") -> 
G39: =IF($C$7="Background indicators",G38+1,IF($E$10=Lists!$K$4, G38-1,G38+1)) -> 21 | I39: =IF(K39="Not scored","",INDEX('Selected values'!$J$4:$J$53,MATCH($J39,'Selected values'!$H$4:$H$53,0))) -> 20 | J39: =IF($E$10=Lists!$K$2, INDEX('Selected values'!$B$4:$B$24, MATCH($G39,'Selected values'!$D$4:$D$24,0)), INDEX('Selected values'!$B$4:$B$24,MATCH($G39,'Selected values'!$E$4:$E$24,0))) -> Nigeria | K39: =IFERROR(ROUND(INDEX('Selected values'!$C$4:$C$24, MATCH($J39,'Selected values'!$B$4:$B$24,0)),1), "Not scored") -> 13.1 | L39: =IFERROR(IF(INDEX('DATA TABLE'!$J$10:$AC$66, MATCH($H$13,'DATA TABLE'!$B$10:$B$66,0), MATCH($J39,'DATA TABLE'!$J$9:$AC$9,0))="","",INDEX('DATA TABLE'!$J$10:$AC$66, MATCH($H$13,'DATA TABLE'!$B$10:$B$66,0), MATCH($J39,'DATA TABLE'!$J$9:$AC$9,0))),"") -> 
H41: '=' denotes tied rank
H42: Average = mean score for all countries shown in table
I44: Scores 80-100 - Areas of strength | K44: 80
I45: Scores 60-79 | K45: 60
I46: Scores 40-59 | K46: 40
I47: Scores 20-39 | K47: 20
I48: Scores 0-19 - Areas of development | K48: 0

Sheet COUNTRIES
C1: =HOME!B7 -> GLOBAL OBESITY RESPONSE INDEX
C6: SELECT COUNTRIES
C7: Australia
C10: =C7 -> Australia
C12: Scores 80-100 - Areas of strength | E12: 80
C13: Scores 60-79 | E13: 60
C14: Scores 40-59 | E14: 40
C15: Scores 20-39 | E15: 20
C16: Scores 0-19 - Areas of development | E16: 0
C18: Overall pillar and subpillar scores
E20: Score
E21: 0-100, where 100 = strongest obesity response
B22: 0 | C22: =INDEX(Lists!$H$2:$H$64,MATCH($B22,Lists!$F$2:$F$64,0)) -> OVERALL | E22: =ROUND(INDEX('SCORE TABLE'!$H$10:$AA$54, MATCH($B22,'SCORE TABLE'!$B$10:$B$54,0), MATCH($C$10,'SCORE TABLE'!$H$9:$AA$9,0)),1) -> 58.8
B23: 1 | C23: =INDEX(Lists!$H$2:$H$64,MATCH($B23,Lists!$F$2:$F$64,0)) -> 1) Policy and governance | E23: =ROUND(INDEX('SCORE TABLE'!$H$10:$AA$54, MATCH($B23,'SCORE TABLE'!$B$10:$B$54,0), MATCH($C$10,'SCORE TABLE'!$H$9:$AA$9,0)),1) -> 57.9
B24: 1.1 | C24: =INDEX(Lists!$H$2:$H$64,MATCH($B24,Lists!$F$2:$F$64,0)) -> 1.1) Obesity-related policy | E24: =ROUND(INDEX('SCORE TABLE'!$H$10:$AA$54, MATCH($B24,'SCORE TABLE'!$B$10:$B$54,0), MATCH($C$10,'SCORE TABLE'!$H$9:$AA$9,0)),1) -> 57.9
B25: 2 | C25: =INDEX(Lists!$H$2:$H$64,MATCH($B25,Lists!$F$2:$F$64,0)) -> 2) Obesity management | E25: =ROUND(INDEX('SCORE TABLE'!$H$10:$AA$54, MATCH($B25,'SCORE TABLE'!$B$10:$B$54,0), MATCH($C$10,'SCORE TABLE'!$H$9:$AA$9,0)),1) -> 75
B26: 2.1 | C26: =INDEX(Lists!$H$2:$H$64,MATCH($B26,Lists!$F$2:$F$64,0)) -> 2.1) Obesity management guidelines | E26: =ROUND(INDEX('SCORE TABLE'!$H$10:$AA$54, MATCH($B26,'SCORE TABLE'!$B$10:$B$54,0), MATCH($C$10,'SCORE TABLE'!$H$9:$AA$9,0)),1) -> 100
B27: 2.2 | C27: =INDEX(Lists!$H$2:$H$64,MATCH($B27,Lists!$F$2:$F$64,0)) -> 2.2) Obesity diagnosis and referral pathways | E27: =ROUND(INDEX('SCORE TABLE'!$H$10:$AA$54, MATCH($B27,'SCORE TABLE'!$B$10:$B$54,0), MATCH($C$10,'SCORE TABLE'!$H$9:$AA$9,0)),1) -> 50
B28: 2.3 | C28: =INDEX(Lists!$H$2:$H$64,MATCH($B28,Lists!$F$2:$F$64,0)) -> 2.3) Availability and affordability of obesity-related care | E28: =ROUND(INDEX('SCORE TABLE'!$H$10:$AA$54, MATCH($B28,'SCORE TABLE'!$B$10:$B$54,0), MATCH($C$10,'SCORE TABLE'!$H$9:$AA$9,0)),1) -> 75
B29: 3 | C29: =INDEX(Lists!$H$2:$H$64,MATCH($B29,Lists!$F$2:$F$64,0)) -> 3) Food quality and access | E29: =ROUND(INDEX('SCORE TABLE'!$H$10:$AA$54, MATCH($B29,'SCORE TABLE'!$B$10:$B$54,0), MATCH($C$10,'SCORE TABLE'!$H$9:$AA$9,0)),1) -> 60.4
B30: 3.1 | C30: =INDEX(Lists!$H$2:$H$64,MATCH($B30,Lists!$F$2:$F$64,0)) -> 3.1) Food access and affordability | E30: =ROUND(INDEX('SCORE TABLE'!$H$10:$AA$54, MATCH($B30,'SCORE TABLE'!$B$10:$B$54,0), MATCH($C$10,'SCORE TABLE'!$H$9:$AA$9,0)),1) -> 61.3
B31: 3.2 | C31: =INDEX(Lists!$H$2:$H$64,MATCH($B31,Lists!$F$2:$F$64,0)) -> 3.2) Nutrition guidance and regulation | E31: =ROUND(INDEX('SCORE TABLE'!$H$10:$AA$54, MATCH($B31,'SCORE TABLE'!$B$10:$B$54,0), MATCH($C$10,'SCORE TABLE'!$H$9:$AA$9,0)),1) -> 20
B32: 3.3 | C32: =INDEX(Lists!$H$2:$H$64,MATCH($B32,Lists!$F$2:$F$64,0)) -> 3.3) Nutrition in schools | E32: =ROUND(INDEX('SCORE TABLE'!$H$10:$AA$54, MATCH($B32,'SCORE TABLE'!$B$10:$B$54,0), MATCH($C$10,'SCORE TABLE'!$H$9:$AA$9,0)),1) -> 100
B33: 4 | C33: =INDEX(Lists!$H$2:$H$64,MATCH($B33,Lists!$F$2:$F$64,0)) -> 4) Physical activity | E33: =ROUND(INDEX('SCORE TABLE'!$H$10:$AA$54, MATCH($B33,'SCORE TABLE'!$B$10:$B$54,0), MATCH($C$10,'SCORE TABLE'!$H$9:$AA$9,0)),1) -> 41.7
B34: 4.1 | C34: =INDEX(Lists!$H$2:$H$64,MATCH($B34,Lists!$F$2:$F$64,0)) -> 4.1) Physical activity among the population | E34: =ROUND(INDEX('SCORE TABLE'!$H$10:$AA$54, MATCH($B34,'SCORE TABLE'!$B$10:$B$54,0), MATCH($C$10,'SCORE TABLE'!$H$9:$AA$9,0)),1) -> 33.3
B35: 4.2 | C35: =INDEX(Lists!$H$2:$H$64,MATCH($B35,Lists!$F$2:$F$64,0)) -> 4.2) Physical activity among children | E35: =ROUND(INDEX('SCORE TABLE'!$H$10:$AA$54, MATCH($B35,'SCORE TABLE'!$B$10:$B$54,0), MATCH($C$10,'SCORE TABLE'!$H$9:$AA$9,0)),1) -> 50
C38: Detailed scorecard
E40: Score | G40: Data
E41: 0-100, where 100 = strongest obesity response
B42: 1 | C42: =INDEX(Lists!$H$2:$H$64,MATCH($B42,Lists!$F$2:$F$64,0)) -> 1) Policy and governance | D42: =INDEX(Lists!$H$2:$H$59,MATCH($B42,Lists!$F$2:$F$58,0)) -> 1) Policy and governance | E42: =INDEX(Lists!$H$2:$H$59,MATCH($B42,Lists!$F$2:$F$58,0)) -> 1) Policy and governance | F42: =INDEX(Lists!$H$2:$H$59,MATCH($B42,Lists!$F$2:$F$58,0)) -> 1) Policy and governance | G42: =INDEX(Lists!$H$2:$H$59,MATCH($B42,Lists!$F$2:$F$58,0)) -> 1) Policy and governance | H42: =INDEX(Lists!$H$2:$H$59,MATCH($B42,Lists!$F$2:$F$58,0)) -> 1) Policy and governance | I42: =INDEX(Lists!$H$2:$H$59,MATCH($B42,Lists!$F$2:$F$58,0)) -> 1) Policy and governance | J42: =INDEX(Lists!$H$2:$H$59,MATCH($B42,Lists!$F$2:$F$58,0)) -> 1) Policy and governance
B43: 1.1 | C43: =INDEX(Lists!$H$2:$H$64,MATCH($B43,Lists!$F$2:$F$64,0)) -> 1.1) Obesity-related policy | D43: =INDEX(Lists!$H$2:$H$59,MATCH($B43,Lists!$F$2:$F$58,0)) -> 1.1) Obesity-related policy | E43: =INDEX(Lists!$H$2:$H$59,MATCH($B43,Lists!$F$2:$F$58,0)) -> 1.1) Obesity-related policy | F43: =INDEX(Lists!$H$2:$H$59,MATCH($B43,Lists!$F$2:$F$58,0)) -> 1.1) Obesity-related policy | G43: =INDEX(Lists!$H$2:$H$59,MATCH($B43,Lists!$F$2:$F$58,0)) -> 1.1) Obesity-related policy | H43: =INDEX(Lists!$H$2:$H$59,MATCH($B43,Lists!$F$2:$F$58,0)) -> 1.1) Obesity-related policy | I43: =INDEX(Lists!$H$2:$H$59,MATCH($B43,Lists!$F$2:$F$58,0)) -> 1.1) Obesity-related policy | J43: =INDEX(Lists!$H$2:$H$59,MATCH($B43,Lists!$F$2:$F$58,0)) -> 1.1) Obesity-related policy
B44: 1.1.1 | C44: =INDEX(Lists!$H$2:$H$64,MATCH($B44,Lists!$F$2:$F$64,0)) -> 1.1.1) Health policy/strategy/plan that includes obesity | E44: =IFERROR(ROUND(INDEX('SCORE TABLE'!$H$10:$AA$54, MATCH($B44,'SCORE TABLE'!$B$10:$B$54,0), MATCH($C$10,'SCORE TABLE'!$H$9:$AA$9,0)),1),"Not scored") -> 100 | G44: =IF(INDEX('DATA TABLE'!$J$10:$AC$66, MATCH($B44,'DATA TABLE'!$B$10:$B$66,0), MATCH($C$10,'DATA TABLE'!$J$9:$AC$9,0))="","",INDEX('DATA TABLE'!$J$10:$AC$66, MATCH($B44,'DATA TABLE'!$B$10:$B$66,0), MATCH($C$10,'DATA TABLE'!$J$9:$AC$9,0))) -> 1 | H44: =IF(INDEX(Data_summary!$E$3:$X$47, MATCH($B44,Data_summary!$C$3:$C$47,0),MATCH($C$10,Data_summary!$E$2:$X$2,0))="","",INDEX(Data_summary!$E$3:$X$47, MATCH($B44,Data_summary!$C$3:$C$47,0),MATCH($C$10,Data_summary!$E$2:$X$2,0))) -> Australia's National Preventive Health Strategy 2021-2030 specifies obesity as a priority (Australian Government Department of Health, National Preventive Health Strategy 2021-2030, 2021). | J44: =IF(INDEX('DATA TABLE'!$G$10:$G$66,MATCH($B44,'DATA TABLE'!$B$10:$B$66,0))="",CONCATENATE("(",INDEX('DATA TABLE'!$E$10:$E$66,MATCH($B44,'DATA TABLE'!$B$10:$B$66,0)),")"), CONCATENATE(INDEX('DATA TABLE'!$G$10:$G$66,MATCH($B44,'DATA TABLE'!$B$10:$B$66,0))," (",INDEX('DATA TABLE'!$E$10:$E$66,MATCH($B44,'DATA TABLE'!$B$10:$B$66,0)),")")) -> Qualitative rating 0-1; 1=best (Economist Enterprise research)
B45: 1.1.2 | C45: =INDEX(Lists!$H$2:$H$64,MATCH($B45,Lists!$F$2:$F$64,0)) -> 1.1.2) Definition of obesity | E45: =IFERROR(ROUND(INDEX('SCORE TABLE'!$H$10:$AA$54, MATCH($B45,'SCORE TABLE'!$B$10:$B$54,0), MATCH($C$10,'SCORE TABLE'!$H$9:$AA$9,0)),1),"Not scored") -> 100 | G45: =IF(INDEX('DATA TABLE'!$J$10:$AC$66, MATCH($B45,'DATA TABLE'!$B$10:$B$66,0), MATCH($C$10,'DATA TABLE'!$J$9:$AC$9,0))="","",INDEX('DATA TABLE'!$J$10:$AC$66, MATCH($B45,'DATA TABLE'!$B$10:$B$66,0), MATCH($C$10,'DATA TABLE'!$J$9:$AC$9,0))) -> 2 | H45: =IF(INDEX(Data_summary!$E$3:$X$47, MATCH($B45,Data_summary!$C$3:$C$47,0),MATCH($C$10,Data_summary!$E$2:$X$2,0))="","",INDEX(Data_summary!$E$3:$X$47, MATCH($B45,Data_summary!$C$3:$C$47,0),MATCH($C$10,Data_summary!$E$2:$X$2,0))) -> Australia's National Preventive Health Strategy 2021-2030 defines obesity as a chronic disease and connects obesity to related chronic diseases including cancer, diabetes, asthma, cardiovascular diseases and mental disorders (Australian Government Department of Health, National Preventive Health Strategy 2021-2030, 2021). | J45: =IF(INDEX('DATA TABLE'!$G$10:$G$66,MATCH($B45,'DATA TABLE'!$B$10:$B$66,0))="",CONCATENATE("(",INDEX('DATA TABLE'!$E$10:$E$66,MATCH($B45,'DATA TABLE'!$B$10:$B$66,0)),")"), CONCATENATE(INDEX('DATA TABLE'!$G$10:$G$66,MATCH($B45,'DATA TABLE'!$B$10:$B$66,0))," (",INDEX('DATA TABLE'!$E$10:$E$66,MATCH($B45,'DATA TABLE'!$B$10:$B$66,0)),")")) -> Qualitative rating 0-2; 2=best (Economist Enterprise research)
B46: 1.1.3 | C46: =INDEX(Lists!$H$2:$H$64,MATCH($B46,Lists!$F$2:$F$64,0)) -> 1.1.3) Obesity-related policy/strategy/plan | E46: =IFERROR(ROUND(INDEX('SCORE TABLE'!$H$10:$AA$54, MATCH($B46,'SCORE TABLE'!$B$10:$B$54,0), MATCH($C$10,'SCORE TABLE'!$H$9:$AA$9,0)),1),"Not scored") -> 89.6 | G46: =IF(INDEX('DATA TABLE'!$J$10:$AC$66, MATCH($B46,'DATA TABLE'!$B$10:$B$66,0), MATCH($C$10,'DATA TABLE'!$J$9:$AC$9,0))="","",INDEX('DATA TABLE'!$J$10:$AC$66, MATCH($B46,'DATA TABLE'!$B$10:$B$66,0), MATCH($C$10,'DATA TABLE'!$J$9:$AC$9,0))) ->  | H46: =IF(INDEX(Data_summary!$E$3:$X$47, MATCH($B46,Data_summary!$C$3:$C$47,0),MATCH($C$10,Data_summary!$E$2:$X$2,0))="","",INDEX(Data_summary!$E$3:$X$47, MATCH($B46,Data_summary!$C$3:$C$47,0),MATCH($C$10,Data_summary!$E$2:$X$2,0))) ->  | J46: =IF(INDEX('DATA TABLE'!$G$10:$G$66,MATCH($B46,'DATA TABLE'!$B$10:$B$66,0))="",CONCATENATE("(",INDEX('DATA TABLE'!$E$10:$E$66,MATCH($B46,'DATA TABLE'!$B$10:$B$66,0)),")"), CONCATENATE(INDEX('DATA TABLE'!$G$10:$G$66,MATCH($B46,'DATA TABLE'!$B$10:$B$66,0))," (",INDEX('DATA TABLE'!$E$10:$E$66,MATCH($B46,'DATA TABLE'!$B$10:$B$66,0)),")")) -> (Economist Enterprise calculations)
B47: 1.1.3a | C47: =INDEX(Lists!$H$2:$H$64,MATCH($B47,Lists!$F$2:$F$64,0)) -> 1.1.3a) Existence of an obesity-related policy/strategy/plan | E47: =IFERROR(ROUND(INDEX('SCORE TABLE'!$H$10:$AA$54, MATCH($B47,'SCORE TABLE'!$B$10:$B$54,0), MATCH($C$10,'SCORE TABLE'!$H$9:$AA$9,0)),1),"Not scored") -> 100 | G47: =IF(INDEX('DATA TABLE'!$J$10:$AC$66, MATCH($B47,'DATA TABLE'!$B$10:$B$66,0), MATCH($C$10,'DATA TABLE'!$J$9:$AC$9,0))="","",INDEX('DATA TABLE'!$J$10:$AC$66, MATCH($B47,'DATA TABLE'!$B$10:$B$66,0), MATCH($C$10,'DATA TABLE'!$J$9:$AC$9,0))) -> 2 | H47: =IF(INDEX(Data_summary!$E$3:$X$47, MATCH($B47,Data_summary!$C$3:$C$47,0),MATCH($C$10,Data_summary!$E$2:$X$2,0))="","",INDEX(Data_summary!$E$3:$X$47, MATCH($B47,Data_summary!$C$3:$C$47,0),MATCH($C$10,Data_summary!$E$2:$X$2,0))) -> Australia's National Obesity Strategy 2022-2032 includes specific goals, strategies and measurable targets for reducing obesity prevalence (Commonwealth of Australia Health Ministers Meeting, National Obesity Strategy 2022-2032, 2022). | J47: =IF(INDEX('DATA TABLE'!$G$10:$G$66,MATCH($B47,'DATA TABLE'!$B$10:$B$66,0))="",CONCATENATE("(",INDEX('DATA TABLE'!$E$10:$E$66,MATCH($B47,'DATA TABLE'!$B$10:$B$66,0)),")"), CONCATENATE(INDEX('DATA TABLE'!$G$10:$G$66,MATCH($B47,'DATA TABLE'!$B$10:$B$66,0))," (",INDEX('DATA TABLE'!$E$10:$E$66,MATCH($B47,'DATA TABLE'!$B$10:$B$66,0)),")")) -> Qualitative rating 0-2; 2=best (Economist Enterprise research)
B48: 1.1.3b | C48: =INDEX(Lists!$H$2:$H$64,MATCH($B48,Lists!$F$2:$F$64,0)) -> 1.1.3b) Engagement with stakeholders during development | E48: =IFERROR(ROUND(INDEX('SCORE TABLE'!$H$10:$AA$54, MATCH($B48,'SCORE TABLE'!$B$10:$B$54,0), MATCH($C$10,'SCORE TABLE'!$H$9:$AA$9,0)),1),"Not scored") -> 66.7 | G48: =IF(INDEX('DATA TABLE'!$J$10:$AC$66, MATCH($B48,'DATA TABLE'!$B$10:$B$66,0), MATCH($C$10,'DATA TABLE'!$J$9:$AC$9,0))="","",INDEX('DATA TABLE'!$J$10:$AC$66, MATCH($B48,'DATA TABLE'!$B$10:$B$66,0), MATCH($C$10,'DATA TABLE'!$J$9:$AC$9,0))) -> 2 | H48: =IF(INDEX(Data_summary!$E$3:$X$47, MATCH($B48,Data_summary!$C$3:$C$47,0),MATCH($C$10,Data_summary!$E$2:$X$2,0))="","",INDEX(Data_summary!$E$3:$X$47, MATCH($B48,Data_summary!$C$3:$C$47,0),MATCH($C$10,Data_summary!$E$2:$X$2,0))) -> The development of Australia's National Obesity Strategy 2022-2032 involved stakeholders from multiple sectors, including representatives from academia, agriculture, consulting and healthcare. However, there is no evidence that individuals living with obesity were consulted (Commonwealth of Australia Health Ministers Meeting, National Obesity Strategy 2022-2032, 2022; Australian Government Department of Health, National Obesity Summit Programme, 15 February 2019) | J48: =IF(INDEX('DATA TABLE'!$G$10:$G$66,MATCH($B48,'DATA TABLE'!$B$10:$B$66,0))="",CONCATENATE("(",INDEX('DATA TABLE'!$E$10:$E$66,MATCH($B48,'DATA TABLE'!$B$10:$B$66,0)),")"), CONCATENATE(INDEX('DATA TABLE'!$G$10:$G$66,MATCH($B48,'DATA TABLE'!$B$10:$B$66,0))," (",INDEX('DATA TABLE'!$E$10:$E$66,MATCH($B48,'DATA TABLE'!$B$10:$B$66,0)),")")) -> Qualitative rating 0-3; 3=best (Economist Enterprise research)
B49: 1.1.3c | C49: =INDEX(Lists!$H$2:$H$64,MATCH($B49,Lists!$F$2:$F$64,0)) -> 1.1.3c) Measures for obesity prevention | E49: =IFERROR(ROUND(INDEX('SCORE TABLE'!$H$10:$AA$54, MATCH($B49,'SCORE TABLE'!$B$10:$B$54,0), MATCH($C$10,'SCORE TABLE'!$H$9:$AA$9,0)),1),"Not scored") -> 100 | G49: =IF(INDEX('DATA TABLE'!$J$10:$AC$66, MATCH($B49,'DATA TABLE'!$B$10:$B$66,0), MATCH($C$10,'DATA TABLE'!$J$9:$AC$9,0))="","",INDEX('DATA TABLE'!$J$10:$AC$66, MATCH($B49,'DATA TABLE'!$B$10:$B$66,0), MATCH($C$10,'DATA TABLE'!$J$9:$AC$9,0))) -> 3 | H49: =IF(INDEX(Data_summary!$E$3:$X$47, MATCH($B49,Data_summary!$C$3:$C$47,0),MATCH($C$10,Data_summary!$E$2:$X$2,0))="","",INDEX(Data_summary!$E$3:$X$47, MATCH($B49,Data_summary!$C$3:$C$47,0),MATCH($C$10,Data_summary!$E$2:$X$2,0))) -> Australia's National Obesity Strategy 2022-2032 contains comprehensive, well-defined measures for obesity prevention with specific targets, clear implementation strategies and defined evaluation methods (Commonwealth of Australia Health Ministers Meeting, National Obesity Strategy 2022-2032, 2022). | J49: =IF(INDEX('DATA TABLE'!$G$10:$G$66,MATCH($B49,'DATA TABLE'!$B$10:$B$66,0))="",CONCATENATE("(",INDEX('DATA TABLE'!$E$10:$E$66,MATCH($B49,'DATA TABLE'!$B$10:$B$66,0)),")"), CONCATENATE(INDEX('DATA TABLE'!$G$10:$G$66,MATCH($B49,'DATA TABLE'!$B$10:$B$66,0))," (",INDEX('DATA TABLE'!$E$10:$E$66,MATCH($B49,'DATA TABLE'!$B$10:$B$66,0)),")")) -> Qualitative rating 0-3; 3=best (Economist Enterprise research)
B50: 1.1.3d | C50: =INDEX(Lists!$H$2:$H$64,MATCH($B50,Lists!$F$2:$F$64,0)) -> 1.1.3d) Measures for obesity management | E50: =IFERROR(ROUND(INDEX('SCORE TABLE'!$H$10:$AA$54, MATCH($B50,'SCORE TABLE'!$B$10:$B$54,0), MATCH($C$10,'SCORE TABLE'!$H$9:$AA$9,0)),1),"Not scored") -> 100 | G50: =IF(INDEX('DATA TABLE'!$J$10:$AC$66, MATCH($B50,'DATA TABLE'!$B$10:$B$66,0), MATCH($C$10,'DATA TABLE'!$J$9:$AC$9,0))="","",INDEX('DATA TABLE'!$J$10:$AC$66, MATCH($B50,'DATA TABLE'!$B$10:$B$66,0), MATCH($C$10,'DATA TABLE'!$J$9:$AC$9,0))) -> 3 | H50: =IF(INDEX(Data_summary!$E$3:$X$47, MATCH($B50,Data_summary!$C$3:$C$47,0),MATCH($C$10,Data_summary!$E$2:$X$2,0))="","",INDEX(Data_summary!$E$3:$X$47, MATCH($B50,Data_summary!$C$3:$C$47,0),MATCH($C$10,Data_summary!$E$2:$X$2,0))) -> Australia's National Obesity Strategy 2022-2032 contains comprehensive, well-defined measures for obesity management with well-defined evaluation methods (Commonwealth of Australia Health Ministers Meeting, National Obesity Strategy 2022-2032, 2022). | J50: =IF(INDEX('DATA TABLE'!$G$10:$G$66,MATCH($B50,'DATA TABLE'!$B$10:$B$66,0))="",CONCATENATE("(",INDEX('DATA TABLE'!$E$10:$E$66,MATCH($B50,'DATA TABLE'!$B$10:$B$66,0)),")"), CONCATENATE(INDEX('DATA TABLE'!$G$10:$G$66,MATCH($B50,'DATA TABLE'!$B$10:$B$66,0))," (",INDEX('DATA TABLE'!$E$10:$E$66,MATCH($B50,'DATA TABLE'!$B$10:$B$66,0)),")")) -> Qualitative rating 0-3; 3=best (Economist Enterprise research)
B51: 1.1.3e | C51: =INDEX(Lists!$H$2:$H$64,MATCH($B51,Lists!$F$2:$F$64,0)) -> 1.1.3e) Targets for obesity prevalence reduction | E51: =IFERROR(ROUND(INDEX('SCORE TABLE'!$H$10:$AA$54, MATCH($B51,'SCORE TABLE'!$B$10:$B$54,0), MATCH($C$10,'SCORE TABLE'!$H$9:$AA$9,0)),1),"Not scored") -> 50 | G51: =IF(INDEX('DATA TABLE'!$J$10:$AC$66, MATCH($B51,'DATA TABLE'!$B$10:$B$66,0), MATCH($C$10,'DATA TABLE'!$J$9:$AC$9,0))="","",INDEX('DATA TABLE'!$J$10:$AC$66, MATCH($B51,'DATA TABLE'!$B$10:$B$66,0), MATCH($C$10,'DATA TABLE'!$J$9:$AC$9,0))) -> 1 | H51: =IF(INDEX(Data_summary!$E$3:$X$47, MATCH($B51,Data_summary!$C$3:$C$47,0),MATCH($C$10,Data_summary!$E$2:$X$2,0))="","",INDEX(Data_summary!$E$3:$X$47, MATCH($B51,Data_summary!$C$3:$C$47,0),MATCH($C$10,Data_summary!$E$2:$X$2,0))) -> Australia's National Obesity Strategy 2022-2032 contains a clear and measurable long-term target for obesity prevalence reduction to be achieved by 2030; however, there is no evidence of short-term targets (Commonwealth of Australia Health Ministers Meeting, National Obesity Strategy 2022-2032, 2022). | J51: =IF(INDEX('DATA TABLE'!$G$10:$G$66,MATCH($B51,'DATA TABLE'!$B$10:$B$66,0))="",CONCATENATE("(",INDEX('DATA TABLE'!$E$10:$E$66,MATCH($B51,'DATA TABLE'!$B$10:$B$66,0)),")"), CONCATENATE(INDEX('DATA TABLE'!$G$10:$G$66,MATCH($B51,'DATA TABLE'!$B$10:$B$66,0))," (",INDEX('DATA TABLE'!$E$10:$E$66,MATCH($B51,'DATA TABLE'!$B$10:$B$66,0)),")")) -> Qualitative rating 0-2; 2=best (Economist Enterprise research)
B52: 1.1.3f | C52: =INDEX(Lists!$H$2:$H$64,MATCH($B52,Lists!$F$2:$F$64,0)) -> 1.1.3f) Focus on vulnerable groups | E52: =IFERROR(ROUND(INDEX('SCORE TABLE'!$H$10:$AA$54, MATCH($B52,'SCORE TABLE'!$B$10:$B$54,0), MATCH($C$10,'SCORE TABLE'!$H$9:$AA$9,0)),1),"Not scored") -> 100 | G52: =IF(INDEX('DATA TABLE'!$J$10:$AC$66, MATCH($B52,'DATA TABLE'!$B$10:$B$66,0), MATCH($C$10,'DATA TABLE'!$J$9:$AC$9,0))="","",INDEX('DATA TABLE'!$J$10:$AC$66, MATCH($B52,'DATA TABLE'!$B$10:$B$66,0), MATCH($C$10,'DATA TABLE'!$J$9:$AC$9,0))) -> 2 | H52: =IF(INDEX(Data_summary!$E$3:$X$47, MATCH($B52,Data_summary!$C$3:$C$47,0),MATCH($C$10,Data_summary!$E$2:$X$2,0))="","",INDEX(Data_summary!$E$3:$X$47, MATCH($B52,Data_summary!$C$3:$C$47,0),MATCH($C$10,Data_summary!$E$2:$X$2,0))) -> Australia's National Obesity Strategy 2022-2032 includes a particular focus on the prevention and management of obesity in groups at increased risk of developing obesity, such as LGBTQ+ communities and Aboriginal and Torres Strait Islander peoples. Further, it includes tailored strategies that aim to mitigate significant health inequities across these demographic groups (Commonwealth of Australia Health Ministers Meeting, National Obesity Strategy 2022-2032, 2022). | J52: =IF(INDEX('DATA TABLE'!$G$10:$G$66,MATCH($B52,'DATA TABLE'!$B$10:$B$66,0))="",CONCATENATE("(",INDEX('DATA TABLE'!$E$10:$E$66,MATCH($B52,'DATA TABLE'!$B$10:$B$66,0)),")"), CONCATENATE(INDEX('DATA TABLE'!$G$10:$G$66,MATCH($B52,'DATA TABLE'!$B$10:$B$66,0))," (",INDEX('DATA TABLE'!$E$10:$E$66,MATCH($B52,'DATA TABLE'!$B$10:$B$66,0)),")")) -> Qualitative rating 0-2; 2=best (Economist Enterprise research)
B53: 1.1.3g | C53: =INDEX(Lists!$H$2:$H$64,MATCH($B53,Lists!$F$2:$F$64,0)) -> 1.1.3g) Obesity-related stigma and discrimination | E53: =IFERROR(ROUND(INDEX('SCORE TABLE'!$H$10:$AA$54, MATCH($B53,'SCORE TABLE'!$B$10:$B$54,0), MATCH($C$10,'SCORE TABLE'!$H$9:$AA$9,0)),1),"Not scored") -> 100 | G53: =IF(INDEX('DATA TABLE'!$J$10:$AC$66, MATCH($B53,'DATA TABLE'!$B$10:$B$66,0), MATCH($C$10,'DATA TABLE'!$J$9:$AC$9,0))="","",INDEX('DATA TABLE'!$J$10:$AC$66, MATCH($B53,'DATA TABLE'!$B$10:$B$66,0), MATCH($C$10,'DATA TABLE'!$J$9:$AC$9,0))) -> 2 | H53: =IF(INDEX(Data_summary!$E$3:$X$47, MATCH($B53,Data_summary!$C$3:$C$47,0),MATCH($C$10,Data_summary!$E$2:$X$2,0))="","",INDEX(Data_summary!$E$3:$X$47, MATCH($B53,Data_summary!$C$3:$C$47,0),MATCH($C$10,Data_summary!$E$2:$X$2,0))) -> Australia's National Obesity Strategy 2022-2032 aims to reduce obesity-related stigma and discrimination and contains well-defined measures to tackle it (Commonwealth of Australia Health Ministers Meeting, National Obesity Strategy 2022-2032, 2022). | J53: =IF(INDEX('DATA TABLE'!$G$10:$G$66,MATCH($B53,'DATA TABLE'!$B$10:$B$66,0))="",CONCATENATE("(",INDEX('DATA TABLE'!$E$10:$E$66,MATCH($B53,'DATA TABLE'!$B$10:$B$66,0)),")"), CONCATENATE(INDEX('DATA TABLE'!$G$10:$G$66,MATCH($B53,'DATA TABLE'!$B$10:$B$66,0))," (",INDEX('DATA TABLE'!$E$10:$E$66,MATCH($B53,'DATA TABLE'!$B$10:$B$66,0)),")")) -> Qualitative rating 0-2; 2=best (Economist Enterprise research)
B54: 1.1.4 | C54: =INDEX(Lists!$H$2:$H$64,MATCH($B54,Lists!$F$2:$F$64,0)) -> 1.1.4) Obesity-related funding | E54: =IFERROR(ROUND(INDEX('SCORE TABLE'!$H$10:$AA$54, MATCH($B54,'SCORE TABLE'!$B$10:$B$54,0), MATCH($C$10,'SCORE TABLE'!$H$9:$AA$9,0)),1),"Not scored") -> 0 | G54: =IF(INDEX('DATA TABLE'!$J$10:$AC$66, MATCH($B54,'DATA TABLE'!$B$10:$B$66,0), MATCH($C$10,'DATA TABLE'!$J$9:$AC$9,0))="","",INDEX('DATA TABLE'!$J$10:$AC$66, MATCH($B54,'DATA TABLE'!$B$10:$B$66,0), MATCH($C$10,'DATA TABLE'!$J$9:$AC$9,0))) -> 0 | H54: =IF(INDEX(Data_summary!$E$3:$X$47, MATCH($B54,Data_summary!$C$3:$C$47,0),MATCH($C$10,Data_summary!$E$2:$X$2,0))="","",INDEX(Data_summary!$E$3:$X$47, MATCH($B54,Data_summary!$C$3:$C$47,0),MATCH($C$10,Data_summary!$E$2:$X$2,0))) -> There is insufficient evidence that Australia has allocated a dedicated budget to the implementation of the National Obesity Strategy 2022-2032, the country's ten-year framework for action to prevent and reduce overweight and obesity (Commonwealth of Australia Health Ministers Meeting, National Obesity Strategy 2022-2032, 2022). | J54: =IF(INDEX('DATA TABLE'!$G$10:$G$66,MATCH($B54,'DATA TABLE'!$B$10:$B$66,0))="",CONCATENATE("(",INDEX('DATA TABLE'!$E$10:$E$66,MATCH($B54,'DATA TABLE'!$B$10:$B$66,0)),")"), CONCATENATE(INDEX('DATA TABLE'!$G$10:$G$66,MATCH($B54,'DATA TABLE'!$B$10:$B$66,0))," (",INDEX('DATA TABLE'!$E$10:$E$66,MATCH($B54,'DATA TABLE'!$B$10:$B$66,0)),")")) -> Qualitative rating 0-1; 1=best (Economist Enterprise research)
B55: 1.1.5 | C55: =INDEX(Lists!$H$2:$H$64,MATCH($B55,Lists!$F$2:$F$64,0)) -> 1.1.5) Weight-related discrimination | E55: =IFERROR(ROUND(INDEX('SCORE TABLE'!$H$10:$AA$54, MATCH($B55,'SCORE TABLE'!$B$10:$B$54,0), MATCH($C$10,'SCORE TABLE'!$H$9:$AA$9,0)),1),"Not scored") -> 0 | G55: =IF(INDEX('DATA TABLE'!$J$10:$AC$66, MATCH($B55,'DATA TABLE'!$B$10:$B$66,0), MATCH($C$10,'DATA TABLE'!$J$9:$AC$9,0))="","",INDEX('DATA TABLE'!$J$10:$AC$66, MATCH($B55,'DATA TABLE'!$B$10:$B$66,0), MATCH($C$10,'DATA TABLE'!$J$9:$AC$9,0))) -> 0 | H55: =IF(INDEX(Data_summary!$E$3:$X$47, MATCH($B55,Data_summary!$C$3:$C$47,0),MATCH($C$10,Data_summary!$E$2:$X$2,0))="","",INDEX(Data_summary!$E$3:$X$47, MATCH($B55,Data_summary!$C$3:$C$47,0),MATCH($C$10,Data_summary!$E$2:$X$2,0))) -> Australian law prohibits discrimination on the basis of a number of protected characteristics; however, weight is not included in the list (Australian Government, Age Discrimination Act 2004; Australian Government, Disability Discrimination Act 1992; Australian Government, Racial Discrimination Act 1975; Australian Government, Sex Discrimination Act 1984; Australian Government, Australian Human Rights Commission Act 1986). | J55: =IF(INDEX('DATA TABLE'!$G$10:$G$66,MATCH($B55,'DATA TABLE'!$B$10:$B$66,0))="",CONCATENATE("(",INDEX('DATA TABLE'!$E$10:$E$66,MATCH($B55,'DATA TABLE'!$B$10:$B$66,0)),")"), CONCATENATE(INDEX('DATA TABLE'!$G$10:$G$66,MATCH($B55,'DATA TABLE'!$B$10:$B$66,0))," (",INDEX('DATA TABLE'!$E$10:$E$66,MATCH($B55,'DATA TABLE'!$B$10:$B$66,0)),")")) -> Qualitative rating 0-1; 1=best (Economist Enterprise research)
B56: 2 | C56: =INDEX(Lists!$H$2:$H$64,MATCH($B56,Lists!$F$2:$F$64,0)) -> 2) Obesity management | D56: =INDEX(Lists!$H$2:$H$59,MATCH($B56,Lists!$F$2:$F$58,0)) -> 2) Obesity management | E56: =INDEX(Lists!$H$2:$H$59,MATCH($B56,Lists!$F$2:$F$58,0)) -> 2) Obesity management | F56: =INDEX(Lists!$H$2:$H$59,MATCH($B56,Lists!$F$2:$F$58,0)) -> 2) Obesity management | G56: =INDEX(Lists!$H$2:$H$59,MATCH($B56,Lists!$F$2:$F$58,0)) -> 2) Obesity management | H56: =INDEX(Lists!$H$2:$H$59,MATCH($B56,Lists!$F$2:$F$58,0)) -> 2) Obesity management | I56: =INDEX(Lists!$H$2:$H$59,MATCH($B56,Lists!$F$2:$F$58,0)) -> 2) Obesity management | J56: =INDEX(Lists!$H$2:$H$59,MATCH($B56,Lists!$F$2:$F$58,0)) -> 2) Obesity management
B57: 2.1 | C57: =INDEX(Lists!$H$2:$H$64,MATCH($B57,Lists!$F$2:$F$64,0)) -> 2.1) Obesity management guidelines | D57: =INDEX(Lists!$H$2:$H$59,MATCH($B57,Lists!$F$2:$F$58,0)) -> 2.1) Obesity management guidelines | E57: =INDEX(Lists!$H$2:$H$59,MATCH($B57,Lists!$F$2:$F$58,0)) -> 2.1) Obesity management guidelines | F57: =INDEX(Lists!$H$2:$H$59,MATCH($B57,Lists!$F$2:$F$58,0)) -> 2.1) Obesity management guidelines | G57: =INDEX(Lists!$H$2:$H$59,MATCH($B57,Lists!$F$2:$F$58,0)) -> 2.1) Obesity management guidelines | H57: =INDEX(Lists!$H$2:$H$59,MATCH($B57,Lists!$F$2:$F$58,0)) -> 2.1) Obesity management guidelines | I57: =INDEX(Lists!$H$2:$H$59,MATCH($B57,Lists!$F$2:$F$58,0)) -> 2.1) Obesity management guidelines | J57: =INDEX(Lists!$H$2:$H$59,MATCH($B57,Lists!$F$2:$F$58,0)) -> 2.1) Obesity management guidelines
B58: 2.1.1 | C58: =INDEX(Lists!$H$2:$H$64,MATCH($B58,Lists!$F$2:$F$64,0)) -> 2.1.1) Existence of obesity management guidelines | E58: =IFERROR(ROUND(INDEX('SCORE TABLE'!$H$10:$AA$54, MATCH($B58,'SCORE TABLE'!$B$10:$B$54,0), MATCH($C$10,'SCORE TABLE'!$H$9:$AA$9,0)),1),"Not scored") -> 100 | G58: =IF(INDEX('DATA TABLE'!$J$10:$AC$66, MATCH($B58,'DATA TABLE'!$B$10:$B$66,0), MATCH($C$10,'DATA TABLE'!$J$9:$AC$9,0))="","",INDEX('DATA TABLE'!$J$10:$AC$66, MATCH($B58,'DATA TABLE'!$B$10:$B$66,0), MATCH($C$10,'DATA TABLE'!$J$9:$AC$9,0))) -> 2 | H58: =IF(INDEX(Data_summary!$E$3:$X$47, MATCH($B58,Data_summary!$C$3:$C$47,0),MATCH($C$10,Data_summary!$E$2:$X$2,0))="","",INDEX(Data_summary!$E$3:$X$47, MATCH($B58,Data_summary!$C$3:$C$47,0),MATCH($C$10,Data_summary!$E$2:$X$2,0))) -> Australia has draft guidelines in place on obesity management; they were published in 2024. The guidelines state that there is no scheduled time for review and update, and that an update is desirable when the evidence changes substantively (Australian Government Department of Health and Aged Care, Clinical Practice Guidelines for the Management of Overweight and Obesity for Adults, Adolescents and Children in Australia (Draft Guidelines), 2024). | J58: =IF(INDEX('DATA TABLE'!$G$10:$G$66,MATCH($B58,'DATA TABLE'!$B$10:$B$66,0))="",CONCATENATE("(",INDEX('DATA TABLE'!$E$10:$E$66,MATCH($B58,'DATA TABLE'!$B$10:$B$66,0)),")"), CONCATENATE(INDEX('DATA TABLE'!$G$10:$G$66,MATCH($B58,'DATA TABLE'!$B$10:$B$66,0))," (",INDEX('DATA TABLE'!$E$10:$E$66,MATCH($B58,'DATA TABLE'!$B$10:$B$66,0)),")")) -> Qualitative rating 0-2; 2=best (Economist Enterprise research)
B59: 2.1.2 | C59: =INDEX(Lists!$H$2:$H$64,MATCH($B59,Lists!$F$2:$F$64,0)) -> 2.1.2) Evidence-based obesity management guidelines | E59: =IFERROR(ROUND(INDEX('SCORE TABLE'!$H$10:$AA$54, MATCH($B59,'SCORE TABLE'!$B$10:$B$54,0), MATCH($C$10,'SCORE TABLE'!$H$9:$AA$9,0)),1),"Not scored") -> 100 | G59: =IF(INDEX('DATA TABLE'!$J$10:$AC$66, MATCH($B59,'DATA TABLE'!$B$10:$B$66,0), MATCH($C$10,'DATA TABLE'!$J$9:$AC$9,0))="","",INDEX('DATA TABLE'!$J$10:$AC$66, MATCH($B59,'DATA TABLE'!$B$10:$B$66,0), MATCH($C$10,'DATA TABLE'!$J$9:$AC$9,0))) -> 2 | H59: =IF(INDEX(Data_summary!$E$3:$X$47, MATCH($B59,Data_summary!$C$3:$C$47,0),MATCH($C$10,Data_summary!$E$2:$X$2,0))="","",INDEX(Data_summary!$E$3:$X$47, MATCH($B59,Data_summary!$C$3:$C$47,0),MATCH($C$10,Data_summary!$E$2:$X$2,0))) -> Australia's draft national guidelines on obesity management were developed using an evidence-based methodology, comprising a structured review and synthesis of best available evidence, grading of the evidence, and the input of independent experts (Australian Government Department of Health and Aged Care, Clinical Practice Guidelines for the Management of Overweight and Obesity for Adults, Adolescents and Children in Australia (Draft Guidelines), 2024). | J59: =IF(INDEX('DATA TABLE'!$G$10:$G$66,MATCH($B59,'DATA TABLE'!$B$10:$B$66,0))="",CONCATENATE("(",INDEX('DATA TABLE'!$E$10:$E$66,MATCH($B59,'DATA TABLE'!$B$10:$B$66,0)),")"), CONCATENATE(INDEX('DATA TABLE'!$G$10:$G$66,MATCH($B59,'DATA TABLE'!$B$10:$B$66,0))," (",INDEX('DATA TABLE'!$E$10:$E$66,MATCH($B59,'DATA TABLE'!$B$10:$B$66,0)),")")) -> Qualitative rating 0-2; 2=best (Economist Enterprise research)
B60: 2.1.3 | C60: =INDEX(Lists!$H$2:$H$64,MATCH($B60,Lists!$F$2:$F$64,0)) -> 2.1.3) Clinical and cost-effectiveness of obesity management interventions | E60: =IFERROR(ROUND(INDEX('SCORE TABLE'!$H$10:$AA$54, MATCH($B60,'SCORE TABLE'!$B$10:$B$54,0), MATCH($C$10,'SCORE TABLE'!$H$9:$AA$9,0)),1),"Not scored") -> 100 | G60: =IF(INDEX('DATA TABLE'!$J$10:$AC$66, MATCH($B60,'DATA TABLE'!$B$10:$B$66,0), MATCH($C$10,'DATA TABLE'!$J$9:$AC$9,0))="","",INDEX('DATA TABLE'!$J$10:$AC$66, MATCH($B60,'DATA TABLE'!$B$10:$B$66,0), MATCH($C$10,'DATA TABLE'!$J$9:$AC$9,0))) -> 2 | H60: =IF(INDEX(Data_summary!$E$3:$X$47, MATCH($B60,Data_summary!$C$3:$C$47,0),MATCH($C$10,Data_summary!$E$2:$X$2,0))="","",INDEX(Data_summary!$E$3:$X$47, MATCH($B60,Data_summary!$C$3:$C$47,0),MATCH($C$10,Data_summary!$E$2:$X$2,0))) -> Australia's draft national guidelines on obesity management are based on an evidence-based assessment of the clinical and cost-effectiveness of the interventions (Australian Government Department of Health and Aged Care, Clinical Practice Guidelines for the Management of Overweight and Obesity for Adults, Adolescents and Children in Australia (Draft Guidelines), 2024). | J60: =IF(INDEX('DATA TABLE'!$G$10:$G$66,MATCH($B60,'DATA TABLE'!$B$10:$B$66,0))="",CONCATENATE("(",INDEX('DATA TABLE'!$E$10:$E$66,MATCH($B60,'DATA TABLE'!$B$10:$B$66,0)),")"), CONCATENATE(INDEX('DATA TABLE'!$G$10:$G$66,MATCH($B60,'DATA TABLE'!$B$10:$B$66,0))," (",INDEX('DATA TABLE'!$E$10:$E$66,MATCH($B60,'DATA TABLE'!$B$10:$B$66,0)),")")) -> Qualitative rating 0-2; 2=best (Economist Enterprise research)
B61: 2.2 | C61: =INDEX(Lists!$H$2:$H$64,MATCH($B61,Lists!$F$2:$F$64,0)) -> 2.2) Obesity diagnosis and referral pathways | D61: =INDEX(Lists!$H$2:$H$59,MATCH($B61,Lists!$F$2:$F$58,0)) -> 2.2) Obesity diagnosis and referral pathways | E61: =INDEX(Lists!$H$2:$H$59,MATCH($B61,Lists!$F$2:$F$58,0)) -> 2.2) Obesity diagnosis and referral pathways | F61: =INDEX(Lists!$H$2:$H$59,MATCH($B61,Lists!$F$2:$F$58,0)) -> 2.2) Obesity diagnosis and referral pathways | G61: =INDEX(Lists!$H$2:$H$59,MATCH($B61,Lists!$F$2:$F$58,0)) -> 2.2) Obesity diagnosis and referral pathways | H61: =INDEX(Lists!$H$2:$H$59,MATCH($B61,Lists!$F$2:$F$58,0)) -> 2.2) Obesity diagnosis and referral pathways | I61: =INDEX(Lists!$H$2:$H$59,MATCH($B61,Lists!$F$2:$F$58,0)) -> 2.2) Obesity diagnosis and referral pathways | J61: =INDEX(Lists!$H$2:$H$59,MATCH($B61,Lists!$F$2:$F$58,0)) -> 2.2) Obesity diagnosis and referral pathways
B62: 2.2.1 | C62: =INDEX(Lists!$H$2:$H$64,MATCH($B62,Lists!$F$2:$F$64,0)) -> 2.2.1) Obesity management pathway | E62: =IFERROR(ROUND(INDEX('SCORE TABLE'!$H$10:$AA$54, MATCH($B62,'SCORE TABLE'!$B$10:$B$54,0), MATCH($C$10,'SCORE TABLE'!$H$9:$AA$9,0)),1),"Not scored") -> 0 | G62: =IF(INDEX('DATA TABLE'!$J$10:$AC$66, MATCH($B62,'DATA TABLE'!$B$10:$B$66,0), MATCH($C$10,'DATA TABLE'!$J$9:$AC$9,0))="","",INDEX('DATA TABLE'!$J$10:$AC$66, MATCH($B62,'DATA TABLE'!$B$10:$B$66,0), MATCH($C$10,'DATA TABLE'!$J$9:$AC$9,0))) -> 0 | H62: =IF(INDEX(Data_summary!$E$3:$X$47, MATCH($B62,Data_summary!$C$3:$C$47,0),MATCH($C$10,Data_summary!$E$2:$X$2,0))="","",INDEX(Data_summary!$E$3:$X$47, MATCH($B62,Data_summary!$C$3:$C$47,0),MATCH($C$10,Data_summary!$E$2:$X$2,0))) -> Australia's draft national guidelines on obesity management expressly exclude a clinical pathway. Instead, they emphasise flexibility, placing responsibility on healthcare professionals to interpret evidence and tailor interventions with patients according to their needs (Australian Government Department of Health and Aged Care, Clinical Practice Guidelines for the Management of Overweight and Obesity for Adults, Adolescents and Children in Australia (Draft Guidelines), 2024). | J62: =IF(INDEX('DATA TABLE'!$G$10:$G$66,MATCH($B62,'DATA TABLE'!$B$10:$B$66,0))="",CONCATENATE("(",INDEX('DATA TABLE'!$E$10:$E$66,MATCH($B62,'DATA TABLE'!$B$10:$B$66,0)),")"), CONCATENATE(INDEX('DATA TABLE'!$G$10:$G$66,MATCH($B62,'DATA TABLE'!$B$10:$B$66,0))," (",INDEX('DATA TABLE'!$E$10:$E$66,MATCH($B62,'DATA TABLE'!$B$10:$B$66,0)),")")) -> Qualitative rating 0-1; 1=best (Economist Enterprise research)
B63: 2.2.2 | C63: =INDEX(Lists!$H$2:$H$64,MATCH($B63,Lists!$F$2:$F$64,0)) -> 2.2.2) Obesity pathway in chronic disease management | E63: =IFERROR(ROUND(INDEX('SCORE TABLE'!$H$10:$AA$54, MATCH($B63,'SCORE TABLE'!$B$10:$B$54,0), MATCH($C$10,'SCORE TABLE'!$H$9:$AA$9,0)),1),"Not scored") -> 100 | G63: =IF(INDEX('DATA TABLE'!$J$10:$AC$66, MATCH($B63,'DATA TABLE'!$B$10:$B$66,0), MATCH($C$10,'DATA TABLE'!$J$9:$AC$9,0))="","",INDEX('DATA TABLE'!$J$10:$AC$66, MATCH($B63,'DATA TABLE'!$B$10:$B$66,0), MATCH($C$10,'DATA TABLE'!$J$9:$AC$9,0))) -> 2 | H63: =IF(INDEX(Data_summary!$E$3:$X$47, MATCH($B63,Data_summary!$C$3:$C$47,0),MATCH($C$10,Data_summary!$E$2:$X$2,0))="","",INDEX(Data_summary!$E$3:$X$47, MATCH($B63,Data_summary!$C$3:$C$47,0),MATCH($C$10,Data_summary!$E$2:$X$2,0))) -> Australia's national guidelines on cardiovascular disease risk management mention the referral of patients trying to lose weight to exercise and nutrition specialists and bariatric surgery, and the national guidelines for diabetes management mention that obesity pharmacotherapy should be considered for people with diabetes and overweight or obesity, and that a dietician can provide support to people seeking to lose weight (Australian Government Department of Health and Aged Care, Australian Guideline for assessing and managing cardiovascular disease risk, 2023; Royal Australian College of General Practitioners, Management of type 2 diabetes: A handbook for general practice). | J63: =IF(INDEX('DATA TABLE'!$G$10:$G$66,MATCH($B63,'DATA TABLE'!$B$10:$B$66,0))="",CONCATENATE("(",INDEX('DATA TABLE'!$E$10:$E$66,MATCH($B63,'DATA TABLE'!$B$10:$B$66,0)),")"), CONCATENATE(INDEX('DATA TABLE'!$G$10:$G$66,MATCH($B63,'DATA TABLE'!$B$10:$B$66,0))," (",INDEX('DATA TABLE'!$E$10:$E$66,MATCH($B63,'DATA TABLE'!$B$10:$B$66,0)),")")) -> Qualitative rating 0-2; 2=best (Economist Enterprise research)
B64: 2.3 | C64: =INDEX(Lists!$H$2:$H$64,MATCH($B64,Lists!$F$2:$F$64,0)) -> 2.3) Availability and affordability of obesity-related care | D64: =INDEX(Lists!$H$2:$H$59,MATCH($B64,Lists!$F$2:$F$58,0)) -> 2.3) Availability and affordability of obesity-related care | E64: =INDEX(Lists!$H$2:$H$59,MATCH($B64,Lists!$F$2:$F$58,0)) -> 2.3) Availability and affordability of obesity-related care | F64: =INDEX(Lists!$H$2:$H$59,MATCH($B64,Lists!$F$2:$F$58,0)) -> 2.3) Availability and affordability of obesity-related care | G64: =INDEX(Lists!$H$2:$H$59,MATCH($B64,Lists!$F$2:$F$58,0)) -> 2.3) Availability and affordability of obesity-related care | H64: =INDEX(Lists!$H$2:$H$59,MATCH($B64,Lists!$F$2:$F$58,0)) -> 2.3) Availability and affordability of obesity-related care | I64: =INDEX(Lists!$H$2:$H$59,MATCH($B64,Lists!$F$2:$F$58,0)) -> 2.3) Availability and affordability of obesity-related care | J64: =INDEX(Lists!$H$2:$H$59,MATCH($B64,Lists!$F$2:$F$58,0)) -> 2.3) Availability and affordability of obesity-related care
B65: 2.3.1 | C65: =INDEX(Lists!$H$2:$H$64,MATCH($B65,Lists!$F$2:$F$64,0)) -> 2.3.1) Reimbursement/coverage of obesity care | E65: =IFERROR(ROUND(INDEX('SCORE TABLE'!$H$10:$AA$54, MATCH($B65,'SCORE TABLE'!$B$10:$B$54,0), MATCH($C$10,'SCORE TABLE'!$H$9:$AA$9,0)),1),"Not scored") -> 75 | G65: =IF(INDEX('DATA TABLE'!$J$10:$AC$66, MATCH($B65,'DATA TABLE'!$B$10:$B$66,0), MATCH($C$10,'DATA TABLE'!$J$9:$AC$9,0))="","",INDEX('DATA TABLE'!$J$10:$AC$66, MATCH($B65,'DATA TABLE'!$B$10:$B$66,0), MATCH($C$10,'DATA TABLE'!$J$9:$AC$9,0))) -> 3 | H65: =IF(INDEX(Data_summary!$E$3:$X$47, MATCH($B65,Data_summary!$C$3:$C$47,0),MATCH($C$10,Data_summary!$E$2:$X$2,0))="","",INDEX(Data_summary!$E$3:$X$47, MATCH($B65,Data_summary!$C$3:$C$47,0),MATCH($C$10,Data_summary!$E$2:$X$2,0))) -> Medicare—the main public insurance scheme—covers bariatric surgery for clinically severe obesity, nutrition counselling and behavioural therapy/psychological counselling, which are recommended in the national guidelines for obesity management; it does not cover obesity medications (Australian Government Department of Health and Aged Care, Clinical Practice Guidelines for the Management of Overweight and Obesity for Adults, Adolescents and Children in Australia (Draft Guidelines), November 2024; Australian Government Department of Health and Aged Care, Medicare Benefits Schedule). | J65: =IF(INDEX('DATA TABLE'!$G$10:$G$66,MATCH($B65,'DATA TABLE'!$B$10:$B$66,0))="",CONCATENATE("(",INDEX('DATA TABLE'!$E$10:$E$66,MATCH($B65,'DATA TABLE'!$B$10:$B$66,0)),")"), CONCATENATE(INDEX('DATA TABLE'!$G$10:$G$66,MATCH($B65,'DATA TABLE'!$B$10:$B$66,0))," (",INDEX('DATA TABLE'!$E$10:$E$66,MATCH($B65,'DATA TABLE'!$B$10:$B$66,0)),")")) -> Qualitative rating 0-4; 4=best (Economist Enterprise research)
B66: 3 | C66: =INDEX(Lists!$H$2:$H$64,MATCH($B66,Lists!$F$2:$F$64,0)) -> 3) Food quality and access | D66: =INDEX(Lists!$H$2:$H$59,MATCH($B66,Lists!$F$2:$F$58,0)) -> 3) Food quality and access | E66: =INDEX(Lists!$H$2:$H$59,MATCH($B66,Lists!$F$2:$F$58,0)) -> 3) Food quality and access | F66: =INDEX(Lists!$H$2:$H$59,MATCH($B66,Lists!$F$2:$F$58,0)) -> 3) Food quality and access | G66: =INDEX(Lists!$H$2:$H$59,MATCH($B66,Lists!$F$2:$F$58,0)) -> 3) Food quality and access | H66: =INDEX(Lists!$H$2:$H$59,MATCH($B66,Lists!$F$2:$F$58,0)) -> 3) Food quality and access | I66: =INDEX(Lists!$H$2:$H$59,MATCH($B66,Lists!$F$2:$F$58,0)) -> 3) Food quality and access | J66: =INDEX(Lists!$H$2:$H$59,MATCH($B66,Lists!$F$2:$F$58,0)) -> 3) Food quality and access
B67: 3.1 | C67: =INDEX(Lists!$H$2:$H$64,MATCH($B67,Lists!$F$2:$F$64,0)) -> 3.1) Food access and affordability | D67: =INDEX(Lists!$H$2:$H$59,MATCH($B67,Lists!$F$2:$F$58,0)) -> 3.1) Food access and affordability | E67: =INDEX(Lists!$H$2:$H$59,MATCH($B67,Lists!$F$2:$F$58,0)) -> 3.1) Food access and affordability | F67: =INDEX(Lists!$H$2:$H$59,MATCH($B67,Lists!$F$2:$F$58,0)) -> 3.1) Food access and affordability | G67: =INDEX(Lists!$H$2:$H$59,MATCH($B67,Lists!$F$2:$F$58,0)) -> 3.1) Food access and affordability | H67: =INDEX(Lists!$H$2:$H$59,MATCH($B67,Lists!$F$2:$F$58,0)) -> 3.1) Food access and affordability | I67: =INDEX(Lists!$H$2:$H$59,MATCH($B67,Lists!$F$2:$F$58,0)) -> 3.1) Food access and affordability | J67: =INDEX(Lists!$H$2:$H$59,MATCH($B67,Lists!$F$2:$F$58,0)) -> 3.1) Food access and affordability
B68: 3.1.1 | C68: =INDEX(Lists!$H$2:$H$64,MATCH($B68,Lists!$F$2:$F$64,0)) -> 3.1.1) Level of food security | E68: =IFERROR(ROUND(INDEX('SCORE TABLE'!$H$10:$AA$54, MATCH($B68,'SCORE TABLE'!$B$10:$B$54,0), MATCH($C$10,'SCORE TABLE'!$H$9:$AA$9,0)),1),"Not scored") -> 87.1 | G68: =IF(INDEX('DATA TABLE'!$J$10:$AC$66, MATCH($B68,'DATA TABLE'!$B$10:$B$66,0), MATCH($C$10,'DATA TABLE'!$J$9:$AC$9,0))="","",INDEX('DATA TABLE'!$J$10:$AC$66, MATCH($B68,'DATA TABLE'!$B$10:$B$66,0), MATCH($C$10,'DATA TABLE'!$J$9:$AC$9,0))) -> 87.1 | H68: =IF(INDEX(Data_summary!$E$3:$X$47, MATCH($B68,Data_summary!$C$3:$C$47,0),MATCH($C$10,Data_summary!$E$2:$X$2,0))="","",INDEX(Data_summary!$E$3:$X$47, MATCH($B68,Data_summary!$C$3:$C$47,0),MATCH($C$10,Data_summary!$E$2:$X$2,0))) -> Australia had a food security rate of 87.1% in 2021-23 (FAO, IFAD, UNICEF, WFP and WHO, The State of Food Security and Nutrition in the World 2024—financing to end hunger, food insecurity and malnutrition in all its forms, 2024). | J68: =IF(INDEX('DATA TABLE'!$G$10:$G$66,MATCH($B68,'DATA TABLE'!$B$10:$B$66,0))="",CONCATENATE("(",INDEX('DATA TABLE'!$E$10:$E$66,MATCH($B68,'DATA TABLE'!$B$10:$B$66,0)),")"), CONCATENATE(INDEX('DATA TABLE'!$G$10:$G$66,MATCH($B68,'DATA TABLE'!$B$10:$B$66,0))," (",INDEX('DATA TABLE'!$E$10:$E$66,MATCH($B68,'DATA TABLE'!$B$10:$B$66,0)),")")) -> % (FAO, IFAD, UNICEF, WFP and WHO - The State of Food Security and Nutrition in the World 2024 – Financing to end hunger, food insecurity and malnutrition in all its forms)
B69: 3.1.2 | C69: =INDEX(Lists!$H$2:$H$64,MATCH($B69,Lists!$F$2:$F$64,0)) -> 3.1.2) Affordability of nutritious food | E69: =IFERROR(ROUND(INDEX('SCORE TABLE'!$H$10:$AA$54, MATCH($B69,'SCORE TABLE'!$B$10:$B$54,0), MATCH($C$10,'SCORE TABLE'!$H$9:$AA$9,0)),1),"Not scored") -> 96.8 | G69: =IF(INDEX('DATA TABLE'!$J$10:$AC$66, MATCH($B69,'DATA TABLE'!$B$10:$B$66,0), MATCH($C$10,'DATA TABLE'!$J$9:$AC$9,0))="","",INDEX('DATA TABLE'!$J$10:$AC$66, MATCH($B69,'DATA TABLE'!$B$10:$B$66,0), MATCH($C$10,'DATA TABLE'!$J$9:$AC$9,0))) -> 96.8 | H69: =IF(INDEX(Data_summary!$E$3:$X$47, MATCH($B69,Data_summary!$C$3:$C$47,0),MATCH($C$10,Data_summary!$E$2:$X$2,0))="","",INDEX(Data_summary!$E$3:$X$47, MATCH($B69,Data_summary!$C$3:$C$47,0),MATCH($C$10,Data_summary!$E$2:$X$2,0))) -> According to the World Bank's Food Prices for Nutrition DataHub, 96.8% of people in Australia could afford a healthy diet in 2022 (World Bank, The State of Food Security and Nutrition in the World 2024 and Food Prices for Nutrition Database 3.0, 2024). | J69: =IF(INDEX('DATA TABLE'!$G$10:$G$66,MATCH($B69,'DATA TABLE'!$B$10:$B$66,0))="",CONCATENATE("(",INDEX('DATA TABLE'!$E$10:$E$66,MATCH($B69,'DATA TABLE'!$B$10:$B$66,0)),")"), CONCATENATE(INDEX('DATA TABLE'!$G$10:$G$66,MATCH($B69,'DATA TABLE'!$B$10:$B$66,0))," (",INDEX('DATA TABLE'!$E$10:$E$66,MATCH($B69,'DATA TABLE'!$B$10:$B$66,0)),")")) -> % (World Bank)
B70: 3.1.3 | C70: =INDEX(Lists!$H$2:$H$64,MATCH($B70,Lists!$F$2:$F$64,0)) -> 3.1.3) Nutrition programmes for lower-income individuals | E70: =IFERROR(ROUND(INDEX('SCORE TABLE'!$H$10:$AA$54, MATCH($B70,'SCORE TABLE'!$B$10:$B$54,0), MATCH($C$10,'SCORE TABLE'!$H$9:$AA$9,0)),1),"Not scored") -> 0 | G70: =IF(INDEX('DATA TABLE'!$J$10:$AC$66, MATCH($B70,'DATA TABLE'!$B$10:$B$66,0), MATCH($C$10,'DATA TABLE'!$J$9:$AC$9,0))="","",INDEX('DATA TABLE'!$J$10:$AC$66, MATCH($B70,'DATA TABLE'!$B$10:$B$66,0), MATCH($C$10,'DATA TABLE'!$J$9:$AC$9,0))) -> 0 | H70: =IF(INDEX(Data_summary!$E$3:$X$47, MATCH($B70,Data_summary!$C$3:$C$47,0),MATCH($C$10,Data_summary!$E$2:$X$2,0))="","",INDEX(Data_summary!$E$3:$X$47, MATCH($B70,Data_summary!$C$3:$C$47,0),MATCH($C$10,Data_summary!$E$2:$X$2,0))) -> There is insufficient evidence that Australia has any specific programmes in place for lower-income individuals to access nutritious food. | J70: =IF(INDEX('DATA TABLE'!$G$10:$G$66,MATCH($B70,'DATA TABLE'!$B$10:$B$66,0))="",CONCATENATE("(",INDEX('DATA TABLE'!$E$10:$E$66,MATCH($B70,'DATA TABLE'!$B$10:$B$66,0)),")"), CONCATENATE(INDEX('DATA TABLE'!$G$10:$G$66,MATCH($B70,'DATA TABLE'!$B$10:$B$66,0))," (",INDEX('DATA TABLE'!$E$10:$E$66,MATCH($B70,'DATA TABLE'!$B$10:$B$66,0)),")")) -> Qualitative rating 0-1; 1=best (Economist Enterprise research)
B71: 3.2 | C71: =INDEX(Lists!$H$2:$H$64,MATCH($B71,Lists!$F$2:$F$64,0)) -> 3.2) Nutrition guidance and regulation | D71: =INDEX(Lists!$H$2:$H$59,MATCH($B71,Lists!$F$2:$F$58,0)) -> 3.2) Nutrition guidance and regulation | E71: =INDEX(Lists!$H$2:$H$59,MATCH($B71,Lists!$F$2:$F$58,0)) -> 3.2) Nutrition guidance and regulation | F71: =INDEX(Lists!$H$2:$H$59,MATCH($B71,Lists!$F$2:$F$58,0)) -> 3.2) Nutrition guidance and regulation | G71: =INDEX(Lists!$H$2:$H$59,MATCH($B71,Lists!$F$2:$F$58,0)) -> 3.2) Nutrition guidance and regulation | H71: =INDEX(Lists!$H$2:$H$59,MATCH($B71,Lists!$F$2:$F$58,0)) -> 3.2) Nutrition guidance and regulation | I71: =INDEX(Lists!$H$2:$H$59,MATCH($B71,Lists!$F$2:$F$58,0)) -> 3.2) Nutrition guidance and regulation | J71: =INDEX(Lists!$H$2:$H$59,MATCH($B71,Lists!$F$2:$F$58,0)) -> 3.2) Nutrition guidance and regulation
B72: 3.2.1 | C72: =INDEX(Lists!$H$2:$H$64,MATCH($B72,Lists!$F$2:$F$64,0)) -> 3.2.1) Nutrition policy/strategy/plan that addresses obesity | E72: =IFERROR(ROUND(INDEX('SCORE TABLE'!$H$10:$AA$54, MATCH($B72,'SCORE TABLE'!$B$10:$B$54,0), MATCH($C$10,'SCORE TABLE'!$H$9:$AA$9,0)),1),"Not scored") -> 0 | G72: =IF(INDEX('DATA TABLE'!$J$10:$AC$66, MATCH($B72,'DATA TABLE'!$B$10:$B$66,0), MATCH($C$10,'DATA TABLE'!$J$9:$AC$9,0))="","",INDEX('DATA TABLE'!$J$10:$AC$66, MATCH($B72,'DATA TABLE'!$B$10:$B$66,0), MATCH($C$10,'DATA TABLE'!$J$9:$AC$9,0))) -> 0 | H72: =IF(INDEX(Data_summary!$E$3:$X$47, MATCH($B72,Data_summary!$C$3:$C$47,0),MATCH($C$10,Data_summary!$E$2:$X$2,0))="","",INDEX(Data_summary!$E$3:$X$47, MATCH($B72,Data_summary!$C$3:$C$47,0),MATCH($C$10,Data_summary!$E$2:$X$2,0))) -> Australia's National Food and Nutrition Policy was last updated in 1992, its National Food Plan was last updated in 2013, and the Australian Government's work around improving the country's nutrition relies on the National Preventive Health Strategy and the Australian Dietary Guidelines, neither of which constitute a nutrition strategy (Australian Government Department of Health, National Preventive Health Strategy 2021-2030, 2021; National Health and Medical Research Council, Department of Health and Ageing, Australian Dietary Guidelines, 2013; Australian Government, National Food Plan: Our food future, 2013). | J72: =IF(INDEX('DATA TABLE'!$G$10:$G$66,MATCH($B72,'DATA TABLE'!$B$10:$B$66,0))="",CONCATENATE("(",INDEX('DATA TABLE'!$E$10:$E$66,MATCH($B72,'DATA TABLE'!$B$10:$B$66,0)),")"), CONCATENATE(INDEX('DATA TABLE'!$G$10:$G$66,MATCH($B72,'DATA TABLE'!$B$10:$B$66,0))," (",INDEX('DATA TABLE'!$E$10:$E$66,MATCH($B72,'DATA TABLE'!$B$10:$B$66,0)),")")) -> Qualitative rating 0-3; 3=best (Economist Enterprise research)
B73: 3.2.2 | C73: =INDEX(Lists!$H$2:$H$64,MATCH($B73,Lists!$F$2:$F$64,0)) -> 3.2.2) Marketing of unhealthy food and beverages to children | E73: =IFERROR(ROUND(INDEX('SCORE TABLE'!$H$10:$AA$54, MATCH($B73,'SCORE TABLE'!$B$10:$B$54,0), MATCH($C$10,'SCORE TABLE'!$H$9:$AA$9,0)),1),"Not scored") -> 50 | G73: =IF(INDEX('DATA TABLE'!$J$10:$AC$66, MATCH($B73,'DATA TABLE'!$B$10:$B$66,0), MATCH($C$10,'DATA TABLE'!$J$9:$AC$9,0))="","",INDEX('DATA TABLE'!$J$10:$AC$66, MATCH($B73,'DATA TABLE'!$B$10:$B$66,0), MATCH($C$10,'DATA TABLE'!$J$9:$AC$9,0))) -> 1 | H73: =IF(INDEX(Data_summary!$E$3:$X$47, MATCH($B73,Data_summary!$C$3:$C$47,0),MATCH($C$10,Data_summary!$E$2:$X$2,0))="","",INDEX(Data_summary!$E$3:$X$47, MATCH($B73,Data_summary!$C$3:$C$47,0),MATCH($C$10,Data_summary!$E$2:$X$2,0))) -> Australia's Responsible Children's Marketing Initiative (RCMI) is a voluntary code developed by the Australian Food and Grocery Council—an industry association—that restricts the marketing of unhealthy foods to children; however, this code is not mandatory and the government was not involved in its development (Australian Food and Grocery Council, Responsible Children's Marketing Initiative, 2014). Although a bill was submitted to parliament to prohibit the marketing of certain food or drink products on television and radio, it did not proceed (Parliament of Australia, Broadcasting Services Amendment (Healthy Kids Advertising) Bill, 2023). | J73: =IF(INDEX('DATA TABLE'!$G$10:$G$66,MATCH($B73,'DATA TABLE'!$B$10:$B$66,0))="",CONCATENATE("(",INDEX('DATA TABLE'!$E$10:$E$66,MATCH($B73,'DATA TABLE'!$B$10:$B$66,0)),")"), CONCATENATE(INDEX('DATA TABLE'!$G$10:$G$66,MATCH($B73,'DATA TABLE'!$B$10:$B$66,0))," (",INDEX('DATA TABLE'!$E$10:$E$66,MATCH($B73,'DATA TABLE'!$B$10:$B$66,0)),")")) -> Qualitative rating 0-2; 2=best (Economist Enterprise research)
B74: 3.2.3 | C74: =INDEX(Lists!$H$2:$H$64,MATCH($B74,Lists!$F$2:$F$64,0)) -> 3.2.3) Food labelling | E74: =IFERROR(ROUND(INDEX('SCORE TABLE'!$H$10:$AA$54, MATCH($B74,'SCORE TABLE'!$B$10:$B$54,0), MATCH($C$10,'SCORE TABLE'!$H$9:$AA$9,0)),1),"Not scored") -> 50 | G74: =IF(INDEX('DATA TABLE'!$J$10:$AC$66, MATCH($B74,'DATA TABLE'!$B$10:$B$66,0), MATCH($C$10,'DATA TABLE'!$J$9:$AC$9,0))="","",INDEX('DATA TABLE'!$J$10:$AC$66, MATCH($B74,'DATA TABLE'!$B$10:$B$66,0), MATCH($C$10,'DATA TABLE'!$J$9:$AC$9,0))) -> 1 | H74: =IF(INDEX(Data_summary!$E$3:$X$47, MATCH($B74,Data_summary!$C$3:$C$47,0),MATCH($C$10,Data_summary!$E$2:$X$2,0))="","",INDEX(Data_summary!$E$3:$X$47, MATCH($B74,Data_summary!$C$3:$C$47,0),MATCH($C$10,Data_summary!$E$2:$X$2,0))) -> Australia mandates food labelling to support healthy eating, including nutrition facts (Australian Government Federal Register of Legislation, Australia New Zealand Food Standards Code—Standard 1.2.1—Requirements to have labels or otherwise provide information, 2024). However, front-of-package labelling is voluntary under the Health Star Rating system (Food Standards Australia New Zealand, Health Star Rating System, 2021; Health Star Rating, About). | J74: =IF(INDEX('DATA TABLE'!$G$10:$G$66,MATCH($B74,'DATA TABLE'!$B$10:$B$66,0))="",CONCATENATE("(",INDEX('DATA TABLE'!$E$10:$E$66,MATCH($B74,'DATA TABLE'!$B$10:$B$66,0)),")"), CONCATENATE(INDEX('DATA TABLE'!$G$10:$G$66,MATCH($B74,'DATA TABLE'!$B$10:$B$66,0))," (",INDEX('DATA TABLE'!$E$10:$E$66,MATCH($B74,'DATA TABLE'!$B$10:$B$66,0)),")")) -> Qualitative rating 0-2; 2=best (Economist Enterprise research)
B75: 3.2.4 | C75: =INDEX(Lists!$H$2:$H$64,MATCH($B75,Lists!$F$2:$F$64,0)) -> 3.2.4) Menu labelling | E75: =IFERROR(ROUND(INDEX('SCORE TABLE'!$H$10:$AA$54, MATCH($B75,'SCORE TABLE'!$B$10:$B$54,0), MATCH($C$10,'SCORE TABLE'!$H$9:$AA$9,0)),1),"Not scored") -> 0 | G75: =IF(INDEX('DATA TABLE'!$J$10:$AC$66, MATCH($B75,'DATA TABLE'!$B$10:$B$66,0), MATCH($C$10,'DATA TABLE'!$J$9:$AC$9,0))="","",INDEX('DATA TABLE'!$J$10:$AC$66, MATCH($B75,'DATA TABLE'!$B$10:$B$66,0), MATCH($C$10,'DATA TABLE'!$J$9:$AC$9,0))) -> 0 | H75: =IF(INDEX(Data_summary!$E$3:$X$47, MATCH($B75,Data_summary!$C$3:$C$47,0),MATCH($C$10,Data_summary!$E$2:$X$2,0))="","",INDEX(Data_summary!$E$3:$X$47, MATCH($B75,Data_summary!$C$3:$C$47,0),MATCH($C$10,Data_summary!$E$2:$X$2,0))) -> There is insufficient evidence that Australia has legislation mandating or recommending nutrition labelling on menus to support healthy eating. At the state level, some states require nutrition labelling on menus while others do not (New South Wales Government, New South Wales Food Regulation 2015 under the Food Act of 2003; Northern Territory Government, Food Labelling). | J75: =IF(INDEX('DATA TABLE'!$G$10:$G$66,MATCH($B75,'DATA TABLE'!$B$10:$B$66,0))="",CONCATENATE("(",INDEX('DATA TABLE'!$E$10:$E$66,MATCH($B75,'DATA TABLE'!$B$10:$B$66,0)),")"), CONCATENATE(INDEX('DATA TABLE'!$G$10:$G$66,MATCH($B75,'DATA TABLE'!$B$10:$B$66,0))," (",INDEX('DATA TABLE'!$E$10:$E$66,MATCH($B75,'DATA TABLE'!$B$10:$B$66,0)),")")) -> Qualitative rating 0-2; 2=best (Economist Enterprise research)
B76: 3.2.5 | C76: =INDEX(Lists!$H$2:$H$64,MATCH($B76,Lists!$F$2:$F$64,0)) -> 3.2.5) Taxes on unhealthy food and beverages | E76: =IFERROR(ROUND(INDEX('SCORE TABLE'!$H$10:$AA$54, MATCH($B76,'SCORE TABLE'!$B$10:$B$54,0), MATCH($C$10,'SCORE TABLE'!$H$9:$AA$9,0)),1),"Not scored") -> 0 | G76: =IF(INDEX('DATA TABLE'!$J$10:$AC$66, MATCH($B76,'DATA TABLE'!$B$10:$B$66,0), MATCH($C$10,'DATA TABLE'!$J$9:$AC$9,0))="","",INDEX('DATA TABLE'!$J$10:$AC$66, MATCH($B76,'DATA TABLE'!$B$10:$B$66,0), MATCH($C$10,'DATA TABLE'!$J$9:$AC$9,0))) -> 0 | H76: =IF(INDEX(Data_summary!$E$3:$X$47, MATCH($B76,Data_summary!$C$3:$C$47,0),MATCH($C$10,Data_summary!$E$2:$X$2,0))="","",INDEX(Data_summary!$E$3:$X$47, MATCH($B76,Data_summary!$C$3:$C$47,0),MATCH($C$10,Data_summary!$E$2:$X$2,0))) -> Australian lawmakers are exploring the possibility of levying a 20% tax on sugar-sweetened beverages; however, the country does not levy taxes on unhealthy food or beverages as of April 2025 (Australian Government Parliamentary Budget Office, Policy Costing: 20% tax on sugar sweetened beverages, 2024). | J76: =IF(INDEX('DATA TABLE'!$G$10:$G$66,MATCH($B76,'DATA TABLE'!$B$10:$B$66,0))="",CONCATENATE("(",INDEX('DATA TABLE'!$E$10:$E$66,MATCH($B76,'DATA TABLE'!$B$10:$B$66,0)),")"), CONCATENATE(INDEX('DATA TABLE'!$G$10:$G$66,MATCH($B76,'DATA TABLE'!$B$10:$B$66,0))," (",INDEX('DATA TABLE'!$E$10:$E$66,MATCH($B76,'DATA TABLE'!$B$10:$B$66,0)),")")) -> Qualitative rating 0-2; 2=best (Economist Enterprise research)
B77: 3.3 | C77: =INDEX(Lists!$H$2:$H$64,MATCH($B77,Lists!$F$2:$F$64,0)) -> 3.3) Nutrition in schools | D77: =INDEX(Lists!$H$2:$H$59,MATCH($B77,Lists!$F$2:$F$58,0)) -> 3.3) Nutrition in schools | E77: =INDEX(Lists!$H$2:$H$59,MATCH($B77,Lists!$F$2:$F$58,0)) -> 3.3) Nutrition in schools | F77: =INDEX(Lists!$H$2:$H$59,MATCH($B77,Lists!$F$2:$F$58,0)) -> 3.3) Nutrition in schools | G77: =INDEX(Lists!$H$2:$H$59,MATCH($B77,Lists!$F$2:$F$58,0)) -> 3.3) Nutrition in schools | H77: =INDEX(Lists!$H$2:$H$59,MATCH($B77,Lists!$F$2:$F$58,0)) -> 3.3) Nutrition in schools | I77: =INDEX(Lists!$H$2:$H$59,MATCH($B77,Lists!$F$2:$F$58,0)) -> 3.3) Nutrition in schools | J77: =INDEX(Lists!$H$2:$H$59,MATCH($B77,Lists!$F$2:$F$58,0)) -> 3.3) Nutrition in schools
B78: 3.3.1 | C78: =INDEX(Lists!$H$2:$H$64,MATCH($B78,Lists!$F$2:$F$64,0)) -> 3.3.1) School nutrition standards | E78: =IFERROR(ROUND(INDEX('SCORE TABLE'!$H$10:$AA$54, MATCH($B78,'SCORE TABLE'!$B$10:$B$54,0), MATCH($C$10,'SCORE TABLE'!$H$9:$AA$9,0)),1),"Not scored") -> 100 | G78: =IF(INDEX('DATA TABLE'!$J$10:$AC$66, MATCH($B78,'DATA TABLE'!$B$10:$B$66,0), MATCH($C$10,'DATA TABLE'!$J$9:$AC$9,0))="","",INDEX('DATA TABLE'!$J$10:$AC$66, MATCH($B78,'DATA TABLE'!$B$10:$B$66,0), MATCH($C$10,'DATA TABLE'!$J$9:$AC$9,0))) -> 1 | H78: =IF(INDEX(Data_summary!$E$3:$X$47, MATCH($B78,Data_summary!$C$3:$C$47,0),MATCH($C$10,Data_summary!$E$2:$X$2,0))="","",INDEX(Data_summary!$E$3:$X$47, MATCH($B78,Data_summary!$C$3:$C$47,0),MATCH($C$10,Data_summary!$E$2:$X$2,0))) -> Australia has nutrition standards in place for school food, regulated at the state level (New South Wales Government, NSW Healthy School Canteen Strategy—Food and Drink Criteria, 4th ed., 2020; Northern Territory Government, School nutrition and healthy eating—guidelines, 2023). The national government also provides guidelines on implementing healthy food choices in schools (Australian Government Department of Health, Guidelines for healthy foods and drinks supplied in school canteens, 2014). | J78: =IF(INDEX('DATA TABLE'!$G$10:$G$66,MATCH($B78,'DATA TABLE'!$B$10:$B$66,0))="",CONCATENATE("(",INDEX('DATA TABLE'!$E$10:$E$66,MATCH($B78,'DATA TABLE'!$B$10:$B$66,0)),")"), CONCATENATE(INDEX('DATA TABLE'!$G$10:$G$66,MATCH($B78,'DATA TABLE'!$B$10:$B$66,0))," (",INDEX('DATA TABLE'!$E$10:$E$66,MATCH($B78,'DATA TABLE'!$B$10:$B$66,0)),")")) -> Qualitative rating 0-1; 1=best (Economist Enterprise research)
B79: 3.3.2 | C79: =INDEX(Lists!$H$2:$H$64,MATCH($B79,Lists!$F$2:$F$64,0)) -> 3.3.2) Nutrition education | E79: =IFERROR(ROUND(INDEX('SCORE TABLE'!$H$10:$AA$54, MATCH($B79,'SCORE TABLE'!$B$10:$B$54,0), MATCH($C$10,'SCORE TABLE'!$H$9:$AA$9,0)),1),"Not scored") -> 100 | G79: =IF(INDEX('DATA TABLE'!$J$10:$AC$66, MATCH($B79,'DATA TABLE'!$B$10:$B$66,0), MATCH($C$10,'DATA TABLE'!$J$9:$AC$9,0))="","",INDEX('DATA TABLE'!$J$10:$AC$66, MATCH($B79,'DATA TABLE'!$B$10:$B$66,0), MATCH($C$10,'DATA TABLE'!$J$9:$AC$9,0))) -> 1 | H79: =IF(INDEX(Data_summary!$E$3:$X$47, MATCH($B79,Data_summary!$C$3:$C$47,0),MATCH($C$10,Data_summary!$E$2:$X$2,0))="","",INDEX(Data_summary!$E$3:$X$47, MATCH($B79,Data_summary!$C$3:$C$47,0),MATCH($C$10,Data_summary!$E$2:$X$2,0))) -> Australia's national curriculum includes nutrition education (Australian Curriculum, Assessment and Reporting Authority, Learning Areas: Health and Physical Education—Food and nutrition). | J79: =IF(INDEX('DATA TABLE'!$G$10:$G$66,MATCH($B79,'DATA TABLE'!$B$10:$B$66,0))="",CONCATENATE("(",INDEX('DATA TABLE'!$E$10:$E$66,MATCH($B79,'DATA TABLE'!$B$10:$B$66,0)),")"), CONCATENATE(INDEX('DATA TABLE'!$G$10:$G$66,MATCH($B79,'DATA TABLE'!$B$10:$B$66,0))," (",INDEX('DATA TABLE'!$E$10:$E$66,MATCH($B79,'DATA TABLE'!$B$10:$B$66,0)),")")) -> Qualitative rating 0-1; 1=best (Economist Enterprise research)
B80: 4 | C80: =INDEX(Lists!$H$2:$H$64,MATCH($B80,Lists!$F$2:$F$64,0)) -> 4) Physical activity | D80: =INDEX(Lists!$H$2:$H$59,MATCH($B80,Lists!$F$2:$F$58,0)) -> 4) Physical activity | E80: =INDEX(Lists!$H$2:$H$59,MATCH($B80,Lists!$F$2:$F$58,0)) -> 4) Physical activity | F80: =INDEX(Lists!$H$2:$H$59,MATCH($B80,Lists!$F$2:$F$58,0)) -> 4) Physical activity | G80: =INDEX(Lists!$H$2:$H$59,MATCH($B80,Lists!$F$2:$F$58,0)) -> 4) Physical activity | H80: =INDEX(Lists!$H$2:$H$59,MATCH($B80,Lists!$F$2:$F$58,0)) -> 4) Physical activity | I80: =INDEX(Lists!$H$2:$H$59,MATCH($B80,Lists!$F$2:$F$58,0)) -> 4) Physical activity | J80: =INDEX(Lists!$H$2:$H$59,MATCH($B80,Lists!$F$2:$F$58,0)) -> 4) Physical activity
B81: 4.1 | C81: =INDEX(Lists!$H$2:$H$64,MATCH($B81,Lists!$F$2:$F$64,0)) -> 4.1) Physical activity among the population | D81: =INDEX(Lists!$H$2:$H$59,MATCH($B81,Lists!$F$2:$F$58,0)) -> 4.1) Physical activity among the population | E81: =INDEX(Lists!$H$2:$H$59,MATCH($B81,Lists!$F$2:$F$58,0)) -> 4.1) Physical activity among the population | F81: =INDEX(Lists!$H$2:$H$59,MATCH($B81,Lists!$F$2:$F$58,0)) -> 4.1) Physical activity among the population | G81: =INDEX(Lists!$H$2:$H$59,MATCH($B81,Lists!$F$2:$F$58,0)) -> 4.1) Physical activity among the population | H81: =INDEX(Lists!$H$2:$H$59,MATCH($B81,Lists!$F$2:$F$58,0)) -> 4.1) Physical activity among the population | I81: =INDEX(Lists!$H$2:$H$59,MATCH($B81,Lists!$F$2:$F$58,0)) -> 4.1) Physical activity among the population | J81: =INDEX(Lists!$H$2:$H$59,MATCH($B81,Lists!$F$2:$F$58,0)) -> 4.1) Physical activity among the population
B82: 4.1.1 | C82: =INDEX(Lists!$H$2:$H$64,MATCH($B82,Lists!$F$2:$F$64,0)) -> 4.1.1) Promotion of physical activity | E82: =IFERROR(ROUND(INDEX('SCORE TABLE'!$H$10:$AA$54, MATCH($B82,'SCORE TABLE'!$B$10:$B$54,0), MATCH($C$10,'SCORE TABLE'!$H$9:$AA$9,0)),1),"Not scored") -> 66.7 | G82: =IF(INDEX('DATA TABLE'!$J$10:$AC$66, MATCH($B82,'DATA TABLE'!$B$10:$B$66,0), MATCH($C$10,'DATA TABLE'!$J$9:$AC$9,0))="","",INDEX('DATA TABLE'!$J$10:$AC$66, MATCH($B82,'DATA TABLE'!$B$10:$B$66,0), MATCH($C$10,'DATA TABLE'!$J$9:$AC$9,0))) -> 2 | H82: =IF(INDEX(Data_summary!$E$3:$X$47, MATCH($B82,Data_summary!$C$3:$C$47,0),MATCH($C$10,Data_summary!$E$2:$X$2,0))="","",INDEX(Data_summary!$E$3:$X$47, MATCH($B82,Data_summary!$C$3:$C$47,0),MATCH($C$10,Data_summary!$E$2:$X$2,0))) -> Australia does not have national-level policies or strategies in place to promote physical activity among the general population. Several states have policies in place to promote physical activity, including promoting active transport, but few have measures to reduce car usage (Government of New South Wales, Active Transport Strategy, 2022; Queensland Government, Activate! Queensland 2019-2029; Northern Territory Government, Northern Territory Sport and Active Recreation Strategic Plan: 2021-25). | J82: =IF(INDEX('DATA TABLE'!$G$10:$G$66,MATCH($B82,'DATA TABLE'!$B$10:$B$66,0))="",CONCATENATE("(",INDEX('DATA TABLE'!$E$10:$E$66,MATCH($B82,'DATA TABLE'!$B$10:$B$66,0)),")"), CONCATENATE(INDEX('DATA TABLE'!$G$10:$G$66,MATCH($B82,'DATA TABLE'!$B$10:$B$66,0))," (",INDEX('DATA TABLE'!$E$10:$E$66,MATCH($B82,'DATA TABLE'!$B$10:$B$66,0)),")")) -> Qualitative rating 0-3; 3=best (Economist Enterprise research)
B83: 4.1.2 | C83: =INDEX(Lists!$H$2:$H$64,MATCH($B83,Lists!$F$2:$F$64,0)) -> 4.1.2) Physical activity policies that address obesity | E83: =IFERROR(ROUND(INDEX('SCORE TABLE'!$H$10:$AA$54, MATCH($B83,'SCORE TABLE'!$B$10:$B$54,0), MATCH($C$10,'SCORE TABLE'!$H$9:$AA$9,0)),1),"Not scored") -> 0 | G83: =IF(INDEX('DATA TABLE'!$J$10:$AC$66, MATCH($B83,'DATA TABLE'!$B$10:$B$66,0), MATCH($C$10,'DATA TABLE'!$J$9:$AC$9,0))="","",INDEX('DATA TABLE'!$J$10:$AC$66, MATCH($B83,'DATA TABLE'!$B$10:$B$66,0), MATCH($C$10,'DATA TABLE'!$J$9:$AC$9,0))) -> 0 | H83: =IF(INDEX(Data_summary!$E$3:$X$47, MATCH($B83,Data_summary!$C$3:$C$47,0),MATCH($C$10,Data_summary!$E$2:$X$2,0))="","",INDEX(Data_summary!$E$3:$X$47, MATCH($B83,Data_summary!$C$3:$C$47,0),MATCH($C$10,Data_summary!$E$2:$X$2,0))) -> There are no national policies in place to promote physical activity in Australia. The state-level strategies to achieve this do not include explicit measures aimed at preventing and managing obesity (Government of New South Wales, Active Transport Strategy, 2022; Queensland Government, Activate! Queensland 2019-2029; Northern Territory Government, Northern Territory Sport and Active Recreation Strategic Plan: 2021-25). | J83: =IF(INDEX('DATA TABLE'!$G$10:$G$66,MATCH($B83,'DATA TABLE'!$B$10:$B$66,0))="",CONCATENATE("(",INDEX('DATA TABLE'!$E$10:$E$66,MATCH($B83,'DATA TABLE'!$B$10:$B$66,0)),")"), CONCATENATE(INDEX('DATA TABLE'!$G$10:$G$66,MATCH($B83,'DATA TABLE'!$B$10:$B$66,0))," (",INDEX('DATA TABLE'!$E$10:$E$66,MATCH($B83,'DATA TABLE'!$B$10:$B$66,0)),")")) -> Qualitative rating 0-3; 3=best (Economist Enterprise research)
B84: 4.2 | C84: =INDEX(Lists!$H$2:$H$64,MATCH($B84,Lists!$F$2:$F$64,0)) -> 4.2) Physical activity among children | D84: =INDEX(Lists!$H$2:$H$59,MATCH($B84,Lists!$F$2:$F$58,0)) -> 4.2) Physical activity among children | E84: =INDEX(Lists!$H$2:$H$59,MATCH($B84,Lists!$F$2:$F$58,0)) -> 4.2) Physical activity among children | F84: =INDEX(Lists!$H$2:$H$59,MATCH($B84,Lists!$F$2:$F$58,0)) -> 4.2) Physical activity among children | G84: =INDEX(Lists!$H$2:$H$59,MATCH($B84,Lists!$F$2:$F$58,0)) -> 4.2) Physical activity among children | H84: =INDEX(Lists!$H$2:$H$59,MATCH($B84,Lists!$F$2:$F$58,0)) -> 4.2) Physical activity among children | I84: =INDEX(Lists!$H$2:$H$59,MATCH($B84,Lists!$F$2:$F$58,0)) -> 4.2) Physical activity among children | J84: =INDEX(Lists!$H$2:$H$59,MATCH($B84,Lists!$F$2:$F$58,0)) -> 4.2) Physical activity among children
B85: 4.2.1 | C85: =INDEX(Lists!$H$2:$H$64,MATCH($B85,Lists!$F$2:$F$64,0)) -> 4.2.1) Physical activity mandates | E85: =IFERROR(ROUND(INDEX('SCORE TABLE'!$H$10:$AA$54, MATCH($B85,'SCORE TABLE'!$B$10:$B$54,0), MATCH($C$10,'SCORE TABLE'!$H$9:$AA$9,0)),1),"Not scored") -> 50 | G85: =IF(INDEX('DATA TABLE'!$J$10:$AC$66, MATCH($B85,'DATA TABLE'!$B$10:$B$66,0), MATCH($C$10,'DATA TABLE'!$J$9:$AC$9,0))="","",INDEX('DATA TABLE'!$J$10:$AC$66, MATCH($B85,'DATA TABLE'!$B$10:$B$66,0), MATCH($C$10,'DATA TABLE'!$J$9:$AC$9,0))) -> 1 | H85: =IF(INDEX(Data_summary!$E$3:$X$47, MATCH($B85,Data_summary!$C$3:$C$47,0),MATCH($C$10,Data_summary!$E$2:$X$2,0))="","",INDEX(Data_summary!$E$3:$X$47, MATCH($B85,Data_summary!$C$3:$C$47,0),MATCH($C$10,Data_summary!$E$2:$X$2,0))) -> Australia mandates physical activity in schools, but does not specify a daily time requirement (Australian Curriculum, Assessment and Reporting Authority, Learning Areas: Health and Physical Education). | J85: =IF(INDEX('DATA TABLE'!$G$10:$G$66,MATCH($B85,'DATA TABLE'!$B$10:$B$66,0))="",CONCATENATE("(",INDEX('DATA TABLE'!$E$10:$E$66,MATCH($B85,'DATA TABLE'!$B$10:$B$66,0)),")"), CONCATENATE(INDEX('DATA TABLE'!$G$10:$G$66,MATCH($B85,'DATA TABLE'!$B$10:$B$66,0))," (",INDEX('DATA TABLE'!$E$10:$E$66,MATCH($B85,'DATA TABLE'!$B$10:$B$66,0)),")")) -> Qualitative rating 0-2; 2=best (Economist Enterprise research)
C86: Background indicators
B87: BG01 | C87: =INDEX(Lists!$H$2:$H$64,MATCH($B87,Lists!$F$2:$F$64,0)) -> BG01) Adult obesity prevalence | E87: =IFERROR(INDEX('SCORE TABLE'!$H$10:$AA$54, MATCH($B87,'SCORE TABLE'!$B$10:$B$54,0), MATCH($C$10,'SCORE TABLE'!$H$9:$AA$9,0)),"Not scored") -> Not scored | G87: =IF(INDEX('DATA TABLE'!$J$10:$AC$66, MATCH($B87,'DATA TABLE'!$B$10:$B$66,0), MATCH($C$10,'DATA TABLE'!$J$9:$AC$9,0))="","",INDEX('DATA TABLE'!$J$10:$AC$66, MATCH($B87,'DATA TABLE'!$B$10:$B$66,0), MATCH($C$10,'DATA TABLE'!$J$9:$AC$9,0))) -> 31.7 | J87: =IF(INDEX('DATA TABLE'!$G$10:$G$66,MATCH($B87,'DATA TABLE'!$B$10:$B$66,0))="",CONCATENATE("(",INDEX('DATA TABLE'!$E$10:$E$66,MATCH($B87,'DATA TABLE'!$B$10:$B$66,0)),")"), CONCATENATE(INDEX('DATA TABLE'!$G$10:$G$66,MATCH($B87,'DATA TABLE'!$B$10:$B$66,0))," (",INDEX('DATA TABLE'!$E$10:$E$66,MATCH($B87,'DATA TABLE'!$B$10:$B$66,0)),")")) -> % of adults (National government sources)
B88: BG02a | C88: =INDEX(Lists!$H$2:$H$64,MATCH($B88,Lists!$F$2:$F$64,0)) -> BG02a) Obesity prevalence by gender: Men | E88: =IFERROR(INDEX('SCORE TABLE'!$H$10:$AA$54, MATCH($B88,'SCORE TABLE'!$B$10:$B$54,0), MATCH($C$10,'SCORE TABLE'!$H$9:$AA$9,0)),"Not scored") -> Not scored | G88: =IF(INDEX('DATA TABLE'!$J$10:$AC$66, MATCH($B88,'DATA TABLE'!$B$10:$B$66,0), MATCH($C$10,'DATA TABLE'!$J$9:$AC$9,0))="","",INDEX('DATA TABLE'!$J$10:$AC$66, MATCH($B88,'DATA TABLE'!$B$10:$B$66,0), MATCH($C$10,'DATA TABLE'!$J$9:$AC$9,0))) -> 32.5 | J88: =IF(INDEX('DATA TABLE'!$G$10:$G$66,MATCH($B88,'DATA TABLE'!$B$10:$B$66,0))="",CONCATENATE("(",INDEX('DATA TABLE'!$E$10:$E$66,MATCH($B88,'DATA TABLE'!$B$10:$B$66,0)),")"), CONCATENATE(INDEX('DATA TABLE'!$G$10:$G$66,MATCH($B88,'DATA TABLE'!$B$10:$B$66,0))," (",INDEX('DATA TABLE'!$E$10:$E$66,MATCH($B88,'DATA TABLE'!$B$10:$B$66,0)),")")) -> % of men (World Obesity Federation)
B89: BG02b | C89: =INDEX(Lists!$H$2:$H$64,MATCH($B89,Lists!$F$2:$F$64,0)) -> BG02b) Obesity prevalence by gender: Women | E89: =IFERROR(INDEX('SCORE TABLE'!$H$10:$AA$54, MATCH($B89,'SCORE TABLE'!$B$10:$B$54,0), MATCH($C$10,'SCORE TABLE'!$H$9:$AA$9,0)),"Not scored") -> Not scored | G89: =IF(INDEX('DATA TABLE'!$J$10:$AC$66, MATCH($B89,'DATA TABLE'!$B$10:$B$66,0), MATCH($C$10,'DATA TABLE'!$J$9:$AC$9,0))="","",INDEX('DATA TABLE'!$J$10:$AC$66, MATCH($B89,'DATA TABLE'!$B$10:$B$66,0), MATCH($C$10,'DATA TABLE'!$J$9:$AC$9,0))) -> 30.9 | J89: =IF(INDEX('DATA TABLE'!$G$10:$G$66,MATCH($B89,'DATA TABLE'!$B$10:$B$66,0))="",CONCATENATE("(",INDEX('DATA TABLE'!$E$10:$E$66,MATCH($B89,'DATA TABLE'!$B$10:$B$66,0)),")"), CONCATENATE(INDEX('DATA TABLE'!$G$10:$G$66,MATCH($B89,'DATA TABLE'!$B$10:$B$66,0))," (",INDEX('DATA TABLE'!$E$10:$E$66,MATCH($B89,'DATA TABLE'!$B$10:$B$66,0)),")")) -> % of women (World Obesity Federation)
B90: BG03 | C90: =INDEX(Lists!$H$2:$H$64,MATCH($B90,Lists!$F$2:$F$64,0)) -> BG03) Childhood obesity prevalence | E90: =IFERROR(INDEX('SCORE TABLE'!$H$10:$AA$54, MATCH($B90,'SCORE TABLE'!$B$10:$B$54,0), MATCH($C$10,'SCORE TABLE'!$H$9:$AA$9,0)),"Not scored") -> Not scored | G90: =IF(INDEX('DATA TABLE'!$J$10:$AC$66, MATCH($B90,'DATA TABLE'!$B$10:$B$66,0), MATCH($C$10,'DATA TABLE'!$J$9:$AC$9,0))="","",INDEX('DATA TABLE'!$J$10:$AC$66, MATCH($B90,'DATA TABLE'!$B$10:$B$66,0), MATCH($C$10,'DATA TABLE'!$J$9:$AC$9,0))) -> 8.3 | J90: =IF(INDEX('DATA TABLE'!$G$10:$G$66,MATCH($B90,'DATA TABLE'!$B$10:$B$66,0))="",CONCATENATE("(",INDEX('DATA TABLE'!$E$10:$E$66,MATCH($B90,'DATA TABLE'!$B$10:$B$66,0)),")"), CONCATENATE(INDEX('DATA TABLE'!$G$10:$G$66,MATCH($B90,'DATA TABLE'!$B$10:$B$66,0))," (",INDEX('DATA TABLE'!$E$10:$E$66,MATCH($B90,'DATA TABLE'!$B$10:$B$66,0)),")")) -> % of children (National government sources)
B91: BG04 | C91: =INDEX(Lists!$H$2:$H$64,MATCH($B91,Lists!$F$2:$F$64,0)) -> BG04) Life expectancy | E91: =IFERROR(INDEX('SCORE TABLE'!$H$10:$AA$54, MATCH($B91,'SCORE TABLE'!$B$10:$B$54,0), MATCH($C$10,'SCORE TABLE'!$H$9:$AA$9,0)),"Not scored") -> Not scored | G91: =IF(INDEX('DATA TABLE'!$J$10:$AC$66, MATCH($B91,'DATA TABLE'!$B$10:$B$66,0), MATCH($C$10,'DATA TABLE'!$J$9:$AC$9,0))="","",INDEX('DATA TABLE'!$J$10:$AC$66, MATCH($B91,'DATA TABLE'!$B$10:$B$66,0), MATCH($C$10,'DATA TABLE'!$J$9:$AC$9,0))) -> 83 | J91: =IF(INDEX('DATA TABLE'!$G$10:$G$66,MATCH($B91,'DATA TABLE'!$B$10:$B$66,0))="",CONCATENATE("(",INDEX('DATA TABLE'!$E$10:$E$66,MATCH($B91,'DATA TABLE'!$B$10:$B$66,0)),")"), CONCATENATE(INDEX('DATA TABLE'!$G$10:$G$66,MATCH($B91,'DATA TABLE'!$B$10:$B$66,0))," (",INDEX('DATA TABLE'!$E$10:$E$66,MATCH($B91,'DATA TABLE'!$B$10:$B$66,0)),")")) -> Years (World Bank)
B92: BG05 | C92: =INDEX(Lists!$H$2:$H$64,MATCH($B92,Lists!$F$2:$F$64,0)) -> BG05) GDP per capita | E92: =IFERROR(INDEX('SCORE TABLE'!$H$10:$AA$54, MATCH($B92,'SCORE TABLE'!$B$10:$B$54,0), MATCH($C$10,'SCORE TABLE'!$H$9:$AA$9,0)),"Not scored") -> Not scored | G92: =IF(INDEX('DATA TABLE'!$J$10:$AC$66, MATCH($B92,'DATA TABLE'!$B$10:$B$66,0), MATCH($C$10,'DATA TABLE'!$J$9:$AC$9,0))="","",INDEX('DATA TABLE'!$J$10:$AC$66, MATCH($B92,'DATA TABLE'!$B$10:$B$66,0), MATCH($C$10,'DATA TABLE'!$J$9:$AC$9,0))) -> 64547 | J92: =IF(INDEX('DATA TABLE'!$G$10:$G$66,MATCH($B92,'DATA TABLE'!$B$10:$B$66,0))="",CONCATENATE("(",INDEX('DATA TABLE'!$E$10:$E$66,MATCH($B92,'DATA TABLE'!$B$10:$B$66,0)),")"), CONCATENATE(INDEX('DATA TABLE'!$G$10:$G$66,MATCH($B92,'DATA TABLE'!$B$10:$B$66,0))," (",INDEX('DATA TABLE'!$E$10:$E$66,MATCH($B92,'DATA TABLE'!$B$10:$B$66,0)),")")) -> USD (International Monetary Fund)
B93: BG06 | C93: =INDEX(Lists!$H$2:$H$64,MATCH($B93,Lists!$F$2:$F$64,0)) -> BG06) Gini Index of Income Inequality | E93: =IFERROR(INDEX('SCORE TABLE'!$H$10:$AA$54, MATCH($B93,'SCORE TABLE'!$B$10:$B$54,0), MATCH($C$10,'SCORE TABLE'!$H$9:$AA$9,0)),"Not scored") -> Not scored | G93: =IF(INDEX('DATA TABLE'!$J$10:$AC$66, MATCH($B93,'DATA TABLE'!$B$10:$B$66,0), MATCH($C$10,'DATA TABLE'!$J$9:$AC$9,0))="","",INDEX('DATA TABLE'!$J$10:$AC$66, MATCH($B93,'DATA TABLE'!$B$10:$B$66,0), MATCH($C$10,'DATA TABLE'!$J$9:$AC$9,0))) -> 34.3 | J93: =IF(INDEX('DATA TABLE'!$G$10:$G$66,MATCH($B93,'DATA TABLE'!$B$10:$B$66,0))="",CONCATENATE("(",INDEX('DATA TABLE'!$E$10:$E$66,MATCH($B93,'DATA TABLE'!$B$10:$B$66,0)),")"), CONCATENATE(INDEX('DATA TABLE'!$G$10:$G$66,MATCH($B93,'DATA TABLE'!$B$10:$B$66,0))," (",INDEX('DATA TABLE'!$E$10:$E$66,MATCH($B93,'DATA TABLE'!$B$10:$B$66,0)),")")) -> 0-100 (World Bank)
B94: BG07 | C94: =INDEX(Lists!$H$2:$H$64,MATCH($B94,Lists!$F$2:$F$64,0)) -> BG07) Economic impact of overweight and obesity | E94: =IFERROR(INDEX('SCORE TABLE'!$H$10:$AA$54, MATCH($B94,'SCORE TABLE'!$B$10:$B$54,0), MATCH($C$10,'SCORE TABLE'!$H$9:$AA$9,0)),"Not scored") -> Not scored | G94: =IF(INDEX('DATA TABLE'!$J$10:$AC$66, MATCH($B94,'DATA TABLE'!$B$10:$B$66,0), MATCH($C$10,'DATA TABLE'!$J$9:$AC$9,0))="","",INDEX('DATA TABLE'!$J$10:$AC$66, MATCH($B94,'DATA TABLE'!$B$10:$B$66,0), MATCH($C$10,'DATA TABLE'!$J$9:$AC$9,0))) -> 1.89 | J94: =IF(INDEX('DATA TABLE'!$G$10:$G$66,MATCH($B94,'DATA TABLE'!$B$10:$B$66,0))="",CONCATENATE("(",INDEX('DATA TABLE'!$E$10:$E$66,MATCH($B94,'DATA TABLE'!$B$10:$B$66,0)),")"), CONCATENATE(INDEX('DATA TABLE'!$G$10:$G$66,MATCH($B94,'DATA TABLE'!$B$10:$B$66,0))," (",INDEX('DATA TABLE'!$E$10:$E$66,MATCH($B94,'DATA TABLE'!$B$10:$B$66,0)),")")) -> % of GDP (World Obesity Federation)
B95: BG08 | C95: =INDEX(Lists!$H$2:$H$64,MATCH($B95,Lists!$F$2:$F$64,0)) -> BG08) Healthcare spending per capita | E95: =IFERROR(INDEX('SCORE TABLE'!$H$10:$AA$54, MATCH($B95,'SCORE TABLE'!$B$10:$B$54,0), MATCH($C$10,'SCORE TABLE'!$H$9:$AA$9,0)),"Not scored") -> Not scored | G95: =IF(INDEX('DATA TABLE'!$J$10:$AC$66, MATCH($B95,'DATA TABLE'!$B$10:$B$66,0), MATCH($C$10,'DATA TABLE'!$J$9:$AC$9,0))="","",INDEX('DATA TABLE'!$J$10:$AC$66, MATCH($B95,'DATA TABLE'!$B$10:$B$66,0), MATCH($C$10,'DATA TABLE'!$J$9:$AC$9,0))) -> 6980 | J95: =IF(INDEX('DATA TABLE'!$G$10:$G$66,MATCH($B95,'DATA TABLE'!$B$10:$B$66,0))="",CONCATENATE("(",INDEX('DATA TABLE'!$E$10:$E$66,MATCH($B95,'DATA TABLE'!$B$10:$B$66,0)),")"), CONCATENATE(INDEX('DATA TABLE'!$G$10:$G$66,MATCH($B95,'DATA TABLE'!$B$10:$B$66,0))," (",INDEX('DATA TABLE'!$E$10:$E$66,MATCH($B95,'DATA TABLE'!$B$10:$B$66,0)),")")) -> USD (World Health Organisation)
B96: BG09 | C96: =INDEX(Lists!$H$2:$H$64,MATCH($B96,Lists!$F$2:$F$64,0)) -> BG09) Access to a physician | E96: =IFERROR(INDEX('SCORE TABLE'!$H$10:$AA$54, MATCH($B96,'SCORE TABLE'!$B$10:$B$54,0), MATCH($C$10,'SCORE TABLE'!$H$9:$AA$9,0)),"Not scored") -> Not scored | G96: =IF(INDEX('DATA TABLE'!$J$10:$AC$66, MATCH($B96,'DATA TABLE'!$B$10:$B$66,0), MATCH($C$10,'DATA TABLE'!$J$9:$AC$9,0))="","",INDEX('DATA TABLE'!$J$10:$AC$66, MATCH($B96,'DATA TABLE'!$B$10:$B$66,0), MATCH($C$10,'DATA TABLE'!$J$9:$AC$9,0))) -> 398.1 | J96: =IF(INDEX('DATA TABLE'!$G$10:$G$66,MATCH($B96,'DATA TABLE'!$B$10:$B$66,0))="",CONCATENATE("(",INDEX('DATA TABLE'!$E$10:$E$66,MATCH($B96,'DATA TABLE'!$B$10:$B$66,0)),")"), CONCATENATE(INDEX('DATA TABLE'!$G$10:$G$66,MATCH($B96,'DATA TABLE'!$B$10:$B$66,0))," (",INDEX('DATA TABLE'!$E$10:$E$66,MATCH($B96,'DATA TABLE'!$B$10:$B$66,0)),")")) -> Number of physicians per 100,000 people (World Bank)
B97: BG10 | C97: =INDEX(Lists!$H$2:$H$64,MATCH($B97,Lists!$F$2:$F$64,0)) -> BG10) Physical activity | E97: =IFERROR(INDEX('SCORE TABLE'!$H$10:$AA$54, MATCH($B97,'SCORE TABLE'!$B$10:$B$54,0), MATCH($C$10,'SCORE TABLE'!$H$9:$AA$9,0)),"Not scored") -> Not scored | G97: =IF(INDEX('DATA TABLE'!$J$10:$AC$66, MATCH($B97,'DATA TABLE'!$B$10:$B$66,0), MATCH($C$10,'DATA TABLE'!$J$9:$AC$9,0))="","",INDEX('DATA TABLE'!$J$10:$AC$66, MATCH($B97,'DATA TABLE'!$B$10:$B$66,0), MATCH($C$10,'DATA TABLE'!$J$9:$AC$9,0))) -> 74.5 | J97: =IF(INDEX('DATA TABLE'!$G$10:$G$66,MATCH($B97,'DATA TABLE'!$B$10:$B$66,0))="",CONCATENATE("(",INDEX('DATA TABLE'!$E$10:$E$66,MATCH($B97,'DATA TABLE'!$B$10:$B$66,0)),")"), CONCATENATE(INDEX('DATA TABLE'!$G$10:$G$66,MATCH($B97,'DATA TABLE'!$B$10:$B$66,0))," (",INDEX('DATA TABLE'!$E$10:$E$66,MATCH($B97,'DATA TABLE'!$B$10:$B$66,0)),")")) -> % of adults (World Health Organisation)

Sheet DATA TABLE
C1: =HOME!B7 -> GLOBAL OBESITY RESPONSE INDEX
B6: Data table
B9: No. | C9: Indicator name | D9: Question | E9: Source | F9: Scoring system | G9: Unit | H9: Year | I9: Notes | J9: Australia | K9: Brazil | L9: Canada | M9: China | N9: Finland | O9: France | P9: Germany | Q9: India | R9: Italy | S9: Japan | T9: Mexico | U9: Nigeria | V9: Rwanda | W9: Saudi Arabia | X9: Serbia | Y9: South Africa | Z9: South Korea | AA9: Spain | AB9: United Arab Emirates | AC9: United Kingdom
A10: 0 | B10: 0 | C10: OVERALL | D10: Composite measure, scored as the weighted average of the following pillar scores: 1. Policy and governance 2. Obesity management 3. Food quality and access 4. Physical activity | E10: Economist Enterprise calculations
A11: 1000 | B11: 1 | C11: Policy and governance | D11: Composite measure, scored as the weighted average of the following sub-pillar scores: 1.1. Obesity-related policy | E11: Economist Enterprise calculations
A12: 1001 | B12: 1.1 | C12: Obesity-related policy | D12: Composite measure, scored as the weighted average of the following indicator scores: 1.1.1. Health policy/strategy/plan that includes obesity 1.1.2. Definition of obesity 1.1.3. Obesity-related policy/strategy/plan 1.1.4. Obesity-related funding 1.1.5. Weight-related discrimination | E12: Economist Enterprise calculations
A13: 1002 | B13: 1.1.1 | C13: Health policy/strategy/plan that includes obesity | D13: Does the national health policy/strategy/plan specify obesity as a priority area? | E13: Economist Enterprise research | F13: 0 = No, or there is either insufficient publicly available evidence of a national health policy/strategy/plan in place OR one that is currently valid 1 = Yes | G13: Qualitative rating 0-1; 1=best | J13: 1 | K13: 1 | L13: 0 | M13: 1 | N13: 1 | O13: 1 | P13: 0 | Q13: 0 | R13: 1 | S13: 1 | T13: 0 | U13: 0 | V13: 0 | W13: 0 | X13: 1 | Y13: 0 | Z13: 1 | AA13: 1 | AB13: 0 | AC13: 1
A14: 1003 | B14: 1.1.2 | C14: Definition of obesity | D14: Does the government define obesity as a chronic disease and connect obesity to its related chronic diseases (e.g. cardiovascular disease, diabetes)? | E14: Economist Enterprise research | F14: 0 = No, there is insufficient publicly available evidence of this 1 = Yes, it defines obesity as a chronic disease OR makes reference to other chronic diseases related to obesity (e.g. diabetes, cardiovascular disease, obstructive sleep apnoea) 2 = Yes, it defines obesity as a chronic disease AND makes reference to other chronic diseases related to obesity (e.g. diabetes, cardiovascular disease, obstructive sleep apnoea) | G14: Qualitative rating 0-2; 2=best | J14: 2 | K14: 2 | L14: 2 | M14: 2 | N14: 1 | O14: 2 | P14: 1 | Q14: 2 | R14: 2 | S14: 1 | T14: 2 | U14: 1 | V14: 1 | W14: 2 | X14: 2 | Y14: 1 | Z14: 2 | AA14: 2 | AB14: 2 | AC14: 1
A15: 1004 | B15: 1.1.3 | C15: Obesity-related policy/strategy/plan | D15: Composite measure: comprehensiveness of the obesity-related policy/strategy/plan | E15: Economist Enterprise calculations
A16: 1005 | B16: 1.1.3a | C16: Existence of an obesity-related policy/strategy/plan | D16: Does the country have an obesity-related policy/strategy/plan? | E16: Economist Enterprise research | F16: 0 = No, there is insufficient publicly available evidence of this 1 = Yes, but the document is not periodically updated or currently valid 2 = Yes, the document is periodically updated or currently valid | G16: Qualitative rating 0-2; 2=best | J16: 2 | K16: 2 | L16: 0 | M16: 2 | N16: 1 | O16: 1 | P16: 2 | Q16: 2 | R16: 2 | S16: 0 | T16: 1 | U16: 2 | V16: 2 | W16: 2 | X16: 2 | Y16: 2 | Z16: 2 | AA16: 1 | AB16: 0 | AC16: 2
A17: 1006 | B17: 1.1.3b | C17: Engagement with stakeholders during development | D17: Were stakeholders from various sectors involved in the development of the national obesity-related policy/strategy/plan? | E17: Economist Enterprise research | F17: 0 = No, only health-focused stakeholders were involved in developing the policy OR there is either insufficient publicly available evidence of a national obesity-related policy/strategy/plan in place OR one that is periodically updated or currently valid 1 = Yes, stakeholders from at least two sectors (e.g. health, agriculture, education, finance, urban planning) were involved in developing the policy 2 = Yes, stakeholders from three or more sectors (e.g. health, agriculture, education, finance, urban planning) OR people living with obesity were involved in developing the policy 3 = Yes, stakeholders from three or more sectors (e.g. health, agriculture, education, finance, urban planning) AND people living with obesity were involved in developing the policy | G17: Qualitative rating 0-3; 3=best | J17: 2 | K17: 3 | L17: 0 | M17: 2 | N17: 0 | O17: 0 | P17: 2 | Q17: 0 | R17: 2 | S17: 0 | T17: 0 | U17: 2 | V17: 2 | W17: 2 | X17: 0 | Y17: 2 | Z17: 0 | AA17: 0 | AB17: 0 | AC17: 2
A18: 1007 | B18: 1.1.3c | C18: Measures for obesity prevention | D18: Does the national obesity-related policy/strategy/plan contain measures for obesity prevention across the population? | E18: Economist Enterprise research | F18: 0 = No, or there is either insufficient publicly available evidence of a national obesity-related policy/strategy/plan in place OR one that is periodically updated or currently valid 1 = Yes, but the measures do not include clear actions or specific targets 2 = Yes, there are measures with clear actions or specific targets, but they lack methods of evaluation 3 = Yes, there are measures with clear actions or specific targets AND methods of evaluation | G18: Qualitative rating 0-3; 3=best | J18: 3 | K18: 2 | L18: 0 | M18: 2 | N18: 0 | O18: 0 | P18: 2 | Q18: 0 | R18: 1 | S18: 0 | T18: 0 | U18: 3 | V18: 3 | W18: 2 | X18: 3 | Y18: 3 | Z18: 3 | AA18: 0 | AB18: 0 | AC18: 2
A19: 1008 | B19: 1.1.3d | C19: Measures for obesity management | D19: Does the national obesity-related policy/strategy/plan contain measures for obesity management across the population? | E19: Economist Enterprise research | F19: 0 = No, or there is either insufficient publicly available evidence of a national obesity-related policy/strategy/plan in place OR one that is periodically updated or currently valid 1 = Yes, but the measures do not include clear actions or specific targets 2 = Yes, there are measures with clear actions or specific targets, but they lack methods of evaluation 3 = Yes, there are measures with clear actions or specific targets AND methods of evaluation | G19: Qualitative rating 0-3; 3=best | J19: 3 | K19: 0 | L19: 0 | M19: 2 | N19: 0 | O19: 0 | P19: 0 | Q19: 0 | R19: 1 | S19: 0 | T19: 0 | U19: 1 | V19: 0 | W19: 0 | X19: 3 | Y19: 3 | Z19: 3 | AA19: 0 | AB19: 0 | AC19: 2
A20: 1009 | B20: 1.1.3e | C20: Targets for obesity prevalence reduction | D20: Does the national obesity-related policy/strategy/plan contain targets for obesity prevalence reduction across the population? | E20: Economist Enterprise research | F20: 0 = No, or there is either insufficient publicly available evidence of a national obesity-related policy/strategy/plan in place OR one that is periodically updated or currently valid 1 = Yes, short-term targets (0-5 years) OR long-term targets (6 years+) 2 = Yes, short-term targets (0-5 years) AND long-term targets (6 years+) | G20: Qualitative rating 0-2; 2=best | J20: 1 | K20: 0 | L20: 0 | M20: 0 | N20: 0 | O20: 0 | P20: 0 | Q20: 0 | R20: 0 | S20: 0 | T20: 0 | U20: 2 | V20: 1 | W20: 1 | X20: 1 | Y20: 0 | Z20: 1 | AA20: 0 | AB20: 0 | AC20: 0
A21: 1010 | B21: 1.1.3f | C21: Focus on vulnerable groups | D21: Does the national obesity-related policy/strategy/plan include a particular focus on the prevention and management of obesity in groups at increased risk of developing obesity? | E21: Economist Enterprise research | F21: 0 = No, or there is either insufficient publicly available evidence of a national obesity-related policy/strategy/plan in place OR one that is periodically updated or currently valid 1 = Yes, but it does not outline specific actions, targeted interventions or comprehensive strategies to address the unique needs of vulnerable and minority groups (e.g. children; low-income populations; ethnic or racial minorities) 2 = Yes, it outlines well-defined and actionable measures specifically addressing the needs of vulnerable and minority groups (e.g. children; low-income populations; ethnic or racial minorities) | G21: Qualitative rating 0-2; 2=best | J21: 2 | K21: 1 | L21: 0 | M21: 2 | N21: 0 | O21: 0 | P21: 2 | Q21: 1 | R21: 2 | S21: 0 | T21: 0 | U21: 0 | V21: 1 | W21: 2 | X21: 2 | Y21: 0 | Z21: 2 | AA21: 0 | AB21: 0 | AC21: 2
A22: 1011 | B22: 1.1.3g | C22: Obesity-related stigma and discrimination | D22: Does the national obesity-related policy/strategy/plan make reference to obesity-related stigma/discrimination and contain measures to combat it? | E22: Economist Enterprise research | F22: 0 = No, or there is either insufficient publicly available evidence of a national obesity-related policy/strategy/plan in place OR one that is periodically updated or currently valid 1 = Yes, it mentions obesity-related stigma/discrimination BUT does not contain any measures to combat it 2 = Yes, it mentions obesity-related stigma/discrimination AND contains measures to combat it | G22: Qualitative rating 0-2; 2=best | J22: 2 | K22: 2 | L22: 0 | M22: 0 | N22: 0 | O22: 0 | P22: 0 | Q22: 0 | R22: 1 | S22: 0 | T22: 0 | U22: 0 | V22: 0 | W22: 0 | X22: 1 | Y22: 1 | Z22: 0 | AA22: 0 | AB22: 0 | AC22: 0
A23: 1012 | B23: 1.1.4 | C23: Obesity-related funding | D23: Is there a budget allocated to implement the national obesity-related policy/strategy/plan? | E23: Economist Enterprise research | F23: 0 = No, or there is either insufficient publicly available evidence of a national obesity-related policy/strategy/plan in place OR one that is periodically updated or currently valid 1 = Yes | G23: Qualitative rating 0-1; 1=best | J23: 0 | K23: 0 | L23: 0 | M23: 0 | N23: 0 | O23: 0 | P23: 1 | Q23: 0 | R23: 0 | S23: 0 | T23: 0 | U23: 0 | V23: 0 | W23: 0 | X23: 1 | Y23: 1 | Z23: 0 | AA23: 0 | AB23: 0 | AC23: 0
A24: 1013 | B24: 1.1.5 | C24: Weight-related discrimination | D24: Does the country have a law that prohibits weight-based discrimination and classifies weight as a protected characteristic? | E24: Economist Enterprise research | F24: 0 = No, there is insufficient publicly available evidence of this 1 = Yes | G24: Qualitative rating 0-1; 1=best | J24: 0 | K24: 0 | L24: 0 | M24: 0 | N24: 1 | O24: 1 | P24: 1 | Q24: 0 | R24: 0 | S24: 0 | T24: 1 | U24: 0 | V24: 0 | W24: 0 | X24: 1 | Y24: 0 | Z24: 0 | AA24: 1 | AB24: 0 | AC24: 0
A25: 1014 | B25: 2 | C25: Obesity management | D25: Composite measure, scored as the weighted average of the following sub-pillar scores: 2.1. Obesity management guidelines 2.2. Obesity diagnosis and referral pathways 2.3. Availability and affordability of obesity-related care | E25: Economist Enterprise calculations
A26: 1015 | B26: 2.1 | C26: Obesity management guidelines | D26: Composite measure, scored as the weighted average of the following indicator scores: 2.1.1. Existence of obesity management guidelines 2.1.2. Evidence-based obesity management guidelines 2.1.3. Clinical and cost-effectiveness of obesity management interventions | E26: Economist Enterprise calculations
A27: 1016 | B27: 2.1.1 | C27: Existence of obesity management guidelines | D27: Does the country have national guidelines on obesity management? | E27: Economist Enterprise research | F27: 0 = No, there is insufficient publicly available evidence of this 1 = Yes, but they have not been published/updated in the last 10 years 2 = Yes, they have been published/updated in the last 10 years | G27: Qualitative rating 0-2; 2=best | J27: 2 | K27: 2 | L27: 2 | M27: 2 | N27: 2 | O27: 2 | P27: 2 | Q27: 0 | R27: 2 | S27: 2 | T27: 2 | U27: 0 | V27: 2 | W27: 2 | X27: 2 | Y27: 0 | Z27: 2 | AA27: 1 | AB27: 2 | AC27: 2
A28: 1017 | B28: 2.1.2 | C28: Evidence-based obesity management guidelines | D28: Were the national guidelines on obesity management developed using an evidence-based methodology, comprising a structured review and synthesis of best available evidence, grading of the evidence, and the input of independent experts, in accordance with international standards (e.g. the WHO’s standard guideline development methods)? | E28: Economist Enterprise research | F28: 0 = No, or there is either insufficient publicly available evidence of obesity management guidelines in place OR they have not been published/updated in the last 10 years 1 = Yes, the guidelines are based on a structured review of evidence OR expert input 2 = Yes, the guidelines are based on a structured review of evidence AND expert input | G28: Qualitative rating 0-2; 2=best | J28: 2 | K28: 2 | L28: 2 | M28: 2 | N28: 2 | O28: 2 | P28: 2 | Q28: 0 | R28: 2 | S28: 2 | T28: 2 | U28: 0 | V28: 2 | W28: 2 | X28: 2 | Y28: 0 | Z28: 2 | AA28: 0 | AB28: 2 | AC28: 2
A29: 1018 | B29: 2.1.3 | C29: Clinical and cost-effectiveness of obesity management interventions | D29: Are the recommendations in the national guidelines based on an evidence-based assessment of the clinical and cost-effectiveness of interventions? | E29: Economist Enterprise research | F29: 0 = No, or there is either insufficient publicly available evidence of obesity management guidelines in place OR they have not been published/updated in the last 10 years 1 = Yes, the guidelines include an assessment of the clinical effectiveness OR cost-effectiveness of interventions 2 = Yes, the guidelines include an assessment of the clinical effectiveness AND cost-effectiveness of interventions | G29: Qualitative rating 0-2; 2=best | J29: 2 | K29: 2 | L29: 2 | M29: 1 | N29: 2 | O29: 1 | P29: 1 | Q29: 0 | R29: 1 | S29: 1 | T29: 1 | U29: 0 | V29: 0 | W29: 1 | X29: 1 | Y29: 0 | Z29: 1 | AA29: 0 | AB29: 2 | AC29: 2
A30: 1019 | B30: 2.2 | C30: Obesity diagnosis and referral pathways | D30: Composite measure, scored as the weighted average of the following indicator scores: 2.2.1. Obesity management pathway 2.2.2. Obesity pathway in chronic disease management | E30: Economist Enterprise calculations
A31: 1020 | B31: 2.2.1 | C31: Obesity management pathway | D31: Do national obesity management guidelines include a clear clinical pathway? | E31: Economist Enterprise research | F31: 0 = No, or there is either insufficient publicly available evidence of obesity management guidelines in place OR they have not been published/updated in the last 10 years 1 = Yes | G31: Qualitative rating 0-1; 1=best | J31: 0 | K31: 1 | L31: 1 | M31: 1 | N31: 1 | O31: 1 | P31: 1 | Q31: 0 | R31: 1 | S31: 1 | T31: 1 | U31: 0 | V31: 1 | W31: 1 | X31: 1 | Y31: 0 | Z31: 1 | AA31: 0 | AB31: 1 | AC31: 1
A32: 1021 | B32: 2.2.2 | C32: Obesity pathway in chronic disease management | D32: Is obesity diagnosis and a referral pathway integrated into the clinical pathways for associated chronic diseases (e.g. diabetes, cardiovascular disease, obstructive sleep apnoea)? | E32: Economist Enterprise research | F32: 0 = No, there is insufficient publicly available evidence of this 1 = Yes, for one associated chronic disease 2 = Yes, for more than one associated chronic disease | G32: Qualitative rating 0-2; 2=best | J32: 2 | K32: 2 | L32: 0 | M32: 2 | N32: 2 | O32: 2 | P32: 2 | Q32: 2 | R32: 2 | S32: 2 | T32: 2 | U32: 0 | V32: 1 | W32: 2 | X32: 2 | Y32: 1 | Z32: 2 | AA32: 0 | AB32: 2 | AC32: 2
A33: 1022 | B33: 2.3 | C33: Availability and affordability of obesity-related care | D33: Composite measure, scored as the weighted average of the following indicator scores: 2.3.1. Reimbursement/coverage of obesity care | E33: Economist Enterprise calculations
A34: 1023 | B34: 2.3.1 | C34: Reimbursement/coverage of obesity care | D34: Does the main public insurance scheme(s) reimburse/cover the four elements of comprehensive obesity care (nutrition counselling, intensive behavioural therapy, obesity medications, and metabolic and bariatric surgery)? | E34: Economist Enterprise research | F34: 0 = No, there is insufficient publicly available evidence of this 1 = Yes, one element is covered 2 = Yes, two elements are covered 3 = Yes, three elements are covered 4 = Yes, all four elements are covered | G34: Qualitative rating 0-4; 4=best | J34: 3 | K34: 3 | L34: 0 | M34: 0 | N34: 3 | O34: 3 | P34: 2 | Q34: 1 | R34: 1 | S34: 2 | T34: 0 | U34: 0 | V34: 0 | W34: 1 | X34: 3 | Y34: 0 | Z34: 2 | AA34: 3 | AB34: 3 | AC34: 4
A35: 1024 | B35: 3 | C35: Food quality and access | D35: Composite measure, scored as the weighted average of the following sub-pillar scores: 3.1. Food access and affordability 3.2. Nutrition guidance and regulation 3.3. Nutrition in schools | E35: Economist Enterprise calculations
A36: 1025 | B36: 3.1 | C36: Food access and affordability | D36: Composite measure, scored as the weighted average of the following indicator scores: 3.1.1. Level of food security 3.1.2. Healthy food affordability 3.1.3. Nutrition programmes for lower-income individuals | E36: Economist Enterprise calculations
A37: 1026 | B37: 3.1.1 | C37: Level of food security | D37: What is the level of food security in the country? | E37: FAO, IFAD, UNICEF, WFP and WHO - The State of Food Security and Nutrition in the World 2024 – Financing to end hunger, food insecurity and malnutrition in all its forms | F37: Higher=better % of population experiencing food security | G37: % | H37: 2023 | J37: 87.1 | K37: 81.6 | L37: 91.5 | M37: NA | N37: 87.4 | O37: 92.1 | P37: 96 | Q37: NA | R37: 98 | S37: 94.5 | T37: 79.3 | U37: 26.1 | V37: 79.4 | W37: NA | X37: 87 | Y37: 80.6 | Z37: 94.3 | AA37: 93.1 | AB37: 90 | AC37: 94.3
A38: 1027 | B38: 3.1.2 | C38: Affordability of nutritious food | D38: What is the share of the population that can afford a healthy diet? | E38: World Bank | F38: Higher=better % of population who can afford a healthy diet | G38: % | H38: 2022 | J38: 96.8 | K38: 74.7 | L38: 97.3 | M38: 82.5 | N38: 99.2 | O38: 96.9 | P38: 97.8 | Q38: 44.4 | R38: 93.1 | S38: 92.5 | T38: 77.5 | U38: 21.3 | V38: 24.3 | W38: NA | X38: 91.9 | Y38: 38.8 | Z38: 91 | AA38: 91.1 | AB38: 97.7 | AC38: 97.5
A39: 1028 | B39: 3.1.3 | C39: Nutrition programmes for lower-income individuals | D39: Does the country have a programme for lower-income individuals to access nutritious food? | E39: Economist Enterprise research | F39: 0 = No, there is insufficient publicly available evidence of this 1 = Yes | G39: Qualitative rating 0-1; 1=best | J39: 0 | K39: 1 | L39: 1 | M39: 1 | N39: 0 | O39: 1 | P39: 1 | Q39: 1 | R39: 1 | S39: 0 | T39: 1 | U39: 1 | V39: 1 | W39: 0 | X39: 0 | Y39: 1 | Z39: 1 | AA39: 1 | AB39: 0 | AC39: 1
A40: 1029 | B40: 3.2 | C40: Nutrition guidance and regulation | D40: Composite measure, scored as the weighted average of the following indicator scores: 3.2.1. Nutrition policy/strategy/plan that addresses obesity 3.2.2. Marketing of unhealthy food and beverages to children 3.2.3. Food labelling 3.2.4. Menu labelling 3.2.5. Taxes on unhealthy food and beverages | E40: Economist Enterprise calculations
A41: 1030 | B41: 3.2.1 | C41: Nutrition policy/strategy/plan that addresses obesity | D41: Does the country's national nutrition policy/strategy/action plan include measures aimed at preventing and managing obesity? | E41: Economist Enterprise research | F41: 0 = No, or there is either insufficient publicly available evidence of a national nutrition policy/strategy/action plan in place OR one that has been published/updated in the last 10 years 1 = Yes, but the measures do not include clear actions or specific targets 2 = Yes, there are measures with clear actions or specific targets, but they lack methods of evaluation 3 = Yes, there are measures with clear actions or specific targets AND methods of evaluation | G41: Qualitative rating 0-3; 3=best | J41: 0 | K41: 0 | L41: 2 | M41: 3 | N41: 1 | O41: 3 | P41: 3 | Q41: 1 | R41: 0 | S41: 1 | T41: 1 | U41: 3 | V41: 0 | W41: 3 | X41: 0 | Y41: 2 | Z41: 0 | AA41: 2 | AB41: 2 | AC41: 2
A42: 1031 | B42: 3.2.2 | C42: Marketing of unhealthy food and beverages to children | D42: Does the country restrict the marketing of unhealthy foods and beverages to children (e.g. on television, in-school advertising)? | E42: Economist Enterprise research | F42: 0 = No, there is insufficient publicly available evidence of this 1 = Yes, there are regulations restricting the marketing of unhealthy foods/beverages to children BUT they are not mandatory 2 = Yes, there are mandatory regulations restricting the marketing of unhealthy foods/beverages to children | G42: Qualitative rating 0-2; 2=best | J42: 1 | K42: 2 | L42: 1 | M42: 0 | N42: 1 | O42: 1 | P42: 1 | Q42: 2 | R42: 1 | S42: 0 | T42: 2 | U42: 0 | V42: 0 | W42: 2 | X42: 1 | Y42: 2 | Z42: 2 | AA42: 2 | AB42: 0 | AC42: 2
A43: 1032 | B43: 3.2.3 | C43: Food labelling | D43: Does the country mandate food labelling to support healthy eating (e.g. nutrition facts)? | E43: Economist Enterprise research | F43: 0 = No, there is insufficient publicly available evidence of this 1 = Yes, but it does not require front-of-package labelling 2 = Yes, it requires front-of-package labelling | G43: Qualitative rating 0-2; 2=best | J43: 1 | K43: 2 | L43: 2 | M43: 1 | N43: 1 | O43: 1 | P43: 1 | Q43: 1 | R43: 1 | S43: 1 | T43: 2 | U43: 1 | V43: 1 | W43: 1 | X43: 1 | Y43: 1 | Z43: 1 | AA43: 1 | AB43: 1 | AC43: 1
A44: 1033 | B44: 3.2.4 | C44: Menu labelling | D44: Does the country mandate nutrition labelling on menus to support healthy eating in cafes, restaurants, takeaways etc? | E44: Economist Enterprise research | F44: 0 = No, there is insufficient publicly available evidence of this 1 = Yes, there are regulations on menu labelling BUT they are not mandatory 2 = Yes, there are mandatory regulations on menu labelling | G44: Qualitative rating 0-2; 2=best | J44: 0 | K44: 0 | L44: 0 | M44: 0 | N44: 2 | O44: 0 | P44: 0 | Q44: 2 | R44: 0 | S44: 0 | T44: 0 | U44: 0 | V44: 0 | W44: 2 | X44: 0 | Y44: 0 | Z44: 1 | AA44: 0 | AB44: 0 | AC44: 2
A45: 1034 | B45: 3.2.5 | C45: Taxes on unhealthy food and beverages | D45: Does the country levy taxes on unhealthy food or beverage products? | E45: Economist Enterprise research | F45: 0 = No, there is insufficient publicly available evidence of this 1 = The country levies a tax on unhealthy food OR unhealthy beverages 2 = The country levies a tax on both unhealthy food AND unhealthy beverages | G45: Qualitative rating 0-2; 2=best | J45: 0 | K45: 1 | L45: 0 | M45: 0 | N45: 1 | O45: 1 | P45: 0 | Q45: 0 | R45: 0 | S45: 0 | T45: 2 | U45: 1 | V45: 1 | W45: 1 | X45: 0 | Y45: 1 | Z45: 0 | AA45: 1 | AB45: 1 | AC45: 1
A46: 1035 | B46: 3.3 | C46: Nutrition in schools | D46: Composite measure, scored as the weighted average of the following indicator scores: 3.3.1. School nutrition standards 3.3.2. Nutrition education | E46: Economist Enterprise calculations
A47: 1036 | B47: 3.3.1 | C47: School nutrition standards | D47: Does the country have nutrition standards for school food? | E47: Economist Enterprise research | F47: 0 = No, there is insufficient publicly available evidence of this 1 = Yes | G47: Qualitative rating 0-1; 1=best | J47: 1 | K47: 1 | L47: 0 | M47: 1 | N47: 1 | O47: 1 | P47: 0 | Q47: 1 | R47: 1 | S47: 1 | T47: 1 | U47: 0 | V47: 1 | W47: 1 | X47: 1 | Y47: 1 | Z47: 1 | AA47: 1 | AB47: 1 | AC47: 1
A48: 1037 | B48: 3.3.2 | C48: Nutrition education | D48: Does the country include nutrition education in the national curriculum? | E48: Economist Enterprise research | F48: 0 = No, there is insufficient publicly available evidence of this 1 = Yes | G48: Qualitative rating 0-1; 1=best | J48: 1 | K48: 1 | L48: 1 | M48: 1 | N48: 1 | O48: 1 | P48: 1 | Q48: 0 | R48: 1 | S48: 1 | T48: 1 | U48: 0 | V48: 0 | W48: 0 | X48: 1 | Y48: 1 | Z48: 1 | AA48: 1 | AB48: 1 | AC48: 1
A49: 1038 | B49: 4 | C49: Physical activity | D49: Composite measure, scored as the weighted average of the following sub-pillar scores: 4.1. Physical activity among the population 4.2. Physical activity among children | E49: Economist Enterprise calculations
A50: 1039 | B50: 4.1 | C50: Physical activity among the population | D50: Composite measure, scored as the weighted average of the following indicator scores: 4.1.1. Promotion of physical activity 4.1.2. Physical activity policies that address obesity | E50: Economist Enterprise calculations
A51: 1040 | B51: 4.1.1 | C51: Promotion of physical activity | D51: Does the country have policies in place to promote physical activity among the population? | E51: Economist Enterprise research | F51: 0 = No, there is insufficient publicly available evidence of this 1 = Yes, but they do not focus on promoting active travel (e.g. walking, cycling) or reducing car usage 2 = Yes, they focus on either promoting active travel (e.g. walking, cycling) OR reducing car usage 3 = Yes, they focus on both promoting active travel (e.g. walking, cycling) AND reducing car usage | G51: Qualitative rating 0-3; 3=best | J51: 2 | K51: 3 | L51: 3 | M51: 1 | N51: 3 | O51: 2 | P51: 3 | Q51: 2 | R51: 2 | S51: 2 | T51: 1 | U51: 0 | V51: 2 | W51: 1 | X51: 1 | Y51: 3 | Z51: 3 | AA51: 1 | AB51: 2 | AC51: 2
A52: 1041 | B52: 4.1.2 | C52: Physical activity policies that address obesity | D52: Do the country's policies to promote physical activity among the population include explicit measures aimed at preventing and managing obesity? | E52: Economist Enterprise research | F52: 0 = No, or there is insufficient publicly available evidence of national policies in place to promote physical activity among the population 1 = Yes, but the measures do not include clear actions or specific targets 2 = Yes, there are measures with clear actions or specific targets, but they lack methods of evaluation 3 = Yes, there are measures with clear actions or specific targets AND methods of evaluation | G52: Qualitative rating 0-3; 3=best | J52: 0 | K52: 2 | L52: 1 | M52: 2 | N52: 0 | O52: 3 | P52: 1 | Q52: 0 | R52: 2 | S52: 1 | T52: 0 | U52: 0 | V52: 0 | W52: 3 | X52: 3 | Y52: 0 | Z52: 3 | AA52: 1 | AB52: 0 | AC52: 1
A53: 1042 | B53: 4.2 | C53: Physical activity among children | D53: Composite measure, scored as the weighted average of the following indicator scores: 4.2.1. Physical activity mandates | E53: Economist Enterprise calculations
A54: 1043 | B54: 4.2.1 | C54: Physical activity mandates | D54: Does the country mandate physical activity in schools? | E54: Economist Enterprise research | F54: 0 = No, there is insufficient publicly available evidence of this 1 = Yes, but less than 60 minutes per day OR the time period is not specified 2 = Yes, 60 minutes per day (or more), in line with WHO recommendations | G54: Qualitative rating 0-2; 2=best | J54: 1 | K54: 1 | L54: 1 | M54: 2 | N54: 1 | O54: 1 | P54: 1 | Q54: 1 | R54: 1 | S54: 1 | T54: 1 | U54: 0 | V54: 1 | W54: 0 | X54: 1 | Y54: 1 | Z54: 1 | AA54: 1 | AB54: 1 | AC54: 0
C55: BACKGROUND INDICATORS
B56: BG01 | C56: Adult obesity prevalence | D56: % of adults living with obesity, per country classification of adult obesity | E56: National government sources | G56: % of adults | H56: Various years | J56: 31.7 | K56: 36.3 | L56: 33 | M56: 16.4 | N56: 28.3 | O56: 18.1 | P56: 19 | Q56: 5.2 | R56: 10.4 | S56: 26 | T56: 37.1 | U56: 14 | V56: 4.3 | W56: 23.1 | X56: 20.8 | Y56: 32.1 | Z56: 38.4 | AA56: 15.2 | AB56: 22.4 | AC56: 26.5
B57: BG02a | C57: Obesity prevalence by gender: Men | D57: % of men with a body mass index (BMI) greater than or equal to 30 | E57: World Obesity Federation | G57: % of men | H57: Various years | J57: 32.5 | K57: 23.8 | L57: 26.7 | M57: 7.7 | N57: 26.9 | O57: 14.7 | P57: 19.1 | Q57: 4 | R57: 11.1 | S57: 4.7 | T57: 36.1 | U57: 6.5 | V57: 1.3 | W57: 22.8 | X57: 13.7 | Y57: 15.3 | Z57: 49.1 | AA57: 15.2 | AB57: 25.1 | AC57: 19.8
B58: BG02b | C58: Obesity prevalence by gender: Women | D58: % of women with a body mass index (BMI) greater than or equal to 30 | E58: World Obesity Federation | G58: % of women | H58: Various years | J58: 30.9 | K58: 24.8 | L58: 22 | M58: 4.3 | N58: 29.6 | O58: 14.9 | P58: 19 | Q58: 6.4 | R58: 9.7 | S58: 4.4 | T58: 41.6 | U58: 9.9 | V58: 7.4 | W58: 23.5 | X58: 9.3 | Y58: 41.3 | Z58: 29.2 | AA58: 15.1 | AB58: 30.6 | AC58: 20.4
B59: BG03 | C59: Childhood obesity prevalence | D59: % of children living with obesity, per country classification of childhood obesity | E59: National government sources | G59: % of children | H59: Various years | J59: 8.3 | K59: 15.5 | L59: 11.1 | M59: 7.9 | N59: 12.6 | O59: 4.1 | P59: 8.5 | Q59: 3.4 | R59: 9.8 | S59: 3.1 | T59: 15.7 | U59: 3.8 | V59: 1.6 | W59: 14.6 | X59: 12.9 | Y59: 7.1 | Z59: 13.8 | AA59: 7.1 | AB59: 16.1 | AC59: 15
B60: BG04 | C60: Life expectancy | D60: Life expectancy at birth | E60: World Bank | G60: Years | H60: 2023 | J60: 83 | K60: 76 | L60: 82 | M60: 78 | N60: 82 | O60: 83 | P60: 81 | Q60: 72 | R60: 84 | S60: 84 | T60: 75 | U60: 54 | V60: 68 | W60: 79 | X60: 76 | Y60: 66 | Z60: 83 | AA60: 84 | AB60: 83 | AC60: 81
B61: BG05 | C61: GDP per capita | D61: GDP per capita | E61: International Monetary Fund | G61: USD | H61: 2025 | J61: 64547 | K61: 9964 | L61: 53558 | M61: 13687 | N61: 54163 | O61: 46792 | P61: 55911 | Q61: 2878 | R61: 41091 | S61: 33956 | T61: 12692 | U61: 807 | V61: 1043 | W61: 30099 | X61: 14174 | Y61: 6397 | Z61: 34642 | AA61: 36192 | AB61: 49498 | AC61: 54949
B62: BG06 | C62: Gini Index of Income Inequality | D62: Gini index | E62: World Bank | G62: 0-100 | H62: Various years | I62: The Gini index measures inequality on a scale from 0 to 100. Higher values indicate higher inequality. | J62: 34.3 | K62: 51.6 | L62: 29.9 | M62: 35.7 | N62: 27.9 | O62: 31.2 | P62: 32.4 | Q62: 25.5 | R62: 33.7 | S62: 32.3 | T62: 43.5 | U62: 35.1 | V62: 43.7 | W62: No data | X62: 32.8 | Y62: 63 | Z62: 32.9 | AA62: 33.6 | AB62: 26.4 | AC62: 32.4
B63: BG07 | C63: Economic impact of overweight and obesity | D63: Economic impact of overweight and obesity, % of GDP | E63: World Obesity Federation | G63: % of GDP | H63: 2019 | J63: 1.89 | K63: 1.98 | L63: 2.32 | M63: 1.81 | N63: 2.01 | O63: 1.85 | P63: 2.61 | Q63: 1.02 | R63: 1.85 | S63: 0.99 | T63: 1.83 | U63: 0.53 | V63: 0.84 | W63: 2.44 | X63: 3.51 | Y63: 1.96 | Z63: 1.3 | AA63: 2.09 | AB63: 2.8 | AC63: 2.09
B64: BG08 | C64: Healthcare spending per capita | D64: Healthcare spending per capita | E64: World Health Organisation | G64: USD | H64: 2023 | J64: 6980 | K64: 1010 | L64: 6187 | M64: 763 | N64: 5515 | O64: 5149 | P64: 6395 | Q64: 85 | R64: 3283 | S64: 3638 | T64: 761 | U64: 62 | V64: 53 | W64: 1825 | X64: 984 | Y64: 537 | Z64: 3044 | AA64: 3107 | AB64: 2402 | AC64: 5407
B65: BG09 | C65: Access to a physician | D65: Number of physicians per 100,000 people | E65: World Bank | G65: Number of physicians per 100,000 people | H65: Various years | J65: 398.1 | K65: 214.2 | L65: 249.7 | M65: 251.8 | N65: 438.1 | O65: 334.3 | P65: 451.8 | Q65: 72.7 | R65: 424.8 | S65: 261.4 | T65: 255.9 | U65: 39.4 | V65: 11.6 | W65: 307.7 | X65: 283.7 | Y65: 80.9 | Z65: 251.7 | AA65: 448 | AB65: 291.2 | AC65: 317.4
B66: BG10 | C66: Physical activity | D66: Prevalence of sufficient physical activity among adults | E66: World Health Organisation | G66: % of adults | H66: 2022 | J66: 74.5 | K66: 59.6 | L66: 62.8 | M66: 76.2 | N66: 90.4 | O66: 76.8 | P66: 88 | Q66: 50.6 | R66: 59.9 | S66: 55.3 | T66: 72 | U66: 81.9 | V66: 91 | W66: 48.5 | X66: 55.1 | Y66: 55.2 | Z66: 41.9 | AA66: 78.2 | AB66: 33.9 | AC66: 81

Sheet SCORE TABLE
C1: =HOME!B7 -> GLOBAL OBESITY RESPONSE INDEX
B6: Score table
B9: No. | C9: Indicator name | D9: Weight | E9: Contribution to overall score | F9: Min | G9: Max | H9: Australia | I9: Brazil | J9: Canada | K9: China | L9: Finland | M9: France | N9: Germany | O9: India | P9: Italy | Q9: Japan | R9: Mexico | S9: Nigeria | T9: Rwanda | U9: Saudi Arabia | V9: Serbia | W9: South Africa | X9: South Korea | Y9: Spain | Z9: United Arab Emirates | AA9: United Kingdom
A10: 0 | B10: 0 | C10: OVERALL | H10: =ROUND(SUM($D11*H11,$D25*H25,$D35*H35,$D49*H49),1) -> 58.8 | I10: =ROUND(SUM($D11*I11,$D25*I25,$D35*I35,$D49*I49),1) -> 72.4 | J10: 47.9 | K10: 63.1 | L10: 66.8 | M10: 74.3 | N10: 64.9 | O10: 36.1 | P10: 63.1 | Q10: 54.4 | R10: 55.3 | S10: 13.1 | T10: 39.1 | U10: 44.5 | V10: 74.8 | W10: 44.2 | X10: 71.2 | Y10: 54.4 | Z10: 54.7 | AA10: 64.4
A11: 1000 | B11: 1 | C11: Policy and governance | D11: =0.25 -> 0.25 | E11: =0.25 -> 0.25 | H11: =ROUND(SUM($D12*H12),5) -> 57.91667 | I11: =ROUND(SUM($D12*I12),5) -> 52.91667 | J11: =ROUND(SUM($D12*J12),5) -> 20 | K11: 52.5 | L11: 52.5 | M11: 62.5 | N11: 60.83333 | O11: 26.25 | P11: 52.08333 | Q11: 30 | R11: 42.5 | S11: 22.5 | T11: 21.66667 | U11: 32.08333 | V11: 95 | W11: 42.91667 | X11: 53.75 | Y11: 62.5 | Z11: 20 | AA11: 42.5
A12: 1001 | B12: 1.1 | C12: Obesity-related policy | D12: 1 | E12: =E11 -> 0.25 | H12: =ROUND(SUM($D13*H13,$D14*H14,$D15*H15,$D23*H23,$D24*H24),5) -> 57.91667 | I12: =ROUND(SUM($D13*I13,$D14*I14,$D15*I15,$D23*I23,$D24*I24),5) -> 52.91667 | J12: =ROUND(SUM($D13*J13,$D14*J14,$D15*J15,$D23*J23,$D24*J24),5) -> 20 | K12: 52.5 | L12: 52.5 | M12: 62.5 | N12: 60.83333 | O12: 26.25 | P12: 52.08333 | Q12: 30 | R12: 42.5 | S12: 22.5 | T12: 21.66667 | U12: 32.08333 | V12: 95 | W12: 42.91667 | X12: 53.75 | Y12: 62.5 | Z12: 20 | AA12: 42.5
A13: 1002 | B13: 1.1.1 | C13: Health policy/strategy/plan that includes obesity | D13: =1/5 -> 0.2 | E13: =$E$12/5 -> 0.05 | F13: 0 | G13: 1 | H13: =IFERROR((((INDEX('DATA TABLE'!$J$13:$AC$66, MATCH('SCORE TABLE'!$B13,'DATA TABLE'!$B$13:$B$66,0),MATCH('SCORE TABLE'!H$9,'DATA TABLE'!$J$9:$AC$9,0)))-'SCORE TABLE'!$F13)/('SCORE TABLE'!$G13-'SCORE TABLE'!$F13))*100,0) -> 100 | I13: =IFERROR((((INDEX('DATA TABLE'!$J$13:$AC$66, MATCH('SCORE TABLE'!$B13,'DATA TABLE'!$B$13:$B$66,0),MATCH('SCORE TABLE'!I$9,'DATA TABLE'!$J$9:$AC$9,0)))-'SCORE TABLE'!$F13)/('SCORE TABLE'!$G13-'SCORE TABLE'!$F13))*100,0) -> 100 | J13: =IFERROR((((INDEX('DATA TABLE'!$J$13:$AC$66, MATCH('SCORE TABLE'!$B13,'DATA TABLE'!$B$13:$B$66,0),MATCH('SCORE TABLE'!J$9,'DATA TABLE'!$J$9:$AC$9,0)))-'SCORE TABLE'!$F13)/('SCORE TABLE'!$G13-'SCORE TABLE'!$F13))*100,0) -> 0 | K13: =IFERROR((((INDEX('DATA TABLE'!$J$13:$AC$66, MATCH('SCORE TABLE'!$B13,'DATA TABLE'!$B$13:$B$66,0),MATCH('SCORE TABLE'!K$9,'DATA TABLE'!$J$9:$AC$9,0)))-'SCORE TABLE'!$F13)/('SCORE TABLE'!$G13-'SCORE TABLE'!$F13))*100,0) -> 100 | L13: =IFERROR((((INDEX('DATA TABLE'!$J$13:$AC$66, MATCH('SCORE TABLE'!$B13,'DATA TABLE'!$B$13:$B$66,0),MATCH('SCORE TABLE'!L$9,'DATA TABLE'!$J$9:$AC$9,0)))-'SCORE TABLE'!$F13)/('SCORE TABLE'!$G13-'SCORE TABLE'!$F13))*100,0) -> 100 | M13: =IFERROR((((INDEX('DATA TABLE'!$J$13:$AC$66, MATCH('SCORE TABLE'!$B13,'DATA TABLE'!$B$13:$B$66,0),MATCH('SCORE TABLE'!M$9,'DATA TABLE'!$J$9:$AC$9,0)))-'SCORE TABLE'!$F13)/('SCORE TABLE'!$G13-'SCORE TABLE'!$F13))*100,0) -> 100 | N13: =IFERROR((((INDEX('DATA TABLE'!$J$13:$AC$66, MATCH('SCORE TABLE'!$B13,'DATA TABLE'!$B$13:$B$66,0),MATCH('SCORE TABLE'!N$9,'DATA TABLE'!$J$9:$AC$9,0)))-'SCORE TABLE'!$F13)/('SCORE TABLE'!$G13-'SCORE TABLE'!$F13))*100,0) -> 0 | O13: =IFERROR((((INDEX('DATA TABLE'!$J$13:$AC$66, MATCH('SCORE TABLE'!$B13,'DATA TABLE'!$B$13:$B$66,0),MATCH('SCORE TABLE'!O$9,'DATA TABLE'!$J$9:$AC$9,0)))-'SCORE TABLE'!$F13)/('SCORE TABLE'!$G13-'SCORE TABLE'!$F13))*100,0) -> 0 | P13: =IFERROR((((INDEX('DATA TABLE'!$J$13:$AC$66, MATCH('SCORE TABLE'!$B13,'DATA TABLE'!$B$13:$B$66,0),MATCH('SCORE TABLE'!P$9,'DATA TABLE'!$J$9:$AC$9,0)))-'SCORE TABLE'!$F13)/('SCORE TABLE'!$G13-'SCORE TABLE'!$F13))*100,0) -> 100 | Q13: =IFERROR((((INDEX('DATA TABLE'!$J$13:$AC$66, MATCH('SCORE TABLE'!$B13,'DATA TABLE'!$B$13:$B$66,0),MATCH('SCORE TABLE'!Q$9,'DATA TABLE'!$J$9:$AC$9,0)))-'SCORE TABLE'!$F13)/('SCORE TABLE'!$G13-'SCORE TABLE'!$F13))*100,0) -> 100 | R13: =IFERROR((((INDEX('DATA TABLE'!$J$13:$AC$66, MATCH('SCORE TABLE'!$B13,'DATA TABLE'!$B$13:$B$66,0),MATCH('SCORE TABLE'!R$9,'DATA TABLE'!$J$9:$AC$9,0)))-'SCORE TABLE'!$F13)/('SCORE TABLE'!$G13-'SCORE TABLE'!$F13))*100,0) -> 0 | S13: =IFERROR((((INDEX('DATA TABLE'!$J$13:$AC$66, MATCH('SCORE TABLE'!$B13,'DATA TABLE'!$B$13:$B$66,0),MATCH('SCORE TABLE'!S$9,'DATA TABLE'!$J$9:$AC$9,0)))-'SCORE TABLE'!$F13)/('SCORE TABLE'!$G13-'SCORE TABLE'!$F13))*100,0) -> 0 | T13: =IFERROR((((INDEX('DATA TABLE'!$J$13:$AC$66, MATCH('SCORE TABLE'!$B13,'DATA TABLE'!$B$13:$B$66,0),MATCH('SCORE TABLE'!T$9,'DATA TABLE'!$J$9:$AC$9,0)))-'SCORE TABLE'!$F13)/('SCORE TABLE'!$G13-'SCORE TABLE'!$F13))*100,0) -> 0 | U13: =IFERROR((((INDEX('DATA TABLE'!$J$13:$AC$66, MATCH('SCORE TABLE'!$B13,'DATA TABLE'!$B$13:$B$66,0),MATCH('SCORE TABLE'!U$9,'DATA TABLE'!$J$9:$AC$9,0)))-'SCORE TABLE'!$F13)/('SCORE TABLE'!$G13-'SCORE TABLE'!$F13))*100,0) -> 0 | V13: =IFERROR((((INDEX('DATA TABLE'!$J$13:$AC$66, MATCH('SCORE TABLE'!$B13,'DATA TABLE'!$B$13:$B$66,0),MATCH('SCORE TABLE'!V$9,'DATA TABLE'!$J$9:$AC$9,0)))-'SCORE TABLE'!$F13)/('SCORE TABLE'!$G13-'SCORE TABLE'!$F13))*100,0) -> 100 | W13: =IFERROR((((INDEX('DATA TABLE'!$J$13:$AC$66, MATCH('SCORE TABLE'!$B13,'DATA TABLE'!$B$13:$B$66,0),MATCH('SCORE TABLE'!W$9,'DATA TABLE'!$J$9:$AC$9,0)))-'SCORE TABLE'!$F13)/('SCORE TABLE'!$G13-'SCORE TABLE'!$F13))*100,0) -> 0 | X13: =IFERROR((((INDEX('DATA TABLE'!$J$13:$AC$66, MATCH('SCORE TABLE'!$B13,'DATA TABLE'!$B$13:$B$66,0),MATCH('SCORE TABLE'!X$9,'DATA TABLE'!$J$9:$AC$9,0)))-'SCORE TABLE'!$F13)/('SCORE TABLE'!$G13-'SCORE TABLE'!$F13))*100,0) -> 100 | Y13: =IFERROR((((INDEX('DATA TABLE'!$J$13:$AC$66, MATCH('SCORE TABLE'!$B13,'DATA TABLE'!$B$13:$B$66,0),MATCH('SCORE TABLE'!Y$9,'DATA TABLE'!$J$9:$AC$9,0)))-'SCORE TABLE'!$F13)/('SCORE TABLE'!$G13-'SCORE TABLE'!$F13))*100,0) -> 100 | Z13: =IFERROR((((INDEX('DATA TABLE'!$J$13:$AC$66, MATCH('SCORE TABLE'!$B13,'DATA TABLE'!$B$13:$B$66,0),MATCH('SCORE TABLE'!Z$9,'DATA TABLE'!$J$9:$AC$9,0)))-'SCORE TABLE'!$F13)/('SCORE TABLE'!$G13-'SCORE TABLE'!$F13))*100,0) -> 0 | AA13: =IFERROR((((INDEX('DATA TABLE'!$J$13:$AC$66, MATCH('SCORE TABLE'!$B13,'DATA TABLE'!$B$13:$B$66,0),MATCH('SCORE TABLE'!AA$9,'DATA TABLE'!$J$9:$AC$9,0)))-'SCORE TABLE'!$F13)/('SCORE TABLE'!$G13-'SCORE TABLE'!$F13))*100,0) -> 100
A14: 1003 | B14: 1.1.2 | C14: Definition of obesity | D14: =1/5 -> 0.2 | E14: =$E$12/5 -> 0.05 | F14: 0 | G14: 2 | H14: =IFERROR((((INDEX('DATA TABLE'!$J$13:$AC$66, MATCH('SCORE TABLE'!$B14,'DATA TABLE'!$B$13:$B$66,0),MATCH('SCORE TABLE'!H$9,'DATA TABLE'!$J$9:$AC$9,0)))-'SCORE TABLE'!$F14)/('SCORE TABLE'!$G14-'SCORE TABLE'!$F14))*100,0) -> 100 | I14: =IFERROR((((INDEX('DATA TABLE'!$J$13:$AC$66, MATCH('SCORE TABLE'!$B14,'DATA TABLE'!$B$13:$B$66,0),MATCH('SCORE TABLE'!I$9,'DATA TABLE'!$J$9:$AC$9,0)))-'SCORE TABLE'!$F14)/('SCORE TABLE'!$G14-'SCORE TABLE'!$F14))*100,0) -> 100 | J14: =IFERROR((((INDEX('DATA TABLE'!$J$13:$AC$66, MATCH('SCORE TABLE'!$B14,'DATA TABLE'!$B$13:$B$66,0),MATCH('SCORE TABLE'!J$9,'DATA TABLE'!$J$9:$AC$9,0)))-'SCORE TABLE'!$F14)/('SCORE TABLE'!$G14-'SCORE TABLE'!$F14))*100,0) -> 100 | K14: =IFERROR((((INDEX('DATA TABLE'!$J$13:$AC$66, MATCH('SCORE TABLE'!$B14,'DATA TABLE'!$B$13:$B$66,0),MATCH('SCORE TABLE'!K$9,'DATA TABLE'!$J$9:$AC$9,0)))-'SCORE TABLE'!$F14)/('SCORE TABLE'!$G14-'SCORE TABLE'!$F14))*100,0) -> 100 | L14: =IFERROR((((INDEX('DATA TABLE'!$J$13:$AC$66, MATCH('SCORE TABLE'!$B14,'DATA TABLE'!$B$13:$B$66,0),MATCH('SCORE TABLE'!L$9,'DATA TABLE'!$J$9:$AC$9,0)))-'SCORE TABLE'!$F14)/('SCORE TABLE'!$G14-'SCORE TABLE'!$F14))*100,0) -> 50 | M14: =IFERROR((((INDEX('DATA TABLE'!$J$13:$AC$66, MATCH('SCORE TABLE'!$B14,'DATA TABLE'!$B$13:$B$66,0),MATCH('SCORE TABLE'!M$9,'DATA TABLE'!$J$9:$AC$9,0)))-'SCORE TABLE'!$F14)/('SCORE TABLE'!$G14-'SCORE TABLE'!$F14))*100,0) -> 100 | N14: =IFERROR((((INDEX('DATA TABLE'!$J$13:$AC$66, MATCH('SCORE TABLE'!$B14,'DATA TABLE'!$B$13:$B$66,0),MATCH('SCORE TABLE'!N$9,'DATA TABLE'!$J$9:$AC$9,0)))-'SCORE TABLE'!$F14)/('SCORE TABLE'!$G14-'SCORE TABLE'!$F14))*100,0) -> 50 | O14: =IFERROR((((INDEX('DATA TABLE'!$J$13:$AC$66, MATCH('SCORE TABLE'!$B14,'DATA TABLE'!$B$13:$B$66,0),MATCH('SCORE TABLE'!O$9,'DATA TABLE'!$J$9:$AC$9,0)))-'SCORE TABLE'!$F14)/('SCORE TABLE'!$G14-'SCORE TABLE'!$F14))*100,0) -> 100 | P14: =IFERROR((((INDEX('DATA TABLE'!$J$13:$AC$66, MATCH('SCORE TABLE'!$B14,'DATA TABLE'!$B$13:$B$66,0),MATCH('SCORE TABLE'!P$9,'DATA TABLE'!$J$9:$AC$9,0)))-'SCORE TABLE'!$F14)/('SCORE TABLE'!$G14-'SCORE TABLE'!$F14))*100,0) -> 100 | Q14: =IFERROR((((INDEX('DATA TABLE'!$J$13:$AC$66, MATCH('SCORE TABLE'!$B14,'DATA TABLE'!$B$13:$B$66,0),MATCH('SCORE TABLE'!Q$9,'DATA TABLE'!$J$9:$AC$9,0)))-'SCORE TABLE'!$F14)/('SCORE TABLE'!$G14-'SCORE TABLE'!$F14))*100,0) -> 50 | R14: =IFERROR((((INDEX('DATA TABLE'!$J$13:$AC$66, MATCH('SCORE TABLE'!$B14,'DATA TABLE'!$B$13:$B$66,0),MATCH('SCORE TABLE'!R$9,'DATA TABLE'!$J$9:$AC$9,0)))-'SCORE TABLE'!$F14)/('SCORE TABLE'!$G14-'SCORE TABLE'!$F14))*100,0) -> 100 | S14: =IFERROR((((INDEX('DATA TABLE'!$J$13:$AC$66, MATCH('SCORE TABLE'!$B14,'DATA TABLE'!$B$13:$B$66,0),MATCH('SCORE TABLE'!S$9,'DATA TABLE'!$J$9:$AC$9,0)))-'SCORE TABLE'!$F14)/('SCORE TABLE'!$G14-'SCORE TABLE'!$F14))*100,0) -> 50 | T14: =IFERROR((((INDEX('DATA TABLE'!$J$13:$AC$66, MATCH('SCORE TABLE'!$B14,'DATA TABLE'!$B$13:$B$66,0),MATCH('SCORE TABLE'!T$9,'DATA TABLE'!$J$9:$AC$9,0)))-'SCORE TABLE'!$F14)/('SCORE TABLE'!$G14-'SCORE TABLE'!$F14))*100,0) -> 50 | U14: =IFERROR((((INDEX('DATA TABLE'!$J$13:$AC$66, MATCH('SCORE TABLE'!$B14,'DATA TABLE'!$B$13:$B$66,0),MATCH('SCORE TABLE'!U$9,'DATA TABLE'!$J$9:$AC$9,0)))-'SCORE TABLE'!$F14)/('SCORE TABLE'!$G14-'SCORE TABLE'!$F14))*100,0) -> 100 | V14: =IFERROR((((INDEX('DATA TABLE'!$J$13:$AC$66, MATCH('SCORE TABLE'!$B14,'DATA TABLE'!$B$13:$B$66,0),MATCH('SCORE TABLE'!V$9,'DATA TABLE'!$J$9:$AC$9,0)))-'SCORE TABLE'!$F14)/('SCORE TABLE'!$G14-'SCORE TABLE'!$F14))*100,0) -> 100 | W14: =IFERROR((((INDEX('DATA TABLE'!$J$13:$AC$66, MATCH('SCORE TABLE'!$B14,'DATA TABLE'!$B$13:$B$66,0),MATCH('SCORE TABLE'!W$9,'DATA TABLE'!$J$9:$AC$9,0)))-'SCORE TABLE'!$F14)/('SCORE TABLE'!$G14-'SCORE TABLE'!$F14))*100,0) -> 50 | X14: =IFERROR((((INDEX('DATA TABLE'!$J$13:$AC$66, MATCH('SCORE TABLE'!$B14,'DATA TABLE'!$B$13:$B$66,0),MATCH('SCORE TABLE'!X$9,'DATA TABLE'!$J$9:$AC$9,0)))-'SCORE TABLE'!$F14)/('SCORE TABLE'!$G14-'SCORE TABLE'!$F14))*100,0) -> 100 | Y14: =IFERROR((((INDEX('DATA TABLE'!$J$13:$AC$66, MATCH('SCORE TABLE'!$B14,'DATA TABLE'!$B$13:$B$66,0),MATCH('SCORE TABLE'!Y$9,'DATA TABLE'!$J$9:$AC$9,0)))-'SCORE TABLE'!$F14)/('SCORE TABLE'!$G14-'SCORE TABLE'!$F14))*100,0) -> 100 | Z14: =IFERROR((((INDEX('DATA TABLE'!$J$13:$AC$66, MATCH('SCORE TABLE'!$B14,'DATA TABLE'!$B$13:$B$66,0),MATCH('SCORE TABLE'!Z$9,'DATA TABLE'!$J$9:$AC$9,0)))-'SCORE TABLE'!$F14)/('SCORE TABLE'!$G14-'SCORE TABLE'!$F14))*100,0) -> 100 | AA14: =IFERROR((((INDEX('DATA TABLE'!$J$13:$AC$66, MATCH('SCORE TABLE'!$B14,'DATA TABLE'!$B$13:$B$66,0),MATCH('SCORE TABLE'!AA$9,'DATA TABLE'!$J$9:$AC$9,0)))-'SCORE TABLE'!$F14)/('SCORE TABLE'!$G14-'SCORE TABLE'!$F14))*100,0) -> 50
A15: 1004 | B15: 1.1.3 | C15: Obesity-related policy/strategy/plan | D15: =1/5 -> 0.2 | E15: =$E$12/5 -> 0.05 | H15: =ROUND(SUMPRODUCT($D16:$D22,H16:H22),5) -> 89.58333 | I15: =ROUND(SUMPRODUCT($D16:$D22,I16:I22),5) -> 64.58333 | J15: =ROUND(SUMPRODUCT($D16:$D22,J16:J22),5) -> 0 | K15: 62.5 | L15: 12.5 | M15: 12.5 | N15: 54.16667 | O15: 31.25 | P15: 60.41667 | Q15: 0 | R15: 12.5 | S15: 62.5 | T15: 58.33333 | U15: 60.41667 | V15: 75 | W15: 64.58333 | X15: 68.75 | Y15: 12.5 | Z15: 0 | AA15: 62.5
A16: 1005 | B16: 1.1.3a | C16: Existence of an obesity-related policy/strategy/plan | D16: 0.25 | E16: =$E$15*D16 -> 0.0125 | F16: 0 | G16: 2 | H16: =IFERROR((((INDEX('DATA TABLE'!$J$13:$AC$66, MATCH('SCORE TABLE'!$B16,'DATA TABLE'!$B$13:$B$66,0),MATCH('SCORE TABLE'!H$9,'DATA TABLE'!$J$9:$AC$9,0)))-'SCORE TABLE'!$F16)/('SCORE TABLE'!$G16-'SCORE TABLE'!$F16))*100,0) -> 100 | I16: =IFERROR((((INDEX('DATA TABLE'!$J$13:$AC$66, MATCH('SCORE TABLE'!$B16,'DATA TABLE'!$B$13:$B$66,0),MATCH('SCORE TABLE'!I$9,'DATA TABLE'!$J$9:$AC$9,0)))-'SCORE TABLE'!$F16)/('SCORE TABLE'!$G16-'SCORE TABLE'!$F16))*100,0) -> 100 | J16: =IFERROR((((INDEX('DATA TABLE'!$J$13:$AC$66, MATCH('SCORE TABLE'!$B16,'DATA TABLE'!$B$13:$B$66,0),MATCH('SCORE TABLE'!J$9,'DATA TABLE'!$J$9:$AC$9,0)))-'SCORE TABLE'!$F16)/('SCORE TABLE'!$G16-'SCORE TABLE'!$F16))*100,0) -> 0 | K16: =IFERROR((((INDEX('DATA TABLE'!$J$13:$AC$66, MATCH('SCORE TABLE'!$B16,'DATA TABLE'!$B$13:$B$66,0),MATCH('SCORE TABLE'!K$9,'DATA TABLE'!$J$9:$AC$9,0)))-'SCORE TABLE'!$F16)/('SCORE TABLE'!$G16-'SCORE TABLE'!$F16))*100,0) -> 100 | L16: =IFERROR((((INDEX('DATA TABLE'!$J$13:$AC$66, MATCH('SCORE TABLE'!$B16,'DATA TABLE'!$B$13:$B$66,0),MATCH('SCORE TABLE'!L$9,'DATA TABLE'!$J$9:$AC$9,0)))-'SCORE TABLE'!$F16)/('SCORE TABLE'!$G16-'SCORE TABLE'!$F16))*100,0) -> 50 | M16: =IFERROR((((INDEX('DATA TABLE'!$J$13:$AC$66, MATCH('SCORE TABLE'!$B16,'DATA TABLE'!$B$13:$B$66,0),MATCH('SCORE TABLE'!M$9,'DATA TABLE'!$J$9:$AC$9,0)))-'SCORE TABLE'!$F16)/('SCORE TABLE'!$G16-'SCORE TABLE'!$F16))*100,0) -> 50 | N16: =IFERROR((((INDEX('DATA TABLE'!$J$13:$AC$66, MATCH('SCORE TABLE'!$B16,'DATA TABLE'!$B$13:$B$66,0),MATCH('SCORE TABLE'!N$9,'DATA TABLE'!$J$9:$AC$9,0)))-'SCORE TABLE'!$F16)/('SCORE TABLE'!$G16-'SCORE TABLE'!$F16))*100,0) -> 100 | O16: =IFERROR((((INDEX('DATA TABLE'!$J$13:$AC$66, MATCH('SCORE TABLE'!$B16,'DATA TABLE'!$B$13:$B$66,0),MATCH('SCORE TABLE'!O$9,'DATA TABLE'!$J$9:$AC$9,0)))-'SCORE TABLE'!$F16)/('SCORE TABLE'!$G16-'SCORE TABLE'!$F16))*100,0) -> 100 | P16: =IFERROR((((INDEX('DATA TABLE'!$J$13:$AC$66, MATCH('SCORE TABLE'!$B16,'DATA TABLE'!$B$13:$B$66,0),MATCH('SCORE TABLE'!P$9,'DATA TABLE'!$J$9:$AC$9,0)))-'SCORE TABLE'!$F16)/('SCORE TABLE'!$G16-'SCORE TABLE'!$F16))*100,0) -> 100 | Q16: =IFERROR((((INDEX('DATA TABLE'!$J$13:$AC$66, MATCH('SCORE TABLE'!$B16,'DATA TABLE'!$B$13:$B$66,0),MATCH('SCORE TABLE'!Q$9,'DATA TABLE'!$J$9:$AC$9,0)))-'SCORE TABLE'!$F16)/('SCORE TABLE'!$G16-'SCORE TABLE'!$F16))*100,0) -> 0 | R16: =IFERROR((((INDEX('DATA TABLE'!$J$13:$AC$66, MATCH('SCORE TABLE'!$B16,'DATA TABLE'!$B$13:$B$66,0),MATCH('SCORE TABLE'!R$9,'DATA TABLE'!$J$9:$AC$9,0)))-'SCORE TABLE'!$F16)/('SCORE TABLE'!$G16-'SCORE TABLE'!$F16))*100,0) -> 50 | S16: =IFERROR((((INDEX('DATA TABLE'!$J$13:$AC$66, MATCH('SCORE TABLE'!$B16,'DATA TABLE'!$B$13:$B$66,0),MATCH('SCORE TABLE'!S$9,'DATA TABLE'!$J$9:$AC$9,0)))-'SCORE TABLE'!$F16)/('SCORE TABLE'!$G16-'SCORE TABLE'!$F16))*100,0) -> 100 | T16: =IFERROR((((INDEX('DATA TABLE'!$J$13:$AC$66, MATCH('SCORE TABLE'!$B16,'DATA TABLE'!$B$13:$B$66,0),MATCH('SCORE TABLE'!T$9,'DATA TABLE'!$J$9:$AC$9,0)))-'SCORE TABLE'!$F16)/('SCORE TABLE'!$G16-'SCORE TABLE'!$F16))*100,0) -> 100 | U16: =IFERROR((((INDEX('DATA TABLE'!$J$13:$AC$66, MATCH('SCORE TABLE'!$B16,'DATA TABLE'!$B$13:$B$66,0),MATCH('SCORE TABLE'!U$9,'DATA TABLE'!$J$9:$AC$9,0)))-'SCORE TABLE'!$F16)/('SCORE TABLE'!$G16-'SCORE TABLE'!$F16))*100,0) -> 100 | V16: =IFERROR((((INDEX('DATA TABLE'!$J$13:$AC$66, MATCH('SCORE TABLE'!$B16,'DATA TABLE'!$B$13:$B$66,0),MATCH('SCORE TABLE'!V$9,'DATA TABLE'!$J$9:$AC$9,0)))-'SCORE TABLE'!$F16)/('SCORE TABLE'!$G16-'SCORE TABLE'!$F16))*100,0) -> 100 | W16: =IFERROR((((INDEX('DATA TABLE'!$J$13:$AC$66, MATCH('SCORE TABLE'!$B16,'DATA TABLE'!$B$13:$B$66,0),MATCH('SCORE TABLE'!W$9,'DATA TABLE'!$J$9:$AC$9,0)))-'SCORE TABLE'!$F16)/('SCORE TABLE'!$G16-'SCORE TABLE'!$F16))*100,0) -> 100 | X16: =IFERROR((((INDEX('DATA TABLE'!$J$13:$AC$66, MATCH('SCORE TABLE'!$B16,'DATA TABLE'!$B$13:$B$66,0),MATCH('SCORE TABLE'!X$9,'DATA TABLE'!$J$9:$AC$9,0)))-'SCORE TABLE'!$F16)/('SCORE TABLE'!$G16-'SCORE TABLE'!$F16))*100,0) -> 100 | Y16: =IFERROR((((INDEX('DATA TABLE'!$J$13:$AC$66, MATCH('SCORE TABLE'!$B16,'DATA TABLE'!$B$13:$B$66,0),MATCH('SCORE TABLE'!Y$9,'DATA TABLE'!$J$9:$AC$9,0)))-'SCORE TABLE'!$F16)/('SCORE TABLE'!$G16-'SCORE TABLE'!$F16))*100,0) -> 50 | Z16: =IFERROR((((INDEX('DATA TABLE'!$J$13:$AC$66, MATCH('SCORE TABLE'!$B16,'DATA TABLE'!$B$13:$B$66,0),MATCH('SCORE TABLE'!Z$9,'DATA TABLE'!$J$9:$AC$9,0)))-'SCORE TABLE'!$F16)/('SCORE TABLE'!$G16-'SCORE TABLE'!$F16))*100,0) -> 0 | AA16: =IFERROR((((INDEX('DATA TABLE'!$J$13:$AC$66, MATCH('SCORE TABLE'!$B16,'DATA TABLE'!$B$13:$B$66,0),MATCH('SCORE TABLE'!AA$9,'DATA TABLE'!$J$9:$AC$9,0)))-'SCORE TABLE'!$F16)/('SCORE TABLE'!$G16-'SCORE TABLE'!$F16))*100,0) -> 100
A17: 1006 | B17: 1.1.3b | C17: Engagement with stakeholders during development | D17: 0.125 | E17: 0.00625 | F17: 0 | G17: 3 | H17: =IFERROR((((INDEX('DATA TABLE'!$J$13:$AC$66, MATCH('SCORE TABLE'!$B17,'DATA TABLE'!$B$13:$B$66,0),MATCH('SCORE TABLE'!H$9,'DATA TABLE'!$J$9:$AC$9,0)))-'SCORE TABLE'!$F17)/('SCORE TABLE'!$G17-'SCORE TABLE'!$F17))*100,0) -> 66.66666667 | I17: =IFERROR((((INDEX('DATA TABLE'!$J$13:$AC$66, MATCH('SCORE TABLE'!$B17,'DATA TABLE'!$B$13:$B$66,0),MATCH('SCORE TABLE'!I$9,'DATA TABLE'!$J$9:$AC$9,0)))-'SCORE TABLE'!$F17)/('SCORE TABLE'!$G17-'SCORE TABLE'!$F17))*100,0) -> 100 | J17: =IFERROR((((INDEX('DATA TABLE'!$J$13:$AC$66, MATCH('SCORE TABLE'!$B17,'DATA TABLE'!$B$13:$B$66,0),MATCH('SCORE TABLE'!J$9,'DATA TABLE'!$J$9:$AC$9,0)))-'SCORE TABLE'!$F17)/('SCORE TABLE'!$G17-'SCORE TABLE'!$F17))*100,0) -> 0 | K17: =IFERROR((((INDEX('DATA TABLE'!$J$13:$AC$66, MATCH('SCORE TABLE'!$B17,'DATA TABLE'!$B$13:$B$66,0),MATCH('SCORE TABLE'!K$9,'DATA TABLE'!$J$9:$AC$9,0)))-'SCORE TABLE'!$F17)/('SCORE TABLE'!$G17-'SCORE TABLE'!$F17))*100,0) -> 66.66666667 | L17: =IFERROR((((INDEX('DATA TABLE'!$J$13:$AC$66, MATCH('SCORE TABLE'!$B17,'DATA TABLE'!$B$13:$B$66,0),MATCH('SCORE TABLE'!L$9,'DATA TABLE'!$J$9:$AC$9,0)))-'SCORE TABLE'!$F17)/('SCORE TABLE'!$G17-'SCORE TABLE'!$F17))*100,0) -> 0 | M17: =IFERROR((((INDEX('DATA TABLE'!$J$13:$AC$66, MATCH('SCORE TABLE'!$B17,'DATA TABLE'!$B$13:$B$66,0),MATCH('SCORE TABLE'!M$9,'DATA TABLE'!$J$9:$AC$9,0)))-'SCORE TABLE'!$F17)/('SCORE TABLE'!$G17-'SCORE TABLE'!$F17))*100,0) -> 0 | N17: =IFERROR((((INDEX('DATA TABLE'!$J$13:$AC$66, MATCH('SCORE TABLE'!$B17,'DATA TABLE'!$B$13:$B$66,0),MATCH('SCORE TABLE'!N$9,'DATA TABLE'!$J$9:$AC$9,0)))-'SCORE TABLE'!$F17)/('SCORE TABLE'!$G17-'SCORE TABLE'!$F17))*100,0) -> 66.66666667 | O17: =IFERROR((((INDEX('DATA TABLE'!$J$13:$AC$66, MATCH('SCORE TABLE'!$B17,'DATA TABLE'!$B$13:$B$66,0),MATCH('SCORE TABLE'!O$9,'DATA TABLE'!$J$9:$AC$9,0)))-'SCORE TABLE'!$F17)/('SCORE TABLE'!$G17-'SCORE TABLE'!$F17))*100,0) -> 0 | P17: =IFERROR((((INDEX('DATA TABLE'!$J$13:$AC$66, MATCH('SCORE TABLE'!$B17,'DATA TABLE'!$B$13:$B$66,0),MATCH('SCORE TABLE'!P$9,'DATA TABLE'!$J$9:$AC$9,0)))-'SCORE TABLE'!$F17)/('SCORE TABLE'!$G17-'SCORE TABLE'!$F17))*100,0) -> 66.66666667 | Q17: =IFERROR((((INDEX('DATA TABLE'!$J$13:$AC$66, MATCH('SCORE TABLE'!$B17,'DATA TABLE'!$B$13:$B$66,0),MATCH('SCORE TABLE'!Q$9,'DATA TABLE'!$J$9:$AC$9,0)))-'SCORE TABLE'!$F17)/('SCORE TABLE'!$G17-'SCORE TABLE'!$F17))*100,0) -> 0 | R17: =IFERROR((((INDEX('DATA TABLE'!$J$13:$AC$66, MATCH('SCORE TABLE'!$B17,'DATA TABLE'!$B$13:$B$66,0),MATCH('SCORE TABLE'!R$9,'DATA TABLE'!$J$9:$AC$9,0)))-'SCORE TABLE'!$F17)/('SCORE TABLE'!$G17-'SCORE TABLE'!$F17))*100,0) -> 0 | S17: =IFERROR((((INDEX('DATA TABLE'!$J$13:$AC$66, MATCH('SCORE TABLE'!$B17,'DATA TABLE'!$B$13:$B$66,0),MATCH('SCORE TABLE'!S$9,'DATA TABLE'!$J$9:$AC$9,0)))-'SCORE TABLE'!$F17)/('SCORE TABLE'!$G17-'SCORE TABLE'!$F17))*100,0) -> 66.66666667 | T17: =IFERROR((((INDEX('DATA TABLE'!$J$13:$AC$66, MATCH('SCORE TABLE'!$B17,'DATA TABLE'!$B$13:$B$66,0),MATCH('SCORE TABLE'!T$9,'DATA TABLE'!$J$9:$AC$9,0)))-'SCORE TABLE'!$F17)/('SCORE TABLE'!$G17-'SCORE TABLE'!$F17))*100,0) -> 66.66666667 | U17: =IFERROR((((INDEX('DATA TABLE'!$J$13:$AC$66, MATCH('SCORE TABLE'!$B17,'DATA TABLE'!$B$13:$B$66,0),MATCH('SCORE TABLE'!U$9,'DATA TABLE'!$J$9:$AC$9,0)))-'SCORE TABLE'!$F17)/('SCORE TABLE'!$G17-'SCORE TABLE'!$F17))*100,0) -> 66.66666667 | V17: =IFERROR((((INDEX('DATA TABLE'!$J$13:$AC$66, MATCH('SCORE TABLE'!$B17,'DATA TABLE'!$B$13:$B$66,0),MATCH('SCORE TABLE'!V$9,'DATA TABLE'!$J$9:$AC$9,0)))-'SCORE TABLE'!$F17)/('SCORE TABLE'!$G17-'SCORE TABLE'!$F17))*100,0) -> 0 | W17: =IFERROR((((INDEX('DATA TABLE'!$J$13:$AC$66, MATCH('SCORE TABLE'!$B17,'DATA TABLE'!$B$13:$B$66,0),MATCH('SCORE TABLE'!W$9,'DATA TABLE'!$J$9:$AC$9,0)))-'SCORE TABLE'!$F17)/('SCORE TABLE'!$G17-'SCORE TABLE'!$F17))*100,0) -> 66.66666667 | X17: =IFERROR((((INDEX('DATA TABLE'!$J$13:$AC$66, MATCH('SCORE TABLE'!$B17,'DATA TABLE'!$B$13:$B$66,0),MATCH('SCORE TABLE'!X$9,'DATA TABLE'!$J$9:$AC$9,0)))-'SCORE TABLE'!$F17)/('SCORE TABLE'!$G17-'SCORE TABLE'!$F17))*100,0) -> 0 | Y17: =IFERROR((((INDEX('DATA TABLE'!$J$13:$AC$66, MATCH('SCORE TABLE'!$B17,'DATA TABLE'!$B$13:$B$66,0),MATCH('SCORE TABLE'!Y$9,'DATA TABLE'!$J$9:$AC$9,0)))-'SCORE TABLE'!$F17)/('SCORE TABLE'!$G17-'SCORE TABLE'!$F17))*100,0) -> 0 | Z17: =IFERROR((((INDEX('DATA TABLE'!$J$13:$AC$66, MATCH('SCORE TABLE'!$B17,'DATA TABLE'!$B$13:$B$66,0),MATCH('SCORE TABLE'!Z$9,'DATA TABLE'!$J$9:$AC$9,0)))-'SCORE TABLE'!$F17)/('SCORE TABLE'!$G17-'SCORE TABLE'!$F17))*100,0) -> 0 | AA17: =IFERROR((((INDEX('DATA TABLE'!$J$13:$AC$66, MATCH('SCORE TABLE'!$B17,'DATA TABLE'!$B$13:$B$66,0),MATCH('SCORE TABLE'!AA$9,'DATA TABLE'!$J$9:$AC$9,0)))-'SCORE TABLE'!$F17)/('SCORE TABLE'!$G17-'SCORE TABLE'!$F17))*100,0) -> 66.66666667
A18: 1007 | B18: 1.1.3c | C18: Measures for obesity prevention | D18: 0.125 | E18: 0.00625 | F18: 0 | G18: 3 | H18: =IFERROR((((INDEX('DATA TABLE'!$J$13:$AC$66, MATCH('SCORE TABLE'!$B18,'DATA TABLE'!$B$13:$B$66,0),MATCH('SCORE TABLE'!H$9,'DATA TABLE'!$J$9:$AC$9,0)))-'SCORE TABLE'!$F18)/('SCORE TABLE'!$G18-'SCORE TABLE'!$F18))*100,0) -> 100 | I18: =IFERROR((((INDEX('DATA TABLE'!$J$13:$AC$66, MATCH('SCORE TABLE'!$B18,'DATA TABLE'!$B$13:$B$66,0),MATCH('SCORE TABLE'!I$9,'DATA TABLE'!$J$9:$AC$9,0)))-'SCORE TABLE'!$F18)/('SCORE TABLE'!$G18-'SCORE TABLE'!$F18))*100,0) -> 66.66666667 | J18: =IFERROR((((INDEX('DATA TABLE'!$J$13:$AC$66, MATCH('SCORE TABLE'!$B18,'DATA TABLE'!$B$13:$B$66,0),MATCH('SCORE TABLE'!J$9,'DATA TABLE'!$J$9:$AC$9,0)))-'SCORE TABLE'!$F18)/('SCORE TABLE'!$G18-'SCORE TABLE'!$F18))*100,0) -> 0 | K18: =IFERROR((((INDEX('DATA TABLE'!$J$13:$AC$66, MATCH('SCORE TABLE'!$B18,'DATA TABLE'!$B$13:$B$66,0),MATCH('SCORE TABLE'!K$9,'DATA TABLE'!$J$9:$AC$9,0)))-'SCORE TABLE'!$F18)/('SCORE TABLE'!$G18-'SCORE TABLE'!$F18))*100,0) -> 66.66666667 | L18: =IFERROR((((INDEX('DATA TABLE'!$J$13:$AC$66, MATCH('SCORE TABLE'!$B18,'DATA TABLE'!$B$13:$B$66,0),MATCH('SCORE TABLE'!L$9,'DATA TABLE'!$J$9:$AC$9,0)))-'SCORE TABLE'!$F18)/('SCORE TABLE'!$G18-'SCORE TABLE'!$F18))*100,0) -> 0 | M18: =IFERROR((((INDEX('DATA TABLE'!$J$13:$AC$66, MATCH('SCORE TABLE'!$B18,'DATA TABLE'!$B$13:$B$66,0),MATCH('SCORE TABLE'!M$9,'DATA TABLE'!$J$9:$AC$9,0)))-'SCORE TABLE'!$F18)/('SCORE TABLE'!$G18-'SCORE TABLE'!$F18))*100,0) -> 0 | N18: =IFERROR((((INDEX('DATA TABLE'!$J$13:$AC$66, MATCH('SCORE TABLE'!$B18,'DATA TABLE'!$B$13:$B$66,0),MATCH('SCORE TABLE'!N$9,'DATA TABLE'!$J$9:$AC$9,0)))-'SCORE TABLE'!$F18)/('SCORE TABLE'!$G18-'SCORE TABLE'!$F18))*100,0) -> 66.66666667 | O18: =IFERROR((((INDEX('DATA TABLE'!$J$13:$AC$66, MATCH('SCORE TABLE'!$B18,'DATA TABLE'!$B$13:$B$66,0),MATCH('SCORE TABLE'!O$9,'DATA TABLE'!$J$9:$AC$9,0)))-'SCORE TABLE'!$F18)/('SCORE TABLE'!$G18-'SCORE TABLE'!$F18))*100,0) -> 0 | P18: =IFERROR((((INDEX('DATA TABLE'!$J$13:$AC$66, MATCH('SCORE TABLE'!$B18,'DATA TABLE'!$B$13:$B$66,0),MATCH('SCORE TABLE'!P$9,'DATA TABLE'!$J$9:$AC$9,0)))-'SCORE TABLE'!$F18)/('SCORE TABLE'!$G18-'SCORE TABLE'!$F18))*100,0) -> 33.33333333 | Q18: =IFERROR((((INDEX('DATA TABLE'!$J$13:$AC$66, MATCH('SCORE TABLE'!$B18,'DATA TABLE'!$B$13:$B$66,0),MATCH('SCORE TABLE'!Q$9,'DATA TABLE'!$J$9:$AC$9,0)))-'SCORE TABLE'!$F18)/('SCORE TABLE'!$G18-'SCORE TABLE'!$F18))*100,0) -> 0 | R18: =IFERROR((((INDEX('DATA TABLE'!$J$13:$AC$66, MATCH('SCORE TABLE'!$B18,'DATA TABLE'!$B$13:$B$66,0),MATCH('SCORE TABLE'!R$9,'DATA TABLE'!$J$9:$AC$9,0)))-'SCORE TABLE'!$F18)/('SCORE TABLE'!$G18-'SCORE TABLE'!$F18))*100,0) -> 0 | S18: =IFERROR((((INDEX('DATA TABLE'!$J$13:$AC$66, MATCH('SCORE TABLE'!$B18,'DATA TABLE'!$B$13:$B$66,0),MATCH('SCORE TABLE'!S$9,'DATA TABLE'!$J$9:$AC$9,0)))-'SCORE TABLE'!$F18)/('SCORE TABLE'!$G18-'SCORE TABLE'!$F18))*100,0) -> 100 | T18: =IFERROR((((INDEX('DATA TABLE'!$J$13:$AC$66, MATCH('SCORE TABLE'!$B18,'DATA TABLE'!$B$13:$B$66,0),MATCH('SCORE TABLE'!T$9,'DATA TABLE'!$J$9:$AC$9,0)))-'SCORE TABLE'!$F18)/('SCORE TABLE'!$G18-'SCORE TABLE'!$F18))*100,0) -> 100 | U18: =IFERROR((((INDEX('DATA TABLE'!$J$13:$AC$66, MATCH('SCORE TABLE'!$B18,'DATA TABLE'!$B$13:$B$66,0),MATCH('SCORE TABLE'!U$9,'DATA TABLE'!$J$9:$AC$9,0)))-'SCORE TABLE'!$F18)/('SCORE TABLE'!$G18-'SCORE TABLE'!$F18))*100,0) -> 66.66666667 | V18: =IFERROR((((INDEX('DATA TABLE'!$J$13:$AC$66, MATCH('SCORE TABLE'!$B18,'DATA TABLE'!$B$13:$B$66,0),MATCH('SCORE TABLE'!V$9,'DATA TABLE'!$J$9:$AC$9,0)))-'SCORE TABLE'!$F18)/('SCORE TABLE'!$G18-'SCORE TABLE'!$F18))*100,0) -> 100 | W18: =IFERROR((((INDEX('DATA TABLE'!$J$13:$AC$66, MATCH('SCORE TABLE'!$B18,'DATA TABLE'!$B$13:$B$66,0),MATCH('SCORE TABLE'!W$9,'DATA TABLE'!$J$9:$AC$9,0)))-'SCORE TABLE'!$F18)/('SCORE TABLE'!$G18-'SCORE TABLE'!$F18))*100,0) -> 100 | X18: =IFERROR((((INDEX('DATA TABLE'!$J$13:$AC$66, MATCH('SCORE TABLE'!$B18,'DATA TABLE'!$B$13:$B$66,0),MATCH('SCORE TABLE'!X$9,'DATA TABLE'!$J$9:$AC$9,0)))-'SCORE TABLE'!$F18)/('SCORE TABLE'!$G18-'SCORE TABLE'!$F18))*100,0) -> 100 | Y18: =IFERROR((((INDEX('DATA TABLE'!$J$13:$AC$66, MATCH('SCORE TABLE'!$B18,'DATA TABLE'!$B$13:$B$66,0),MATCH('SCORE TABLE'!Y$9,'DATA TABLE'!$J$9:$AC$9,0)))-'SCORE TABLE'!$F18)/('SCORE TABLE'!$G18-'SCORE TABLE'!$F18))*100,0) -> 0 | Z18: =IFERROR((((INDEX('DATA TABLE'!$J$13:$AC$66, MATCH('SCORE TABLE'!$B18,'DATA TABLE'!$B$13:$B$66,0),MATCH('SCORE TABLE'!Z$9,'DATA TABLE'!$J$9:$AC$9,0)))-'SCORE TABLE'!$F18)/('SCORE TABLE'!$G18-'SCORE TABLE'!$F18))*100,0) -> 0 | AA18: =IFERROR((((INDEX('DATA TABLE'!$J$13:$AC$66, MATCH('SCORE TABLE'!$B18,'DATA TABLE'!$B$13:$B$66,0),MATCH('SCORE TABLE'!AA$9,'DATA TABLE'!$J$9:$AC$9,0)))-'SCORE TABLE'!$F18)/('SCORE TABLE'!$G18-'SCORE TABLE'!$F18))*100,0) -> 66.66666667
A19: 1008 | B19: 1.1.3d | C19: Measures for obesity management | D19: 0.125 | E19: 0.00625 | F19: 0 | G19: 3 | H19: =IFERROR((((INDEX('DATA TABLE'!$J$13:$AC$66, MATCH('SCORE TABLE'!$B19,'DATA TABLE'!$B$13:$B$66,0),MATCH('SCORE TABLE'!H$9,'DATA TABLE'!$J$9:$AC$9,0)))-'SCORE TABLE'!$F19)/('SCORE TABLE'!$G19-'SCORE TABLE'!$F19))*100,0) -> 100 | I19: =IFERROR((((INDEX('DATA TABLE'!$J$13:$AC$66, MATCH('SCORE TABLE'!$B19,'DATA TABLE'!$B$13:$B$66,0),MATCH('SCORE TABLE'!I$9,'DATA TABLE'!$J$9:$AC$9,0)))-'SCORE TABLE'!$F19)/('SCORE TABLE'!$G19-'SCORE TABLE'!$F19))*100,0) -> 0 | J19: =IFERROR((((INDEX('DATA TABLE'!$J$13:$AC$66, MATCH('SCORE TABLE'!$B19,'DATA TABLE'!$B$13:$B$66,0),MATCH('SCORE TABLE'!J$9,'DATA TABLE'!$J$9:$AC$9,0)))-'SCORE TABLE'!$F19)/('SCORE TABLE'!$G19-'SCORE TABLE'!$F19))*100,0) -> 0 | K19: =IFERROR((((INDEX('DATA TABLE'!$J$13:$AC$66, MATCH('SCORE TABLE'!$B19,'DATA TABLE'!$B$13:$B$66,0),MATCH('SCORE TABLE'!K$9,'DATA TABLE'!$J$9:$AC$9,0)))-'SCORE TABLE'!$F19)/('SCORE TABLE'!$G19-'SCORE TABLE'!$F19))*100,0) -> 66.66666667 | L19: =IFERROR((((INDEX('DATA TABLE'!$J$13:$AC$66, MATCH('SCORE TABLE'!$B19,'DATA TABLE'!$B$13:$B$66,0),MATCH('SCORE TABLE'!L$9,'DATA TABLE'!$J$9:$AC$9,0)))-'SCORE TABLE'!$F19)/('SCORE TABLE'!$G19-'SCORE TABLE'!$F19))*100,0) -> 0 | M19: =IFERROR((((INDEX('DATA TABLE'!$J$13:$AC$66, MATCH('SCORE TABLE'!$B19,'DATA TABLE'!$B$13:$B$66,0),MATCH('SCORE TABLE'!M$9,'DATA TABLE'!$J$9:$AC$9,0)))-'SCORE TABLE'!$F19)/('SCORE TABLE'!$G19-'SCORE TABLE'!$F19))*100,0) -> 0 | N19: =IFERROR((((INDEX('DATA TABLE'!$J$13:$AC$66, MATCH('SCORE TABLE'!$B19,'DATA TABLE'!$B$13:$B$66,0),MATCH('SCORE TABLE'!N$9,'DATA TABLE'!$J$9:$AC$9,0)))-'SCORE TABLE'!$F19)/('SCORE TABLE'!$G19-'SCORE TABLE'!$F19))*100,0) -> 0 | O19: =IFERROR((((INDEX('DATA TABLE'!$J$13:$AC$66, MATCH('SCORE TABLE'!$B19,'DATA TABLE'!$B$13:$B$66,0),MATCH('SCORE TABLE'!O$9,'DATA TABLE'!$J$9:$AC$9,0)))-'SCORE TABLE'!$F19)/('SCORE TABLE'!$G19-'SCORE TABLE'!$F19))*100,0) -> 0 | P19: =IFERROR((((INDEX('DATA TABLE'!$J$13:$AC$66, MATCH('SCORE TABLE'!$B19,'DATA TABLE'!$B$13:$B$66,0),MATCH('SCORE TABLE'!P$9,'DATA TABLE'!$J$9:$AC$9,0)))-'SCORE TABLE'!$F19)/('SCORE TABLE'!$G19-'SCORE TABLE'!$F19))*100,0) -> 33.33333333 | Q19: =IFERROR((((INDEX('DATA TABLE'!$J$13:$AC$66, MATCH('SCORE TABLE'!$B19,'DATA TABLE'!$B$13:$B$66,0),MATCH('SCORE TABLE'!Q$9,'DATA TABLE'!$J$9:$AC$9,0)))-'SCORE TABLE'!$F19)/('SCORE TABLE'!$G19-'SCORE TABLE'!$F19))*100,0) -> 0 | R19: =IFERROR((((INDEX('DATA TABLE'!$J$13:$AC$66, MATCH('SCORE TABLE'!$B19,'DATA TABLE'!$B$13:$B$66,0),MATCH('SCORE TABLE'!R$9,'DATA TABLE'!$J$9:$AC$9,0)))-'SCORE TABLE'!$F19)/('SCORE TABLE'!$G19-'SCORE TABLE'!$F19))*100,0) -> 0 | S19: =IFERROR((((INDEX('DATA TABLE'!$J$13:$AC$66, MATCH('SCORE TABLE'!$B19,'DATA TABLE'!$B$13:$B$66,0),MATCH('SCORE TABLE'!S$9,'DATA TABLE'!$J$9:$AC$9,0)))-'SCORE TABLE'!$F19)/('SCORE TABLE'!$G19-'SCORE TABLE'!$F19))*100,0) -> 33.33333333 | T19: =IFERROR((((INDEX('DATA TABLE'!$J$13:$AC$66, MATCH('SCORE TABLE'!$B19,'DATA TABLE'!$B$13:$B$66,0),MATCH('SCORE TABLE'!T$9,'DATA TABLE'!$J$9:$AC$9,0)))-'SCORE TABLE'!$F19)/('SCORE TABLE'!$G19-'SCORE TABLE'!$F19))*100,0) -> 0 | U19: =IFERROR((((INDEX('DATA TABLE'!$J$13:$AC$66, MATCH('SCORE TABLE'!$B19,'DATA TABLE'!$B$13:$B$66,0),MATCH('SCORE TABLE'!U$9,'DATA TABLE'!$J$9:$AC$9,0)))-'SCORE TABLE'!$F19)/('SCORE TABLE'!$G19-'SCORE TABLE'!$F19))*100,0) -> 0 | V19: =IFERROR((((INDEX('DATA TABLE'!$J$13:$AC$66, MATCH('SCORE TABLE'!$B19,'DATA TABLE'!$B$13:$B$66,0),MATCH('SCORE TABLE'!V$9,'DATA TABLE'!$J$9:$AC$9,0)))-'SCORE TABLE'!$F19)/('SCORE TABLE'!$G19-'SCORE TABLE'!$F19))*100,0) -> 100 | W19: =IFERROR((((INDEX('DATA TABLE'!$J$13:$AC$66, MATCH('SCORE TABLE'!$B19,'DATA TABLE'!$B$13:$B$66,0),MATCH('SCORE TABLE'!W$9,'DATA TABLE'!$J$9:$AC$9,0)))-'SCORE TABLE'!$F19)/('SCORE TABLE'!$G19-'SCORE TABLE'!$F19))*100,0) -> 100 | X19: =IFERROR((((INDEX('DATA TABLE'!$J$13:$AC$66, MATCH('SCORE TABLE'!$B19,'DATA TABLE'!$B$13:$B$66,0),MATCH('SCORE TABLE'!X$9,'DATA TABLE'!$J$9:$AC$9,0)))-'SCORE TABLE'!$F19)/('SCORE TABLE'!$G19-'SCORE TABLE'!$F19))*100,0) -> 100 | Y19: =IFERROR((((INDEX('DATA TABLE'!$J$13:$AC$66, MATCH('SCORE TABLE'!$B19,'DATA TABLE'!$B$13:$B$66,0),MATCH('SCORE TABLE'!Y$9,'DATA TABLE'!$J$9:$AC$9,0)))-'SCORE TABLE'!$F19)/('SCORE TABLE'!$G19-'SCORE TABLE'!$F19))*100,0) -> 0 | Z19: =IFERROR((((INDEX('DATA TABLE'!$J$13:$AC$66, MATCH('SCORE TABLE'!$B19,'DATA TABLE'!$B$13:$B$66,0),MATCH('SCORE TABLE'!Z$9,'DATA TABLE'!$J$9:$AC$9,0)))-'SCORE TABLE'!$F19)/('SCORE TABLE'!$G19-'SCORE TABLE'!$F19))*100,0) -> 0 | AA19: =IFERROR((((INDEX('DATA TABLE'!$J$13:$AC$66, MATCH('SCORE TABLE'!$B19,'DATA TABLE'!$B$13:$B$66,0),MATCH('SCORE TABLE'!AA$9,'DATA TABLE'!$J$9:$AC$9,0)))-'SCORE TABLE'!$F19)/('SCORE TABLE'!$G19-'SCORE TABLE'!$F19))*100,0) -> 66.66666667
A20: 1009 | B20: 1.1.3e | C20: Targets for obesity prevalence reduction | D20: 0.125 | E20: 0.00625 | F20: 0 | G20: 2 | H20: =IFERROR((((INDEX('DATA TABLE'!$J$13:$AC$66, MATCH('SCORE TABLE'!$B20,'DATA TABLE'!$B$13:$B$66,0),MATCH('SCORE TABLE'!H$9,'DATA TABLE'!$J$9:$AC$9,0)))-'SCORE TABLE'!$F20)/('SCORE TABLE'!$G20-'SCORE TABLE'!$F20))*100,0) -> 50 | I20: =IFERROR((((INDEX('DATA TABLE'!$J$13:$AC$66, MATCH('SCORE TABLE'!$B20,'DATA TABLE'!$B$13:$B$66,0),MATCH('SCORE TABLE'!I$9,'DATA TABLE'!$J$9:$AC$9,0)))-'SCORE TABLE'!$F20)/('SCORE TABLE'!$G20-'SCORE TABLE'!$F20))*100,0) -> 0 | J20: =IFERROR((((INDEX('DATA TABLE'!$J$13:$AC$66, MATCH('SCORE TABLE'!$B20,'DATA TABLE'!$B$13:$B$66,0),MATCH('SCORE TABLE'!J$9,'DATA TABLE'!$J$9:$AC$9,0)))-'SCORE TABLE'!$F20)/('SCORE TABLE'!$G20-'SCORE TABLE'!$F20))*100,0) -> 0 | K20: =IFERROR((((INDEX('DATA TABLE'!$J$13:$AC$66, MATCH('SCORE TABLE'!$B20,'DATA TABLE'!$B$13:$B$66,0),MATCH('SCORE TABLE'!K$9,'DATA TABLE'!$J$9:$AC$9,0)))-'SCORE TABLE'!$F20)/('SCORE TABLE'!$G20-'SCORE TABLE'!$F20))*100,0) -> 0 | L20: =IFERROR((((INDEX('DATA TABLE'!$J$13:$AC$66, MATCH('SCORE TABLE'!$B20,'DATA TABLE'!$B$13:$B$66,0),MATCH('SCORE TABLE'!L$9,'DATA TABLE'!$J$9:$AC$9,0)))-'SCORE TABLE'!$F20)/('SCORE TABLE'!$G20-'SCORE TABLE'!$F20))*100,0) -> 0 | M20: =IFERROR((((INDEX('DATA TABLE'!$J$13:$AC$66, MATCH('SCORE TABLE'!$B20,'DATA TABLE'!$B$13:$B$66,0),MATCH('SCORE TABLE'!M$9,'DATA TABLE'!$J$9:$AC$9,0)))-'SCORE TABLE'!$F20)/('SCORE TABLE'!$G20-'SCORE TABLE'!$F20))*100,0) -> 0 | N20: =IFERROR((((INDEX('DATA TABLE'!$J$13:$AC$66, MATCH('SCORE TABLE'!$B20,'DATA TABLE'!$B$13:$B$66,0),MATCH('SCORE TABLE'!N$9,'DATA TABLE'!$J$9:$AC$9,0)))-'SCORE TABLE'!$F20)/('SCORE TABLE'!$G20-'SCORE TABLE'!$F20))*100,0) -> 0 | O20: =IFERROR((((INDEX('DATA TABLE'!$J$13:$AC$66, MATCH('SCORE TABLE'!$B20,'DATA TABLE'!$B$13:$B$66,0),MATCH('SCORE TABLE'!O$9,'DATA TABLE'!$J$9:$AC$9,0)))-'SCORE TABLE'!$F20)/('SCORE TABLE'!$G20-'SCORE TABLE'!$F20))*100,0) -> 0 | P20: =IFERROR((((INDEX('DATA TABLE'!$J$13:$AC$66, MATCH('SCORE TABLE'!$B20,'DATA TABLE'!$B$13:$B$66,0),MATCH('SCORE TABLE'!P$9,'DATA TABLE'!$J$9:$AC$9,0)))-'SCORE TABLE'!$F20)/('SCORE TABLE'!$G20-'SCORE TABLE'!$F20))*100,0) -> 0 | Q20: =IFERROR((((INDEX('DATA TABLE'!$J$13:$AC$66, MATCH('SCORE TABLE'!$B20,'DATA TABLE'!$B$13:$B$66,0),MATCH('SCORE TABLE'!Q$9,'DATA TABLE'!$J$9:$AC$9,0)))-'SCORE TABLE'!$F20)/('SCORE TABLE'!$G20-'SCORE TABLE'!$F20))*100,0) -> 0 | R20: =IFERROR((((INDEX('DATA TABLE'!$J$13:$AC$66, MATCH('SCORE TABLE'!$B20,'DATA TABLE'!$B$13:$B$66,0),MATCH('SCORE TABLE'!R$9,'DATA TABLE'!$J$9:$AC$9,0)))-'SCORE TABLE'!$F20)/('SCORE TABLE'!$G20-'SCORE TABLE'!$F20))*100,0) -> 0 | S20: =IFERROR((((INDEX('DATA TABLE'!$J$13:$AC$66, MATCH('SCORE TABLE'!$B20,'DATA TABLE'!$B$13:$B$66,0),MATCH('SCORE TABLE'!S$9,'DATA TABLE'!$J$9:$AC$9,0)))-'SCORE TABLE'!$F20)/('SCORE TABLE'!$G20-'SCORE TABLE'!$F20))*100,0) -> 100 | T20: =IFERROR((((INDEX('DATA TABLE'!$J$13:$AC$66, MATCH('SCORE TABLE'!$B20,'DATA TABLE'!$B$13:$B$66,0),MATCH('SCORE TABLE'!T$9,'DATA TABLE'!$J$9:$AC$9,0)))-'SCORE TABLE'!$F20)/('SCORE TABLE'!$G20-'SCORE TABLE'!$F20))*100,0) -> 50 | U20: =IFERROR((((INDEX('DATA TABLE'!$J$13:$AC$66, MATCH('SCORE TABLE'!$B20,'DATA TABLE'!$B$13:$B$66,0),MATCH('SCORE TABLE'!U$9,'DATA TABLE'!$J$9:$AC$9,0)))-'SCORE TABLE'!$F20)/('SCORE TABLE'!$G20-'SCORE TABLE'!$F20))*100,0) -> 50 | V20: =IFERROR((((INDEX('DATA TABLE'!$J$13:$AC$66, MATCH('SCORE TABLE'!$B20,'DATA TABLE'!$B$13:$B$66,0),MATCH('SCORE TABLE'!V$9,'DATA TABLE'!$J$9:$AC$9,0)))-'SCORE TABLE'!$F20)/('SCORE TABLE'!$G20-'SCORE TABLE'!$F20))*100,0) -> 50 | W20: =IFERROR((((INDEX('DATA TABLE'!$J$13:$AC$66, MATCH('SCORE TABLE'!$B20,'DATA TABLE'!$B$13:$B$66,0),MATCH('SCORE TABLE'!W$9,'DATA TABLE'!$J$9:$AC$9,0)))-'SCORE TABLE'!$F20)/('SCORE TABLE'!$G20-'SCORE TABLE'!$F20))*100,0) -> 0 | X20: =IFERROR((((INDEX('DATA TABLE'!$J$13:$AC$66, MATCH('SCORE TABLE'!$B20,'DATA TABLE'!$B$13:$B$66,0),MATCH('SCORE TABLE'!X$9,'DATA TABLE'!$J$9:$AC$9,0)))-'SCORE TABLE'!$F20)/('SCORE TABLE'!$G20-'SCORE TABLE'!$F20))*100,0) -> 50 | Y20: =IFERROR((((INDEX('DATA TABLE'!$J$13:$AC$66, MATCH('SCORE TABLE'!$B20,'DATA TABLE'!$B$13:$B$66,0),MATCH('SCORE TABLE'!Y$9,'DATA TABLE'!$J$9:$AC$9,0)))-'SCORE TABLE'!$F20)/('SCORE TABLE'!$G20-'SCORE TABLE'!$F20))*100,0) -> 0 | Z20: =IFERROR((((INDEX('DATA TABLE'!$J$13:$AC$66, MATCH('SCORE TABLE'!$B20,'DATA TABLE'!$B$13:$B$66,0),MATCH('SCORE TABLE'!Z$9,'DATA TABLE'!$J$9:$AC$9,0)))-'SCORE TABLE'!$F20)/('SCORE TABLE'!$G20-'SCORE TABLE'!$F20))*100,0) -> 0 | AA20: =IFERROR((((INDEX('DATA TABLE'!$J$13:$AC$66, MATCH('SCORE TABLE'!$B20,'DATA TABLE'!$B$13:$B$66,0),MATCH('SCORE TABLE'!AA$9,'DATA TABLE'!$J$9:$AC$9,0)))-'SCORE TABLE'!$F20)/('SCORE TABLE'!$G20-'SCORE TABLE'!$F20))*100,0) -> 0
A21: 1010 | B21: 1.1.3f | C21: Focus on vulnerable groups | D21: 0.125 | E21: 0.00625 | F21: 0 | G21: 2 | H21: =IFERROR((((INDEX('DATA TABLE'!$J$13:$AC$66, MATCH('SCORE TABLE'!$B21,'DATA TABLE'!$B$13:$B$66,0),MATCH('SCORE TABLE'!H$9,'DATA TABLE'!$J$9:$AC$9,0)))-'SCORE TABLE'!$F21)/('SCORE TABLE'!$G21-'SCORE TABLE'!$F21))*100,0) -> 100 | I21: =IFERROR((((INDEX('DATA TABLE'!$J$13:$AC$66, MATCH('SCORE TABLE'!$B21,'DATA TABLE'!$B$13:$B$66,0),MATCH('SCORE TABLE'!I$9,'DATA TABLE'!$J$9:$AC$9,0)))-'SCORE TABLE'!$F21)/('SCORE TABLE'!$G21-'SCORE TABLE'!$F21))*100,0) -> 50 | J21: =IFERROR((((INDEX('DATA TABLE'!$J$13:$AC$66, MATCH('SCORE TABLE'!$B21,'DATA TABLE'!$B$13:$B$66,0),MATCH('SCORE TABLE'!J$9,'DATA TABLE'!$J$9:$AC$9,0)))-'SCORE TABLE'!$F21)/('SCORE TABLE'!$G21-'SCORE TABLE'!$F21))*100,0) -> 0 | K21: =IFERROR((((INDEX('DATA TABLE'!$J$13:$AC$66, MATCH('SCORE TABLE'!$B21,'DATA TABLE'!$B$13:$B$66,0),MATCH('SCORE TABLE'!K$9,'DATA TABLE'!$J$9:$AC$9,0)))-'SCORE TABLE'!$F21)/('SCORE TABLE'!$G21-'SCORE TABLE'!$F21))*100,0) -> 100 | L21: =IFERROR((((INDEX('DATA TABLE'!$J$13:$AC$66, MATCH('SCORE TABLE'!$B21,'DATA TABLE'!$B$13:$B$66,0),MATCH('SCORE TABLE'!L$9,'DATA TABLE'!$J$9:$AC$9,0)))-'SCORE TABLE'!$F21)/('SCORE TABLE'!$G21-'SCORE TABLE'!$F21))*100,0) -> 0 | M21: =IFERROR((((INDEX('DATA TABLE'!$J$13:$AC$66, MATCH('SCORE TABLE'!$B21,'DATA TABLE'!$B$13:$B$66,0),MATCH('SCORE TABLE'!M$9,'DATA TABLE'!$J$9:$AC$9,0)))-'SCORE TABLE'!$F21)/('SCORE TABLE'!$G21-'SCORE TABLE'!$F21))*100,0) -> 0 | N21: =IFERROR((((INDEX('DATA TABLE'!$J$13:$AC$66, MATCH('SCORE TABLE'!$B21,'DATA TABLE'!$B$13:$B$66,0),MATCH('SCORE TABLE'!N$9,'DATA TABLE'!$J$9:$AC$9,0)))-'SCORE TABLE'!$F21)/('SCORE TABLE'!$G21-'SCORE TABLE'!$F21))*100,0) -> 100 | O21: =IFERROR((((INDEX('DATA TABLE'!$J$13:$AC$66, MATCH('SCORE TABLE'!$B21,'DATA TABLE'!$B$13:$B$66,0),MATCH('SCORE TABLE'!O$9,'DATA TABLE'!$J$9:$AC$9,0)))-'SCORE TABLE'!$F21)/('SCORE TABLE'!$G21-'SCORE TABLE'!$F21))*100,0) -> 50 | P21: =IFERROR((((INDEX('DATA TABLE'!$J$13:$AC$66, MATCH('SCORE TABLE'!$B21,'DATA TABLE'!$B$13:$B$66,0),MATCH('SCORE TABLE'!P$9,'DATA TABLE'!$J$9:$AC$9,0)))-'SCORE TABLE'!$F21)/('SCORE TABLE'!$G21-'SCORE TABLE'!$F21))*100,0) -> 100 | Q21: =IFERROR((((INDEX('DATA TABLE'!$J$13:$AC$66, MATCH('SCORE TABLE'!$B21,'DATA TABLE'!$B$13:$B$66,0),MATCH('SCORE TABLE'!Q$9,'DATA TABLE'!$J$9:$AC$9,0)))-'SCORE TABLE'!$F21)/('SCORE TABLE'!$G21-'SCORE TABLE'!$F21))*100,0) -> 0 | R21: =IFERROR((((INDEX('DATA TABLE'!$J$13:$AC$66, MATCH('SCORE TABLE'!$B21,'DATA TABLE'!$B$13:$B$66,0),MATCH('SCORE TABLE'!R$9,'DATA TABLE'!$J$9:$AC$9,0)))-'SCORE TABLE'!$F21)/('SCORE TABLE'!$G21-'SCORE TABLE'!$F21))*100,0) -> 0 | S21: =IFERROR((((INDEX('DATA TABLE'!$J$13:$AC$66, MATCH('SCORE TABLE'!$B21,'DATA TABLE'!$B$13:$B$66,0),MATCH('SCORE TABLE'!S$9,'DATA TABLE'!$J$9:$AC$9,0)))-'SCORE TABLE'!$F21)/('SCORE TABLE'!$G21-'SCORE TABLE'!$F21))*100,0) -> 0 | T21: =IFERROR((((INDEX('DATA TABLE'!$J$13:$AC$66, MATCH('SCORE TABLE'!$B21,'DATA TABLE'!$B$13:$B$66,0),MATCH('SCORE TABLE'!T$9,'DATA TABLE'!$J$9:$AC$9,0)))-'SCORE TABLE'!$F21)/('SCORE TABLE'!$G21-'SCORE TABLE'!$F21))*100,0) -> 50 | U21: =IFERROR((((INDEX('DATA TABLE'!$J$13:$AC$66, MATCH('SCORE TABLE'!$B21,'DATA TABLE'!$B$13:$B$66,0),MATCH('SCORE TABLE'!U$9,'DATA TABLE'!$J$9:$AC$9,0)))-'SCORE TABLE'!$F21)/('SCORE TABLE'!$G21-'SCORE TABLE'!$F21))*100,0) -> 100 | V21: =IFERROR((((INDEX('DATA TABLE'!$J$13:$AC$66, MATCH('SCORE TABLE'!$B21,'DATA TABLE'!$B$13:$B$66,0),MATCH('SCORE TABLE'!V$9,'DATA TABLE'!$J$9:$AC$9,0)))-'SCORE TABLE'!$F21)/('SCORE TABLE'!$G21-'SCORE TABLE'!$F21))*100,0) -> 100 | W21: =IFERROR((((INDEX('DATA TABLE'!$J$13:$AC$66, MATCH('SCORE TABLE'!$B21,'DATA TABLE'!$B$13:$B$66,0),MATCH('SCORE TABLE'!W$9,'DATA TABLE'!$J$9:$AC$9,0)))-'SCORE TABLE'!$F21)/('SCORE TABLE'!$G21-'SCORE TABLE'!$F21))*100,0) -> 0 | X21: =IFERROR((((INDEX('DATA TABLE'!$J$13:$AC$66, MATCH('SCORE TABLE'!$B21,'DATA TABLE'!$B$13:$B$66,0),MATCH('SCORE TABLE'!X$9,'DATA TABLE'!$J$9:$AC$9,0)))-'SCORE TABLE'!$F21)/('SCORE TABLE'!$G21-'SCORE TABLE'!$F21))*100,0) -> 100 | Y21: =IFERROR((((INDEX('DATA TABLE'!$J$13:$AC$66, MATCH('SCORE TABLE'!$B21,'DATA TABLE'!$B$13:$B$66,0),MATCH('SCORE TABLE'!Y$9,'DATA TABLE'!$J$9:$AC$9,0)))-'SCORE TABLE'!$F21)/('SCORE TABLE'!$G21-'SCORE TABLE'!$F21))*100,0) -> 0 | Z21: =IFERROR((((INDEX('DATA TABLE'!$J$13:$AC$66, MATCH('SCORE TABLE'!$B21,'DATA TABLE'!$B$13:$B$66,0),MATCH('SCORE TABLE'!Z$9,'DATA TABLE'!$J$9:$AC$9,0)))-'SCORE TABLE'!$F21)/('SCORE TABLE'!$G21-'SCORE TABLE'!$F21))*100,0) -> 0 | AA21: =IFERROR((((INDEX('DATA TABLE'!$J$13:$AC$66, MATCH('SCORE TABLE'!$B21,'DATA TABLE'!$B$13:$B$66,0),MATCH('SCORE TABLE'!AA$9,'DATA TABLE'!$J$9:$AC$9,0)))-'SCORE TABLE'!$F21)/('SCORE TABLE'!$G21-'SCORE TABLE'!$F21))*100,0) -> 100
A22: 1011 | B22: 1.1.3g | C22: Obesity-related stigma and discrimination | D22: 0.125 | E22: 0.00625 | F22: 0 | G22: 2 | H22: =IFERROR((((INDEX('DATA TABLE'!$J$13:$AC$66, MATCH('SCORE TABLE'!$B22,'DATA TABLE'!$B$13:$B$66,0),MATCH('SCORE TABLE'!H$9,'DATA TABLE'!$J$9:$AC$9,0)))-'SCORE TABLE'!$F22)/('SCORE TABLE'!$G22-'SCORE TABLE'!$F22))*100,0) -> 100 | I22: =IFERROR((((INDEX('DATA TABLE'!$J$13:$AC$66, MATCH('SCORE TABLE'!$B22,'DATA TABLE'!$B$13:$B$66,0),MATCH('SCORE TABLE'!I$9,'DATA TABLE'!$J$9:$AC$9,0)))-'SCORE TABLE'!$F22)/('SCORE TABLE'!$G22-'SCORE TABLE'!$F22))*100,0) -> 100 | J22: =IFERROR((((INDEX('DATA TABLE'!$J$13:$AC$66, MATCH('SCORE TABLE'!$B22,'DATA TABLE'!$B$13:$B$66,0),MATCH('SCORE TABLE'!J$9,'DATA TABLE'!$J$9:$AC$9,0)))-'SCORE TABLE'!$F22)/('SCORE TABLE'!$G22-'SCORE TABLE'!$F22))*100,0) -> 0 | K22: =IFERROR((((INDEX('DATA TABLE'!$J$13:$AC$66, MATCH('SCORE TABLE'!$B22,'DATA TABLE'!$B$13:$B$66,0),MATCH('SCORE TABLE'!K$9,'DATA TABLE'!$J$9:$AC$9,0)))-'SCORE TABLE'!$F22)/('SCORE TABLE'!$G22-'SCORE TABLE'!$F22))*100,0) -> 0 | L22: =IFERROR((((INDEX('DATA TABLE'!$J$13:$AC$66, MATCH('SCORE TABLE'!$B22,'DATA TABLE'!$B$13:$B$66,0),MATCH('SCORE TABLE'!L$9,'DATA TABLE'!$J$9:$AC$9,0)))-'SCORE TABLE'!$F22)/('SCORE TABLE'!$G22-'SCORE TABLE'!$F22))*100,0) -> 0 | M22: =IFERROR((((INDEX('DATA TABLE'!$J$13:$AC$66, MATCH('SCORE TABLE'!$B22,'DATA TABLE'!$B$13:$B$66,0),MATCH('SCORE TABLE'!M$9,'DATA TABLE'!$J$9:$AC$9,0)))-'SCORE TABLE'!$F22)/('SCORE TABLE'!$G22-'SCORE TABLE'!$F22))*100,0) -> 0 | N22: =IFERROR((((INDEX('DATA TABLE'!$J$13:$AC$66, MATCH('SCORE TABLE'!$B22,'DATA TABLE'!$B$13:$B$66,0),MATCH('SCORE TABLE'!N$9,'DATA TABLE'!$J$9:$AC$9,0)))-'SCORE TABLE'!$F22)/('SCORE TABLE'!$G22-'SCORE TABLE'!$F22))*100,0) -> 0 | O22: =IFERROR((((INDEX('DATA TABLE'!$J$13:$AC$66, MATCH('SCORE TABLE'!$B22,'DATA TABLE'!$B$13:$B$66,0),MATCH('SCORE TABLE'!O$9,'DATA TABLE'!$J$9:$AC$9,0)))-'SCORE TABLE'!$F22)/('SCORE TABLE'!$G22-'SCORE TABLE'!$F22))*100,0) -> 0 | P22: =IFERROR((((INDEX('DATA TABLE'!$J$13:$AC$66, MATCH('SCORE TABLE'!$B22,'DATA TABLE'!$B$13:$B$66,0),MATCH('SCORE TABLE'!P$9,'DATA TABLE'!$J$9:$AC$9,0)))-'SCORE TABLE'!$F22)/('SCORE TABLE'!$G22-'SCORE TABLE'!$F22))*100,0) -> 50 | Q22: =IFERROR((((INDEX('DATA TABLE'!$J$13:$AC$66, MATCH('SCORE TABLE'!$B22,'DATA TABLE'!$B$13:$B$66,0),MATCH('SCORE TABLE'!Q$9,'DATA TABLE'!$J$9:$AC$9,0)))-'SCORE TABLE'!$F22)/('SCORE TABLE'!$G22-'SCORE TABLE'!$F22))*100,0) -> 0 | R22: =IFERROR((((INDEX('DATA TABLE'!$J$13:$AC$66, MATCH('SCORE TABLE'!$B22,'DATA TABLE'!$B$13:$B$66,0),MATCH('SCORE TABLE'!R$9,'DATA TABLE'!$J$9:$AC$9,0)))-'SCORE TABLE'!$F22)/('SCORE TABLE'!$G22-'SCORE TABLE'!$F22))*100,0) -> 0 | S22: =IFERROR((((INDEX('DATA TABLE'!$J$13:$AC$66, MATCH('SCORE TABLE'!$B22,'DATA TABLE'!$B$13:$B$66,0),MATCH('SCORE TABLE'!S$9,'DATA TABLE'!$J$9:$AC$9,0)))-'SCORE TABLE'!$F22)/('SCORE TABLE'!$G22-'SCORE TABLE'!$F22))*100,0) -> 0 | T22: =IFERROR((((INDEX('DATA TABLE'!$J$13:$AC$66, MATCH('SCORE TABLE'!$B22,'DATA TABLE'!$B$13:$B$66,0),MATCH('SCORE TABLE'!T$9,'DATA TABLE'!$J$9:$AC$9,0)))-'SCORE TABLE'!$F22)/('SCORE TABLE'!$G22-'SCORE TABLE'!$F22))*100,0) -> 0 | U22: =IFERROR((((INDEX('DATA TABLE'!$J$13:$AC$66, MATCH('SCORE TABLE'!$B22,'DATA TABLE'!$B$13:$B$66,0),MATCH('SCORE TABLE'!U$9,'DATA TABLE'!$J$9:$AC$9,0)))-'SCORE TABLE'!$F22)/('SCORE TABLE'!$G22-'SCORE TABLE'!$F22))*100,0) -> 0 | V22: =IFERROR((((INDEX('DATA TABLE'!$J$13:$AC$66, MATCH('SCORE TABLE'!$B22,'DATA TABLE'!$B$13:$B$66,0),MATCH('SCORE TABLE'!V$9,'DATA TABLE'!$J$9:$AC$9,0)))-'SCORE TABLE'!$F22)/('SCORE TABLE'!$G22-'SCORE TABLE'!$F22))*100,0) -> 50 | W22: =IFERROR((((INDEX('DATA TABLE'!$J$13:$AC$66, MATCH('SCORE TABLE'!$B22,'DATA TABLE'!$B$13:$B$66,0),MATCH('SCORE TABLE'!W$9,'DATA TABLE'!$J$9:$AC$9,0)))-'SCORE TABLE'!$F22)/('SCORE TABLE'!$G22-'SCORE TABLE'!$F22))*100,0) -> 50 | X22: =IFERROR((((INDEX('DATA TABLE'!$J$13:$AC$66, MATCH('SCORE TABLE'!$B22,'DATA TABLE'!$B$13:$B$66,0),MATCH('SCORE TABLE'!X$9,'DATA TABLE'!$J$9:$AC$9,0)))-'SCORE TABLE'!$F22)/('SCORE TABLE'!$G22-'SCORE TABLE'!$F22))*100,0) -> 0 | Y22: =IFERROR((((INDEX('DATA TABLE'!$J$13:$AC$66, MATCH('SCORE TABLE'!$B22,'DATA TABLE'!$B$13:$B$66,0),MATCH('SCORE TABLE'!Y$9,'DATA TABLE'!$J$9:$AC$9,0)))-'SCORE TABLE'!$F22)/('SCORE TABLE'!$G22-'SCORE TABLE'!$F22))*100,0) -> 0 | Z22: =IFERROR((((INDEX('DATA TABLE'!$J$13:$AC$66, MATCH('SCORE TABLE'!$B22,'DATA TABLE'!$B$13:$B$66,0),MATCH('SCORE TABLE'!Z$9,'DATA TABLE'!$J$9:$AC$9,0)))-'SCORE TABLE'!$F22)/('SCORE TABLE'!$G22-'SCORE TABLE'!$F22))*100,0) -> 0 | AA22: =IFERROR((((INDEX('DATA TABLE'!$J$13:$AC$66, MATCH('SCORE TABLE'!$B22,'DATA TABLE'!$B$13:$B$66,0),MATCH('SCORE TABLE'!AA$9,'DATA TABLE'!$J$9:$AC$9,0)))-'SCORE TABLE'!$F22)/('SCORE TABLE'!$G22-'SCORE TABLE'!$F22))*100,0) -> 0
A23: 1012 | B23: 1.1.4 | C23: Obesity-related funding | D23: =1/5 -> 0.2 | E23: =$E$12/5 -> 0.05 | F23: 0 | G23: 1 | H23: =IFERROR((((INDEX('DATA TABLE'!$J$13:$AC$66, MATCH('SCORE TABLE'!$B23,'DATA TABLE'!$B$13:$B$66,0),MATCH('SCORE TABLE'!H$9,'DATA TABLE'!$J$9:$AC$9,0)))-'SCORE TABLE'!$F23)/('SCORE TABLE'!$G23-'SCORE TABLE'!$F23))*100,0) -> 0 | I23: =IFERROR((((INDEX('DATA TABLE'!$J$13:$AC$66, MATCH('SCORE TABLE'!$B23,'DATA TABLE'!$B$13:$B$66,0),MATCH('SCORE TABLE'!I$9,'DATA TABLE'!$J$9:$AC$9,0)))-'SCORE TABLE'!$F23)/('SCORE TABLE'!$G23-'SCORE TABLE'!$F23))*100,0) -> 0 | J23: =IFERROR((((INDEX('DATA TABLE'!$J$13:$AC$66, MATCH('SCORE TABLE'!$B23,'DATA TABLE'!$B$13:$B$66,0),MATCH('SCORE TABLE'!J$9,'DATA TABLE'!$J$9:$AC$9,0)))-'SCORE TABLE'!$F23)/('SCORE TABLE'!$G23-'SCORE TABLE'!$F23))*100,0) -> 0 | K23: =IFERROR((((INDEX('DATA TABLE'!$J$13:$AC$66, MATCH('SCORE TABLE'!$B23,'DATA TABLE'!$B$13:$B$66,0),MATCH('SCORE TABLE'!K$9,'DATA TABLE'!$J$9:$AC$9,0)))-'SCORE TABLE'!$F23)/('SCORE TABLE'!$G23-'SCORE TABLE'!$F23))*100,0) -> 0 | L23: =IFERROR((((INDEX('DATA TABLE'!$J$13:$AC$66, MATCH('SCORE TABLE'!$B23,'DATA TABLE'!$B$13:$B$66,0),MATCH('SCORE TABLE'!L$9,'DATA TABLE'!$J$9:$AC$9,0)))-'SCORE TABLE'!$F23)/('SCORE TABLE'!$G23-'SCORE TABLE'!$F23))*100,0) -> 0 | M23: =IFERROR((((INDEX('DATA TABLE'!$J$13:$AC$66, MATCH('SCORE TABLE'!$B23,'DATA TABLE'!$B$13:$B$66,0),MATCH('SCORE TABLE'!M$9,'DATA TABLE'!$J$9:$AC$9,0)))-'SCORE TABLE'!$F23)/('SCORE TABLE'!$G23-'SCORE TABLE'!$F23))*100,0) -> 0 | N23: =IFERROR((((INDEX('DATA TABLE'!$J$13:$AC$66, MATCH('SCORE TABLE'!$B23,'DATA TABLE'!$B$13:$B$66,0),MATCH('SCORE TABLE'!N$9,'DATA TABLE'!$J$9:$AC$9,0)))-'SCORE TABLE'!$F23)/('SCORE TABLE'!$G23-'SCORE TABLE'!$F23))*100,0) -> 100 | O23: =IFERROR((((INDEX('DATA TABLE'!$J$13:$AC$66, MATCH('SCORE TABLE'!$B23,'DATA TABLE'!$B$13:$B$66,0),MATCH('SCORE TABLE'!O$9,'DATA TABLE'!$J$9:$AC$9,0)))-'SCORE TABLE'!$F23)/('SCORE TABLE'!$G23-'SCORE TABLE'!$F23))*100,0) -> 0 | P23: =IFERROR((((INDEX('DATA TABLE'!$J$13:$AC$66, MATCH('SCORE TABLE'!$B23,'DATA TABLE'!$B$13:$B$66,0),MATCH('SCORE TABLE'!P$9,'DATA TABLE'!$J$9:$AC$9,0)))-'SCORE TABLE'!$F23)/('SCORE TABLE'!$G23-'SCORE TABLE'!$F23))*100,0) -> 0 | Q23: =IFERROR((((INDEX('DATA TABLE'!$J$13:$AC$66, MATCH('SCORE TABLE'!$B23,'DATA TABLE'!$B$13:$B$66,0),MATCH('SCORE TABLE'!Q$9,'DATA TABLE'!$J$9:$AC$9,0)))-'SCORE TABLE'!$F23)/('SCORE TABLE'!$G23-'SCORE TABLE'!$F23))*100,0) -> 0 | R23: =IFERROR((((INDEX('DATA TABLE'!$J$13:$AC$66, MATCH('SCORE TABLE'!$B23,'DATA TABLE'!$B$13:$B$66,0),MATCH('SCORE TABLE'!R$9,'DATA TABLE'!$J$9:$AC$9,0)))-'SCORE TABLE'!$F23)/('SCORE TABLE'!$G23-'SCORE TABLE'!$F23))*100,0) -> 0 | S23: =IFERROR((((INDEX('DATA TABLE'!$J$13:$AC$66, MATCH('SCORE TABLE'!$B23,'DATA TABLE'!$B$13:$B$66,0),MATCH('SCORE TABLE'!S$9,'DATA TABLE'!$J$9:$AC$9,0)))-'SCORE TABLE'!$F23)/('SCORE TABLE'!$G23-'SCORE TABLE'!$F23))*100,0) -> 0 | T23: =IFERROR((((INDEX('DATA TABLE'!$J$13:$AC$66, MATCH('SCORE TABLE'!$B23,'DATA TABLE'!$B$13:$B$66,0),MATCH('SCORE TABLE'!T$9,'DATA TABLE'!$J$9:$AC$9,0)))-'SCORE TABLE'!$F23)/('SCORE TABLE'!$G23-'SCORE TABLE'!$F23))*100,0) -> 0 | U23: =IFERROR((((INDEX('DATA TABLE'!$J$13:$AC$66, MATCH('SCORE TABLE'!$B23,'DATA TABLE'!$B$13:$B$66,0),MATCH('SCORE TABLE'!U$9,'DATA TABLE'!$J$9:$AC$9,0)))-'SCORE TABLE'!$F23)/('SCORE TABLE'!$G23-'SCORE TABLE'!$F23))*100,0) -> 0 | V23: =IFERROR((((INDEX('DATA TABLE'!$J$13:$AC$66, MATCH('SCORE TABLE'!$B23,'DATA TABLE'!$B$13:$B$66,0),MATCH('SCORE TABLE'!V$9,'DATA TABLE'!$J$9:$AC$9,0)))-'SCORE TABLE'!$F23)/('SCORE TABLE'!$G23-'SCORE TABLE'!$F23))*100,0) -> 100 | W23: =IFERROR((((INDEX('DATA TABLE'!$J$13:$AC$66, MATCH('SCORE TABLE'!$B23,'DATA TABLE'!$B$13:$B$66,0),MATCH('SCORE TABLE'!W$9,'DATA TABLE'!$J$9:$AC$9,0)))-'SCORE TABLE'!$F23)/('SCORE TABLE'!$G23-'SCORE TABLE'!$F23))*100,0) -> 100 | X23: =IFERROR((((INDEX('DATA TABLE'!$J$13:$AC$66, MATCH('SCORE TABLE'!$B23,'DATA TABLE'!$B$13:$B$66,0),MATCH('SCORE TABLE'!X$9,'DATA TABLE'!$J$9:$AC$9,0)))-'SCORE TABLE'!$F23)/('SCORE TABLE'!$G23-'SCORE TABLE'!$F23))*100,0) -> 0 | Y23: =IFERROR((((INDEX('DATA TABLE'!$J$13:$AC$66, MATCH('SCORE TABLE'!$B23,'DATA TABLE'!$B$13:$B$66,0),MATCH('SCORE TABLE'!Y$9,'DATA TABLE'!$J$9:$AC$9,0)))-'SCORE TABLE'!$F23)/('SCORE TABLE'!$G23-'SCORE TABLE'!$F23))*100,0) -> 0 | Z23: =IFERROR((((INDEX('DATA TABLE'!$J$13:$AC$66, MATCH('SCORE TABLE'!$B23,'DATA TABLE'!$B$13:$B$66,0),MATCH('SCORE TABLE'!Z$9,'DATA TABLE'!$J$9:$AC$9,0)))-'SCORE TABLE'!$F23)/('SCORE TABLE'!$G23-'SCORE TABLE'!$F23))*100,0) -> 0 | AA23: =IFERROR((((INDEX('DATA TABLE'!$J$13:$AC$66, MATCH('SCORE TABLE'!$B23,'DATA TABLE'!$B$13:$B$66,0),MATCH('SCORE TABLE'!AA$9,'DATA TABLE'!$J$9:$AC$9,0)))-'SCORE TABLE'!$F23)/('SCORE TABLE'!$G23-'SCORE TABLE'!$F23))*100,0) -> 0
A24: 1013 | B24: 1.1.5 | C24: Weight-related discrimination | D24: =1/5 -> 0.2 | E24: =$E$12/5 -> 0.05 | F24: 0 | G24: 1 | H24: =IFERROR((((INDEX('DATA TABLE'!$J$13:$AC$66, MATCH('SCORE TABLE'!$B24,'DATA TABLE'!$B$13:$B$66,0),MATCH('SCORE TABLE'!H$9,'DATA TABLE'!$J$9:$AC$9,0)))-'SCORE TABLE'!$F24)/('SCORE TABLE'!$G24-'SCORE TABLE'!$F24))*100,0) -> 0 | I24: =IFERROR((((INDEX('DATA TABLE'!$J$13:$AC$66, MATCH('SCORE TABLE'!$B24,'DATA TABLE'!$B$13:$B$66,0),MATCH('SCORE TABLE'!I$9,'DATA TABLE'!$J$9:$AC$9,0)))-'SCORE TABLE'!$F24)/('SCORE TABLE'!$G24-'SCORE TABLE'!$F24))*100,0) -> 0 | J24: =IFERROR((((INDEX('DATA TABLE'!$J$13:$AC$66, MATCH('SCORE TABLE'!$B24,'DATA TABLE'!$B$13:$B$66,0),MATCH('SCORE TABLE'!J$9,'DATA TABLE'!$J$9:$AC$9,0)))-'SCORE TABLE'!$F24)/('SCORE TABLE'!$G24-'SCORE TABLE'!$F24))*100,0) -> 0 | K24: =IFERROR((((INDEX('DATA TABLE'!$J$13:$AC$66, MATCH('SCORE TABLE'!$B24,'DATA TABLE'!$B$13:$B$66,0),MATCH('SCORE TABLE'!K$9,'DATA TABLE'!$J$9:$AC$9,0)))-'SCORE TABLE'!$F24)/('SCORE TABLE'!$G24-'SCORE TABLE'!$F24))*100,0) -> 0 | L24: =IFERROR((((INDEX('DATA TABLE'!$J$13:$AC$66, MATCH('SCORE TABLE'!$B24,'DATA TABLE'!$B$13:$B$66,0),MATCH('SCORE TABLE'!L$9,'DATA TABLE'!$J$9:$AC$9,0)))-'SCORE TABLE'!$F24)/('SCORE TABLE'!$G24-'SCORE TABLE'!$F24))*100,0) -> 100 | M24: =IFERROR((((INDEX('DATA TABLE'!$J$13:$AC$66, MATCH('SCORE TABLE'!$B24,'DATA TABLE'!$B$13:$B$66,0),MATCH('SCORE TABLE'!M$9,'DATA TABLE'!$J$9:$AC$9,0)))-'SCORE TABLE'!$F24)/('SCORE TABLE'!$G24-'SCORE TABLE'!$F24))*100,0) -> 100 | N24: =IFERROR((((INDEX('DATA TABLE'!$J$13:$AC$66, MATCH('SCORE TABLE'!$B24,'DATA TABLE'!$B$13:$B$66,0),MATCH('SCORE TABLE'!N$9,'DATA TABLE'!$J$9:$AC$9,0)))-'SCORE TABLE'!$F24)/('SCORE TABLE'!$G24-'SCORE TABLE'!$F24))*100,0) -> 100 | O24: =IFERROR((((INDEX('DATA TABLE'!$J$13:$AC$66, MATCH('SCORE TABLE'!$B24,'DATA TABLE'!$B$13:$B$66,0),MATCH('SCORE TABLE'!O$9,'DATA TABLE'!$J$9:$AC$9,0)))-'SCORE TABLE'!$F24)/('SCORE TABLE'!$G24-'SCORE TABLE'!$F24))*100,0) -> 0 | P24: =IFERROR((((INDEX('DATA TABLE'!$J$13:$AC$66, MATCH('SCORE TABLE'!$B24,'DATA TABLE'!$B$13:$B$66,0),MATCH('SCORE TABLE'!P$9,'DATA TABLE'!$J$9:$AC$9,0)))-'SCORE TABLE'!$F24)/('SCORE TABLE'!$G24-'SCORE TABLE'!$F24))*100,0) -> 0 | Q24: =IFERROR((((INDEX('DATA TABLE'!$J$13:$AC$66, MATCH('SCORE TABLE'!$B24,'DATA TABLE'!$B$13:$B$66,0),MATCH('SCORE TABLE'!Q$9,'DATA TABLE'!$J$9:$AC$9,0)))-'SCORE TABLE'!$F24)/('SCORE TABLE'!$G24-'SCORE TABLE'!$F24))*100,0) -> 0 | R24: =IFERROR((((INDEX('DATA TABLE'!$J$13:$AC$66, MATCH('SCORE TABLE'!$B24,'DATA TABLE'!$B$13:$B$66,0),MATCH('SCORE TABLE'!R$9,'DATA TABLE'!$J$9:$AC$9,0)))-'SCORE TABLE'!$F24)/('SCORE TABLE'!$G24-'SCORE TABLE'!$F24))*100,0) -> 100 | S24: =IFERROR((((INDEX('DATA TABLE'!$J$13:$AC$66, MATCH('SCORE TABLE'!$B24,'DATA TABLE'!$B$13:$B$66,0),MATCH('SCORE TABLE'!S$9,'DATA TABLE'!$J$9:$AC$9,0)))-'SCORE TABLE'!$F24)/('SCORE TABLE'!$G24-'SCORE TABLE'!$F24))*100,0) -> 0 | T24: =IFERROR((((INDEX('DATA TABLE'!$J$13:$AC$66, MATCH('SCORE TABLE'!$B24,'DATA TABLE'!$B$13:$B$66,0),MATCH('SCORE TABLE'!T$9,'DATA TABLE'!$J$9:$AC$9,0)))-'SCORE TABLE'!$F24)/('SCORE TABLE'!$G24-'SCORE TABLE'!$F24))*100,0) -> 0 | U24: =IFERROR((((INDEX('DATA TABLE'!$J$13:$AC$66, MATCH('SCORE TABLE'!$B24,'DATA TABLE'!$B$13:$B$66,0),MATCH('SCORE TABLE'!U$9,'DATA TABLE'!$J$9:$AC$9,0)))-'SCORE TABLE'!$F24)/('SCORE TABLE'!$G24-'SCORE TABLE'!$F24))*100,0) -> 0 | V24: =IFERROR((((INDEX('DATA TABLE'!$J$13:$AC$66, MATCH('SCORE TABLE'!$B24,'DATA TABLE'!$B$13:$B$66,0),MATCH('SCORE TABLE'!V$9,'DATA TABLE'!$J$9:$AC$9,0)))-'SCORE TABLE'!$F24)/('SCORE TABLE'!$G24-'SCORE TABLE'!$F24))*100,0) -> 100 | W24: =IFERROR((((INDEX('DATA TABLE'!$J$13:$AC$66, MATCH('SCORE TABLE'!$B24,'DATA TABLE'!$B$13:$B$66,0),MATCH('SCORE TABLE'!W$9,'DATA TABLE'!$J$9:$AC$9,0)))-'SCORE TABLE'!$F24)/('SCORE TABLE'!$G24-'SCORE TABLE'!$F24))*100,0) -> 0 | X24: =IFERROR((((INDEX('DATA TABLE'!$J$13:$AC$66, MATCH('SCORE TABLE'!$B24,'DATA TABLE'!$B$13:$B$66,0),MATCH('SCORE TABLE'!X$9,'DATA TABLE'!$J$9:$AC$9,0)))-'SCORE TABLE'!$F24)/('SCORE TABLE'!$G24-'SCORE TABLE'!$F24))*100,0) -> 0 | Y24: =IFERROR((((INDEX('DATA TABLE'!$J$13:$AC$66, MATCH('SCORE TABLE'!$B24,'DATA TABLE'!$B$13:$B$66,0),MATCH('SCORE TABLE'!Y$9,'DATA TABLE'!$J$9:$AC$9,0)))-'SCORE TABLE'!$F24)/('SCORE TABLE'!$G24-'SCORE TABLE'!$F24))*100,0) -> 100 | Z24: =IFERROR((((INDEX('DATA TABLE'!$J$13:$AC$66, MATCH('SCORE TABLE'!$B24,'DATA TABLE'!$B$13:$B$66,0),MATCH('SCORE TABLE'!Z$9,'DATA TABLE'!$J$9:$AC$9,0)))-'SCORE TABLE'!$F24)/('SCORE TABLE'!$G24-'SCORE TABLE'!$F24))*100,0) -> 0 | AA24: =IFERROR((((INDEX('DATA TABLE'!$J$13:$AC$66, MATCH('SCORE TABLE'!$B24,'DATA TABLE'!$B$13:$B$66,0),MATCH('SCORE TABLE'!AA$9,'DATA TABLE'!$J$9:$AC$9,0)))-'SCORE TABLE'!$F24)/('SCORE TABLE'!$G24-'SCORE TABLE'!$F24))*100,0) -> 0
A25: 1014 | B25: 2 | C25: Obesity management | D25: =0.25 -> 0.25 | E25: =0.25 -> 0.25 | H25: =ROUND(SUM($D26*H26,$D30*H30,$D33*H33),5) -> 75 | I25: =ROUND(SUM($D26*I26,$D30*I30,$D33*I33),5) -> 91.66667 | J25: =ROUND(SUM($D26*J26,$D30*J30,$D33*J33),5) -> 50 | K25: 61.11111 | L25: 91.66667 | M25: 86.11111 | N25: 77.77778 | O25: 25 | P25: 69.44444 | Q25: 77.77778 | R25: 61.11111 | S25: 0 | T25: 47.22222 | U25: 69.44444 | V25: 86.11111 | W25: 8.33333 | X25: 77.77778 | Y25: 30.55556 | Z25: 91.66667 | AA25: 100
A26: 1015 | B26: 2.1 | C26: Obesity management guidelines | D26: =1/3 -> 0.3333333333 | E26: =$E$25*D26 -> 0.08333333333 | H26: =ROUND(SUMPRODUCT($D27:$D29,H27:H29),5) -> 100 | I26: =ROUND(SUMPRODUCT($D27:$D29,I27:I29),5) -> 100 | J26: =ROUND(SUMPRODUCT($D27:$D29,J27:J29),5) -> 100 | K26: 83.33333 | L26: 100 | M26: 83.33333 | N26: 83.33333 | O26: 0 | P26: 83.33333 | Q26: 83.33333 | R26: 83.33333 | S26: 0 | T26: 66.66667 | U26: 83.33333 | V26: 83.33333 | W26: 0 | X26: 83.33333 | Y26: 16.66667 | Z26: 100 | AA26: 100
A27: 1016 | B27: 2.1.1 | C27: Existence of obesity management guidelines | D27: =1/3 -> 0.3333333333 | E27: =$E$26*D27 -> 0.02777777778 | F27: 0 | G27: 2 | H27: =IFERROR((((INDEX('DATA TABLE'!$J$13:$AC$66, MATCH('SCORE TABLE'!$B27,'DATA TABLE'!$B$13:$B$66,0),MATCH('SCORE TABLE'!H$9,'DATA TABLE'!$J$9:$AC$9,0)))-'SCORE TABLE'!$F27)/('SCORE TABLE'!$G27-'SCORE TABLE'!$F27))*100,0) -> 100 | I27: =IFERROR((((INDEX('DATA TABLE'!$J$13:$AC$66, MATCH('SCORE TABLE'!$B27,'DATA TABLE'!$B$13:$B$66,0),MATCH('SCORE TABLE'!I$9,'DATA TABLE'!$J$9:$AC$9,0)))-'SCORE TABLE'!$F27)/('SCORE TABLE'!$G27-'SCORE TABLE'!$F27))*100,0) -> 100 | J27: =IFERROR((((INDEX('DATA TABLE'!$J$13:$AC$66, MATCH('SCORE TABLE'!$B27,'DATA TABLE'!$B$13:$B$66,0),MATCH('SCORE TABLE'!J$9,'DATA TABLE'!$J$9:$AC$9,0)))-'SCORE TABLE'!$F27)/('SCORE TABLE'!$G27-'SCORE TABLE'!$F27))*100,0) -> 100 | K27: =IFERROR((((INDEX('DATA TABLE'!$J$13:$AC$66, MATCH('SCORE TABLE'!$B27,'DATA TABLE'!$B$13:$B$66,0),MATCH('SCORE TABLE'!K$9,'DATA TABLE'!$J$9:$AC$9,0)))-'SCORE TABLE'!$F27)/('SCORE TABLE'!$G27-'SCORE TABLE'!$F27))*100,0) -> 100 | L27: =IFERROR((((INDEX('DATA TABLE'!$J$13:$AC$66, MATCH('SCORE TABLE'!$B27,'DATA TABLE'!$B$13:$B$66,0),MATCH('SCORE TABLE'!L$9,'DATA TABLE'!$J$9:$AC$9,0)))-'SCORE TABLE'!$F27)/('SCORE TABLE'!$G27-'SCORE TABLE'!$F27))*100,0) -> 100 | M27: =IFERROR((((INDEX('DATA TABLE'!$J$13:$AC$66, MATCH('SCORE TABLE'!$B27,'DATA TABLE'!$B$13:$B$66,0),MATCH('SCORE TABLE'!M$9,'DATA TABLE'!$J$9:$AC$9,0)))-'SCORE TABLE'!$F27)/('SCORE TABLE'!$G27-'SCORE TABLE'!$F27))*100,0) -> 100 | N27: =IFERROR((((INDEX('DATA TABLE'!$J$13:$AC$66, MATCH('SCORE TABLE'!$B27,'DATA TABLE'!$B$13:$B$66,0),MATCH('SCORE TABLE'!N$9,'DATA TABLE'!$J$9:$AC$9,0)))-'SCORE TABLE'!$F27)/('SCORE TABLE'!$G27-'SCORE TABLE'!$F27))*100,0) -> 100 | O27: =IFERROR((((INDEX('DATA TABLE'!$J$13:$AC$66, MATCH('SCORE TABLE'!$B27,'DATA TABLE'!$B$13:$B$66,0),MATCH('SCORE TABLE'!O$9,'DATA TABLE'!$J$9:$AC$9,0)))-'SCORE TABLE'!$F27)/('SCORE TABLE'!$G27-'SCORE TABLE'!$F27))*100,0) -> 0 | P27: =IFERROR((((INDEX('DATA TABLE'!$J$13:$AC$66, MATCH('SCORE TABLE'!$B27,'DATA TABLE'!$B$13:$B$66,0),MATCH('SCORE TABLE'!P$9,'DATA TABLE'!$J$9:$AC$9,0)))-'SCORE TABLE'!$F27)/('SCORE TABLE'!$G27-'SCORE TABLE'!$F27))*100,0) -> 100 | Q27: =IFERROR((((INDEX('DATA TABLE'!$J$13:$AC$66, MATCH('SCORE TABLE'!$B27,'DATA TABLE'!$B$13:$B$66,0),MATCH('SCORE TABLE'!Q$9,'DATA TABLE'!$J$9:$AC$9,0)))-'SCORE TABLE'!$F27)/('SCORE TABLE'!$G27-'SCORE TABLE'!$F27))*100,0) -> 100 | R27: =IFERROR((((INDEX('DATA TABLE'!$J$13:$AC$66, MATCH('SCORE TABLE'!$B27,'DATA TABLE'!$B$13:$B$66,0),MATCH('SCORE TABLE'!R$9,'DATA TABLE'!$J$9:$AC$9,0)))-'SCORE TABLE'!$F27)/('SCORE TABLE'!$G27-'SCORE TABLE'!$F27))*100,0) -> 100 | S27: =IFERROR((((INDEX('DATA TABLE'!$J$13:$AC$66, MATCH('SCORE TABLE'!$B27,'DATA TABLE'!$B$13:$B$66,0),MATCH('SCORE TABLE'!S$9,'DATA TABLE'!$J$9:$AC$9,0)))-'SCORE TABLE'!$F27)/('SCORE TABLE'!$G27-'SCORE TABLE'!$F27))*100,0) -> 0 | T27: =IFERROR((((INDEX('DATA TABLE'!$J$13:$AC$66, MATCH('SCORE TABLE'!$B27,'DATA TABLE'!$B$13:$B$66,0),MATCH('SCORE TABLE'!T$9,'DATA TABLE'!$J$9:$AC$9,0)))-'SCORE TABLE'!$F27)/('SCORE TABLE'!$G27-'SCORE TABLE'!$F27))*100,0) -> 100 | U27: =IFERROR((((INDEX('DATA TABLE'!$J$13:$AC$66, MATCH('SCORE TABLE'!$B27,'DATA TABLE'!$B$13:$B$66,0),MATCH('SCORE TABLE'!U$9,'DATA TABLE'!$J$9:$AC$9,0)))-'SCORE TABLE'!$F27)/('SCORE TABLE'!$G27-'SCORE TABLE'!$F27))*100,0) -> 100 | V27: =IFERROR((((INDEX('DATA TABLE'!$J$13:$AC$66, MATCH('SCORE TABLE'!$B27,'DATA TABLE'!$B$13:$B$66,0),MATCH('SCORE TABLE'!V$9,'DATA TABLE'!$J$9:$AC$9,0)))-'SCORE TABLE'!$F27)/('SCORE TABLE'!$G27-'SCORE TABLE'!$F27))*100,0) -> 100 | W27: =IFERROR((((INDEX('DATA TABLE'!$J$13:$AC$66, MATCH('SCORE TABLE'!$B27,'DATA TABLE'!$B$13:$B$66,0),MATCH('SCORE TABLE'!W$9,'DATA TABLE'!$J$9:$AC$9,0)))-'SCORE TABLE'!$F27)/('SCORE TABLE'!$G27-'SCORE TABLE'!$F27))*100,0) -> 0 | X27: =IFERROR((((INDEX('DATA TABLE'!$J$13:$AC$66, MATCH('SCORE TABLE'!$B27,'DATA TABLE'!$B$13:$B$66,0),MATCH('SCORE TABLE'!X$9,'DATA TABLE'!$J$9:$AC$9,0)))-'SCORE TABLE'!$F27)/('SCORE TABLE'!$G27-'SCORE TABLE'!$F27))*100,0) -> 100 | Y27: =IFERROR((((INDEX('DATA TABLE'!$J$13:$AC$66, MATCH('SCORE TABLE'!$B27,'DATA TABLE'!$B$13:$B$66,0),MATCH('SCORE TABLE'!Y$9,'DATA TABLE'!$J$9:$AC$9,0)))-'SCORE TABLE'!$F27)/('SCORE TABLE'!$G27-'SCORE TABLE'!$F27))*100,0) -> 50 | Z27: =IFERROR((((INDEX('DATA TABLE'!$J$13:$AC$66, MATCH('SCORE TABLE'!$B27,'DATA TABLE'!$B$13:$B$66,0),MATCH('SCORE TABLE'!Z$9,'DATA TABLE'!$J$9:$AC$9,0)))-'SCORE TABLE'!$F27)/('SCORE TABLE'!$G27-'SCORE TABLE'!$F27))*100,0) -> 100 | AA27: =IFERROR((((INDEX('DATA TABLE'!$J$13:$AC$66, MATCH('SCORE TABLE'!$B27,'DATA TABLE'!$B$13:$B$66,0),MATCH('SCORE TABLE'!AA$9,'DATA TABLE'!$J$9:$AC$9,0)))-'SCORE TABLE'!$F27)/('SCORE TABLE'!$G27-'SCORE TABLE'!$F27))*100,0) -> 100
A28: 1017 | B28: 2.1.2 | C28: Evidence-based obesity management guidelines | D28: =1/3 -> 0.3333333333 | E28: =$E$26*D28 -> 0.02777777778 | F28: 0 | G28: 2 | H28: =IFERROR((((INDEX('DATA TABLE'!$J$13:$AC$66, MATCH('SCORE TABLE'!$B28,'DATA TABLE'!$B$13:$B$66,0),MATCH('SCORE TABLE'!H$9,'DATA TABLE'!$J$9:$AC$9,0)))-'SCORE TABLE'!$F28)/('SCORE TABLE'!$G28-'SCORE TABLE'!$F28))*100,0) -> 100 | I28: =IFERROR((((INDEX('DATA TABLE'!$J$13:$AC$66, MATCH('SCORE TABLE'!$B28,'DATA TABLE'!$B$13:$B$66,0),MATCH('SCORE TABLE'!I$9,'DATA TABLE'!$J$9:$AC$9,0)))-'SCORE TABLE'!$F28)/('SCORE TABLE'!$G28-'SCORE TABLE'!$F28))*100,0) -> 100 | J28: =IFERROR((((INDEX('DATA TABLE'!$J$13:$AC$66, MATCH('SCORE TABLE'!$B28,'DATA TABLE'!$B$13:$B$66,0),MATCH('SCORE TABLE'!J$9,'DATA TABLE'!$J$9:$AC$9,0)))-'SCORE TABLE'!$F28)/('SCORE TABLE'!$G28-'SCORE TABLE'!$F28))*100,0) -> 100 | K28: =IFERROR((((INDEX('DATA TABLE'!$J$13:$AC$66, MATCH('SCORE TABLE'!$B28,'DATA TABLE'!$B$13:$B$66,0),MATCH('SCORE TABLE'!K$9,'DATA TABLE'!$J$9:$AC$9,0)))-'SCORE TABLE'!$F28)/('SCORE TABLE'!$G28-'SCORE TABLE'!$F28))*100,0) -> 100 | L28: =IFERROR((((INDEX('DATA TABLE'!$J$13:$AC$66, MATCH('SCORE TABLE'!$B28,'DATA TABLE'!$B$13:$B$66,0),MATCH('SCORE TABLE'!L$9,'DATA TABLE'!$J$9:$AC$9,0)))-'SCORE TABLE'!$F28)/('SCORE TABLE'!$G28-'SCORE TABLE'!$F28))*100,0) -> 100 | M28: =IFERROR((((INDEX('DATA TABLE'!$J$13:$AC$66, MATCH('SCORE TABLE'!$B28,'DATA TABLE'!$B$13:$B$66,0),MATCH('SCORE TABLE'!M$9,'DATA TABLE'!$J$9:$AC$9,0)))-'SCORE TABLE'!$F28)/('SCORE TABLE'!$G28-'SCORE TABLE'!$F28))*100,0) -> 100 | N28: =IFERROR((((INDEX('DATA TABLE'!$J$13:$AC$66, MATCH('SCORE TABLE'!$B28,'DATA TABLE'!$B$13:$B$66,0),MATCH('SCORE TABLE'!N$9,'DATA TABLE'!$J$9:$AC$9,0)))-'SCORE TABLE'!$F28)/('SCORE TABLE'!$G28-'SCORE TABLE'!$F28))*100,0) -> 100 | O28: =IFERROR((((INDEX('DATA TABLE'!$J$13:$AC$66, MATCH('SCORE TABLE'!$B28,'DATA TABLE'!$B$13:$B$66,0),MATCH('SCORE TABLE'!O$9,'DATA TABLE'!$J$9:$AC$9,0)))-'SCORE TABLE'!$F28)/('SCORE TABLE'!$G28-'SCORE TABLE'!$F28))*100,0) -> 0 | P28: =IFERROR((((INDEX('DATA TABLE'!$J$13:$AC$66, MATCH('SCORE TABLE'!$B28,'DATA TABLE'!$B$13:$B$66,0),MATCH('SCORE TABLE'!P$9,'DATA TABLE'!$J$9:$AC$9,0)))-'SCORE TABLE'!$F28)/('SCORE TABLE'!$G28-'SCORE TABLE'!$F28))*100,0) -> 100 | Q28: =IFERROR((((INDEX('DATA TABLE'!$J$13:$AC$66, MATCH('SCORE TABLE'!$B28,'DATA TABLE'!$B$13:$B$66,0),MATCH('SCORE TABLE'!Q$9,'DATA TABLE'!$J$9:$AC$9,0)))-'SCORE TABLE'!$F28)/('SCORE TABLE'!$G28-'SCORE TABLE'!$F28))*100,0) -> 100 | R28: =IFERROR((((INDEX('DATA TABLE'!$J$13:$AC$66, MATCH('SCORE TABLE'!$B28,'DATA TABLE'!$B$13:$B$66,0),MATCH('SCORE TABLE'!R$9,'DATA TABLE'!$J$9:$AC$9,0)))-'SCORE TABLE'!$F28)/('SCORE TABLE'!$G28-'SCORE TABLE'!$F28))*100,0) -> 100 | S28: =IFERROR((((INDEX('DATA TABLE'!$J$13:$AC$66, MATCH('SCORE TABLE'!$B28,'DATA TABLE'!$B$13:$B$66,0),MATCH('SCORE TABLE'!S$9,'DATA TABLE'!$J$9:$AC$9,0)))-'SCORE TABLE'!$F28)/('SCORE TABLE'!$G28-'SCORE TABLE'!$F28))*100,0) -> 0 | T28: =IFERROR((((INDEX('DATA TABLE'!$J$13:$AC$66, MATCH('SCORE TABLE'!$B28,'DATA TABLE'!$B$13:$B$66,0),MATCH('SCORE TABLE'!T$9,'DATA TABLE'!$J$9:$AC$9,0)))-'SCORE TABLE'!$F28)/('SCORE TABLE'!$G28-'SCORE TABLE'!$F28))*100,0) -> 100 | U28: =IFERROR((((INDEX('DATA TABLE'!$J$13:$AC$66, MATCH('SCORE TABLE'!$B28,'DATA TABLE'!$B$13:$B$66,0),MATCH('SCORE TABLE'!U$9,'DATA TABLE'!$J$9:$AC$9,0)))-'SCORE TABLE'!$F28)/('SCORE TABLE'!$G28-'SCORE TABLE'!$F28))*100,0) -> 100 | V28: =IFERROR((((INDEX('DATA TABLE'!$J$13:$AC$66, MATCH('SCORE TABLE'!$B28,'DATA TABLE'!$B$13:$B$66,0),MATCH('SCORE TABLE'!V$9,'DATA TABLE'!$J$9:$AC$9,0)))-'SCORE TABLE'!$F28)/('SCORE TABLE'!$G28-'SCORE TABLE'!$F28))*100,0) -> 100 | W28: =IFERROR((((INDEX('DATA TABLE'!$J$13:$AC$66, MATCH('SCORE TABLE'!$B28,'DATA TABLE'!$B$13:$B$66,0),MATCH('SCORE TABLE'!W$9,'DATA TABLE'!$J$9:$AC$9,0)))-'SCORE TABLE'!$F28)/('SCORE TABLE'!$G28-'SCORE TABLE'!$F28))*100,0) -> 0 | X28: =IFERROR((((INDEX('DATA TABLE'!$J$13:$AC$66, MATCH('SCORE TABLE'!$B28,'DATA TABLE'!$B$13:$B$66,0),MATCH('SCORE TABLE'!X$9,'DATA TABLE'!$J$9:$AC$9,0)))-'SCORE TABLE'!$F28)/('SCORE TABLE'!$G28-'SCORE TABLE'!$F28))*100,0) -> 100 | Y28: =IFERROR((((INDEX('DATA TABLE'!$J$13:$AC$66, MATCH('SCORE TABLE'!$B28,'DATA TABLE'!$B$13:$B$66,0),MATCH('SCORE TABLE'!Y$9,'DATA TABLE'!$J$9:$AC$9,0)))-'SCORE TABLE'!$F28)/('SCORE TABLE'!$G28-'SCORE TABLE'!$F28))*100,0) -> 0 | Z28: =IFERROR((((INDEX('DATA TABLE'!$J$13:$AC$66, MATCH('SCORE TABLE'!$B28,'DATA TABLE'!$B$13:$B$66,0),MATCH('SCORE TABLE'!Z$9,'DATA TABLE'!$J$9:$AC$9,0)))-'SCORE TABLE'!$F28)/('SCORE TABLE'!$G28-'SCORE TABLE'!$F28))*100,0) -> 100 | AA28: =IFERROR((((INDEX('DATA TABLE'!$J$13:$AC$66, MATCH('SCORE TABLE'!$B28,'DATA TABLE'!$B$13:$B$66,0),MATCH('SCORE TABLE'!AA$9,'DATA TABLE'!$J$9:$AC$9,0)))-'SCORE TABLE'!$F28)/('SCORE TABLE'!$G28-'SCORE TABLE'!$F28))*100,0) -> 100
A29: 1018 | B29: 2.1.3 | C29: Clinical and cost-effectiveness of obesity management interventions | D29: =1/3 -> 0.3333333333 | E29: =$E$26*D29 -> 0.02777777778 | F29: 0 | G29: 2 | H29: =IFERROR((((INDEX('DATA TABLE'!$J$13:$AC$66, MATCH('SCORE TABLE'!$B29,'DATA TABLE'!$B$13:$B$66,0),MATCH('SCORE TABLE'!H$9,'DATA TABLE'!$J$9:$AC$9,0)))-'SCORE TABLE'!$F29)/('SCORE TABLE'!$G29-'SCORE TABLE'!$F29))*100,0) -> 100 | I29: =IFERROR((((INDEX('DATA TABLE'!$J$13:$AC$66, MATCH('SCORE TABLE'!$B29,'DATA TABLE'!$B$13:$B$66,0),MATCH('SCORE TABLE'!I$9,'DATA TABLE'!$J$9:$AC$9,0)))-'SCORE TABLE'!$F29)/('SCORE TABLE'!$G29-'SCORE TABLE'!$F29))*100,0) -> 100 | J29: =IFERROR((((INDEX('DATA TABLE'!$J$13:$AC$66, MATCH('SCORE TABLE'!$B29,'DATA TABLE'!$B$13:$B$66,0),MATCH('SCORE TABLE'!J$9,'DATA TABLE'!$J$9:$AC$9,0)))-'SCORE TABLE'!$F29)/('SCORE TABLE'!$G29-'SCORE TABLE'!$F29))*100,0) -> 100 | K29: =IFERROR((((INDEX('DATA TABLE'!$J$13:$AC$66, MATCH('SCORE TABLE'!$B29,'DATA TABLE'!$B$13:$B$66,0),MATCH('SCORE TABLE'!K$9,'DATA TABLE'!$J$9:$AC$9,0)))-'SCORE TABLE'!$F29)/('SCORE TABLE'!$G29-'SCORE TABLE'!$F29))*100,0) -> 50 | L29: =IFERROR((((INDEX('DATA TABLE'!$J$13:$AC$66, MATCH('SCORE TABLE'!$B29,'DATA TABLE'!$B$13:$B$66,0),MATCH('SCORE TABLE'!L$9,'DATA TABLE'!$J$9:$AC$9,0)))-'SCORE TABLE'!$F29)/('SCORE TABLE'!$G29-'SCORE TABLE'!$F29))*100,0) -> 100 | M29: =IFERROR((((INDEX('DATA TABLE'!$J$13:$AC$66, MATCH('SCORE TABLE'!$B29,'DATA TABLE'!$B$13:$B$66,0),MATCH('SCORE TABLE'!M$9,'DATA TABLE'!$J$9:$AC$9,0)))-'SCORE TABLE'!$F29)/('SCORE TABLE'!$G29-'SCORE TABLE'!$F29))*100,0) -> 50 | N29: =IFERROR((((INDEX('DATA TABLE'!$J$13:$AC$66, MATCH('SCORE TABLE'!$B29,'DATA TABLE'!$B$13:$B$66,0),MATCH('SCORE TABLE'!N$9,'DATA TABLE'!$J$9:$AC$9,0)))-'SCORE TABLE'!$F29)/('SCORE TABLE'!$G29-'SCORE TABLE'!$F29))*100,0) -> 50 | O29: =IFERROR((((INDEX('DATA TABLE'!$J$13:$AC$66, MATCH('SCORE TABLE'!$B29,'DATA TABLE'!$B$13:$B$66,0),MATCH('SCORE TABLE'!O$9,'DATA TABLE'!$J$9:$AC$9,0)))-'SCORE TABLE'!$F29)/('SCORE TABLE'!$G29-'SCORE TABLE'!$F29))*100,0) -> 0 | P29: =IFERROR((((INDEX('DATA TABLE'!$J$13:$AC$66, MATCH('SCORE TABLE'!$B29,'DATA TABLE'!$B$13:$B$66,0),MATCH('SCORE TABLE'!P$9,'DATA TABLE'!$J$9:$AC$9,0)))-'SCORE TABLE'!$F29)/('SCORE TABLE'!$G29-'SCORE TABLE'!$F29))*100,0) -> 50 | Q29: =IFERROR((((INDEX('DATA TABLE'!$J$13:$AC$66, MATCH('SCORE TABLE'!$B29,'DATA TABLE'!$B$13:$B$66,0),MATCH('SCORE TABLE'!Q$9,'DATA TABLE'!$J$9:$AC$9,0)))-'SCORE TABLE'!$F29)/('SCORE TABLE'!$G29-'SCORE TABLE'!$F29))*100,0) -> 50 | R29: =IFERROR((((INDEX('DATA TABLE'!$J$13:$AC$66, MATCH('SCORE TABLE'!$B29,'DATA TABLE'!$B$13:$B$66,0),MATCH('SCORE TABLE'!R$9,'DATA TABLE'!$J$9:$AC$9,0)))-'SCORE TABLE'!$F29)/('SCORE TABLE'!$G29-'SCORE TABLE'!$F29))*100,0) -> 50 | S29: =IFERROR((((INDEX('DATA TABLE'!$J$13:$AC$66, MATCH('SCORE TABLE'!$B29,'DATA TABLE'!$B$13:$B$66,0),MATCH('SCORE TABLE'!S$9,'DATA TABLE'!$J$9:$AC$9,0)))-'SCORE TABLE'!$F29)/('SCORE TABLE'!$G29-'SCORE TABLE'!$F29))*100,0) -> 0 | T29: =IFERROR((((INDEX('DATA TABLE'!$J$13:$AC$66, MATCH('SCORE TABLE'!$B29,'DATA TABLE'!$B$13:$B$66,0),MATCH('SCORE TABLE'!T$9,'DATA TABLE'!$J$9:$AC$9,0)))-'SCORE TABLE'!$F29)/('SCORE TABLE'!$G29-'SCORE TABLE'!$F29))*100,0) -> 0 | U29: =IFERROR((((INDEX('DATA TABLE'!$J$13:$AC$66, MATCH('SCORE TABLE'!$B29,'DATA TABLE'!$B$13:$B$66,0),MATCH('SCORE TABLE'!U$9,'DATA TABLE'!$J$9:$AC$9,0)))-'SCORE TABLE'!$F29)/('SCORE TABLE'!$G29-'SCORE TABLE'!$F29))*100,0) -> 50 | V29: =IFERROR((((INDEX('DATA TABLE'!$J$13:$AC$66, MATCH('SCORE TABLE'!$B29,'DATA TABLE'!$B$13:$B$66,0),MATCH('SCORE TABLE'!V$9,'DATA TABLE'!$J$9:$AC$9,0)))-'SCORE TABLE'!$F29)/('SCORE TABLE'!$G29-'SCORE TABLE'!$F29))*100,0) -> 50 | W29: =IFERROR((((INDEX('DATA TABLE'!$J$13:$AC$66, MATCH('SCORE TABLE'!$B29,'DATA TABLE'!$B$13:$B$66,0),MATCH('SCORE TABLE'!W$9,'DATA TABLE'!$J$9:$AC$9,0)))-'SCORE TABLE'!$F29)/('SCORE TABLE'!$G29-'SCORE TABLE'!$F29))*100,0) -> 0 | X29: =IFERROR((((INDEX('DATA TABLE'!$J$13:$AC$66, MATCH('SCORE TABLE'!$B29,'DATA TABLE'!$B$13:$B$66,0),MATCH('SCORE TABLE'!X$9,'DATA TABLE'!$J$9:$AC$9,0)))-'SCORE TABLE'!$F29)/('SCORE TABLE'!$G29-'SCORE TABLE'!$F29))*100,0) -> 50 | Y29: =IFERROR((((INDEX('DATA TABLE'!$J$13:$AC$66, MATCH('SCORE TABLE'!$B29,'DATA TABLE'!$B$13:$B$66,0),MATCH('SCORE TABLE'!Y$9,'DATA TABLE'!$J$9:$AC$9,0)))-'SCORE TABLE'!$F29)/('SCORE TABLE'!$G29-'SCORE TABLE'!$F29))*100,0) -> 0 | Z29: =IFERROR((((INDEX('DATA TABLE'!$J$13:$AC$66, MATCH('SCORE TABLE'!$B29,'DATA TABLE'!$B$13:$B$66,0),MATCH('SCORE TABLE'!Z$9,'DATA TABLE'!$J$9:$AC$9,0)))-'SCORE TABLE'!$F29)/('SCORE TABLE'!$G29-'SCORE TABLE'!$F29))*100,0) -> 100 | AA29: =IFERROR((((INDEX('DATA TABLE'!$J$13:$AC$66, MATCH('SCORE TABLE'!$B29,'DATA TABLE'!$B$13:$B$66,0),MATCH('SCORE TABLE'!AA$9,'DATA TABLE'!$J$9:$AC$9,0)))-'SCORE TABLE'!$F29)/('SCORE TABLE'!$G29-'SCORE TABLE'!$F29))*100,0) -> 100
A30: 1019 | B30: 2.2 | C30: Obesity diagnosis and referral pathways | D30: =1/3 -> 0.3333333333 | E30: =$E$25*D30 -> 0.08333333333 | H30: =ROUND(SUMPRODUCT($D31:$D32,H31:H32),5) -> 50 | I30: =ROUND(SUMPRODUCT($D31:$D32,I31:I32),5) -> 100 | J30: =ROUND(SUMPRODUCT($D31:$D32,J31:J32),5) -> 50 | K30: 100 | L30: 100 | M30: 100 | N30: 100 | O30: 50 | P30: 100 | Q30: 100 | R30: 100 | S30: 0 | T30: 75 | U30: 100 | V30: 100 | W30: 25 | X30: 100 | Y30: 0 | Z30: 100 | AA30: 100
A31: 1020 | B31: 2.2.1 | C31: Obesity management pathway | D31: =1/2 -> 0.5 | E31: =$E$30*D31 -> 0.04166666667 | F31: 0 | G31: 1 | H31: =IFERROR((((INDEX('DATA TABLE'!$J$13:$AC$66, MATCH('SCORE TABLE'!$B31,'DATA TABLE'!$B$13:$B$66,0),MATCH('SCORE TABLE'!H$9,'DATA TABLE'!$J$9:$AC$9,0)))-'SCORE TABLE'!$F31)/('SCORE TABLE'!$G31-'SCORE TABLE'!$F31))*100,0) -> 0 | I31: =IFERROR((((INDEX('DATA TABLE'!$J$13:$AC$66, MATCH('SCORE TABLE'!$B31,'DATA TABLE'!$B$13:$B$66,0),MATCH('SCORE TABLE'!I$9,'DATA TABLE'!$J$9:$AC$9,0)))-'SCORE TABLE'!$F31)/('SCORE TABLE'!$G31-'SCORE TABLE'!$F31))*100,0) -> 100 | J31: =IFERROR((((INDEX('DATA TABLE'!$J$13:$AC$66, MATCH('SCORE TABLE'!$B31,'DATA TABLE'!$B$13:$B$66,0),MATCH('SCORE TABLE'!J$9,'DATA TABLE'!$J$9:$AC$9,0)))-'SCORE TABLE'!$F31)/('SCORE TABLE'!$G31-'SCORE TABLE'!$F31))*100,0) -> 100 | K31: =IFERROR((((INDEX('DATA TABLE'!$J$13:$AC$66, MATCH('SCORE TABLE'!$B31,'DATA TABLE'!$B$13:$B$66,0),MATCH('SCORE TABLE'!K$9,'DATA TABLE'!$J$9:$AC$9,0)))-'SCORE TABLE'!$F31)/('SCORE TABLE'!$G31-'SCORE TABLE'!$F31))*100,0) -> 100 | L31: =IFERROR((((INDEX('DATA TABLE'!$J$13:$AC$66, MATCH('SCORE TABLE'!$B31,'DATA TABLE'!$B$13:$B$66,0),MATCH('SCORE TABLE'!L$9,'DATA TABLE'!$J$9:$AC$9,0)))-'SCORE TABLE'!$F31)/('SCORE TABLE'!$G31-'SCORE TABLE'!$F31))*100,0) -> 100 | M31: =IFERROR((((INDEX('DATA TABLE'!$J$13:$AC$66, MATCH('SCORE TABLE'!$B31,'DATA TABLE'!$B$13:$B$66,0),MATCH('SCORE TABLE'!M$9,'DATA TABLE'!$J$9:$AC$9,0)))-'SCORE TABLE'!$F31)/('SCORE TABLE'!$G31-'SCORE TABLE'!$F31))*100,0) -> 100 | N31: =IFERROR((((INDEX('DATA TABLE'!$J$13:$AC$66, MATCH('SCORE TABLE'!$B31,'DATA TABLE'!$B$13:$B$66,0),MATCH('SCORE TABLE'!N$9,'DATA TABLE'!$J$9:$AC$9,0)))-'SCORE TABLE'!$F31)/('SCORE TABLE'!$G31-'SCORE TABLE'!$F31))*100,0) -> 100 | O31: =IFERROR((((INDEX('DATA TABLE'!$J$13:$AC$66, MATCH('SCORE TABLE'!$B31,'DATA TABLE'!$B$13:$B$66,0),MATCH('SCORE TABLE'!O$9,'DATA TABLE'!$J$9:$AC$9,0)))-'SCORE TABLE'!$F31)/('SCORE TABLE'!$G31-'SCORE TABLE'!$F31))*100,0) -> 0 | P31: =IFERROR((((INDEX('DATA TABLE'!$J$13:$AC$66, MATCH('SCORE TABLE'!$B31,'DATA TABLE'!$B$13:$B$66,0),MATCH('SCORE TABLE'!P$9,'DATA TABLE'!$J$9:$AC$9,0)))-'SCORE TABLE'!$F31)/('SCORE TABLE'!$G31-'SCORE TABLE'!$F31))*100,0) -> 100 | Q31: =IFERROR((((INDEX('DATA TABLE'!$J$13:$AC$66, MATCH('SCORE TABLE'!$B31,'DATA TABLE'!$B$13:$B$66,0),MATCH('SCORE TABLE'!Q$9,'DATA TABLE'!$J$9:$AC$9,0)))-'SCORE TABLE'!$F31)/('SCORE TABLE'!$G31-'SCORE TABLE'!$F31))*100,0) -> 100 | R31: =IFERROR((((INDEX('DATA TABLE'!$J$13:$AC$66, MATCH('SCORE TABLE'!$B31,'DATA TABLE'!$B$13:$B$66,0),MATCH('SCORE TABLE'!R$9,'DATA TABLE'!$J$9:$AC$9,0)))-'SCORE TABLE'!$F31)/('SCORE TABLE'!$G31-'SCORE TABLE'!$F31))*100,0) -> 100 | S31: =IFERROR((((INDEX('DATA TABLE'!$J$13:$AC$66, MATCH('SCORE TABLE'!$B31,'DATA TABLE'!$B$13:$B$66,0),MATCH('SCORE TABLE'!S$9,'DATA TABLE'!$J$9:$AC$9,0)))-'SCORE TABLE'!$F31)/('SCORE TABLE'!$G31-'SCORE TABLE'!$F31))*100,0) -> 0 | T31: =IFERROR((((INDEX('DATA TABLE'!$J$13:$AC$66, MATCH('SCORE TABLE'!$B31,'DATA TABLE'!$B$13:$B$66,0),MATCH('SCORE TABLE'!T$9,'DATA TABLE'!$J$9:$AC$9,0)))-'SCORE TABLE'!$F31)/('SCORE TABLE'!$G31-'SCORE TABLE'!$F31))*100,0) -> 100 | U31: =IFERROR((((INDEX('DATA TABLE'!$J$13:$AC$66, MATCH('SCORE TABLE'!$B31,'DATA TABLE'!$B$13:$B$66,0),MATCH('SCORE TABLE'!U$9,'DATA TABLE'!$J$9:$AC$9,0)))-'SCORE TABLE'!$F31)/('SCORE TABLE'!$G31-'SCORE TABLE'!$F31))*100,0) -> 100 | V31: =IFERROR((((INDEX('DATA TABLE'!$J$13:$AC$66, MATCH('SCORE TABLE'!$B31,'DATA TABLE'!$B$13:$B$66,0),MATCH('SCORE TABLE'!V$9,'DATA TABLE'!$J$9:$AC$9,0)))-'SCORE TABLE'!$F31)/('SCORE TABLE'!$G31-'SCORE TABLE'!$F31))*100,0) -> 100 | W31: =IFERROR((((INDEX('DATA TABLE'!$J$13:$AC$66, MATCH('SCORE TABLE'!$B31,'DATA TABLE'!$B$13:$B$66,0),MATCH('SCORE TABLE'!W$9,'DATA TABLE'!$J$9:$AC$9,0)))-'SCORE TABLE'!$F31)/('SCORE TABLE'!$G31-'SCORE TABLE'!$F31))*100,0) -> 0 | X31: =IFERROR((((INDEX('DATA TABLE'!$J$13:$AC$66, MATCH('SCORE TABLE'!$B31,'DATA TABLE'!$B$13:$B$66,0),MATCH('SCORE TABLE'!X$9,'DATA TABLE'!$J$9:$AC$9,0)))-'SCORE TABLE'!$F31)/('SCORE TABLE'!$G31-'SCORE TABLE'!$F31))*100,0) -> 100 | Y31: =IFERROR((((INDEX('DATA TABLE'!$J$13:$AC$66, MATCH('SCORE TABLE'!$B31,'DATA TABLE'!$B$13:$B$66,0),MATCH('SCORE TABLE'!Y$9,'DATA TABLE'!$J$9:$AC$9,0)))-'SCORE TABLE'!$F31)/('SCORE TABLE'!$G31-'SCORE TABLE'!$F31))*100,0) -> 0 | Z31: =IFERROR((((INDEX('DATA TABLE'!$J$13:$AC$66, MATCH('SCORE TABLE'!$B31,'DATA TABLE'!$B$13:$B$66,0),MATCH('SCORE TABLE'!Z$9,'DATA TABLE'!$J$9:$AC$9,0)))-'SCORE TABLE'!$F31)/('SCORE TABLE'!$G31-'SCORE TABLE'!$F31))*100,0) -> 100 | AA31: =IFERROR((((INDEX('DATA TABLE'!$J$13:$AC$66, MATCH('SCORE TABLE'!$B31,'DATA TABLE'!$B$13:$B$66,0),MATCH('SCORE TABLE'!AA$9,'DATA TABLE'!$J$9:$AC$9,0)))-'SCORE TABLE'!$F31)/('SCORE TABLE'!$G31-'SCORE TABLE'!$F31))*100,0) -> 100
A32: 1021 | B32: 2.2.2 | C32: Obesity pathway in chronic disease management | D32: =1/2 -> 0.5 | E32: =$E$30*D32 -> 0.04166666667 | F32: 0 | G32: 2 | H32: =IFERROR((((INDEX('DATA TABLE'!$J$13:$AC$66, MATCH('SCORE TABLE'!$B32,'DATA TABLE'!$B$13:$B$66,0),MATCH('SCORE TABLE'!H$9,'DATA TABLE'!$J$9:$AC$9,0)))-'SCORE TABLE'!$F32)/('SCORE TABLE'!$G32-'SCORE TABLE'!$F32))*100,0) -> 100 | I32: =IFERROR((((INDEX('DATA TABLE'!$J$13:$AC$66, MATCH('SCORE TABLE'!$B32,'DATA TABLE'!$B$13:$B$66,0),MATCH('SCORE TABLE'!I$9,'DATA TABLE'!$J$9:$AC$9,0)))-'SCORE TABLE'!$F32)/('SCORE TABLE'!$G32-'SCORE TABLE'!$F32))*100,0) -> 100 | J32: =IFERROR((((INDEX('DATA TABLE'!$J$13:$AC$66, MATCH('SCORE TABLE'!$B32,'DATA TABLE'!$B$13:$B$66,0),MATCH('SCORE TABLE'!J$9,'DATA TABLE'!$J$9:$AC$9,0)))-'SCORE TABLE'!$F32)/('SCORE TABLE'!$G32-'SCORE TABLE'!$F32))*100,0) -> 0 | K32: =IFERROR((((INDEX('DATA TABLE'!$J$13:$AC$66, MATCH('SCORE TABLE'!$B32,'DATA TABLE'!$B$13:$B$66,0),MATCH('SCORE TABLE'!K$9,'DATA TABLE'!$J$9:$AC$9,0)))-'SCORE TABLE'!$F32)/('SCORE TABLE'!$G32-'SCORE TABLE'!$F32))*100,0) -> 100 | L32: =IFERROR((((INDEX('DATA TABLE'!$J$13:$AC$66, MATCH('SCORE TABLE'!$B32,'DATA TABLE'!$B$13:$B$66,0),MATCH('SCORE TABLE'!L$9,'DATA TABLE'!$J$9:$AC$9,0)))-'SCORE TABLE'!$F32)/('SCORE TABLE'!$G32-'SCORE TABLE'!$F32))*100,0) -> 100 | M32: =IFERROR((((INDEX('DATA TABLE'!$J$13:$AC$66, MATCH('SCORE TABLE'!$B32,'DATA TABLE'!$B$13:$B$66,0),MATCH('SCORE TABLE'!M$9,'DATA TABLE'!$J$9:$AC$9,0)))-'SCORE TABLE'!$F32)/('SCORE TABLE'!$G32-'SCORE TABLE'!$F32))*100,0) -> 100 | N32: =IFERROR((((INDEX('DATA TABLE'!$J$13:$AC$66, MATCH('SCORE TABLE'!$B32,'DATA TABLE'!$B$13:$B$66,0),MATCH('SCORE TABLE'!N$9,'DATA TABLE'!$J$9:$AC$9,0)))-'SCORE TABLE'!$F32)/('SCORE TABLE'!$G32-'SCORE TABLE'!$F32))*100,0) -> 100 | O32: =IFERROR((((INDEX('DATA TABLE'!$J$13:$AC$66, MATCH('SCORE TABLE'!$B32,'DATA TABLE'!$B$13:$B$66,0),MATCH('SCORE TABLE'!O$9,'DATA TABLE'!$J$9:$AC$9,0)))-'SCORE TABLE'!$F32)/('SCORE TABLE'!$G32-'SCORE TABLE'!$F32))*100,0) -> 100 | P32: =IFERROR((((INDEX('DATA TABLE'!$J$13:$AC$66, MATCH('SCORE TABLE'!$B32,'DATA TABLE'!$B$13:$B$66,0),MATCH('SCORE TABLE'!P$9,'DATA TABLE'!$J$9:$AC$9,0)))-'SCORE TABLE'!$F32)/('SCORE TABLE'!$G32-'SCORE TABLE'!$F32))*100,0) -> 100 | Q32: =IFERROR((((INDEX('DATA TABLE'!$J$13:$AC$66, MATCH('SCORE TABLE'!$B32,'DATA TABLE'!$B$13:$B$66,0),MATCH('SCORE TABLE'!Q$9,'DATA TABLE'!$J$9:$AC$9,0)))-'SCORE TABLE'!$F32)/('SCORE TABLE'!$G32-'SCORE TABLE'!$F32))*100,0) -> 100 | R32: =IFERROR((((INDEX('DATA TABLE'!$J$13:$AC$66, MATCH('SCORE TABLE'!$B32,'DATA TABLE'!$B$13:$B$66,0),MATCH('SCORE TABLE'!R$9,'DATA TABLE'!$J$9:$AC$9,0)))-'SCORE TABLE'!$F32)/('SCORE TABLE'!$G32-'SCORE TABLE'!$F32))*100,0) -> 100 | S32: =IFERROR((((INDEX('DATA TABLE'!$J$13:$AC$66, MATCH('SCORE TABLE'!$B32,'DATA TABLE'!$B$13:$B$66,0),MATCH('SCORE TABLE'!S$9,'DATA TABLE'!$J$9:$AC$9,0)))-'SCORE TABLE'!$F32)/('SCORE TABLE'!$G32-'SCORE TABLE'!$F32))*100,0) -> 0 | T32: =IFERROR((((INDEX('DATA TABLE'!$J$13:$AC$66, MATCH('SCORE TABLE'!$B32,'DATA TABLE'!$B$13:$B$66,0),MATCH('SCORE TABLE'!T$9,'DATA TABLE'!$J$9:$AC$9,0)))-'SCORE TABLE'!$F32)/('SCORE TABLE'!$G32-'SCORE TABLE'!$F32))*100,0) -> 50 | U32: =IFERROR((((INDEX('DATA TABLE'!$J$13:$AC$66, MATCH('SCORE TABLE'!$B32,'DATA TABLE'!$B$13:$B$66,0),MATCH('SCORE TABLE'!U$9,'DATA TABLE'!$J$9:$AC$9,0)))-'SCORE TABLE'!$F32)/('SCORE TABLE'!$G32-'SCORE TABLE'!$F32))*100,0) -> 100 | V32: =IFERROR((((INDEX('DATA TABLE'!$J$13:$AC$66, MATCH('SCORE TABLE'!$B32,'DATA TABLE'!$B$13:$B$66,0),MATCH('SCORE TABLE'!V$9,'DATA TABLE'!$J$9:$AC$9,0)))-'SCORE TABLE'!$F32)/('SCORE TABLE'!$G32-'SCORE TABLE'!$F32))*100,0) -> 100 | W32: =IFERROR((((INDEX('DATA TABLE'!$J$13:$AC$66, MATCH('SCORE TABLE'!$B32,'DATA TABLE'!$B$13:$B$66,0),MATCH('SCORE TABLE'!W$9,'DATA TABLE'!$J$9:$AC$9,0)))-'SCORE TABLE'!$F32)/('SCORE TABLE'!$G32-'SCORE TABLE'!$F32))*100,0) -> 50 | X32: =IFERROR((((INDEX('DATA TABLE'!$J$13:$AC$66, MATCH('SCORE TABLE'!$B32,'DATA TABLE'!$B$13:$B$66,0),MATCH('SCORE TABLE'!X$9,'DATA TABLE'!$J$9:$AC$9,0)))-'SCORE TABLE'!$F32)/('SCORE TABLE'!$G32-'SCORE TABLE'!$F32))*100,0) -> 100 | Y32: =IFERROR((((INDEX('DATA TABLE'!$J$13:$AC$66, MATCH('SCORE TABLE'!$B32,'DATA TABLE'!$B$13:$B$66,0),MATCH('SCORE TABLE'!Y$9,'DATA TABLE'!$J$9:$AC$9,0)))-'SCORE TABLE'!$F32)/('SCORE TABLE'!$G32-'SCORE TABLE'!$F32))*100,0) -> 0 | Z32: =IFERROR((((INDEX('DATA TABLE'!$J$13:$AC$66, MATCH('SCORE TABLE'!$B32,'DATA TABLE'!$B$13:$B$66,0),MATCH('SCORE TABLE'!Z$9,'DATA TABLE'!$J$9:$AC$9,0)))-'SCORE TABLE'!$F32)/('SCORE TABLE'!$G32-'SCORE TABLE'!$F32))*100,0) -> 100 | AA32: =IFERROR((((INDEX('DATA TABLE'!$J$13:$AC$66, MATCH('SCORE TABLE'!$B32,'DATA TABLE'!$B$13:$B$66,0),MATCH('SCORE TABLE'!AA$9,'DATA TABLE'!$J$9:$AC$9,0)))-'SCORE TABLE'!$F32)/('SCORE TABLE'!$G32-'SCORE TABLE'!$F32))*100,0) -> 100
A33: 1022 | B33: 2.3 | C33: Availability and affordability of obesity-related care | D33: =1/3 -> 0.3333333333 | E33: =$E$25*D33 -> 0.08333333333 | H33: =ROUND(SUMPRODUCT($D34:$D34,H34:H34),5) -> 75 | I33: =ROUND(SUMPRODUCT($D34:$D34,I34:I34),5) -> 75 | J33: =ROUND(SUMPRODUCT($D34:$D34,J34:J34),5) -> 0 | K33: 0 | L33: 75 | M33: 75 | N33: 50 | O33: 25 | P33: 25 | Q33: 50 | R33: 0 | S33: 0 | T33: 0 | U33: 25 | V33: 75 | W33: 0 | X33: 50 | Y33: 75 | Z33: 75 | AA33: 100
A34: 1023 | B34: 2.3.1 | C34: Reimbursement/coverage of obesity care | D34: 1 | E34: =E33*D34 -> 0.08333333333 | F34: 0 | G34: 4 | H34: =IFERROR((((INDEX('DATA TABLE'!$J$13:$AC$66, MATCH('SCORE TABLE'!$B34,'DATA TABLE'!$B$13:$B$66,0),MATCH('SCORE TABLE'!H$9,'DATA TABLE'!$J$9:$AC$9,0)))-'SCORE TABLE'!$F34)/('SCORE TABLE'!$G34-'SCORE TABLE'!$F34))*100,0) -> 75 | I34: =IFERROR((((INDEX('DATA TABLE'!$J$13:$AC$66, MATCH('SCORE TABLE'!$B34,'DATA TABLE'!$B$13:$B$66,0),MATCH('SCORE TABLE'!I$9,'DATA TABLE'!$J$9:$AC$9,0)))-'SCORE TABLE'!$F34)/('SCORE TABLE'!$G34-'SCORE TABLE'!$F34))*100,0) -> 75 | J34: =IFERROR((((INDEX('DATA TABLE'!$J$13:$AC$66, MATCH('SCORE TABLE'!$B34,'DATA TABLE'!$B$13:$B$66,0),MATCH('SCORE TABLE'!J$9,'DATA TABLE'!$J$9:$AC$9,0)))-'SCORE TABLE'!$F34)/('SCORE TABLE'!$G34-'SCORE TABLE'!$F34))*100,0) -> 0 | K34: =IFERROR((((INDEX('DATA TABLE'!$J$13:$AC$66, MATCH('SCORE TABLE'!$B34,'DATA TABLE'!$B$13:$B$66,0),MATCH('SCORE TABLE'!K$9,'DATA TABLE'!$J$9:$AC$9,0)))-'SCORE TABLE'!$F34)/('SCORE TABLE'!$G34-'SCORE TABLE'!$F34))*100,0) -> 0 | L34: =IFERROR((((INDEX('DATA TABLE'!$J$13:$AC$66, MATCH('SCORE TABLE'!$B34,'DATA TABLE'!$B$13:$B$66,0),MATCH('SCORE TABLE'!L$9,'DATA TABLE'!$J$9:$AC$9,0)))-'SCORE TABLE'!$F34)/('SCORE TABLE'!$G34-'SCORE TABLE'!$F34))*100,0) -> 75 | M34: =IFERROR((((INDEX('DATA TABLE'!$J$13:$AC$66, MATCH('SCORE TABLE'!$B34,'DATA TABLE'!$B$13:$B$66,0),MATCH('SCORE TABLE'!M$9,'DATA TABLE'!$J$9:$AC$9,0)))-'SCORE TABLE'!$F34)/('SCORE TABLE'!$G34-'SCORE TABLE'!$F34))*100,0) -> 75 | N34: =IFERROR((((INDEX('DATA TABLE'!$J$13:$AC$66, MATCH('SCORE TABLE'!$B34,'DATA TABLE'!$B$13:$B$66,0),MATCH('SCORE TABLE'!N$9,'DATA TABLE'!$J$9:$AC$9,0)))-'SCORE TABLE'!$F34)/('SCORE TABLE'!$G34-'SCORE TABLE'!$F34))*100,0) -> 50 | O34: =IFERROR((((INDEX('DATA TABLE'!$J$13:$AC$66, MATCH('SCORE TABLE'!$B34,'DATA TABLE'!$B$13:$B$66,0),MATCH('SCORE TABLE'!O$9,'DATA TABLE'!$J$9:$AC$9,0)))-'SCORE TABLE'!$F34)/('SCORE TABLE'!$G34-'SCORE TABLE'!$F34))*100,0) -> 25 | P34: =IFERROR((((INDEX('DATA TABLE'!$J$13:$AC$66, MATCH('SCORE TABLE'!$B34,'DATA TABLE'!$B$13:$B$66,0),MATCH('SCORE TABLE'!P$9,'DATA TABLE'!$J$9:$AC$9,0)))-'SCORE TABLE'!$F34)/('SCORE TABLE'!$G34-'SCORE TABLE'!$F34))*100,0) -> 25 | Q34: =IFERROR((((INDEX('DATA TABLE'!$J$13:$AC$66, MATCH('SCORE TABLE'!$B34,'DATA TABLE'!$B$13:$B$66,0),MATCH('SCORE TABLE'!Q$9,'DATA TABLE'!$J$9:$AC$9,0)))-'SCORE TABLE'!$F34)/('SCORE TABLE'!$G34-'SCORE TABLE'!$F34))*100,0) -> 50 | R34: =IFERROR((((INDEX('DATA TABLE'!$J$13:$AC$66, MATCH('SCORE TABLE'!$B34,'DATA TABLE'!$B$13:$B$66,0),MATCH('SCORE TABLE'!R$9,'DATA TABLE'!$J$9:$AC$9,0)))-'SCORE TABLE'!$F34)/('SCORE TABLE'!$G34-'SCORE TABLE'!$F34))*100,0) -> 0 | S34: =IFERROR((((INDEX('DATA TABLE'!$J$13:$AC$66, MATCH('SCORE TABLE'!$B34,'DATA TABLE'!$B$13:$B$66,0),MATCH('SCORE TABLE'!S$9,'DATA TABLE'!$J$9:$AC$9,0)))-'SCORE TABLE'!$F34)/('SCORE TABLE'!$G34-'SCORE TABLE'!$F34))*100,0) -> 0 | T34: =IFERROR((((INDEX('DATA TABLE'!$J$13:$AC$66, MATCH('SCORE TABLE'!$B34,'DATA TABLE'!$B$13:$B$66,0),MATCH('SCORE TABLE'!T$9,'DATA TABLE'!$J$9:$AC$9,0)))-'SCORE TABLE'!$F34)/('SCORE TABLE'!$G34-'SCORE TABLE'!$F34))*100,0) -> 0 | U34: =IFERROR((((INDEX('DATA TABLE'!$J$13:$AC$66, MATCH('SCORE TABLE'!$B34,'DATA TABLE'!$B$13:$B$66,0),MATCH('SCORE TABLE'!U$9,'DATA TABLE'!$J$9:$AC$9,0)))-'SCORE TABLE'!$F34)/('SCORE TABLE'!$G34-'SCORE TABLE'!$F34))*100,0) -> 25 | V34: =IFERROR((((INDEX('DATA TABLE'!$J$13:$AC$66, MATCH('SCORE TABLE'!$B34,'DATA TABLE'!$B$13:$B$66,0),MATCH('SCORE TABLE'!V$9,'DATA TABLE'!$J$9:$AC$9,0)))-'SCORE TABLE'!$F34)/('SCORE TABLE'!$G34-'SCORE TABLE'!$F34))*100,0) -> 75 | W34: =IFERROR((((INDEX('DATA TABLE'!$J$13:$AC$66, MATCH('SCORE TABLE'!$B34,'DATA TABLE'!$B$13:$B$66,0),MATCH('SCORE TABLE'!W$9,'DATA TABLE'!$J$9:$AC$9,0)))-'SCORE TABLE'!$F34)/('SCORE TABLE'!$G34-'SCORE TABLE'!$F34))*100,0) -> 0 | X34: =IFERROR((((INDEX('DATA TABLE'!$J$13:$AC$66, MATCH('SCORE TABLE'!$B34,'DATA TABLE'!$B$13:$B$66,0),MATCH('SCORE TABLE'!X$9,'DATA TABLE'!$J$9:$AC$9,0)))-'SCORE TABLE'!$F34)/('SCORE TABLE'!$G34-'SCORE TABLE'!$F34))*100,0) -> 50 | Y34: =IFERROR((((INDEX('DATA TABLE'!$J$13:$AC$66, MATCH('SCORE TABLE'!$B34,'DATA TABLE'!$B$13:$B$66,0),MATCH('SCORE TABLE'!Y$9,'DATA TABLE'!$J$9:$AC$9,0)))-'SCORE TABLE'!$F34)/('SCORE TABLE'!$G34-'SCORE TABLE'!$F34))*100,0) -> 75 | Z34: =IFERROR((((INDEX('DATA TABLE'!$J$13:$AC$66, MATCH('SCORE TABLE'!$B34,'DATA TABLE'!$B$13:$B$66,0),MATCH('SCORE TABLE'!Z$9,'DATA TABLE'!$J$9:$AC$9,0)))-'SCORE TABLE'!$F34)/('SCORE TABLE'!$G34-'SCORE TABLE'!$F34))*100,0) -> 75 | AA34: =IFERROR((((INDEX('DATA TABLE'!$J$13:$AC$66, MATCH('SCORE TABLE'!$B34,'DATA TABLE'!$B$13:$B$66,0),MATCH('SCORE TABLE'!AA$9,'DATA TABLE'!$J$9:$AC$9,0)))-'SCORE TABLE'!$F34)/('SCORE TABLE'!$G34-'SCORE TABLE'!$F34))*100,0) -> 100
A35: 1024 | B35: 3 | C35: Food quality and access | D35: =0.25 -> 0.25 | E35: =0.25 -> 0.25 | H35: =ROUND(SUM($D36*H36,$D40*H40,$D46*H46),5) -> 60.43333 | I35: =ROUND(SUM($D36*I36,$D40*I40,$D46*I46),5) -> 78.47778 | J35: =ROUND(SUM($D36*J36,$D40*J40,$D46*J46),5) -> 63.2 | K35: 63.61111 | L35: 72.95556 | M35: 82.11111 | N35: 62.64444 | O35: 51.6 | P35: 72.34444 | Q35: 59.66667 | R35: 84.08889 | S35: 29.71111 | T35: 45.96667 | U35: 43.33333 | V35: 59.87778 | W35: 75.48889 | X35: 78.36667 | Y35: 82.68889 | Z35: 65.3 | AA35: 90.2
A36: 1025 | B36: 3.1 | C36: Food access and affordability | D36: =1/3 -> 0.3333333333 | E36: =$E$35*D36 -> 0.08333333333 | H36: =ROUND(SUMPRODUCT($D37:$D39,H37:H39),5) -> 61.3 | I36: =ROUND(SUMPRODUCT($D37:$D39,I37:I39),5) -> 85.43333 | J36: =ROUND(SUMPRODUCT($D37:$D39,J37:J39),5) -> 96.26667 | K36: 60.83333 | L36: 62.2 | M36: 96.33333 | N36: 97.93333 | O36: 48.13333 | P36: 97.03333 | Q36: 62.33333 | R36: 85.6 | S36: 49.13333 | T36: 67.9 | U36: 0 | V36: 59.63333 | W36: 73.13333 | X36: 95.1 | Y36: 94.73333 | Z36: 62.56667 | AA36: 97.26667
A37: 1026 | B37: 3.1.1 | C37: Level of food security | D37: =1/3 -> 0.3333333333 | E37: =$E$36*D37 -> 0.02777777778 | F37: 0 | G37: 100 | H37: =IFERROR((((INDEX('DATA TABLE'!$J$13:$AC$66, MATCH('SCORE TABLE'!$B37,'DATA TABLE'!$B$13:$B$66,0),MATCH('SCORE TABLE'!H$9,'DATA TABLE'!$J$9:$AC$9,0)))-'SCORE TABLE'!$F37)/('SCORE TABLE'!$G37-'SCORE TABLE'!$F37))*100,0) -> 87.1 | I37: =IFERROR((((INDEX('DATA TABLE'!$J$13:$AC$66, MATCH('SCORE TABLE'!$B37,'DATA TABLE'!$B$13:$B$66,0),MATCH('SCORE TABLE'!I$9,'DATA TABLE'!$J$9:$AC$9,0)))-'SCORE TABLE'!$F37)/('SCORE TABLE'!$G37-'SCORE TABLE'!$F37))*100,0) -> 81.6 | J37: =IFERROR((((INDEX('DATA TABLE'!$J$13:$AC$66, MATCH('SCORE TABLE'!$B37,'DATA TABLE'!$B$13:$B$66,0),MATCH('SCORE TABLE'!J$9,'DATA TABLE'!$J$9:$AC$9,0)))-'SCORE TABLE'!$F37)/('SCORE TABLE'!$G37-'SCORE TABLE'!$F37))*100,0) -> 91.5 | K37: =IFERROR((((INDEX('DATA TABLE'!$J$13:$AC$66, MATCH('SCORE TABLE'!$B37,'DATA TABLE'!$B$13:$B$66,0),MATCH('SCORE TABLE'!K$9,'DATA TABLE'!$J$9:$AC$9,0)))-'SCORE TABLE'!$F37)/('SCORE TABLE'!$G37-'SCORE TABLE'!$F37))*100,0) -> 0 | L37: =IFERROR((((INDEX('DATA TABLE'!$J$13:$AC$66, MATCH('SCORE TABLE'!$B37,'DATA TABLE'!$B$13:$B$66,0),MATCH('SCORE TABLE'!L$9,'DATA TABLE'!$J$9:$AC$9,0)))-'SCORE TABLE'!$F37)/('SCORE TABLE'!$G37-'SCORE TABLE'!$F37))*100,0) -> 87.4 | M37: =IFERROR((((INDEX('DATA TABLE'!$J$13:$AC$66, MATCH('SCORE TABLE'!$B37,'DATA TABLE'!$B$13:$B$66,0),MATCH('SCORE TABLE'!M$9,'DATA TABLE'!$J$9:$AC$9,0)))-'SCORE TABLE'!$F37)/('SCORE TABLE'!$G37-'SCORE TABLE'!$F37))*100,0) -> 92.1 | N37: =IFERROR((((INDEX('DATA TABLE'!$J$13:$AC$66, MATCH('SCORE TABLE'!$B37,'DATA TABLE'!$B$13:$B$66,0),MATCH('SCORE TABLE'!N$9,'DATA TABLE'!$J$9:$AC$9,0)))-'SCORE TABLE'!$F37)/('SCORE TABLE'!$G37-'SCORE TABLE'!$F37))*100,0) -> 96 | O37: =IFERROR((((INDEX('DATA TABLE'!$J$13:$AC$66, MATCH('SCORE TABLE'!$B37,'DATA TABLE'!$B$13:$B$66,0),MATCH('SCORE TABLE'!O$9,'DATA TABLE'!$J$9:$AC$9,0)))-'SCORE TABLE'!$F37)/('SCORE TABLE'!$G37-'SCORE TABLE'!$F37))*100,0) -> 0 | P37: =IFERROR((((INDEX('DATA TABLE'!$J$13:$AC$66, MATCH('SCORE TABLE'!$B37,'DATA TABLE'!$B$13:$B$66,0),MATCH('SCORE TABLE'!P$9,'DATA TABLE'!$J$9:$AC$9,0)))-'SCORE TABLE'!$F37)/('SCORE TABLE'!$G37-'SCORE TABLE'!$F37))*100,0) -> 98 | Q37: =IFERROR((((INDEX('DATA TABLE'!$J$13:$AC$66, MATCH('SCORE TABLE'!$B37,'DATA TABLE'!$B$13:$B$66,0),MATCH('SCORE TABLE'!Q$9,'DATA TABLE'!$J$9:$AC$9,0)))-'SCORE TABLE'!$F37)/('SCORE TABLE'!$G37-'SCORE TABLE'!$F37))*100,0) -> 94.5 | R37: =IFERROR((((INDEX('DATA TABLE'!$J$13:$AC$66, MATCH('SCORE TABLE'!$B37,'DATA TABLE'!$B$13:$B$66,0),MATCH('SCORE TABLE'!R$9,'DATA TABLE'!$J$9:$AC$9,0)))-'SCORE TABLE'!$F37)/('SCORE TABLE'!$G37-'SCORE TABLE'!$F37))*100,0) -> 79.3 | S37: =IFERROR((((INDEX('DATA TABLE'!$J$13:$AC$66, MATCH('SCORE TABLE'!$B37,'DATA TABLE'!$B$13:$B$66,0),MATCH('SCORE TABLE'!S$9,'DATA TABLE'!$J$9:$AC$9,0)))-'SCORE TABLE'!$F37)/('SCORE TABLE'!$G37-'SCORE TABLE'!$F37))*100,0) -> 26.1 | T37: =IFERROR((((INDEX('DATA TABLE'!$J$13:$AC$66, MATCH('SCORE TABLE'!$B37,'DATA TABLE'!$B$13:$B$66,0),MATCH('SCORE TABLE'!T$9,'DATA TABLE'!$J$9:$AC$9,0)))-'SCORE TABLE'!$F37)/('SCORE TABLE'!$G37-'SCORE TABLE'!$F37))*100,0) -> 79.4 | U37: =IFERROR((((INDEX('DATA TABLE'!$J$13:$AC$66, MATCH('SCORE TABLE'!$B37,'DATA TABLE'!$B$13:$B$66,0),MATCH('SCORE TABLE'!U$9,'DATA TABLE'!$J$9:$AC$9,0)))-'SCORE TABLE'!$F37)/('SCORE TABLE'!$G37-'SCORE TABLE'!$F37))*100,0) -> 0 | V37: =IFERROR((((INDEX('DATA TABLE'!$J$13:$AC$66, MATCH('SCORE TABLE'!$B37,'DATA TABLE'!$B$13:$B$66,0),MATCH('SCORE TABLE'!V$9,'DATA TABLE'!$J$9:$AC$9,0)))-'SCORE TABLE'!$F37)/('SCORE TABLE'!$G37-'SCORE TABLE'!$F37))*100,0) -> 87 | W37: =IFERROR((((INDEX('DATA TABLE'!$J$13:$AC$66, MATCH('SCORE TABLE'!$B37,'DATA TABLE'!$B$13:$B$66,0),MATCH('SCORE TABLE'!W$9,'DATA TABLE'!$J$9:$AC$9,0)))-'SCORE TABLE'!$F37)/('SCORE TABLE'!$G37-'SCORE TABLE'!$F37))*100,0) -> 80.6 | X37: =IFERROR((((INDEX('DATA TABLE'!$J$13:$AC$66, MATCH('SCORE TABLE'!$B37,'DATA TABLE'!$B$13:$B$66,0),MATCH('SCORE TABLE'!X$9,'DATA TABLE'!$J$9:$AC$9,0)))-'SCORE TABLE'!$F37)/('SCORE TABLE'!$G37-'SCORE TABLE'!$F37))*100,0) -> 94.3 | Y37: =IFERROR((((INDEX('DATA TABLE'!$J$13:$AC$66, MATCH('SCORE TABLE'!$B37,'DATA TABLE'!$B$13:$B$66,0),MATCH('SCORE TABLE'!Y$9,'DATA TABLE'!$J$9:$AC$9,0)))-'SCORE TABLE'!$F37)/('SCORE TABLE'!$G37-'SCORE TABLE'!$F37))*100,0) -> 93.1 | Z37: =IFERROR((((INDEX('DATA TABLE'!$J$13:$AC$66, MATCH('SCORE TABLE'!$B37,'DATA TABLE'!$B$13:$B$66,0),MATCH('SCORE TABLE'!Z$9,'DATA TABLE'!$J$9:$AC$9,0)))-'SCORE TABLE'!$F37)/('SCORE TABLE'!$G37-'SCORE TABLE'!$F37))*100,0) -> 90 | AA37: =IFERROR((((INDEX('DATA TABLE'!$J$13:$AC$66, MATCH('SCORE TABLE'!$B37,'DATA TABLE'!$B$13:$B$66,0),MATCH('SCORE TABLE'!AA$9,'DATA TABLE'!$J$9:$AC$9,0)))-'SCORE TABLE'!$F37)/('SCORE TABLE'!$G37-'SCORE TABLE'!$F37))*100,0) -> 94.3
A38: 1027 | B38: 3.1.2 | C38: Affordability of nutritious food | D38: =1/3 -> 0.3333333333 | E38: =$E$36*D38 -> 0.02777777778 | F38: 0 | G38: 100 | H38: =IFERROR((((INDEX('DATA TABLE'!$J$13:$AC$66, MATCH('SCORE TABLE'!$B38,'DATA TABLE'!$B$13:$B$66,0),MATCH('SCORE TABLE'!H$9,'DATA TABLE'!$J$9:$AC$9,0)))-'SCORE TABLE'!$F38)/('SCORE TABLE'!$G38-'SCORE TABLE'!$F38))*100,0) -> 96.8 | I38: =IFERROR((((INDEX('DATA TABLE'!$J$13:$AC$66, MATCH('SCORE TABLE'!$B38,'DATA TABLE'!$B$13:$B$66,0),MATCH('SCORE TABLE'!I$9,'DATA TABLE'!$J$9:$AC$9,0)))-'SCORE TABLE'!$F38)/('SCORE TABLE'!$G38-'SCORE TABLE'!$F38))*100,0) -> 74.7 | J38: =IFERROR((((INDEX('DATA TABLE'!$J$13:$AC$66, MATCH('SCORE TABLE'!$B38,'DATA TABLE'!$B$13:$B$66,0),MATCH('SCORE TABLE'!J$9,'DATA TABLE'!$J$9:$AC$9,0)))-'SCORE TABLE'!$F38)/('SCORE TABLE'!$G38-'SCORE TABLE'!$F38))*100,0) -> 97.3 | K38: =IFERROR((((INDEX('DATA TABLE'!$J$13:$AC$66, MATCH('SCORE TABLE'!$B38,'DATA TABLE'!$B$13:$B$66,0),MATCH('SCORE TABLE'!K$9,'DATA TABLE'!$J$9:$AC$9,0)))-'SCORE TABLE'!$F38)/('SCORE TABLE'!$G38-'SCORE TABLE'!$F38))*100,0) -> 82.5 | L38: =IFERROR((((INDEX('DATA TABLE'!$J$13:$AC$66, MATCH('SCORE TABLE'!$B38,'DATA TABLE'!$B$13:$B$66,0),MATCH('SCORE TABLE'!L$9,'DATA TABLE'!$J$9:$AC$9,0)))-'SCORE TABLE'!$F38)/('SCORE TABLE'!$G38-'SCORE TABLE'!$F38))*100,0) -> 99.2 | M38: =IFERROR((((INDEX('DATA TABLE'!$J$13:$AC$66, MATCH('SCORE TABLE'!$B38,'DATA TABLE'!$B$13:$B$66,0),MATCH('SCORE TABLE'!M$9,'DATA TABLE'!$J$9:$AC$9,0)))-'SCORE TABLE'!$F38)/('SCORE TABLE'!$G38-'SCORE TABLE'!$F38))*100,0) -> 96.9 | N38: =IFERROR((((INDEX('DATA TABLE'!$J$13:$AC$66, MATCH('SCORE TABLE'!$B38,'DATA TABLE'!$B$13:$B$66,0),MATCH('SCORE TABLE'!N$9,'DATA TABLE'!$J$9:$AC$9,0)))-'SCORE TABLE'!$F38)/('SCORE TABLE'!$G38-'SCORE TABLE'!$F38))*100,0) -> 97.8 | O38: =IFERROR((((INDEX('DATA TABLE'!$J$13:$AC$66, MATCH('SCORE TABLE'!$B38,'DATA TABLE'!$B$13:$B$66,0),MATCH('SCORE TABLE'!O$9,'DATA TABLE'!$J$9:$AC$9,0)))-'SCORE TABLE'!$F38)/('SCORE TABLE'!$G38-'SCORE TABLE'!$F38))*100,0) -> 44.4 | P38: =IFERROR((((INDEX('DATA TABLE'!$J$13:$AC$66, MATCH('SCORE TABLE'!$B38,'DATA TABLE'!$B$13:$B$66,0),MATCH('SCORE TABLE'!P$9,'DATA TABLE'!$J$9:$AC$9,0)))-'SCORE TABLE'!$F38)/('SCORE TABLE'!$G38-'SCORE TABLE'!$F38))*100,0) -> 93.1 | Q38: =IFERROR((((INDEX('DATA TABLE'!$J$13:$AC$66, MATCH('SCORE TABLE'!$B38,'DATA TABLE'!$B$13:$B$66,0),MATCH('SCORE TABLE'!Q$9,'DATA TABLE'!$J$9:$AC$9,0)))-'SCORE TABLE'!$F38)/('SCORE TABLE'!$G38-'SCORE TABLE'!$F38))*100,0) -> 92.5 | R38: =IFERROR((((INDEX('DATA TABLE'!$J$13:$AC$66, MATCH('SCORE TABLE'!$B38,'DATA TABLE'!$B$13:$B$66,0),MATCH('SCORE TABLE'!R$9,'DATA TABLE'!$J$9:$AC$9,0)))-'SCORE TABLE'!$F38)/('SCORE TABLE'!$G38-'SCORE TABLE'!$F38))*100,0) -> 77.5 | S38: =IFERROR((((INDEX('DATA TABLE'!$J$13:$AC$66, MATCH('SCORE TABLE'!$B38,'DATA TABLE'!$B$13:$B$66,0),MATCH('SCORE TABLE'!S$9,'DATA TABLE'!$J$9:$AC$9,0)))-'SCORE TABLE'!$F38)/('SCORE TABLE'!$G38-'SCORE TABLE'!$F38))*100,0) -> 21.3 | T38: =IFERROR((((INDEX('DATA TABLE'!$J$13:$AC$66, MATCH('SCORE TABLE'!$B38,'DATA TABLE'!$B$13:$B$66,0),MATCH('SCORE TABLE'!T$9,'DATA TABLE'!$J$9:$AC$9,0)))-'SCORE TABLE'!$F38)/('SCORE TABLE'!$G38-'SCORE TABLE'!$F38))*100,0) -> 24.3 | U38: =IFERROR((((INDEX('DATA TABLE'!$J$13:$AC$66, MATCH('SCORE TABLE'!$B38,'DATA TABLE'!$B$13:$B$66,0),MATCH('SCORE TABLE'!U$9,'DATA TABLE'!$J$9:$AC$9,0)))-'SCORE TABLE'!$F38)/('SCORE TABLE'!$G38-'SCORE TABLE'!$F38))*100,0) -> 0 | V38: =IFERROR((((INDEX('DATA TABLE'!$J$13:$AC$66, MATCH('SCORE TABLE'!$B38,'DATA TABLE'!$B$13:$B$66,0),MATCH('SCORE TABLE'!V$9,'DATA TABLE'!$J$9:$AC$9,0)))-'SCORE TABLE'!$F38)/('SCORE TABLE'!$G38-'SCORE TABLE'!$F38))*100,0) -> 91.9 | W38: =IFERROR((((INDEX('DATA TABLE'!$J$13:$AC$66, MATCH('SCORE TABLE'!$B38,'DATA TABLE'!$B$13:$B$66,0),MATCH('SCORE TABLE'!W$9,'DATA TABLE'!$J$9:$AC$9,0)))-'SCORE TABLE'!$F38)/('SCORE TABLE'!$G38-'SCORE TABLE'!$F38))*100,0) -> 38.8 | X38: =IFERROR((((INDEX('DATA TABLE'!$J$13:$AC$66, MATCH('SCORE TABLE'!$B38,'DATA TABLE'!$B$13:$B$66,0),MATCH('SCORE TABLE'!X$9,'DATA TABLE'!$J$9:$AC$9,0)))-'SCORE TABLE'!$F38)/('SCORE TABLE'!$G38-'SCORE TABLE'!$F38))*100,0) -> 91 | Y38: =IFERROR((((INDEX('DATA TABLE'!$J$13:$AC$66, MATCH('SCORE TABLE'!$B38,'DATA TABLE'!$B$13:$B$66,0),MATCH('SCORE TABLE'!Y$9,'DATA TABLE'!$J$9:$AC$9,0)))-'SCORE TABLE'!$F38)/('SCORE TABLE'!$G38-'SCORE TABLE'!$F38))*100,0) -> 91.1 | Z38: =IFERROR((((INDEX('DATA TABLE'!$J$13:$AC$66, MATCH('SCORE TABLE'!$B38,'DATA TABLE'!$B$13:$B$66,0),MATCH('SCORE TABLE'!Z$9,'DATA TABLE'!$J$9:$AC$9,0)))-'SCORE TABLE'!$F38)/('SCORE TABLE'!$G38-'SCORE TABLE'!$F38))*100,0) -> 97.7 | AA38: =IFERROR((((INDEX('DATA TABLE'!$J$13:$AC$66, MATCH('SCORE TABLE'!$B38,'DATA TABLE'!$B$13:$B$66,0),MATCH('SCORE TABLE'!AA$9,'DATA TABLE'!$J$9:$AC$9,0)))-'SCORE TABLE'!$F38)/('SCORE TABLE'!$G38-'SCORE TABLE'!$F38))*100,0) -> 97.5
A39: 1028 | B39: 3.1.3 | C39: Nutrition programmes for lower-income individuals | D39: =1/3 -> 0.3333333333 | E39: =$E$36*D39 -> 0.02777777778 | F39: 0 | G39: 1 | H39: =IFERROR((((INDEX('DATA TABLE'!$J$13:$AC$66, MATCH('SCORE TABLE'!$B39,'DATA TABLE'!$B$13:$B$66,0),MATCH('SCORE TABLE'!H$9,'DATA TABLE'!$J$9:$AC$9,0)))-'SCORE TABLE'!$F39)/('SCORE TABLE'!$G39-'SCORE TABLE'!$F39))*100,0) -> 0 | I39: =IFERROR((((INDEX('DATA TABLE'!$J$13:$AC$66, MATCH('SCORE TABLE'!$B39,'DATA TABLE'!$B$13:$B$66,0),MATCH('SCORE TABLE'!I$9,'DATA TABLE'!$J$9:$AC$9,0)))-'SCORE TABLE'!$F39)/('SCORE TABLE'!$G39-'SCORE TABLE'!$F39))*100,0) -> 100 | J39: =IFERROR((((INDEX('DATA TABLE'!$J$13:$AC$66, MATCH('SCORE TABLE'!$B39,'DATA TABLE'!$B$13:$B$66,0),MATCH('SCORE TABLE'!J$9,'DATA TABLE'!$J$9:$AC$9,0)))-'SCORE TABLE'!$F39)/('SCORE TABLE'!$G39-'SCORE TABLE'!$F39))*100,0) -> 100 | K39: =IFERROR((((INDEX('DATA TABLE'!$J$13:$AC$66, MATCH('SCORE TABLE'!$B39,'DATA TABLE'!$B$13:$B$66,0),MATCH('SCORE TABLE'!K$9,'DATA TABLE'!$J$9:$AC$9,0)))-'SCORE TABLE'!$F39)/('SCORE TABLE'!$G39-'SCORE TABLE'!$F39))*100,0) -> 100 | L39: =IFERROR((((INDEX('DATA TABLE'!$J$13:$AC$66, MATCH('SCORE TABLE'!$B39,'DATA TABLE'!$B$13:$B$66,0),MATCH('SCORE TABLE'!L$9,'DATA TABLE'!$J$9:$AC$9,0)))-'SCORE TABLE'!$F39)/('SCORE TABLE'!$G39-'SCORE TABLE'!$F39))*100,0) -> 0 | M39: =IFERROR((((INDEX('DATA TABLE'!$J$13:$AC$66, MATCH('SCORE TABLE'!$B39,'DATA TABLE'!$B$13:$B$66,0),MATCH('SCORE TABLE'!M$9,'DATA TABLE'!$J$9:$AC$9,0)))-'SCORE TABLE'!$F39)/('SCORE TABLE'!$G39-'SCORE TABLE'!$F39))*100,0) -> 100 | N39: =IFERROR((((INDEX('DATA TABLE'!$J$13:$AC$66, MATCH('SCORE TABLE'!$B39,'DATA TABLE'!$B$13:$B$66,0),MATCH('SCORE TABLE'!N$9,'DATA TABLE'!$J$9:$AC$9,0)))-'SCORE TABLE'!$F39)/('SCORE TABLE'!$G39-'SCORE TABLE'!$F39))*100,0) -> 100 | O39: =IFERROR((((INDEX('DATA TABLE'!$J$13:$AC$66, MATCH('SCORE TABLE'!$B39,'DATA TABLE'!$B$13:$B$66,0),MATCH('SCORE TABLE'!O$9,'DATA TABLE'!$J$9:$AC$9,0)))-'SCORE TABLE'!$F39)/('SCORE TABLE'!$G39-'SCORE TABLE'!$F39))*100,0) -> 100 | P39: =IFERROR((((INDEX('DATA TABLE'!$J$13:$AC$66, MATCH('SCORE TABLE'!$B39,'DATA TABLE'!$B$13:$B$66,0),MATCH('SCORE TABLE'!P$9,'DATA TABLE'!$J$9:$AC$9,0)))-'SCORE TABLE'!$F39)/('SCORE TABLE'!$G39-'SCORE TABLE'!$F39))*100,0) -> 100 | Q39: =IFERROR((((INDEX('DATA TABLE'!$J$13:$AC$66, MATCH('SCORE TABLE'!$B39,'DATA TABLE'!$B$13:$B$66,0),MATCH('SCORE TABLE'!Q$9,'DATA TABLE'!$J$9:$AC$9,0)))-'SCORE TABLE'!$F39)/('SCORE TABLE'!$G39-'SCORE TABLE'!$F39))*100,0) -> 0 | R39: =IFERROR((((INDEX('DATA TABLE'!$J$13:$AC$66, MATCH('SCORE TABLE'!$B39,'DATA TABLE'!$B$13:$B$66,0),MATCH('SCORE TABLE'!R$9,'DATA TABLE'!$J$9:$AC$9,0)))-'SCORE TABLE'!$F39)/('SCORE TABLE'!$G39-'SCORE TABLE'!$F39))*100,0) -> 100 | S39: =IFERROR((((INDEX('DATA TABLE'!$J$13:$AC$66, MATCH('SCORE TABLE'!$B39,'DATA TABLE'!$B$13:$B$66,0),MATCH('SCORE TABLE'!S$9,'DATA TABLE'!$J$9:$AC$9,0)))-'SCORE TABLE'!$F39)/('SCORE TABLE'!$G39-'SCORE TABLE'!$F39))*100,0) -> 100 | T39: =IFERROR((((INDEX('DATA TABLE'!$J$13:$AC$66, MATCH('SCORE TABLE'!$B39,'DATA TABLE'!$B$13:$B$66,0),MATCH('SCORE TABLE'!T$9,'DATA TABLE'!$J$9:$AC$9,0)))-'SCORE TABLE'!$F39)/('SCORE TABLE'!$G39-'SCORE TABLE'!$F39))*100,0) -> 100 | U39: =IFERROR((((INDEX('DATA TABLE'!$J$13:$AC$66, MATCH('SCORE TABLE'!$B39,'DATA TABLE'!$B$13:$B$66,0),MATCH('SCORE TABLE'!U$9,'DATA TABLE'!$J$9:$AC$9,0)))-'SCORE TABLE'!$F39)/('SCORE TABLE'!$G39-'SCORE TABLE'!$F39))*100,0) -> 0 | V39: =IFERROR((((INDEX('DATA TABLE'!$J$13:$AC$66, MATCH('SCORE TABLE'!$B39,'DATA TABLE'!$B$13:$B$66,0),MATCH('SCORE TABLE'!V$9,'DATA TABLE'!$J$9:$AC$9,0)))-'SCORE TABLE'!$F39)/('SCORE TABLE'!$G39-'SCORE TABLE'!$F39))*100,0) -> 0 | W39: =IFERROR((((INDEX('DATA TABLE'!$J$13:$AC$66, MATCH('SCORE TABLE'!$B39,'DATA TABLE'!$B$13:$B$66,0),MATCH('SCORE TABLE'!W$9,'DATA TABLE'!$J$9:$AC$9,0)))-'SCORE TABLE'!$F39)/('SCORE TABLE'!$G39-'SCORE TABLE'!$F39))*100,0) -> 100 | X39: =IFERROR((((INDEX('DATA TABLE'!$J$13:$AC$66, MATCH('SCORE TABLE'!$B39,'DATA TABLE'!$B$13:$B$66,0),MATCH('SCORE TABLE'!X$9,'DATA TABLE'!$J$9:$AC$9,0)))-'SCORE TABLE'!$F39)/('SCORE TABLE'!$G39-'SCORE TABLE'!$F39))*100,0) -> 100 | Y39: =IFERROR((((INDEX('DATA TABLE'!$J$13:$AC$66, MATCH('SCORE TABLE'!$B39,'DATA TABLE'!$B$13:$B$66,0),MATCH('SCORE TABLE'!Y$9,'DATA TABLE'!$J$9:$AC$9,0)))-'SCORE TABLE'!$F39)/('SCORE TABLE'!$G39-'SCORE TABLE'!$F39))*100,0) -> 100 | Z39: =IFERROR((((INDEX('DATA TABLE'!$J$13:$AC$66, MATCH('SCORE TABLE'!$B39,'DATA TABLE'!$B$13:$B$66,0),MATCH('SCORE TABLE'!Z$9,'DATA TABLE'!$J$9:$AC$9,0)))-'SCORE TABLE'!$F39)/('SCORE TABLE'!$G39-'SCORE TABLE'!$F39))*100,0) -> 0 | AA39: =IFERROR((((INDEX('DATA TABLE'!$J$13:$AC$66, MATCH('SCORE TABLE'!$B39,'DATA TABLE'!$B$13:$B$66,0),MATCH('SCORE TABLE'!AA$9,'DATA TABLE'!$J$9:$AC$9,0)))-'SCORE TABLE'!$F39)/('SCORE TABLE'!$G39-'SCORE TABLE'!$F39))*100,0) -> 100
A40: 1029 | B40: 3.2 | C40: Nutrition guidance and regulation | D40: =1/3 -> 0.3333333333 | E40: =$E$35*D40 -> 0.08333333333 | H40: =ROUND(SUMPRODUCT($D41:$D45,H41:H45),5) -> 20 | I40: =ROUND(SUMPRODUCT($D41:$D45,I41:I45),5) -> 50 | J40: =ROUND(SUMPRODUCT($D41:$D45,J41:J45),5) -> 43.33333 | K40: 30 | L40: 56.66667 | M40: 50 | N40: 40 | O40: 56.66667 | P40: 20 | Q40: 16.66667 | R40: 66.66667 | S40: 40 | T40: 20 | U40: 80 | V40: 20 | W40: 53.33333 | X40: 40 | Y40: 53.33333 | Z40: 33.33333 | AA40: 73.33333
A41: 1030 | B41: 3.2.1 | C41: Nutrition policy/strategy/plan that addresses obesity | D41: =1/5 -> 0.2 | E41: =$E$40*D41 -> 0.01666666667 | F41: 0 | G41: 3 | H41: =IFERROR((((INDEX('DATA TABLE'!$J$13:$AC$66, MATCH('SCORE TABLE'!$B41,'DATA TABLE'!$B$13:$B$66,0),MATCH('SCORE TABLE'!H$9,'DATA TABLE'!$J$9:$AC$9,0)))-'SCORE TABLE'!$F41)/('SCORE TABLE'!$G41-'SCORE TABLE'!$F41))*100,0) -> 0 | I41: =IFERROR((((INDEX('DATA TABLE'!$J$13:$AC$66, MATCH('SCORE TABLE'!$B41,'DATA TABLE'!$B$13:$B$66,0),MATCH('SCORE TABLE'!I$9,'DATA TABLE'!$J$9:$AC$9,0)))-'SCORE TABLE'!$F41)/('SCORE TABLE'!$G41-'SCORE TABLE'!$F41))*100,0) -> 0 | J41: =IFERROR((((INDEX('DATA TABLE'!$J$13:$AC$66, MATCH('SCORE TABLE'!$B41,'DATA TABLE'!$B$13:$B$66,0),MATCH('SCORE TABLE'!J$9,'DATA TABLE'!$J$9:$AC$9,0)))-'SCORE TABLE'!$F41)/('SCORE TABLE'!$G41-'SCORE TABLE'!$F41))*100,0) -> 66.66666667 | K41: =IFERROR((((INDEX('DATA TABLE'!$J$13:$AC$66, MATCH('SCORE TABLE'!$B41,'DATA TABLE'!$B$13:$B$66,0),MATCH('SCORE TABLE'!K$9,'DATA TABLE'!$J$9:$AC$9,0)))-'SCORE TABLE'!$F41)/('SCORE TABLE'!$G41-'SCORE TABLE'!$F41))*100,0) -> 100 | L41: =IFERROR((((INDEX('DATA TABLE'!$J$13:$AC$66, MATCH('SCORE TABLE'!$B41,'DATA TABLE'!$B$13:$B$66,0),MATCH('SCORE TABLE'!L$9,'DATA TABLE'!$J$9:$AC$9,0)))-'SCORE TABLE'!$F41)/('SCORE TABLE'!$G41-'SCORE TABLE'!$F41))*100,0) -> 33.33333333 | M41: =IFERROR((((INDEX('DATA TABLE'!$J$13:$AC$66, MATCH('SCORE TABLE'!$B41,'DATA TABLE'!$B$13:$B$66,0),MATCH('SCORE TABLE'!M$9,'DATA TABLE'!$J$9:$AC$9,0)))-'SCORE TABLE'!$F41)/('SCORE TABLE'!$G41-'SCORE TABLE'!$F41))*100,0) -> 100 | N41: =IFERROR((((INDEX('DATA TABLE'!$J$13:$AC$66, MATCH('SCORE TABLE'!$B41,'DATA TABLE'!$B$13:$B$66,0),MATCH('SCORE TABLE'!N$9,'DATA TABLE'!$J$9:$AC$9,0)))-'SCORE TABLE'!$F41)/('SCORE TABLE'!$G41-'SCORE TABLE'!$F41))*100,0) -> 100 | O41: =IFERROR((((INDEX('DATA TABLE'!$J$13:$AC$66, MATCH('SCORE TABLE'!$B41,'DATA TABLE'!$B$13:$B$66,0),MATCH('SCORE TABLE'!O$9,'DATA TABLE'!$J$9:$AC$9,0)))-'SCORE TABLE'!$F41)/('SCORE TABLE'!$G41-'SCORE TABLE'!$F41))*100,0) -> 33.33333333 | P41: =IFERROR((((INDEX('DATA TABLE'!$J$13:$AC$66, MATCH('SCORE TABLE'!$B41,'DATA TABLE'!$B$13:$B$66,0),MATCH('SCORE TABLE'!P$9,'DATA TABLE'!$J$9:$AC$9,0)))-'SCORE TABLE'!$F41)/('SCORE TABLE'!$G41-'SCORE TABLE'!$F41))*100,0) -> 0 | Q41: =IFERROR((((INDEX('DATA TABLE'!$J$13:$AC$66, MATCH('SCORE TABLE'!$B41,'DATA TABLE'!$B$13:$B$66,0),MATCH('SCORE TABLE'!Q$9,'DATA TABLE'!$J$9:$AC$9,0)))-'SCORE TABLE'!$F41)/('SCORE TABLE'!$G41-'SCORE TABLE'!$F41))*100,0) -> 33.33333333 | R41: =IFERROR((((INDEX('DATA TABLE'!$J$13:$AC$66, MATCH('SCORE TABLE'!$B41,'DATA TABLE'!$B$13:$B$66,0),MATCH('SCORE TABLE'!R$9,'DATA TABLE'!$J$9:$AC$9,0)))-'SCORE TABLE'!$F41)/('SCORE TABLE'!$G41-'SCORE TABLE'!$F41))*100,0) -> 33.33333333 | S41: =IFERROR((((INDEX('DATA TABLE'!$J$13:$AC$66, MATCH('SCORE TABLE'!$B41,'DATA TABLE'!$B$13:$B$66,0),MATCH('SCORE TABLE'!S$9,'DATA TABLE'!$J$9:$AC$9,0)))-'SCORE TABLE'!$F41)/('SCORE TABLE'!$G41-'SCORE TABLE'!$F41))*100,0) -> 100 | T41: =IFERROR((((INDEX('DATA TABLE'!$J$13:$AC$66, MATCH('SCORE TABLE'!$B41,'DATA TABLE'!$B$13:$B$66,0),MATCH('SCORE TABLE'!T$9,'DATA TABLE'!$J$9:$AC$9,0)))-'SCORE TABLE'!$F41)/('SCORE TABLE'!$G41-'SCORE TABLE'!$F41))*100,0) -> 0 | U41: =IFERROR((((INDEX('DATA TABLE'!$J$13:$AC$66, MATCH('SCORE TABLE'!$B41,'DATA TABLE'!$B$13:$B$66,0),MATCH('SCORE TABLE'!U$9,'DATA TABLE'!$J$9:$AC$9,0)))-'SCORE TABLE'!$F41)/('SCORE TABLE'!$G41-'SCORE TABLE'!$F41))*100,0) -> 100 | V41: =IFERROR((((INDEX('DATA TABLE'!$J$13:$AC$66, MATCH('SCORE TABLE'!$B41,'DATA TABLE'!$B$13:$B$66,0),MATCH('SCORE TABLE'!V$9,'DATA TABLE'!$J$9:$AC$9,0)))-'SCORE TABLE'!$F41)/('SCORE TABLE'!$G41-'SCORE TABLE'!$F41))*100,0) -> 0 | W41: =IFERROR((((INDEX('DATA TABLE'!$J$13:$AC$66, MATCH('SCORE TABLE'!$B41,'DATA TABLE'!$B$13:$B$66,0),MATCH('SCORE TABLE'!W$9,'DATA TABLE'!$J$9:$AC$9,0)))-'SCORE TABLE'!$F41)/('SCORE TABLE'!$G41-'SCORE TABLE'!$F41))*100,0) -> 66.66666667 | X41: =IFERROR((((INDEX('DATA TABLE'!$J$13:$AC$66, MATCH('SCORE TABLE'!$B41,'DATA TABLE'!$B$13:$B$66,0),MATCH('SCORE TABLE'!X$9,'DATA TABLE'!$J$9:$AC$9,0)))-'SCORE TABLE'!$F41)/('SCORE TABLE'!$G41-'SCORE TABLE'!$F41))*100,0) -> 0 | Y41: =IFERROR((((INDEX('DATA TABLE'!$J$13:$AC$66, MATCH('SCORE TABLE'!$B41,'DATA TABLE'!$B$13:$B$66,0),MATCH('SCORE TABLE'!Y$9,'DATA TABLE'!$J$9:$AC$9,0)))-'SCORE TABLE'!$F41)/('SCORE TABLE'!$G41-'SCORE TABLE'!$F41))*100,0) -> 66.66666667 | Z41: =IFERROR((((INDEX('DATA TABLE'!$J$13:$AC$66, MATCH('SCORE TABLE'!$B41,'DATA TABLE'!$B$13:$B$66,0),MATCH('SCORE TABLE'!Z$9,'DATA TABLE'!$J$9:$AC$9,0)))-'SCORE TABLE'!$F41)/('SCORE TABLE'!$G41-'SCORE TABLE'!$F41))*100,0) -> 66.66666667 | AA41: =IFERROR((((INDEX('DATA TABLE'!$J$13:$AC$66, MATCH('SCORE TABLE'!$B41,'DATA TABLE'!$B$13:$B$66,0),MATCH('SCORE TABLE'!AA$9,'DATA TABLE'!$J$9:$AC$9,0)))-'SCORE TABLE'!$F41)/('SCORE TABLE'!$G41-'SCORE TABLE'!$F41))*100,0) -> 66.66666667
A42: 1031 | B42: 3.2.2 | C42: Marketing of unhealthy food and beverages to children | D42: =1/5 -> 0.2 | E42: =$E$40*D42 -> 0.01666666667 | F42: 0 | G42: 2 | H42: =IFERROR((((INDEX('DATA TABLE'!$J$13:$AC$66, MATCH('SCORE TABLE'!$B42,'DATA TABLE'!$B$13:$B$66,0),MATCH('SCORE TABLE'!H$9,'DATA TABLE'!$J$9:$AC$9,0)))-'SCORE TABLE'!$F42)/('SCORE TABLE'!$G42-'SCORE TABLE'!$F42))*100,0) -> 50 | I42: =IFERROR((((INDEX('DATA TABLE'!$J$13:$AC$66, MATCH('SCORE TABLE'!$B42,'DATA TABLE'!$B$13:$B$66,0),MATCH('SCORE TABLE'!I$9,'DATA TABLE'!$J$9:$AC$9,0)))-'SCORE TABLE'!$F42)/('SCORE TABLE'!$G42-'SCORE TABLE'!$F42))*100,0) -> 100 | J42: =IFERROR((((INDEX('DATA TABLE'!$J$13:$AC$66, MATCH('SCORE TABLE'!$B42,'DATA TABLE'!$B$13:$B$66,0),MATCH('SCORE TABLE'!J$9,'DATA TABLE'!$J$9:$AC$9,0)))-'SCORE TABLE'!$F42)/('SCORE TABLE'!$G42-'SCORE TABLE'!$F42))*100,0) -> 50 | K42: =IFERROR((((INDEX('DATA TABLE'!$J$13:$AC$66, MATCH('SCORE TABLE'!$B42,'DATA TABLE'!$B$13:$B$66,0),MATCH('SCORE TABLE'!K$9,'DATA TABLE'!$J$9:$AC$9,0)))-'SCORE TABLE'!$F42)/('SCORE TABLE'!$G42-'SCORE TABLE'!$F42))*100,0) -> 0 | L42: =IFERROR((((INDEX('DATA TABLE'!$J$13:$AC$66, MATCH('SCORE TABLE'!$B42,'DATA TABLE'!$B$13:$B$66,0),MATCH('SCORE TABLE'!L$9,'DATA TABLE'!$J$9:$AC$9,0)))-'SCORE TABLE'!$F42)/('SCORE TABLE'!$G42-'SCORE TABLE'!$F42))*100,0) -> 50 | M42: =IFERROR((((INDEX('DATA TABLE'!$J$13:$AC$66, MATCH('SCORE TABLE'!$B42,'DATA TABLE'!$B$13:$B$66,0),MATCH('SCORE TABLE'!M$9,'DATA TABLE'!$J$9:$AC$9,0)))-'SCORE TABLE'!$F42)/('SCORE TABLE'!$G42-'SCORE TABLE'!$F42))*100,0) -> 50 | N42: =IFERROR((((INDEX('DATA TABLE'!$J$13:$AC$66, MATCH('SCORE TABLE'!$B42,'DATA TABLE'!$B$13:$B$66,0),MATCH('SCORE TABLE'!N$9,'DATA TABLE'!$J$9:$AC$9,0)))-'SCORE TABLE'!$F42)/('SCORE TABLE'!$G42-'SCORE TABLE'!$F42))*100,0) -> 50 | O42: =IFERROR((((INDEX('DATA TABLE'!$J$13:$AC$66, MATCH('SCORE TABLE'!$B42,'DATA TABLE'!$B$13:$B$66,0),MATCH('SCORE TABLE'!O$9,'DATA TABLE'!$J$9:$AC$9,0)))-'SCORE TABLE'!$F42)/('SCORE TABLE'!$G42-'SCORE TABLE'!$F42))*100,0) -> 100 | P42: =IFERROR((((INDEX('DATA TABLE'!$J$13:$AC$66, MATCH('SCORE TABLE'!$B42,'DATA TABLE'!$B$13:$B$66,0),MATCH('SCORE TABLE'!P$9,'DATA TABLE'!$J$9:$AC$9,0)))-'SCORE TABLE'!$F42)/('SCORE TABLE'!$G42-'SCORE TABLE'!$F42))*100,0) -> 50 | Q42: =IFERROR((((INDEX('DATA TABLE'!$J$13:$AC$66, MATCH('SCORE TABLE'!$B42,'DATA TABLE'!$B$13:$B$66,0),MATCH('SCORE TABLE'!Q$9,'DATA TABLE'!$J$9:$AC$9,0)))-'SCORE TABLE'!$F42)/('SCORE TABLE'!$G42-'SCORE TABLE'!$F42))*100,0) -> 0 | R42: =IFERROR((((INDEX('DATA TABLE'!$J$13:$AC$66, MATCH('SCORE TABLE'!$B42,'DATA TABLE'!$B$13:$B$66,0),MATCH('SCORE TABLE'!R$9,'DATA TABLE'!$J$9:$AC$9,0)))-'SCORE TABLE'!$F42)/('SCORE TABLE'!$G42-'SCORE TABLE'!$F42))*100,0) -> 100 | S42: =IFERROR((((INDEX('DATA TABLE'!$J$13:$AC$66, MATCH('SCORE TABLE'!$B42,'DATA TABLE'!$B$13:$B$66,0),MATCH('SCORE TABLE'!S$9,'DATA TABLE'!$J$9:$AC$9,0)))-'SCORE TABLE'!$F42)/('SCORE TABLE'!$G42-'SCORE TABLE'!$F42))*100,0) -> 0 | T42: =IFERROR((((INDEX('DATA TABLE'!$J$13:$AC$66, MATCH('SCORE TABLE'!$B42,'DATA TABLE'!$B$13:$B$66,0),MATCH('SCORE TABLE'!T$9,'DATA TABLE'!$J$9:$AC$9,0)))-'SCORE TABLE'!$F42)/('SCORE TABLE'!$G42-'SCORE TABLE'!$F42))*100,0) -> 0 | U42: =IFERROR((((INDEX('DATA TABLE'!$J$13:$AC$66, MATCH('SCORE TABLE'!$B42,'DATA TABLE'!$B$13:$B$66,0),MATCH('SCORE TABLE'!U$9,'DATA TABLE'!$J$9:$AC$9,0)))-'SCORE TABLE'!$F42)/('SCORE TABLE'!$G42-'SCORE TABLE'!$F42))*100,0) -> 100 | V42: =IFERROR((((INDEX('DATA TABLE'!$J$13:$AC$66, MATCH('SCORE TABLE'!$B42,'DATA TABLE'!$B$13:$B$66,0),MATCH('SCORE TABLE'!V$9,'DATA TABLE'!$J$9:$AC$9,0)))-'SCORE TABLE'!$F42)/('SCORE TABLE'!$G42-'SCORE TABLE'!$F42))*100,0) -> 50 | W42: =IFERROR((((INDEX('DATA TABLE'!$J$13:$AC$66, MATCH('SCORE TABLE'!$B42,'DATA TABLE'!$B$13:$B$66,0),MATCH('SCORE TABLE'!W$9,'DATA TABLE'!$J$9:$AC$9,0)))-'SCORE TABLE'!$F42)/('SCORE TABLE'!$G42-'SCORE TABLE'!$F42))*100,0) -> 100 | X42: =IFERROR((((INDEX('DATA TABLE'!$J$13:$AC$66, MATCH('SCORE TABLE'!$B42,'DATA TABLE'!$B$13:$B$66,0),MATCH('SCORE TABLE'!X$9,'DATA TABLE'!$J$9:$AC$9,0)))-'SCORE TABLE'!$F42)/('SCORE TABLE'!$G42-'SCORE TABLE'!$F42))*100,0) -> 100 | Y42: =IFERROR((((INDEX('DATA TABLE'!$J$13:$AC$66, MATCH('SCORE TABLE'!$B42,'DATA TABLE'!$B$13:$B$66,0),MATCH('SCORE TABLE'!Y$9,'DATA TABLE'!$J$9:$AC$9,0)))-'SCORE TABLE'!$F42)/('SCORE TABLE'!$G42-'SCORE TABLE'!$F42))*100,0) -> 100 | Z42: =IFERROR((((INDEX('DATA TABLE'!$J$13:$AC$66, MATCH('SCORE TABLE'!$B42,'DATA TABLE'!$B$13:$B$66,0),MATCH('SCORE TABLE'!Z$9,'DATA TABLE'!$J$9:$AC$9,0)))-'SCORE TABLE'!$F42)/('SCORE TABLE'!$G42-'SCORE TABLE'!$F42))*100,0) -> 0 | AA42: =IFERROR((((INDEX('DATA TABLE'!$J$13:$AC$66, MATCH('SCORE TABLE'!$B42,'DATA TABLE'!$B$13:$B$66,0),MATCH('SCORE TABLE'!AA$9,'DATA TABLE'!$J$9:$AC$9,0)))-'SCORE TABLE'!$F42)/('SCORE TABLE'!$G42-'SCORE TABLE'!$F42))*100,0) -> 100
A43: 1032 | B43: 3.2.3 | C43: Food labelling | D43: =1/5 -> 0.2 | E43: =$E$40*D43 -> 0.01666666667 | F43: 0 | G43: 2 | H43: =IFERROR((((INDEX('DATA TABLE'!$J$13:$AC$66, MATCH('SCORE TABLE'!$B43,'DATA TABLE'!$B$13:$B$66,0),MATCH('SCORE TABLE'!H$9,'DATA TABLE'!$J$9:$AC$9,0)))-'SCORE TABLE'!$F43)/('SCORE TABLE'!$G43-'SCORE TABLE'!$F43))*100,0) -> 50 | I43: =IFERROR((((INDEX('DATA TABLE'!$J$13:$AC$66, MATCH('SCORE TABLE'!$B43,'DATA TABLE'!$B$13:$B$66,0),MATCH('SCORE TABLE'!I$9,'DATA TABLE'!$J$9:$AC$9,0)))-'SCORE TABLE'!$F43)/('SCORE TABLE'!$G43-'SCORE TABLE'!$F43))*100,0) -> 100 | J43: =IFERROR((((INDEX('DATA TABLE'!$J$13:$AC$66, MATCH('SCORE TABLE'!$B43,'DATA TABLE'!$B$13:$B$66,0),MATCH('SCORE TABLE'!J$9,'DATA TABLE'!$J$9:$AC$9,0)))-'SCORE TABLE'!$F43)/('SCORE TABLE'!$G43-'SCORE TABLE'!$F43))*100,0) -> 100 | K43: =IFERROR((((INDEX('DATA TABLE'!$J$13:$AC$66, MATCH('SCORE TABLE'!$B43,'DATA TABLE'!$B$13:$B$66,0),MATCH('SCORE TABLE'!K$9,'DATA TABLE'!$J$9:$AC$9,0)))-'SCORE TABLE'!$F43)/('SCORE TABLE'!$G43-'SCORE TABLE'!$F43))*100,0) -> 50 | L43: =IFERROR((((INDEX('DATA TABLE'!$J$13:$AC$66, MATCH('SCORE TABLE'!$B43,'DATA TABLE'!$B$13:$B$66,0),MATCH('SCORE TABLE'!L$9,'DATA TABLE'!$J$9:$AC$9,0)))-'SCORE TABLE'!$F43)/('SCORE TABLE'!$G43-'SCORE TABLE'!$F43))*100,0) -> 50 | M43: =IFERROR((((INDEX('DATA TABLE'!$J$13:$AC$66, MATCH('SCORE TABLE'!$B43,'DATA TABLE'!$B$13:$B$66,0),MATCH('SCORE TABLE'!M$9,'DATA TABLE'!$J$9:$AC$9,0)))-'SCORE TABLE'!$F43)/('SCORE TABLE'!$G43-'SCORE TABLE'!$F43))*100,0) -> 50 | N43: =IFERROR((((INDEX('DATA TABLE'!$J$13:$AC$66, MATCH('SCORE TABLE'!$B43,'DATA TABLE'!$B$13:$B$66,0),MATCH('SCORE TABLE'!N$9,'DATA TABLE'!$J$9:$AC$9,0)))-'SCORE TABLE'!$F43)/('SCORE TABLE'!$G43-'SCORE TABLE'!$F43))*100,0) -> 50 | O43: =IFERROR((((INDEX('DATA TABLE'!$J$13:$AC$66, MATCH('SCORE TABLE'!$B43,'DATA TABLE'!$B$13:$B$66,0),MATCH('SCORE TABLE'!O$9,'DATA TABLE'!$J$9:$AC$9,0)))-'SCORE TABLE'!$F43)/('SCORE TABLE'!$G43-'SCORE TABLE'!$F43))*100,0) -> 50 | P43: =IFERROR((((INDEX('DATA TABLE'!$J$13:$AC$66, MATCH('SCORE TABLE'!$B43,'DATA TABLE'!$B$13:$B$66,0),MATCH('SCORE TABLE'!P$9,'DATA TABLE'!$J$9:$AC$9,0)))-'SCORE TABLE'!$F43)/('SCORE TABLE'!$G43-'SCORE TABLE'!$F43))*100,0) -> 50 | Q43: =IFERROR((((INDEX('DATA TABLE'!$J$13:$AC$66, MATCH('SCORE TABLE'!$B43,'DATA TABLE'!$B$13:$B$66,0),MATCH('SCORE TABLE'!Q$9,'DATA TABLE'!$J$9:$AC$9,0)))-'SCORE TABLE'!$F43)/('SCORE TABLE'!$G43-'SCORE TABLE'!$F43))*100,0) -> 50 | R43: =IFERROR((((INDEX('DATA TABLE'!$J$13:$AC$66, MATCH('SCORE TABLE'!$B43,'DATA TABLE'!$B$13:$B$66,0),MATCH('SCORE TABLE'!R$9,'DATA TABLE'!$J$9:$AC$9,0)))-'SCORE TABLE'!$F43)/('SCORE TABLE'!$G43-'SCORE TABLE'!$F43))*100,0) -> 100 | S43: =IFERROR((((INDEX('DATA TABLE'!$J$13:$AC$66, MATCH('SCORE TABLE'!$B43,'DATA TABLE'!$B$13:$B$66,0),MATCH('SCORE TABLE'!S$9,'DATA TABLE'!$J$9:$AC$9,0)))-'SCORE TABLE'!$F43)/('SCORE TABLE'!$G43-'SCORE TABLE'!$F43))*100,0) -> 50 | T43: =IFERROR((((INDEX('DATA TABLE'!$J$13:$AC$66, MATCH('SCORE TABLE'!$B43,'DATA TABLE'!$B$13:$B$66,0),MATCH('SCORE TABLE'!T$9,'DATA TABLE'!$J$9:$AC$9,0)))-'SCORE TABLE'!$F43)/('SCORE TABLE'!$G43-'SCORE TABLE'!$F43))*100,0) -> 50 | U43: =IFERROR((((INDEX('DATA TABLE'!$J$13:$AC$66, MATCH('SCORE TABLE'!$B43,'DATA TABLE'!$B$13:$B$66,0),MATCH('SCORE TABLE'!U$9,'DATA TABLE'!$J$9:$AC$9,0)))-'SCORE TABLE'!$F43)/('SCORE TABLE'!$G43-'SCORE TABLE'!$F43))*100,0) -> 50 | V43: =IFERROR((((INDEX('DATA TABLE'!$J$13:$AC$66, MATCH('SCORE TABLE'!$B43,'DATA TABLE'!$B$13:$B$66,0),MATCH('SCORE TABLE'!V$9,'DATA TABLE'!$J$9:$AC$9,0)))-'SCORE TABLE'!$F43)/('SCORE TABLE'!$G43-'SCORE TABLE'!$F43))*100,0) -> 50 | W43: =IFERROR((((INDEX('DATA TABLE'!$J$13:$AC$66, MATCH('SCORE TABLE'!$B43,'DATA TABLE'!$B$13:$B$66,0),MATCH('SCORE TABLE'!W$9,'DATA TABLE'!$J$9:$AC$9,0)))-'SCORE TABLE'!$F43)/('SCORE TABLE'!$G43-'SCORE TABLE'!$F43))*100,0) -> 50 | X43: =IFERROR((((INDEX('DATA TABLE'!$J$13:$AC$66, MATCH('SCORE TABLE'!$B43,'DATA TABLE'!$B$13:$B$66,0),MATCH('SCORE TABLE'!X$9,'DATA TABLE'!$J$9:$AC$9,0)))-'SCORE TABLE'!$F43)/('SCORE TABLE'!$G43-'SCORE TABLE'!$F43))*100,0) -> 50 | Y43: =IFERROR((((INDEX('DATA TABLE'!$J$13:$AC$66, MATCH('SCORE TABLE'!$B43,'DATA TABLE'!$B$13:$B$66,0),MATCH('SCORE TABLE'!Y$9,'DATA TABLE'!$J$9:$AC$9,0)))-'SCORE TABLE'!$F43)/('SCORE TABLE'!$G43-'SCORE TABLE'!$F43))*100,0) -> 50 | Z43: =IFERROR((((INDEX('DATA TABLE'!$J$13:$AC$66, MATCH('SCORE TABLE'!$B43,'DATA TABLE'!$B$13:$B$66,0),MATCH('SCORE TABLE'!Z$9,'DATA TABLE'!$J$9:$AC$9,0)))-'SCORE TABLE'!$F43)/('SCORE TABLE'!$G43-'SCORE TABLE'!$F43))*100,0) -> 50 | AA43: =IFERROR((((INDEX('DATA TABLE'!$J$13:$AC$66, MATCH('SCORE TABLE'!$B43,'DATA TABLE'!$B$13:$B$66,0),MATCH('SCORE TABLE'!AA$9,'DATA TABLE'!$J$9:$AC$9,0)))-'SCORE TABLE'!$F43)/('SCORE TABLE'!$G43-'SCORE TABLE'!$F43))*100,0) -> 50
A44: 1033 | B44: 3.2.4 | C44: Menu labelling | D44: =1/5 -> 0.2 | E44: =$E$40*D44 -> 0.01666666667 | F44: 0 | G44: 2 | H44: =IFERROR((((INDEX('DATA TABLE'!$J$13:$AC$66, MATCH('SCORE TABLE'!$B44,'DATA TABLE'!$B$13:$B$66,0),MATCH('SCORE TABLE'!H$9,'DATA TABLE'!$J$9:$AC$9,0)))-'SCORE TABLE'!$F44)/('SCORE TABLE'!$G44-'SCORE TABLE'!$F44))*100,0) -> 0 | I44: =IFERROR((((INDEX('DATA TABLE'!$J$13:$AC$66, MATCH('SCORE TABLE'!$B44,'DATA TABLE'!$B$13:$B$66,0),MATCH('SCORE TABLE'!I$9,'DATA TABLE'!$J$9:$AC$9,0)))-'SCORE TABLE'!$F44)/('SCORE TABLE'!$G44-'SCORE TABLE'!$F44))*100,0) -> 0 | J44: =IFERROR((((INDEX('DATA TABLE'!$J$13:$AC$66, MATCH('SCORE TABLE'!$B44,'DATA TABLE'!$B$13:$B$66,0),MATCH('SCORE TABLE'!J$9,'DATA TABLE'!$J$9:$AC$9,0)))-'SCORE TABLE'!$F44)/('SCORE TABLE'!$G44-'SCORE TABLE'!$F44))*100,0) -> 0 | K44: =IFERROR((((INDEX('DATA TABLE'!$J$13:$AC$66, MATCH('SCORE TABLE'!$B44,'DATA TABLE'!$B$13:$B$66,0),MATCH('SCORE TABLE'!K$9,'DATA TABLE'!$J$9:$AC$9,0)))-'SCORE TABLE'!$F44)/('SCORE TABLE'!$G44-'SCORE TABLE'!$F44))*100,0) -> 0 | L44: =IFERROR((((INDEX('DATA TABLE'!$J$13:$AC$66, MATCH('SCORE TABLE'!$B44,'DATA TABLE'!$B$13:$B$66,0),MATCH('SCORE TABLE'!L$9,'DATA TABLE'!$J$9:$AC$9,0)))-'SCORE TABLE'!$F44)/('SCORE TABLE'!$G44-'SCORE TABLE'!$F44))*100,0) -> 100 | M44: =IFERROR((((INDEX('DATA TABLE'!$J$13:$AC$66, MATCH('SCORE TABLE'!$B44,'DATA TABLE'!$B$13:$B$66,0),MATCH('SCORE TABLE'!M$9,'DATA TABLE'!$J$9:$AC$9,0)))-'SCORE TABLE'!$F44)/('SCORE TABLE'!$G44-'SCORE TABLE'!$F44))*100,0) -> 0 | N44: =IFERROR((((INDEX('DATA TABLE'!$J$13:$AC$66, MATCH('SCORE TABLE'!$B44,'DATA TABLE'!$B$13:$B$66,0),MATCH('SCORE TABLE'!N$9,'DATA TABLE'!$J$9:$AC$9,0)))-'SCORE TABLE'!$F44)/('SCORE TABLE'!$G44-'SCORE TABLE'!$F44))*100,0) -> 0 | O44: =IFERROR((((INDEX('DATA TABLE'!$J$13:$AC$66, MATCH('SCORE TABLE'!$B44,'DATA TABLE'!$B$13:$B$66,0),MATCH('SCORE TABLE'!O$9,'DATA TABLE'!$J$9:$AC$9,0)))-'SCORE TABLE'!$F44)/('SCORE TABLE'!$G44-'SCORE TABLE'!$F44))*100,0) -> 100 | P44: =IFERROR((((INDEX('DATA TABLE'!$J$13:$AC$66, MATCH('SCORE TABLE'!$B44,'DATA TABLE'!$B$13:$B$66,0),MATCH('SCORE TABLE'!P$9,'DATA TABLE'!$J$9:$AC$9,0)))-'SCORE TABLE'!$F44)/('SCORE TABLE'!$G44-'SCORE TABLE'!$F44))*100,0) -> 0 | Q44: =IFERROR((((INDEX('DATA TABLE'!$J$13:$AC$66, MATCH('SCORE TABLE'!$B44,'DATA TABLE'!$B$13:$B$66,0),MATCH('SCORE TABLE'!Q$9,'DATA TABLE'!$J$9:$AC$9,0)))-'SCORE TABLE'!$F44)/('SCORE TABLE'!$G44-'SCORE TABLE'!$F44))*100,0) -> 0 | R44: =IFERROR((((INDEX('DATA TABLE'!$J$13:$AC$66, MATCH('SCORE TABLE'!$B44,'DATA TABLE'!$B$13:$B$66,0),MATCH('SCORE TABLE'!R$9,'DATA TABLE'!$J$9:$AC$9,0)))-'SCORE TABLE'!$F44)/('SCORE TABLE'!$G44-'SCORE TABLE'!$F44))*100,0) -> 0 | S44: =IFERROR((((INDEX('DATA TABLE'!$J$13:$AC$66, MATCH('SCORE TABLE'!$B44,'DATA TABLE'!$B$13:$B$66,0),MATCH('SCORE TABLE'!S$9,'DATA TABLE'!$J$9:$AC$9,0)))-'SCORE TABLE'!$F44)/('SCORE TABLE'!$G44-'SCORE TABLE'!$F44))*100,0) -> 0 | T44: =IFERROR((((INDEX('DATA TABLE'!$J$13:$AC$66, MATCH('SCORE TABLE'!$B44,'DATA TABLE'!$B$13:$B$66,0),MATCH('SCORE TABLE'!T$9,'DATA TABLE'!$J$9:$AC$9,0)))-'SCORE TABLE'!$F44)/('SCORE TABLE'!$G44-'SCORE TABLE'!$F44))*100,0) -> 0 | U44: =IFERROR((((INDEX('DATA TABLE'!$J$13:$AC$66, MATCH('SCORE TABLE'!$B44,'DATA TABLE'!$B$13:$B$66,0),MATCH('SCORE TABLE'!U$9,'DATA TABLE'!$J$9:$AC$9,0)))-'SCORE TABLE'!$F44)/('SCORE TABLE'!$G44-'SCORE TABLE'!$F44))*100,0) -> 100 | V44: =IFERROR((((INDEX('DATA TABLE'!$J$13:$AC$66, MATCH('SCORE TABLE'!$B44,'DATA TABLE'!$B$13:$B$66,0),MATCH('SCORE TABLE'!V$9,'DATA TABLE'!$J$9:$AC$9,0)))-'SCORE TABLE'!$F44)/('SCORE TABLE'!$G44-'SCORE TABLE'!$F44))*100,0) -> 0 | W44: =IFERROR((((INDEX('DATA TABLE'!$J$13:$AC$66, MATCH('SCORE TABLE'!$B44,'DATA TABLE'!$B$13:$B$66,0),MATCH('SCORE TABLE'!W$9,'DATA TABLE'!$J$9:$AC$9,0)))-'SCORE TABLE'!$F44)/('SCORE TABLE'!$G44-'SCORE TABLE'!$F44))*100,0) -> 0 | X44: =IFERROR((((INDEX('DATA TABLE'!$J$13:$AC$66, MATCH('SCORE TABLE'!$B44,'DATA TABLE'!$B$13:$B$66,0),MATCH('SCORE TABLE'!X$9,'DATA TABLE'!$J$9:$AC$9,0)))-'SCORE TABLE'!$F44)/('SCORE TABLE'!$G44-'SCORE TABLE'!$F44))*100,0) -> 50 | Y44: =IFERROR((((INDEX('DATA TABLE'!$J$13:$AC$66, MATCH('SCORE TABLE'!$B44,'DATA TABLE'!$B$13:$B$66,0),MATCH('SCORE TABLE'!Y$9,'DATA TABLE'!$J$9:$AC$9,0)))-'SCORE TABLE'!$F44)/('SCORE TABLE'!$G44-'SCORE TABLE'!$F44))*100,0) -> 0 | Z44: =IFERROR((((INDEX('DATA TABLE'!$J$13:$AC$66, MATCH('SCORE TABLE'!$B44,'DATA TABLE'!$B$13:$B$66,0),MATCH('SCORE TABLE'!Z$9,'DATA TABLE'!$J$9:$AC$9,0)))-'SCORE TABLE'!$F44)/('SCORE TABLE'!$G44-'SCORE TABLE'!$F44))*100,0) -> 0 | AA44: =IFERROR((((INDEX('DATA TABLE'!$J$13:$AC$66, MATCH('SCORE TABLE'!$B44,'DATA TABLE'!$B$13:$B$66,0),MATCH('SCORE TABLE'!AA$9,'DATA TABLE'!$J$9:$AC$9,0)))-'SCORE TABLE'!$F44)/('SCORE TABLE'!$G44-'SCORE TABLE'!$F44))*100,0) -> 100
A45: 1034 | B45: 3.2.5 | C45: Taxes on unhealthy food and beverages | D45: =1/5 -> 0.2 | E45: =$E$40*D45 -> 0.01666666667 | F45: 0 | G45: 2 | H45: =IFERROR((((INDEX('DATA TABLE'!$J$13:$AC$66, MATCH('SCORE TABLE'!$B45,'DATA TABLE'!$B$13:$B$66,0),MATCH('SCORE TABLE'!H$9,'DATA TABLE'!$J$9:$AC$9,0)))-'SCORE TABLE'!$F45)/('SCORE TABLE'!$G45-'SCORE TABLE'!$F45))*100,0) -> 0 | I45: =IFERROR((((INDEX('DATA TABLE'!$J$13:$AC$66, MATCH('SCORE TABLE'!$B45,'DATA TABLE'!$B$13:$B$66,0),MATCH('SCORE TABLE'!I$9,'DATA TABLE'!$J$9:$AC$9,0)))-'SCORE TABLE'!$F45)/('SCORE TABLE'!$G45-'SCORE TABLE'!$F45))*100,0) -> 50 | J45: =IFERROR((((INDEX('DATA TABLE'!$J$13:$AC$66, MATCH('SCORE TABLE'!$B45,'DATA TABLE'!$B$13:$B$66,0),MATCH('SCORE TABLE'!J$9,'DATA TABLE'!$J$9:$AC$9,0)))-'SCORE TABLE'!$F45)/('SCORE TABLE'!$G45-'SCORE TABLE'!$F45))*100,0) -> 0 | K45: =IFERROR((((INDEX('DATA TABLE'!$J$13:$AC$66, MATCH('SCORE TABLE'!$B45,'DATA TABLE'!$B$13:$B$66,0),MATCH('SCORE TABLE'!K$9,'DATA TABLE'!$J$9:$AC$9,0)))-'SCORE TABLE'!$F45)/('SCORE TABLE'!$G45-'SCORE TABLE'!$F45))*100,0) -> 0 | L45: =IFERROR((((INDEX('DATA TABLE'!$J$13:$AC$66, MATCH('SCORE TABLE'!$B45,'DATA TABLE'!$B$13:$B$66,0),MATCH('SCORE TABLE'!L$9,'DATA TABLE'!$J$9:$AC$9,0)))-'SCORE TABLE'!$F45)/('SCORE TABLE'!$G45-'SCORE TABLE'!$F45))*100,0) -> 50 | M45: =IFERROR((((INDEX('DATA TABLE'!$J$13:$AC$66, MATCH('SCORE TABLE'!$B45,'DATA TABLE'!$B$13:$B$66,0),MATCH('SCORE TABLE'!M$9,'DATA TABLE'!$J$9:$AC$9,0)))-'SCORE TABLE'!$F45)/('SCORE TABLE'!$G45-'SCORE TABLE'!$F45))*100,0) -> 50 | N45: =IFERROR((((INDEX('DATA TABLE'!$J$13:$AC$66, MATCH('SCORE TABLE'!$B45,'DATA TABLE'!$B$13:$B$66,0),MATCH('SCORE TABLE'!N$9,'DATA TABLE'!$J$9:$AC$9,0)))-'SCORE TABLE'!$F45)/('SCORE TABLE'!$G45-'SCORE TABLE'!$F45))*100,0) -> 0 | O45: =IFERROR((((INDEX('DATA TABLE'!$J$13:$AC$66, MATCH('SCORE TABLE'!$B45,'DATA TABLE'!$B$13:$B$66,0),MATCH('SCORE TABLE'!O$9,'DATA TABLE'!$J$9:$AC$9,0)))-'SCORE TABLE'!$F45)/('SCORE TABLE'!$G45-'SCORE TABLE'!$F45))*100,0) -> 0 | P45: =IFERROR((((INDEX('DATA TABLE'!$J$13:$AC$66, MATCH('SCORE TABLE'!$B45,'DATA TABLE'!$B$13:$B$66,0),MATCH('SCORE TABLE'!P$9,'DATA TABLE'!$J$9:$AC$9,0)))-'SCORE TABLE'!$F45)/('SCORE TABLE'!$G45-'SCORE TABLE'!$F45))*100,0) -> 0 | Q45: =IFERROR((((INDEX('DATA TABLE'!$J$13:$AC$66, MATCH('SCORE TABLE'!$B45,'DATA TABLE'!$B$13:$B$66,0),MATCH('SCORE TABLE'!Q$9,'DATA TABLE'!$J$9:$AC$9,0)))-'SCORE TABLE'!$F45)/('SCORE TABLE'!$G45-'SCORE TABLE'!$F45))*100,0) -> 0 | R45: =IFERROR((((INDEX('DATA TABLE'!$J$13:$AC$66, MATCH('SCORE TABLE'!$B45,'DATA TABLE'!$B$13:$B$66,0),MATCH('SCORE TABLE'!R$9,'DATA TABLE'!$J$9:$AC$9,0)))-'SCORE TABLE'!$F45)/('SCORE TABLE'!$G45-'SCORE TABLE'!$F45))*100,0) -> 100 | S45: =IFERROR((((INDEX('DATA TABLE'!$J$13:$AC$66, MATCH('SCORE TABLE'!$B45,'DATA TABLE'!$B$13:$B$66,0),MATCH('SCORE TABLE'!S$9,'DATA TABLE'!$J$9:$AC$9,0)))-'SCORE TABLE'!$F45)/('SCORE TABLE'!$G45-'SCORE TABLE'!$F45))*100,0) -> 50 | T45: =IFERROR((((INDEX('DATA TABLE'!$J$13:$AC$66, MATCH('SCORE TABLE'!$B45,'DATA TABLE'!$B$13:$B$66,0),MATCH('SCORE TABLE'!T$9,'DATA TABLE'!$J$9:$AC$9,0)))-'SCORE TABLE'!$F45)/('SCORE TABLE'!$G45-'SCORE TABLE'!$F45))*100,0) -> 50 | U45: =IFERROR((((INDEX('DATA TABLE'!$J$13:$AC$66, MATCH('SCORE TABLE'!$B45,'DATA TABLE'!$B$13:$B$66,0),MATCH('SCORE TABLE'!U$9,'DATA TABLE'!$J$9:$AC$9,0)))-'SCORE TABLE'!$F45)/('SCORE TABLE'!$G45-'SCORE TABLE'!$F45))*100,0) -> 50 | V45: =IFERROR((((INDEX('DATA TABLE'!$J$13:$AC$66, MATCH('SCORE TABLE'!$B45,'DATA TABLE'!$B$13:$B$66,0),MATCH('SCORE TABLE'!V$9,'DATA TABLE'!$J$9:$AC$9,0)))-'SCORE TABLE'!$F45)/('SCORE TABLE'!$G45-'SCORE TABLE'!$F45))*100,0) -> 0 | W45: =IFERROR((((INDEX('DATA TABLE'!$J$13:$AC$66, MATCH('SCORE TABLE'!$B45,'DATA TABLE'!$B$13:$B$66,0),MATCH('SCORE TABLE'!W$9,'DATA TABLE'!$J$9:$AC$9,0)))-'SCORE TABLE'!$F45)/('SCORE TABLE'!$G45-'SCORE TABLE'!$F45))*100,0) -> 50 | X45: =IFERROR((((INDEX('DATA TABLE'!$J$13:$AC$66, MATCH('SCORE TABLE'!$B45,'DATA TABLE'!$B$13:$B$66,0),MATCH('SCORE TABLE'!X$9,'DATA TABLE'!$J$9:$AC$9,0)))-'SCORE TABLE'!$F45)/('SCORE TABLE'!$G45-'SCORE TABLE'!$F45))*100,0) -> 0 | Y45: =IFERROR((((INDEX('DATA TABLE'!$J$13:$AC$66, MATCH('SCORE TABLE'!$B45,'DATA TABLE'!$B$13:$B$66,0),MATCH('SCORE TABLE'!Y$9,'DATA TABLE'!$J$9:$AC$9,0)))-'SCORE TABLE'!$F45)/('SCORE TABLE'!$G45-'SCORE TABLE'!$F45))*100,0) -> 50 | Z45: =IFERROR((((INDEX('DATA TABLE'!$J$13:$AC$66, MATCH('SCORE TABLE'!$B45,'DATA TABLE'!$B$13:$B$66,0),MATCH('SCORE TABLE'!Z$9,'DATA TABLE'!$J$9:$AC$9,0)))-'SCORE TABLE'!$F45)/('SCORE TABLE'!$G45-'SCORE TABLE'!$F45))*100,0) -> 50 | AA45: =IFERROR((((INDEX('DATA TABLE'!$J$13:$AC$66, MATCH('SCORE TABLE'!$B45,'DATA TABLE'!$B$13:$B$66,0),MATCH('SCORE TABLE'!AA$9,'DATA TABLE'!$J$9:$AC$9,0)))-'SCORE TABLE'!$F45)/('SCORE TABLE'!$G45-'SCORE TABLE'!$F45))*100,0) -> 50
A46: 1035 | B46: 3.3 | C46: Nutrition in schools | D46: =1/3 -> 0.3333333333 | E46: =$E$35*D46 -> 0.08333333333 | H46: =ROUND(SUMPRODUCT($D47:$D48,H47:H48),5) -> 100 | I46: =ROUND(SUMPRODUCT($D47:$D48,I47:I48),5) -> 100 | J46: 50 | K46: 100 | L46: 100 | M46: 100 | N46: 50 | O46: 50 | P46: 100 | Q46: 100 | R46: 100 | S46: 0 | T46: 50 | U46: 50 | V46: 100 | W46: 100 | X46: 100 | Y46: 100 | Z46: 100 | AA46: 100
A47: 1036 | B47: 3.3.1 | C47: School nutrition standards | D47: =1/2 -> 0.5 | E47: =$E$46*D47 -> 0.04166666667 | F47: 0 | G47: 1 | H47: =IFERROR((((INDEX('DATA TABLE'!$J$13:$AC$66, MATCH('SCORE TABLE'!$B47,'DATA TABLE'!$B$13:$B$66,0),MATCH('SCORE TABLE'!H$9,'DATA TABLE'!$J$9:$AC$9,0)))-'SCORE TABLE'!$F47)/('SCORE TABLE'!$G47-'SCORE TABLE'!$F47))*100,0) -> 100 | I47: =IFERROR((((INDEX('DATA TABLE'!$J$13:$AC$66, MATCH('SCORE TABLE'!$B47,'DATA TABLE'!$B$13:$B$66,0),MATCH('SCORE TABLE'!I$9,'DATA TABLE'!$J$9:$AC$9,0)))-'SCORE TABLE'!$F47)/('SCORE TABLE'!$G47-'SCORE TABLE'!$F47))*100,0) -> 100 | J47: =IFERROR((((INDEX('DATA TABLE'!$J$13:$AC$66, MATCH('SCORE TABLE'!$B47,'DATA TABLE'!$B$13:$B$66,0),MATCH('SCORE TABLE'!J$9,'DATA TABLE'!$J$9:$AC$9,0)))-'SCORE TABLE'!$F47)/('SCORE TABLE'!$G47-'SCORE TABLE'!$F47))*100,0) -> 0 | K47: =IFERROR((((INDEX('DATA TABLE'!$J$13:$AC$66, MATCH('SCORE TABLE'!$B47,'DATA TABLE'!$B$13:$B$66,0),MATCH('SCORE TABLE'!K$9,'DATA TABLE'!$J$9:$AC$9,0)))-'SCORE TABLE'!$F47)/('SCORE TABLE'!$G47-'SCORE TABLE'!$F47))*100,0) -> 100 | L47: =IFERROR((((INDEX('DATA TABLE'!$J$13:$AC$66, MATCH('SCORE TABLE'!$B47,'DATA TABLE'!$B$13:$B$66,0),MATCH('SCORE TABLE'!L$9,'DATA TABLE'!$J$9:$AC$9,0)))-'SCORE TABLE'!$F47)/('SCORE TABLE'!$G47-'SCORE TABLE'!$F47))*100,0) -> 100 | M47: =IFERROR((((INDEX('DATA TABLE'!$J$13:$AC$66, MATCH('SCORE TABLE'!$B47,'DATA TABLE'!$B$13:$B$66,0),MATCH('SCORE TABLE'!M$9,'DATA TABLE'!$J$9:$AC$9,0)))-'SCORE TABLE'!$F47)/('SCORE TABLE'!$G47-'SCORE TABLE'!$F47))*100,0) -> 100 | N47: =IFERROR((((INDEX('DATA TABLE'!$J$13:$AC$66, MATCH('SCORE TABLE'!$B47,'DATA TABLE'!$B$13:$B$66,0),MATCH('SCORE TABLE'!N$9,'DATA TABLE'!$J$9:$AC$9,0)))-'SCORE TABLE'!$F47)/('SCORE TABLE'!$G47-'SCORE TABLE'!$F47))*100,0) -> 0 | O47: =IFERROR((((INDEX('DATA TABLE'!$J$13:$AC$66, MATCH('SCORE TABLE'!$B47,'DATA TABLE'!$B$13:$B$66,0),MATCH('SCORE TABLE'!O$9,'DATA TABLE'!$J$9:$AC$9,0)))-'SCORE TABLE'!$F47)/('SCORE TABLE'!$G47-'SCORE TABLE'!$F47))*100,0) -> 100 | P47: =IFERROR((((INDEX('DATA TABLE'!$J$13:$AC$66, MATCH('SCORE TABLE'!$B47,'DATA TABLE'!$B$13:$B$66,0),MATCH('SCORE TABLE'!P$9,'DATA TABLE'!$J$9:$AC$9,0)))-'SCORE TABLE'!$F47)/('SCORE TABLE'!$G47-'SCORE TABLE'!$F47))*100,0) -> 100 | Q47: =IFERROR((((INDEX('DATA TABLE'!$J$13:$AC$66, MATCH('SCORE TABLE'!$B47,'DATA TABLE'!$B$13:$B$66,0),MATCH('SCORE TABLE'!Q$9,'DATA TABLE'!$J$9:$AC$9,0)))-'SCORE TABLE'!$F47)/('SCORE TABLE'!$G47-'SCORE TABLE'!$F47))*100,0) -> 100 | R47: =IFERROR((((INDEX('DATA TABLE'!$J$13:$AC$66, MATCH('SCORE TABLE'!$B47,'DATA TABLE'!$B$13:$B$66,0),MATCH('SCORE TABLE'!R$9,'DATA TABLE'!$J$9:$AC$9,0)))-'SCORE TABLE'!$F47)/('SCORE TABLE'!$G47-'SCORE TABLE'!$F47))*100,0) -> 100 | S47: =IFERROR((((INDEX('DATA TABLE'!$J$13:$AC$66, MATCH('SCORE TABLE'!$B47,'DATA TABLE'!$B$13:$B$66,0),MATCH('SCORE TABLE'!S$9,'DATA TABLE'!$J$9:$AC$9,0)))-'SCORE TABLE'!$F47)/('SCORE TABLE'!$G47-'SCORE TABLE'!$F47))*100,0) -> 0 | T47: =IFERROR((((INDEX('DATA TABLE'!$J$13:$AC$66, MATCH('SCORE TABLE'!$B47,'DATA TABLE'!$B$13:$B$66,0),MATCH('SCORE TABLE'!T$9,'DATA TABLE'!$J$9:$AC$9,0)))-'SCORE TABLE'!$F47)/('SCORE TABLE'!$G47-'SCORE TABLE'!$F47))*100,0) -> 100 | U47: =IFERROR((((INDEX('DATA TABLE'!$J$13:$AC$66, MATCH('SCORE TABLE'!$B47,'DATA TABLE'!$B$13:$B$66,0),MATCH('SCORE TABLE'!U$9,'DATA TABLE'!$J$9:$AC$9,0)))-'SCORE TABLE'!$F47)/('SCORE TABLE'!$G47-'SCORE TABLE'!$F47))*100,0) -> 100 | V47: =IFERROR((((INDEX('DATA TABLE'!$J$13:$AC$66, MATCH('SCORE TABLE'!$B47,'DATA TABLE'!$B$13:$B$66,0),MATCH('SCORE TABLE'!V$9,'DATA TABLE'!$J$9:$AC$9,0)))-'SCORE TABLE'!$F47)/('SCORE TABLE'!$G47-'SCORE TABLE'!$F47))*100,0) -> 100 | W47: =IFERROR((((INDEX('DATA TABLE'!$J$13:$AC$66, MATCH('SCORE TABLE'!$B47,'DATA TABLE'!$B$13:$B$66,0),MATCH('SCORE TABLE'!W$9,'DATA TABLE'!$J$9:$AC$9,0)))-'SCORE TABLE'!$F47)/('SCORE TABLE'!$G47-'SCORE TABLE'!$F47))*100,0) -> 100 | X47: =IFERROR((((INDEX('DATA TABLE'!$J$13:$AC$66, MATCH('SCORE TABLE'!$B47,'DATA TABLE'!$B$13:$B$66,0),MATCH('SCORE TABLE'!X$9,'DATA TABLE'!$J$9:$AC$9,0)))-'SCORE TABLE'!$F47)/('SCORE TABLE'!$G47-'SCORE TABLE'!$F47))*100,0) -> 100 | Y47: =IFERROR((((INDEX('DATA TABLE'!$J$13:$AC$66, MATCH('SCORE TABLE'!$B47,'DATA TABLE'!$B$13:$B$66,0),MATCH('SCORE TABLE'!Y$9,'DATA TABLE'!$J$9:$AC$9,0)))-'SCORE TABLE'!$F47)/('SCORE TABLE'!$G47-'SCORE TABLE'!$F47))*100,0) -> 100 | Z47: =IFERROR((((INDEX('DATA TABLE'!$J$13:$AC$66, MATCH('SCORE TABLE'!$B47,'DATA TABLE'!$B$13:$B$66,0),MATCH('SCORE TABLE'!Z$9,'DATA TABLE'!$J$9:$AC$9,0)))-'SCORE TABLE'!$F47)/('SCORE TABLE'!$G47-'SCORE TABLE'!$F47))*100,0) -> 100 | AA47: =IFERROR((((INDEX('DATA TABLE'!$J$13:$AC$66, MATCH('SCORE TABLE'!$B47,'DATA TABLE'!$B$13:$B$66,0),MATCH('SCORE TABLE'!AA$9,'DATA TABLE'!$J$9:$AC$9,0)))-'SCORE TABLE'!$F47)/('SCORE TABLE'!$G47-'SCORE TABLE'!$F47))*100,0) -> 100
